Workbook

Sheet MENU
J1: PM
C2: =CHOOSE(MATCH(Objeto,{"PM","PO"}),"PLANILHA MÚLTIPLA AMMOC ","PLANILHA ORÇAMENTÁRIA ")& Versao -> PLANILHA MÚLTIPLA AMMOC v3.0.5 | J2: v3.0.5
O3: 1
O4: 1
J5: Proposto
E6: DADOS DO CONTRATO | J6: Licitado
J7: PLE
B8: =IF($O$3<>2,"DOCUMENTAÇÃO DA PROPOSTA","PROPOSTA: Para visualizar/preencher esta seção, altere o TIPO DE ORÇAMENTO para 'Proposto'") -> DOCUMENTAÇÃO DA PROPOSTA | J8: BM | L8: LEGENDA:
L9: Cores das células:
C10: =IF(TIPOORCAMENTO<>"Proposto",""," BDI ") -> BDI | E10: =IF(TIPOORCAMENTO<>"Proposto",""," ORÇAMENTO ") -> ORÇAMENTO | G10: =IF(TIPOORCAMENTO<>"Proposto","","MEMÓRIA DE CÁLCULO / PLQ") -> MEMÓRIA DE CÁLCULO / PLQ | N10: Fundo amarelo: células para preencher
E12: =IF(TIPOORCAMENTO<>"Proposto","","CRONOGRAMA FÍSICO-FINANCEIRO") -> CRONOGRAMA FÍSICO-FINANCEIRO | N12: Fundo azul: células para seleção de opções
C14: =IF(TIPOORCAMENTO<>"Proposto","","Obs: Composições e Cotações devem ser preenchidas diretamente no arquivo Referência "&IF(ISBLANK(Import.DataBase),"mm-aaaa",TEXT(Import.DataBase,"mm-aaaa"))&".xls.") -> Obs: Composições e Cotações devem ser preenchidas diretamente no arquivo Referência 11-2018.xls.
L15: Cores dos botões:
B16: =IF($O$3<>2,"PÓS-LICITADO: Para visualizar/preencher esta seção, altere o TIPO DE ORÇAMENTO para 'Licitado'","RESULTADO DO PROCESSO LICITATÓRIO") -> PÓS-LICITADO: Para visualizar/preencher esta seção, altere o TIPO DE ORÇAMENTO para 'Licitado' | N16: Fundo azul: navegação entre abas
C18: =IF(TIPOORCAMENTO<>"Licitado",""," ORÇAMENTO ") ->  | E18: =IF(TIPOORCAMENTO<>"Licitado",""," QCI ") ->  | G18: =IF(TIPOORCAMENTO<>"Licitado","","CRONOGRAMA FÍSICO-FINANCEIRO") ->  | N18: Fundo laranja: execução de macro
B20: =IF($O$3<>2,"ACOMPANHAMENTO: Para visualizar/preencher esta seção, altere o TIPO DE ORÇAMENTO para 'Licitado'","ACOMPANHAMENTO DO EMPREENDIMENTO") -> ACOMPANHAMENTO: Para visualizar/preencher esta seção, altere o TIPO DE ORÇAMENTO para 'Licitado'
C22: =IF(OR(TIPOORCAMENTO<>"Licitado",ACOMPANHAMENTO<>"PLE"),"","PLAN. DE LEVANT. DE EVENTOS - PLE") ->  | E22: =IF(TIPOORCAMENTO<>"Licitado",""," RRE ") ->  | G22: =IF(OR(TIPOORCAMENTO<>"Licitado",ACOMPANHAMENTO<>"BM"),""," BOLETIM DE MEDIÇÃO - BM ") -> 
E24: =IF(TIPOORCAMENTO<>"Licitado","","OF. DE SOLICITAÇÃO DE DESBLOQUEIO") -> 

Sheet DADOS
E1: A. DOCUMENTAÇÃO DA PROPOSTA | L1: Sub-Itens de Investimento
J2: Itens de Investimento | K2: Unidades habitacionais | L2: =COUNTA(K:K)-1 -> 3 | M2: Equipamentos comunitários | N2: =COUNTA(M:M)-1 -> 4 | O2: Pavimentação | P2: =COUNTA(O:O)-1 -> 4 | Q2: Drenagem | R2: =COUNTA(Q:Q)-1 -> 4 | S2: Abastecimento de água | T2: =COUNTA(S:S)-1 -> 4 | U2: Esgotamento sanitário | V2: =COUNTA(U:U)-1 -> 4 | W2: Energia elétrica e iluminação pública | X2: =COUNTA(W:W)-1 -> 4 | Y2: Coleta e tratamento de resíduos sólidos | Z2: =COUNTA(Y:Y)-1 -> 4 | AA2: Contenção e estabilização de encostas | AB2: =COUNTA(AA:AA)-1 -> 2 | AC2: Regularização fundiária | AD2: =COUNTA(AC:AC)-1 -> 2 | AE2: Aquisição de terreno | AF2: =COUNTA(AE:AE)-1 -> 2 | AG2: Aquisição de equipamentos e insumos | AH2: =COUNTA(AG:AG)-1 -> 1 | AI2: Elaboração de estudos e projetos | AJ2: =COUNTA(AI:AI)-1 -> 1 | AK2: Instrumentos e ações em planejamento e gestão pública | AL2: =COUNTA(AK:AK)-1 -> 1 | AM2: Ações complementares às obras | AN2: =COUNTA(AM:AM)-1 -> 3 | AO2: Gerenciamento | AP2: =COUNTA(AO:AO)-1 -> 1 | AQ2: Trabalho social | AR2: =COUNTA(AQ:AQ)-1 -> 4
E3: Dados do Contrato (Inicial) | J3: Unidades habitacionais | K3: Aquisição | L3: un | M3: Convivência comunitária, assistência social e/ou comunitária | N3: m² | O3: Capeamento de vias | P3: m² | Q3: Obras de microdrenagem | R3: m | S3: Captação subterrânea | T3: m³/s | U3: Ligações domiciliares e/ou intradomiciliares | V3: un | W3: Iluminação pública - luminárias | X3: un | Y3: Acondicionamento | Z3: un | AA3: Estabilização de taludes | AB3: m² | AC3: Desapropriacões/Indenizações | AD3: m² | AE3: Aquisição de terreno | AF3: m² | AG3: Aquisição de equipamentos e insumos | AH3: un | AI3: Elaboração de estudos e projetos | AJ3: un | AK3: Instrumentos e ações em planejamento e gestão pública | AL3: un | AM3: Avaliação pós intervenção | AN3: un | AO3: Gerenciamento | AP3: %CT | AQ3: Projeto de Trabalho Social Preliminar | AR3: nº fam
E4: Fonte de recursos: | J4: Equipamentos comunitários | K4: Construção | L4: un | M4: Educação e cultura | N4: m² | O4: Recapeamento de vias | P4: m² | Q4: Desassoreamento de cursos de água | R4: m | S4: Captação superficial | T4: m³/s | U4: Rede coletora e/ou condominial | V4: m | W4: Ligações domiciliares | X4: un | Y4: Aterro sanitário e/ou disposição final | Z4: m³ | AA4: Obras complementares a ações de redução de risco e/ou contenções | AB4: m² | AC4: Projeto de Regularização Fundiária | AD4: m² | AE4: Benfeitorias | AF4: m² | AM4: Demolições | AN4: un | AQ4: Projeto de Trabalho Social | AR4: nº fam
E5: Proponente/Tomador: | F5: PREFEITURA MUNICIPAL DE LACERDÓPOLIS | J5: Pavimentação | K5: Reforma e/ou melhoria | L5: un | M5: Esportes | N5: m² | O5: Obras de artes especiais | P5: m | Q5: Canalização de cursos de água | R5: m | S5: Estação de bombeamento de água bruta | T5: m³/s | U5: Coletor tronco e/ou interceptores | V5: m | W5: Linhas de distribuição - baixa tensão | X5: m | Y5: Erradicação de lixões | Z5: m³ | AM5: Plano de Reassentamento e medidas compensatórias | AN5: un | AQ5: Plano de Desenvolvimento Socioterritorial | AR5: nº fam
E6: Município/UF: | F6: Lacerdópolis/SC | J6: Drenagem | M6: Lazer e turismo | N6: m² | O6: Pavimentação de calçadas | P6: m² | Q6: Recomposição de vegetação ciliar, renaturalização de cursos de água ou restauração de margens | R6: m² | S6: Adução | T6: m | U6: Emissário | V6: m | W6: Linhas de transmissão - alta tensão | X6: m | Y6: Sistema de coleta seletiva tradicional, transporte e/ou equipamentos | Z6: un | AQ6: Plano de Gestão Condominial | AR6: nº fam
J7: Aquisição de equipamentos e insumos
E8: Dados do Empreendimento e Orçamento | J8: Elaboração de estudos e projetos
E9: Nome do Empreendimento: | F9: REFORMA QUADRA GINÁSIO MUNICIPAL | J9: Instrumentos e ações em planejamento e gestão pública
E10: Projeto | F10: Associação dos Municípios do Meio Oeste Catarinense | J10: Ações complementares às obras
E11: Regime previdenciário previsto para a obra: | F11: NÃO DESONERADO | J11: Gerenciamento
E12: Data base do Orçamento: | F12: 2018-11-01 | J12: Trabalho social
E14: Responsável pelo Orçamento
E15: Nome: | F15: Max Mooshammer
E16: CREA: | F16: 139.164-0
E17: ART:
E18: Data do preenchimento: | F18: =TODAY() -> 2019-02-27
E20: Responsável pelo Tomador (Prefeito, no caso de Municípios)
E21: Nome: | F21: Sergio Callegari
E22: Cargo: | F22: Prefeito Municipal
E25: B. RESULTADO DO PROCESSO LICITATÓRIO
E27: Licitação
E28: Data de emissão dos documentos de licitação:
E29: Nº do CTEF (contrato com empresa):
E30: Nome da empresa:
E31: CNPJ da empresa:
E32: Regime de execução do CTEF: | F32: (SELECIONAR)
E33: Data base do CTEF:
E36: C. ACOMPANHAMENTO DO EMPREENDIMENTO
E38: Dados da obra
E39: Data do Início da Obra:
E40: Data de fechamento do RRE: | F40: =TODAY() -> 2019-02-27
E42: Responsável pela Fiscalização
E43: Nome:
E44: Profissão:
E45: CREA/CAU (para obras/projetos):
E46: ART/RRT (para obras/projetos):
E49: D. ACOMPANHAMENTO CAIXA
E51: Responsável Gerencial
E52: Nome:
E53: Função:

Sheet BDI
E1: MIN | F1: MED | G1: MAX | O1: ="Quadro de Composição do BDI" -> Quadro de Composição do BDI | R1: Grau de Sigilo
A2: Construção e Reforma de Edifícios | B2: AC | C2: =CONCATENATE(A2,"-",B2) -> Construção e Reforma de Edifícios-AC | E2: 0.03 | F2: 0.04 | G2: 0.055 | R2: #PUBLICO
A3: =A2 -> Construção e Reforma de Edifícios | B3: SG | C3: Construção e Reforma de Edifícios-SG | E3: 0.008 | F3: 0.008 | G3: 0.01
A4: =A3 -> Construção e Reforma de Edifícios | B4: R | C4: Construção e Reforma de Edifícios-R | E4: 0.0097 | F4: 0.0127 | G4: 0.0127 | N4: PROPONENTE / TOMADOR
A5: =A4 -> Construção e Reforma de Edifícios | B5: DF | C5: Construção e Reforma de Edifícios-DF | E5: 0.0059 | F5: 0.0123 | G5: 0.0139 | N5: =Import.Proponente -> PREFEITURA MUNICIPAL DE LACERDÓPOLIS
A6: =A5 -> Construção e Reforma de Edifícios | B6: L | C6: Construção e Reforma de Edifícios-L | E6: 0.0616 | F6: 0.074 | G6: 0.0896 | I6: FILTRO
A7: =A6 -> Construção e Reforma de Edifícios | B7: BDI PAD | C7: Construção e Reforma de Edifícios-BDI PAD | E7: 0.2034 | F7: 0.2212 | G7: 0.25 | J7: APELIDO DO EMPREENDIMENTO
A8: Construção de Praças Urbanas, Rodovias, Ferrovias e recapeamento e pavimentação de vias urbanas | B8: AC | C8: Construção de Praças Urbanas, Rodovias, Ferrovias e recapeamento e pavimentação de vias urbanas-AC | E8: 0.038 | F8: 0.0401 | G8: 0.0467 | J8: =Import.Apelido -> REFORMA QUADRA GINÁSIO MUNICIPAL
A9: Construção de Praças Urbanas, Rodovias, Ferrovias e recapeamento e pavimentação de vias urbanas | B9: SG | C9: Construção de Praças Urbanas, Rodovias, Ferrovias e recapeamento e pavimentação de vias urbanas-SG | E9: 0.0032 | F9: 0.004 | G9: 0.0074
A10: Construção de Praças Urbanas, Rodovias, Ferrovias e recapeamento e pavimentação de vias urbanas | B10: R | C10: Construção de Praças Urbanas, Rodovias, Ferrovias e recapeamento e pavimentação de vias urbanas-R | E10: 0.005 | F10: 0.0056 | G10: 0.0097 | J10: Conforme legislação tributária municipal, definir estimativa de percentual da base de cálculo para o ISS: | R10: 1
A11: Construção de Praças Urbanas, Rodovias, Ferrovias e recapeamento e pavimentação de vias urbanas | B11: DF | C11: Construção de Praças Urbanas, Rodovias, Ferrovias e recapeamento e pavimentação de vias urbanas-DF | E11: 0.0102 | F11: 0.0111 | G11: 0.0121 | I11: ↓ | J11: Sobre a base de cálculo, definir a respectiva alíquota do ISS (entre 2% e 5%): | R11: 0.03
A12: Construção de Praças Urbanas, Rodovias, Ferrovias e recapeamento e pavimentação de vias urbanas | B12: L | C12: Construção de Praças Urbanas, Rodovias, Ferrovias e recapeamento e pavimentação de vias urbanas-L | E12: 0.0664 | F12: 0.073 | G12: 0.0869 | I12: F
A13: Construção de Praças Urbanas, Rodovias, Ferrovias e recapeamento e pavimentação de vias urbanas | B13: BDI PAD | C13: Construção de Praças Urbanas, Rodovias, Ferrovias e recapeamento e pavimentação de vias urbanas-BDI PAD | E13: 0.196 | F13: 0.2097 | G13: 0.2423 | I13: F
A14: Construção de Redes de Abastecimento de Água, Coleta de Esgoto | B14: AC | C14: Construção de Redes de Abastecimento de Água, Coleta de Esgoto-AC | E14: 0.0343 | F14: 0.0493 | G14: 0.0671 | I14: F | J14: BDI 1
A15: =A14 -> Construção de Redes de Abastecimento de Água, Coleta de Esgoto | B15: SG | C15: Construção de Redes de Abastecimento de Água, Coleta de Esgoto-SG | E15: 0.0028 | F15: 0.0049 | G15: 0.0075 | I15: F
A16: =A15 -> Construção de Redes de Abastecimento de Água, Coleta de Esgoto | B16: R | C16: Construção de Redes de Abastecimento de Água, Coleta de Esgoto-R | E16: 0.01 | F16: 0.0139 | G16: 0.0174 | I16: F | J16: TIPO DE OBRA
A17: =A16 -> Construção de Redes de Abastecimento de Água, Coleta de Esgoto | B17: DF | C17: Construção de Redes de Abastecimento de Água, Coleta de Esgoto-DF | E17: 0.0094 | F17: 0.0099 | G17: 0.0117 | I17: F | J17: Construção e Reforma de Edifícios
A18: =A17 -> Construção de Redes de Abastecimento de Água, Coleta de Esgoto | B18: L | C18: Construção de Redes de Abastecimento de Água, Coleta de Esgoto-L | E18: 0.0674 | F18: 0.0804 | G18: 0.094 | I18: F
A19: =A18 -> Construção de Redes de Abastecimento de Água, Coleta de Esgoto | B19: BDI PAD | C19: Construção de Redes de Abastecimento de Água, Coleta de Esgoto-BDI PAD | E19: 0.2076 | F19: 0.2418 | G19: 0.2644 | I19: F | J19: Itens | R19: Siglas | S19: % Adotado | U19: Situação | X19: 1º Quartil | Y19: Médio | Z19: 3º Quartil
A20: Construção e Manutenção de Estações e Redes de Distribuição de Energia Elétrica | B20: AC | C20: Construção e Manutenção de Estações e Redes de Distribuição de Energia Elétrica-AC | E20: 0.0529 | F20: 0.0592 | G20: 0.0793 | I20: F
A21: =A20 -> Construção e Manutenção de Estações e Redes de Distribuição de Energia Elétrica | B21: SG | C21: Construção e Manutenção de Estações e Redes de Distribuição de Energia Elétrica-SG | E21: 0.0025 | F21: 0.0051 | G21: 0.0056 | I21: F | J21: =IF($J$17=$A$146,"Encargos Sociais incidentes sobre a mão de obra","Administração Central") -> Administração Central | R21: =IF($J17=$A$146,"K1","AC") -> AC | S21: 0.04 | U21: - | X21: =VLOOKUP(CONCATENATE(J17,"-",R21),$C$2:$G$136,3,FALSE) -> 0.03 | Y21: =VLOOKUP(CONCATENATE(J17,"-",R21),$C$2:$G$136,4,FALSE) -> 0.04 | Z21: =VLOOKUP(CONCATENATE(J17,"-",R21),$C$2:$G$136,5,FALSE) -> 0.055
A22: =A21 -> Construção e Manutenção de Estações e Redes de Distribuição de Energia Elétrica | B22: R | C22: Construção e Manutenção de Estações e Redes de Distribuição de Energia Elétrica-R | E22: 0.01 | F22: 0.0148 | G22: 0.0197 | I22: F | J22: =IF($J$17=$A$146,"Administração Central da empresa ou consultoria - overhead","Seguro e Garantia") -> Seguro e Garantia | R22: =IF($J17=$A$146,"K2","SG") -> SG | S22: 0.008 | U22: - | X22: =VLOOKUP(CONCATENATE(J17,"-",R22),$C$2:$G$136,3,FALSE) -> 0.008 | Y22: =VLOOKUP(CONCATENATE(J17,"-",R22),$C$2:$G$136,4,FALSE) -> 0.008 | Z22: =VLOOKUP(CONCATENATE(J17,"-",R22),$C$2:$G$136,5,FALSE) -> 0.01
A23: =A22 -> Construção e Manutenção de Estações e Redes de Distribuição de Energia Elétrica | B23: DF | C23: Construção e Manutenção de Estações e Redes de Distribuição de Energia Elétrica-DF | E23: 0.0101 | F23: 0.0107 | G23: 0.0111 | I23: F | J23: =IF($J$17=$A$146,"","Risco") -> Risco | R23: =IF($J17=$A$146,"","R") -> R | S23: 0.0127 | U23: - | X23: =VLOOKUP(CONCATENATE(J17,"-",R23),$C$2:$G$136,3,FALSE) -> 0.0097 | Y23: =VLOOKUP(CONCATENATE(J17,"-",R23),$C$2:$G$136,4,FALSE) -> 0.0127 | Z23: =VLOOKUP(CONCATENATE(J17,"-",R23),$C$2:$G$136,5,FALSE) -> 0.0127
A24: =A23 -> Construção e Manutenção de Estações e Redes de Distribuição de Energia Elétrica | B24: L | C24: Construção e Manutenção de Estações e Redes de Distribuição de Energia Elétrica-L | E24: 0.08 | F24: 0.0831 | G24: 0.0951 | I24: F | J24: =IF($J$17=$A$146,"","Despesas Financeiras") -> Despesas Financeiras | R24: =IF($J17=$A$146,"","DF") -> DF | S24: 0.0123 | U24: - | X24: =VLOOKUP(CONCATENATE(J17,"-",R24),$C$2:$G$136,3,FALSE) -> 0.0059 | Y24: =VLOOKUP(CONCATENATE(J17,"-",R24),$C$2:$G$136,4,FALSE) -> 0.0123 | Z24: =VLOOKUP(CONCATENATE(J17,"-",R24),$C$2:$G$136,5,FALSE) -> 0.0139
A25: =A24 -> Construção e Manutenção de Estações e Redes de Distribuição de Energia Elétrica | B25: BDI PAD | C25: Construção e Manutenção de Estações e Redes de Distribuição de Energia Elétrica-BDI PAD | E25: 0.24 | F25: 0.2584 | G25: 0.2786 | I25: F | J25: =IF($J$17=$A$146,"Margem bruta da empresa de consultoria","Lucro") -> Lucro | R25: =IF($J17=$A$146,"K3","L") -> L | S25: 0.074 | U25: - | X25: =VLOOKUP(CONCATENATE(J17,"-",R25),$C$2:$G$136,3,FALSE) -> 0.0616 | Y25: =VLOOKUP(CONCATENATE(J17,"-",R25),$C$2:$G$136,4,FALSE) -> 0.074 | Z25: =VLOOKUP(CONCATENATE(J17,"-",R25),$C$2:$G$136,5,FALSE) -> 0.0896
A26: Obras Portuárias, Marítimas e Fluviais | B26: AC | C26: Obras Portuárias, Marítimas e Fluviais-AC | E26: 0.04 | F26: 0.0552 | G26: 0.0785 | I26: F | J26: Tributos (impostos COFINS 3%, e PIS 0,65%) | R26: CP | S26: 0.0365 | U26: - | X26: 0.0365 | Y26: 0.0365 | Z26: 0.0365
A27: =A26 -> Obras Portuárias, Marítimas e Fluviais | B27: SG | C27: Obras Portuárias, Marítimas e Fluviais-SG | E27: 0.0081 | F27: 0.0122 | G27: 0.0199 | I27: F | J27: Tributos (ISS, variável de acordo com o município) | R27: ISS | S27: =IF(AND($J17<>$A$145,COUNTA(OFFSET(S20,1,0,6))>0),$R$11*$R$10,0) -> 0.03 | U27: - | X27: 0 | Y27: 0.025 | Z27: 0.05
A28: =A27 -> Obras Portuárias, Marítimas e Fluviais | B28: R | C28: Obras Portuárias, Marítimas e Fluviais-R | E28: 0.0146 | F28: 0.0232 | G28: 0.0316 | I28: F | J28: Tributos (Contribuição Previdenciária sobre a Receita Bruta - 0% ou 4,5% - Desoneração) | R28: CPRB | S28: =IF(BDI.Opcao<>"Desonerado",0,IF(AND($J17<>$A$145,COUNTA(OFFSET(S20,1,0,6))>0),4.5%,0%)) -> 0 | U28: - | X28: 0 | Y28: 0.045 | Z28: 0.045
A29: =A28 -> Obras Portuárias, Marítimas e Fluviais | B29: DF | C29: Obras Portuárias, Marítimas e Fluviais-DF | E29: 0.0094 | F29: 0.0102 | G29: 0.0133 | I29: F | J29: BDI SEM desoneração (Fórmula Acórdão TCU) | R29: BDI PAD | S29: =IF($J17=$A$145,0,ROUND((((1+S21+S22+S23)*(1+S24)*(1+S25)/(1-(S26+S27)))-1),4)) -> 0.2354 | U29: =IF(OR($J$17=$A$146,$J$17=$A$145,AND(S29>=X29,S29<=Z29)),"OK","FORA DO INTERVALO") -> OK | X29: =IF($J17=$A$145,0,VLOOKUP(CONCATENATE($J17,"-",$R29),$C$2:$G$136,3,FALSE)) -> 0.2034 | Y29: =IF($J17=$A$145,0,VLOOKUP(CONCATENATE($J17,"-",$R29),$C$2:$G$136,4,FALSE)) -> 0.2212 | Z29: =IF($J17=$A$145,0,VLOOKUP(CONCATENATE($J17,"-",$R29),$C$2:$G$136,5,FALSE)) -> 0.25
A30: =A29 -> Obras Portuárias, Marítimas e Fluviais | B30: L | C30: Obras Portuárias, Marítimas e Fluviais-L | E30: 0.0714 | F30: 0.084 | G30: 0.1043 | I30: F | J30: BDI COM desoneração | R30: BDI DES | S30: =IF($J17=$A$145,0,ROUND((((1+S21+S22+S23)*(1+S24)*(1+S25)/(1-(S26+S27+S28)))-1),4)) -> 0.2354
A31: =A30 -> Obras Portuárias, Marítimas e Fluviais | B31: BDI PAD | C31: Obras Portuárias, Marítimas e Fluviais-BDI PAD | E31: 0.228 | F31: 0.2748 | G31: 0.3095 | I31: F
A32: Fornecimento de Materiais e Equipamentos (aquisição indireta - em conjunto com licitação de obras) | B32: AC | C32: Fornecimento de Materiais e Equipamentos (aquisição indireta - em conjunto com licitação de obras)-AC | E32: 0.015 | F32: 0.0345 | G32: 0.0449 | I32: F | J32: =IF(U29<>"ok","X","") ->  | K32: =IF(U29<>"ok","Anexo: Relatório Técnico Circunstanciado justificando a adoção do percentual de cada parcela do BDI.","") -> 
A33: =A32 -> Fornecimento de Materiais e Equipamentos (aquisição indireta - em conjunto com licitação de obras) | B33: SG | C33: Fornecimento de Materiais e Equipamentos (aquisição indireta - em conjunto com licitação de obras)-SG | E33: 0.003 | F33: 0.0048 | G33: 0.0082 | I33: F
A34: =A33 -> Fornecimento de Materiais e Equipamentos (aquisição indireta - em conjunto com licitação de obras) | B34: R | C34: Fornecimento de Materiais e Equipamentos (aquisição indireta - em conjunto com licitação de obras)-R | E34: 0.0056 | F34: 0.0085 | G34: 0.0089 | I34: F | J34: Os valores de BDI foram calculados com o emprego da fórmula:
A35: =A34 -> Fornecimento de Materiais e Equipamentos (aquisição indireta - em conjunto com licitação de obras) | B35: DF | C35: Fornecimento de Materiais e Equipamentos (aquisição indireta - em conjunto com licitação de obras)-DF | E35: 0.0085 | F35: 0.0085 | G35: 0.0111 | I35: F | M35: BDI = | N35: =IF($J17=$A$146,"(1+K1+K2)*(1+K3)","(1+AC + S + R + G)*(1 + DF)*(1+L)") -> (1+AC + S + R + G)*(1 + DF)*(1+L) | Q35: - 1
A36: =A35 -> Fornecimento de Materiais e Equipamentos (aquisição indireta - em conjunto com licitação de obras) | B36: L | C36: Fornecimento de Materiais e Equipamentos (aquisição indireta - em conjunto com licitação de obras)-L | E36: 0.035 | F36: 0.0511 | G36: 0.0622 | I36: F | N36: (1-CP-ISS-CRPB)
A37: =A36 -> Fornecimento de Materiais e Equipamentos (aquisição indireta - em conjunto com licitação de obras) | B37: BDI PAD | C37: Fornecimento de Materiais e Equipamentos (aquisição indireta - em conjunto com licitação de obras)-BDI PAD | E37: 0.111 | F37: 0.1402 | G37: 0.168 | I37: F
A38: Fornecimento de Materiais e Equipamentos (aquisição direta) | B38: AC | C38: Fornecimento de Materiais e Equipamentos (aquisição direta)-AC | E38: - | F38: - | G38: - | I38: F | J38: =CONCATENATE("Declaro para os devidos fins que, conforme legislação tributária municipal, a base de cálculo deste tipo de obra corresponde à ",$R$10*100,"%, com a respectiva alíquota de ",$R$11*100,"%.") -> Declaro para os devidos fins que, conforme legislação tributária municipal, a base de cálculo deste tipo de obra corresponde à 100%, com a respectiva alíquota de 3%.
A39: Fornecimento de Materiais e Equipamentos (aquisição direta) | B39: SG | C39: Fornecimento de Materiais e Equipamentos (aquisição direta)-SG | E39: - | F39: - | G39: - | I39: F
A40: Fornecimento de Materiais e Equipamentos (aquisição direta) | B40: R | C40: Fornecimento de Materiais e Equipamentos (aquisição direta)-R | E40: - | F40: - | G40: - | I40: F | J40: =CONCATENATE("Declaro para os devidos fins que o regime de Contribuição Previdenciária sobre a Receita Bruta adotado para elaboração do orçamento foi ",IF(DESONERACAO="Sim","COM","SEM")," Desoneração, e que esta é a alternativa mais adequada para a Administração Pública.") -> Declaro para os devidos fins que o regime de Contribuição Previdenciária sobre a Receita Bruta adotado para elaboração do orçamento foi SEM Desoneração, e que esta é a alternativa mais adequada para a Administração Pública.
A41: Fornecimento de Materiais e Equipamentos (aquisição direta) | B41: DF | C41: Fornecimento de Materiais e Equipamentos (aquisição direta)-DF | E41: - | F41: - | G41: - | I41: F
A42: Fornecimento de Materiais e Equipamentos (aquisição direta) | B42: L | C42: Fornecimento de Materiais e Equipamentos (aquisição direta)-L | E42: - | F42: - | G42: - | I42: F | J42: Observações:
A43: Fornecimento de Materiais e Equipamentos (aquisição direta) | B43: BDI PAD | C43: Fornecimento de Materiais e Equipamentos (aquisição direta)-BDI PAD | E43: - | F43: - | G43: - | I43: F
A44: Estudos e Projetos, Planos e Gerenciamento e outros correlatos | B44: K1 | C44: Estudos e Projetos, Planos e Gerenciamento e outros correlatos-K1 | E44: - | F44: - | G44: - | I44: F
A45: =A44 -> Estudos e Projetos, Planos e Gerenciamento e outros correlatos | B45: K2 | C45: Estudos e Projetos, Planos e Gerenciamento e outros correlatos-K2 | E45: - | F45: 0.2 | G45: - | I45: F | J45: =Import.Município -> Lacerdópolis/SC | P45: =DADOS!$F$18 -> 2019-02-27
A46: =A45 -> Estudos e Projetos, Planos e Gerenciamento e outros correlatos | C46: Estudos e Projetos, Planos e Gerenciamento e outros correlatos- | E46: - | F46: - | G46: - | I46: F | J46: Local | P46: Data
A47: =A46 -> Estudos e Projetos, Planos e Gerenciamento e outros correlatos | C47: Estudos e Projetos, Planos e Gerenciamento e outros correlatos- | E47: - | F47: - | G47: - | I47: F
A48: =A47 -> Estudos e Projetos, Planos e Gerenciamento e outros correlatos | B48: K3 | C48: Estudos e Projetos, Planos e Gerenciamento e outros correlatos-K3 | E48: - | F48: 0.12 | G48: - | I48: F
A49: =A48 -> Estudos e Projetos, Planos e Gerenciamento e outros correlatos | B49: BDI PAD | C49: Estudos e Projetos, Planos e Gerenciamento e outros correlatos-BDI PAD | E49: - | F49: - | G49: - | I49: F | J49: Responsável Técnico
I50: F | J50: Nome: | K50: =Import.RespOrçamento -> Max Mooshammer
I51: F | J51: CREA/CAU: | K51: 139.164-0
I52: F | J52: ART/RRT: | K52: 0
I53: F
I54: =IF($S$69=0,"","F") ->  | J54: BDI 2
I55: =IF($S$69=0,"","F") -> 
J56: TIPO DE OBRA
J57: (SELECIONAR)
J59: Itens | R59: Siglas | S59: % Adotado | U59: Situação | X59: 1º Quartil | Y59: Médio | Z59: 3º Quartil
J61: =IF($J$17=$A$146,"Encargos Sociais incidentes sobre a mão de obra","Administração Central") -> Administração Central | R61: =IF($J57=$A$146,"K1","AC") -> AC | U61: - | X61: =VLOOKUP(CONCATENATE(J57,"-",R61),$C$2:$G$136,3,FALSE) ->  | Y61: =VLOOKUP(CONCATENATE(J57,"-",R61),$C$2:$G$136,4,FALSE) ->  | Z61: =VLOOKUP(CONCATENATE(J57,"-",R61),$C$2:$G$136,5,FALSE) -> 
J62: =IF($J$17=$A$146,"Administração Central da empresa ou consultoria - overhead","Seguro e Garantia") -> Seguro e Garantia | R62: =IF($J57=$A$146,"K2","SG") -> SG | U62: - | X62: =VLOOKUP(CONCATENATE(J57,"-",R62),$C$2:$G$136,3,FALSE) ->  | Y62: =VLOOKUP(CONCATENATE(J57,"-",R62),$C$2:$G$136,4,FALSE) ->  | Z62: =VLOOKUP(CONCATENATE(J57,"-",R62),$C$2:$G$136,5,FALSE) -> 
J63: =IF($J$17=$A$146,"","Risco") -> Risco | R63: =IF($J57=$A$146,"","R") -> R | U63: - | X63: =VLOOKUP(CONCATENATE(J57,"-",R63),$C$2:$G$136,3,FALSE) ->  | Y63: =VLOOKUP(CONCATENATE(J57,"-",R63),$C$2:$G$136,4,FALSE) ->  | Z63: =VLOOKUP(CONCATENATE(J57,"-",R63),$C$2:$G$136,5,FALSE) -> 
J64: =IF($J$17=$A$146,"","Despesas Financeiras") -> Despesas Financeiras | R64: =IF($J57=$A$146,"","DF") -> DF | U64: - | X64: =VLOOKUP(CONCATENATE(J57,"-",R64),$C$2:$G$136,3,FALSE) ->  | Y64: =VLOOKUP(CONCATENATE(J57,"-",R64),$C$2:$G$136,4,FALSE) ->  | Z64: =VLOOKUP(CONCATENATE(J57,"-",R64),$C$2:$G$136,5,FALSE) -> 
J65: =IF($J$17=$A$146,"Margem bruta da empresa de consultoria","Lucro") -> Lucro | R65: =IF($J57=$A$146,"K3","L") -> L | U65: - | X65: =VLOOKUP(CONCATENATE(J57,"-",R65),$C$2:$G$136,3,FALSE) ->  | Y65: =VLOOKUP(CONCATENATE(J57,"-",R65),$C$2:$G$136,4,FALSE) ->  | Z65: =VLOOKUP(CONCATENATE(J57,"-",R65),$C$2:$G$136,5,FALSE) -> 
J66: Tributos (impostos COFINS 3%, e PIS 0,65%) | R66: CP | U66: - | X66: 0.0365 | Y66: 0.0365 | Z66: 0.0365
J67: Tributos (ISS, variável de acordo com o município) | R67: ISS | S67: =IF(AND($J57<>$A$145,COUNTA(OFFSET(S60,1,0,6))>0),$R$11*$R$10,0) -> 0 | U67: - | X67: 0 | Y67: 0.025 | Z67: 0.05
J68: Tributos (Contribuição Previdenciária sobre a Receita Bruta - 0% ou 4,5% - Desoneração) | R68: CPRB | S68: =IF(BDI.Opcao<>"Desonerado",0,IF(AND($J57<>$A$145,COUNTA(OFFSET(S60,1,0,6))>0),4.5%,0%)) -> 0 | U68: - | X68: 0 | Y68: 0.045 | Z68: 0.045
J69: BDI SEM desoneração (Fórmula Acórdão TCU) | R69: BDI PAD | S69: =IF($J57=$A$145,0,ROUND((((1+S61+S62+S63)*(1+S64)*(1+S65)/(1-(S66+S67)))-1),4)) -> 0 | U69: =IF(OR($J$17=$A$146,$J$17=$A$145,AND(S69>=X69,S69<=Z69)),"OK","FORA DO INTERVALO") ->  | X69: =IF($J57=$A$145,0,VLOOKUP(CONCATENATE($J57,"-",$R69),$C$2:$G$136,3,FALSE)) ->  | Y69: =IF($J57=$A$145,0,VLOOKUP(CONCATENATE($J57,"-",$R69),$C$2:$G$136,4,FALSE)) ->  | Z69: =IF($J57=$A$145,0,VLOOKUP(CONCATENATE($J57,"-",$R69),$C$2:$G$136,5,FALSE)) -> 
J70: BDI COM desoneração | R70: BDI DES | S70: =IF($J57=$A$145,0,ROUND((((1+S61+S62+S63)*(1+S64)*(1+S65)/(1-(S66+S67+S68)))-1),4)) -> 0
J72: =IF(U69<>"ok","X","") ->  | K72: =IF(U69<>"ok","Anexo: Relatório Técnico Circunstanciado justificando a adoção do percentual de cada parcela do BDI.","") -> 
J74: Os valores de BDI foram calculados com o emprego da fórmula:
M75: BDI = | N75: =IF($J57=$A$146,"(1+K1+K2)*(1+K3)","(1+AC + S + R + G)*(1 + DF)*(1+L)") -> (1+AC + S + R + G)*(1 + DF)*(1+L) | Q75: - 1
N76: (1-CP-ISS-CRPB)
J78: =CONCATENATE("Declaro para os devidos fins que, conforme legislação tributária municipal, a base de cálculo deste tipo de obra corresponde à ",$R$10*100,"%, com a respectiva alíquota de ",$R$11*100,"%.") -> Declaro para os devidos fins que, conforme legislação tributária municipal, a base de cálculo deste tipo de obra corresponde à 100%, com a respectiva alíquota de 3%.
J80: =CONCATENATE("Declaro para os devidos fins que o regime de Contribuição Previdenciária sobre a Receita Bruta adotado para elaboração do orçamento foi ",IF(DESONERACAO="Sim","COM","SEM")," Desoneração, e que esta é a alternativa mais adequada para a Administração Pública.") -> Declaro para os devidos fins que o regime de Contribuição Previdenciária sobre a Receita Bruta adotado para elaboração do orçamento foi SEM Desoneração, e que esta é a alternativa mais adequada para a Administração Pública.
J82: Observações:
J85: =Import.Município -> Lacerdópolis/SC | P85: =DADOS!$F$18 -> 2019-02-27
J86: Local | P86: Data
J89: Responsável Técnico
J90: Nome: | K90: =Import.RespOrçamento -> Max Mooshammer
J91: CREA/CAU: | K91: 139.164-0
J92: ART/RRT: | K92: 0
I94: =IF($S$109=0,"","F") ->  | J94: BDI 3
I95: =IF($S$109=0,"","F") -> 
J96: TIPO DE OBRA
J97: (SELECIONAR)
J99: Itens | R99: Siglas | S99: % Adotado | U99: Situação | X99: 1º Quartil | Y99: Médio | Z99: 3º Quartil
J101: =IF($J$17=$A$146,"Encargos Sociais incidentes sobre a mão de obra","Administração Central") -> Administração Central | R101: =IF($J97=$A$146,"K1","AC") -> AC | U101: - | X101: =VLOOKUP(CONCATENATE(J97,"-",R101),$C$2:$G$136,3,FALSE) ->  | Y101: =VLOOKUP(CONCATENATE(J97,"-",R101),$C$2:$G$136,4,FALSE) ->  | Z101: =VLOOKUP(CONCATENATE(J97,"-",R101),$C$2:$G$136,5,FALSE) -> 
J102: =IF($J$17=$A$146,"Administração Central da empresa ou consultoria - overhead","Seguro e Garantia") -> Seguro e Garantia | R102: =IF($J97=$A$146,"K2","SG") -> SG | U102: - | X102: =VLOOKUP(CONCATENATE(J97,"-",R102),$C$2:$G$136,3,FALSE) ->  | Y102: =VLOOKUP(CONCATENATE(J97,"-",R102),$C$2:$G$136,4,FALSE) ->  | Z102: =VLOOKUP(CONCATENATE(J97,"-",R102),$C$2:$G$136,5,FALSE) -> 
J103: =IF($J$17=$A$146,"","Risco") -> Risco | R103: =IF($J97=$A$146,"","R") -> R | U103: - | X103: =VLOOKUP(CONCATENATE(J97,"-",R103),$C$2:$G$136,3,FALSE) ->  | Y103: =VLOOKUP(CONCATENATE(J97,"-",R103),$C$2:$G$136,4,FALSE) ->  | Z103: =VLOOKUP(CONCATENATE(J97,"-",R103),$C$2:$G$136,5,FALSE) -> 
J104: =IF($J$17=$A$146,"","Despesas Financeiras") -> Despesas Financeiras | R104: =IF($J97=$A$146,"","DF") -> DF | U104: - | X104: =VLOOKUP(CONCATENATE(J97,"-",R104),$C$2:$G$136,3,FALSE) ->  | Y104: =VLOOKUP(CONCATENATE(J97,"-",R104),$C$2:$G$136,4,FALSE) ->  | Z104: =VLOOKUP(CONCATENATE(J97,"-",R104),$C$2:$G$136,5,FALSE) -> 
J105: =IF($J$17=$A$146,"Margem bruta da empresa de consultoria","Lucro") -> Lucro | R105: =IF($J97=$A$146,"K3","L") -> L | U105: - | X105: =VLOOKUP(CONCATENATE(J97,"-",R105),$C$2:$G$136,3,FALSE) ->  | Y105: =VLOOKUP(CONCATENATE(J97,"-",R105),$C$2:$G$136,4,FALSE) ->  | Z105: =VLOOKUP(CONCATENATE(J97,"-",R105),$C$2:$G$136,5,FALSE) -> 
J106: Tributos (impostos COFINS 3%, e PIS 0,65%) | R106: CP | U106: - | X106: 0.0365 | Y106: 0.0365 | Z106: 0.0365
J107: Tributos (ISS, variável de acordo com o município) | R107: ISS | S107: =IF(AND($J97<>$A$145,COUNTA(OFFSET(S100,1,0,6))>0),$R$11*$R$10,0) -> 0 | U107: - | X107: 0 | Y107: 0.025 | Z107: 0.05
J108: Tributos (Contribuição Previdenciária sobre a Receita Bruta - 0% ou 4,5% - Desoneração) | R108: CPRB | S108: =IF(BDI.Opcao<>"Desonerado",0,IF(AND($J97<>$A$145,COUNTA(OFFSET(S100,1,0,6))>0),4.5%,0%)) -> 0 | U108: - | X108: 0 | Y108: 0.045 | Z108: 0.045
J109: BDI SEM desoneração (Fórmula Acórdão TCU) | R109: BDI PAD | S109: =IF($J97=$A$145,0,ROUND((((1+S101+S102+S103)*(1+S104)*(1+S105)/(1-(S106+S107)))-1),4)) -> 0 | U109: =IF(OR($J$17=$A$146,$J$17=$A$145,AND(S109>=X109,S109<=Z109)),"OK","FORA DO INTERVALO") ->  | X109: =IF($J97=$A$145,0,VLOOKUP(CONCATENATE($J97,"-",$R109),$C$2:$G$136,3,FALSE)) ->  | Y109: =IF($J97=$A$145,0,VLOOKUP(CONCATENATE($J97,"-",$R109),$C$2:$G$136,4,FALSE)) ->  | Z109: =IF($J97=$A$145,0,VLOOKUP(CONCATENATE($J97,"-",$R109),$C$2:$G$136,5,FALSE)) -> 
J110: BDI COM desoneração | R110: BDI DES | S110: =IF($J97=$A$145,0,ROUND((((1+S101+S102+S103)*(1+S104)*(1+S105)/(1-(S106+S107+S108)))-1),4)) -> 0
J112: =IF(U109<>"ok","X","") ->  | K112: =IF(U109<>"ok","Anexo: Relatório Técnico Circunstanciado justificando a adoção do percentual de cada parcela do BDI.","") -> 
J114: Os valores de BDI foram calculados com o emprego da fórmula:
M115: BDI = | N115: =IF($J97=$A$146,"(1+K1+K2)*(1+K3)","(1+AC + S + R + G)*(1 + DF)*(1+L)") -> (1+AC + S + R + G)*(1 + DF)*(1+L) | Q115: - 1
N116: (1-CP-ISS-CRPB)
J118: =CONCATENATE("Declaro para os devidos fins que, conforme legislação tributária municipal, a base de cálculo deste tipo de obra corresponde à ",$R$10*100,"%, com a respectiva alíquota de ",$R$11*100,"%.") -> Declaro para os devidos fins que, conforme legislação tributária municipal, a base de cálculo deste tipo de obra corresponde à 100%, com a respectiva alíquota de 3%.
J120: =CONCATENATE("Declaro para os devidos fins que o regime de Contribuição Previdenciária sobre a Receita Bruta adotado para elaboração do orçamento foi ",IF(DESONERACAO="Sim","COM","SEM")," Desoneração, e que esta é a alternativa mais adequada para a Administração Pública.") -> Declaro para os devidos fins que o regime de Contribuição Previdenciária sobre a Receita Bruta adotado para elaboração do orçamento foi SEM Desoneração, e que esta é a alternativa mais adequada para a Administração Pública.
J122: Observações:
J125: =Import.Município -> Lacerdópolis/SC | P125: =DADOS!$F$18 -> 2019-02-27
J126: Local | P126: Data
J129: Responsável Técnico
J130: Nome: | K130: =Import.RespOrçamento -> Max Mooshammer
J131: CREA/CAU: | K131: 139.164-0
J132: ART/RRT: | K132: 0
A138: (SELECIONAR)
A139: Construção e Reforma de Edifícios
A140: Construção de Praças Urbanas, Rodovias, Ferrovias e recapeamento e pavimentação de vias urbanas
A141: Construção de Redes de Abastecimento de Água, Coleta de Esgoto
A142: Construção e Manutenção de Estações e Redes de Distribuição de Energia Elétrica
A143: Obras Portuárias, Marítimas e Fluviais
A144: Fornecimento de Materiais e Equipamentos (aquisição indireta - em conjunto com licitação de obras)
A145: Fornecimento de Materiais e Equipamentos (aquisição direta)
A146: Estudos e Projetos, Planos e Gerenciamento e outros correlatos

Sheet ORÇAMENTO
R1: PLANILHA ORÇAMENTÁRIA | X1: Grau de Sigilo
D2: LOTE | E2: Meta | F2: Nível 2 | G2: Nível 3 | H2: Nível 4 | I2: Serviço | R2: =IF(TIPOORCAMENTO="licitado","Orçamento Licitado","Orçamento Base para Licitação")&" - "&import.recurso -> Orçamento Base para Licitação - | X2: #PUBLICO
A4: Nmax | F4: BDI 1 | G4: BDI 2 | H4: BDI 3 | I4: 0 | R4: PROPONENTE / TOMADOR | S4: APELIDO DO EMPREENDIMENTO
A5: =MAX($C$15:$C$25) -> 2 | F5: =IF(BDI.Opcao="DESONERADO",BDI!$S$30,BDI!$S$29) -> 0.2354 | G5: =IF(BDI.Opcao="DESONERADO",BDI!$S$70,BDI!$S$69) -> 0 | H5: =IF(BDI.Opcao="DESONERADO",BDI!$S$110,BDI!$S$109) -> 0 | R5: =Import.Proponente -> PREFEITURA MUNICIPAL DE LACERDÓPOLIS | S5: =Import.Apelido -> REFORMA QUADRA GINÁSIO MUNICIPAL | AE5: Arredondamento
O7: LOCALIDADE SINAPI | Q7: DATA BASE | R7: =IF(TIPOORCAMENTO="Licitado","NOME DA EMPRESA","PROJETO") -> PROJETO | S7: =IF(TIPOORCAMENTO="Licitado","REGIME DE EXECUÇÃO","MUNICÍPIO / UF") -> MUNICÍPIO / UF | V7: =IF(TIPOORCAMENTO="Licitado","","BDI 1") -> BDI 1 | W7: =IF(TIPOORCAMENTO="Licitado","","BDI 2") -> BDI 2 | X7: =IF(TIPOORCAMENTO="Licitado","Nº CTEF","BDI 3") -> BDI 3 | AE7: Quantidade | AF7: TRUE | AJ7: QUANTIDADES: ACOMP. POR BM | AL7: PREÇO UNITÁRIO LICITADO
F8: =IF(LEN(INFO("release"))>5,"'Referência "&Excel_BuiltIn_Database&".xls'#Banco.$a5:$a$65536","'[Referência "&Excel_BuiltIn_Database&".xls]Banco'!$a5:$a$65536") -> '[Referência 11-2018.xls]Banco'!$a5:$a$65536 | L8: FILTRO | O8: =IF(ISERROR(INDIRECT($F$9)),"(N/D: 'Referência "&Excel_BuiltIn_Database&".xls)",INDIRECT($F$9)) -> (N/D: 'Referência 11-2018.xls) | Q8: =TEXT(Import.DataBase,"mm-aa")&IF(DESONERACAO="Sim"," (DES.)"," (N DES.)") -> 11-18 (N DES.) | R8: =IF(TIPOORCAMENTO="Licitado",Import.empresa,Import.DescLote) -> Associação dos Municípios do Meio Oeste Catarinense | S8: =IF(TIPOORCAMENTO="Licitado",Import.RegimeExecução,Import.Município) -> Lacerdópolis/SC | V8: =IF(TIPOORCAMENTO="Licitado","",TEXT(F5,"0,00%")) -> 23,54% | W8: =IF(TIPOORCAMENTO="Licitado","",TEXT(G5,"0,00%")) -> 0,00% | X8: =IF(TIPOORCAMENTO="Licitado",Import.CTEF,TEXT(H5,"0,00%")) -> 0,00% | Y8: RECURSO | Z8: SGL RECURSO | AE8: Custo Unitáro | AF8: TRUE
F9: =IF(LEN(INFO("release"))>5,"'Referência "&Excel_BuiltIn_Database&".xls'#Banco.$d$3","'[Referência "&Excel_BuiltIn_Database&".xls]Banco'!$d$3") -> '[Referência 11-2018.xls]Banco'!$d$3 | AE9: BDI | AF9: TRUE
AC10: ERRO GERAL | AE10: Preço Unitário | AF10: TRUE
AC11: =IF(COUNTIF($AC$15:OFFSET($AC$25,-1,0),"DESCRIÇÃO")+COUNTIF($AC$15:OFFSET($AC$25,-1,0),"UNIDADE")+COUNTIF($AC$15:OFFSET($AC$25,-1,0),"SEM VALOR")>0,"NÃO OK","OK") -> OK | AE11: Preço Total | AF11: TRUE
AA12: Valores não Arredondados | AJ12: ↓ | AL12: ↓
A13: Nível E | B13: Save Nivel | C13: Nível C | D13: Altura | E13: n1 | F13: n2 | G13: n3 | H13: n4 | I13: n5 | J13: Czero | K13: Cnível | L13: ↓ | M13: Nível | N13: Nível Corrigido | O13: Item | P13: Fonte | Q13: Código | R13: Descrição | S13: Unidade | T13: Quantidade | U13: =IF(TIPOORCAMENTO="Licitado","","Custo Unitário (sem BDI) (R$)") -> Custo Unitário (sem BDI) (R$) | V13: =IF(TIPOORCAMENTO="Licitado","","BDI (%)") -> BDI (%) | W13: Preço Unitário (com BDI) (R$) | X13: Preço Total (R$) | Y13: ↓ | Z13: ↓ | AA13: Contrapartida (R$) | AB13: Outros (R$) | AC13: Erro de Dados | AD13: Lista Crono | AE13: Concatenação Fonte-Código | AF13: BancoDesloc | AG13: Custo Unitário Referência (R$) | AH13: =IF(TIPOORCAMENTO="LICITADO","Valor BDI Edital","Valor BDI") -> Valor BDI | AJ13: Quantidade | AL13: Preço Unitário (com BDI) (R$) | AM13: Preço Total Licit. (R$) | AN13: Preço Unitário Edital (R$)
A14: =CHOOSE(1+LOG(1+2*(ORÇAMENTO.Nivel="Meta")+4*(ORÇAMENTO.Nivel="Nível 2")+8*(ORÇAMENTO.Nivel="Nível 3")+16*(ORÇAMENTO.Nivel="Nível 4")+32*(ORÇAMENTO.Nivel="Serviço"),2),0,1,2,3,4,"S") -> S | B14: =IF(OR(C14="s",C14=0),OFFSET(B14,-1,0),C14) -> Save Nivel | C14: =IF(OFFSET(C14,-1,0)="L",1,IF(OFFSET(C14,-1,0)=1,2,IF(OR(A14="s",A14=0),"S",IF(AND(OFFSET(C14,-1,0)=2,A14=4),3,IF(AND(OR(OFFSET(C14,-1,0)="s",OFFSET(C14,-1,0)=0),A14<>"s",A14>OFFSET(B14,-1,0)),OFFSET(B14,-1,0),A14))))) -> S | D14: =IF(OR(C14="S",C14=0),0,IF(ISERROR(K14),J14,SMALL(J14:K14,1))) -> 0 | E14: =IF($C14=1,OFFSET(E14,-1,0)+MAX(1,COUNTIF(QCI!$A$13:$A$24,OFFSET(ORÇAMENTO!E14,-1,0))),OFFSET(E14,-1,0)) -> n1 | F14: =IF($C14=1,0,IF($C14=2,OFFSET(F14,-1,0)+1,OFFSET(F14,-1,0))) -> n2 | G14: =IF(AND($C14<=2,$C14<>0),0,IF($C14=3,OFFSET(G14,-1,0)+1,OFFSET(G14,-1,0))) -> n3 | H14: =IF(AND($C14<=3,$C14<>0),0,IF($C14=4,OFFSET(H14,-1,0)+1,OFFSET(H14,-1,0))) -> n4 | I14: =IF(AND($C14<=4,$C14<>0),0,IF(AND($C14="S",$X14>0),OFFSET(I14,-1,0)+1,OFFSET(I14,-1,0))) -> n5 | J14: =IF(OR($C14="S",$C14=0),0,MATCH(0,OFFSET($D14,1,$C14,ROW($C$25)-ROW($C14)),0)) -> 0 | K14: =IF(OR($C14="S",$C14=0),0,MATCH(OFFSET($D14,0,$C14)+IF($C14<>1,1,COUNTIF(QCI!$A$13:$A$24,ORÇAMENTO!E14)),OFFSET($D14,1,$C14,ROW($C$25)-ROW($C14)),0)) -> 0 | L14: =IF(OR($X14>0,$C14=1,$C14=2,$C14=3,$C14=4),"F","") ->  | M14: Serviço | N14: =CHOOSE(1+LOG(1+2*(C14=1)+4*(C14=2)+8*(C14=3)+16*(C14=4)+32*(C14="S"),2),"","Meta","Nível 2","Nível 3","Nível 4","Serviço") -> Serviço | O14: =IF(OR($C14=0,$L14=""),"-",CONCATENATE(E14&".",IF(AND($A$5>=2,$C14>=2),F14&".",""),IF(AND($A$5>=3,$C14>=3),G14&".",""),IF(AND($A$5>=4,$C14>=4),H14&".",""),IF($C14="S",I14&".",""))) -> - | P14: SINAPI | R14: =IF($C14="S",REFERENCIA.Descricao,"(digite a descrição aqui)") -> (abra o arquivo 'Referência 11-2018.xls) | S14: =REFERENCIA.Unidade -> - | T14: =OFFSET(CÁLCULO!H$15,ROW($T14)-ROW(T$15),0) -> 0 | V14: BDI 1 | W14: =IF($C14="S",ROUND(IF(TIPOORCAMENTO="Proposto",ORÇAMENTO.CustoUnitario*(1+$AH14),ORÇAMENTO.PrecoUnitarioLicitado),15-13*$AF$10),0) -> 0 | X14: =IF($C14="S",VTOTAL1,IF($C14=0,0,ROUND(SomaAgrup,15-13*$AF$11))) -> 0 | Y14: RA | Z14: =IF(AND($C14="S",$X14>0),IF(ISBLANK($Y14),"RA",LEFT($Y14,2)),"") ->  | AA14: =IF($C14="S",IF($Z14="CP",$X14,IF($Z14="RA",(($X14)*QCI!$AA$3),0)),SomaAgrup) -> 0 | AB14: =IF($C14="S",IF($Z14="OU",ROUND($X14,2),0),SomaAgrup) -> 0 | AC14: =IF($N14="","",IF(ORÇAMENTO.Descricao="","DESCRIÇÃO",IF(AND($C14="S",ORÇAMENTO.Unidade=""),"UNIDADE",IF($X14<0,"VALOR NEGATIVO",IF(OR(AND(TIPOORCAMENTO="Proposto",$AG14<>"",$AG14>0,ORÇAMENTO.CustoUnitario>$AG14),AND(TIPOORCAMENTO="LICITADO",ORÇAMENTO.PrecoUnitarioLicitado>$AN14)),"ACIMA REF.",""))))) ->  | AD14: =IF(C14<=CRONO.NivelExibicao,MAX($AD$15:OFFSET(AD14,-1,0))+IF($C14<>1,1,MAX(1,COUNTIF(QCI!$A$13:$A$24,OFFSET($E14,-1,0)))),"") ->  | AE14: =IF(AND($C14="S",ORÇAMENTO.CodBarra<>""),IF(ORÇAMENTO.Fonte="",ORÇAMENTO.CodBarra,CONCATENATE(ORÇAMENTO.Fonte," ",ORÇAMENTO.CodBarra))) -> FALSE | AF14: =IF(ISERROR(INDIRECT(ORÇAMENTO.BancoRef)),"(abra o arquivo 'Referência "&Excel_BuiltIn_Database&".xls)",IF(OR($C14<>"S",ORÇAMENTO.CodBarra=""),"(Sem Código)",IF(ISERROR(MATCH($AE14,INDIRECT(ORÇAMENTO.BancoRef),0)),"(Código não identificado nas referências)",MATCH($AE14,INDIRECT(ORÇAMENTO.BancoRef),0)))) -> (abra o arquivo 'Referência 11-2018.xls) | AG14: =ROUND(IF(DESONERACAO="sim",REFERENCIA.Desonerado,REFERENCIA.NaoDesonerado),2) -> 0 | AH14: =ROUND(IF(ISNUMBER(ORÇAMENTO.OpcaoBDI),ORÇAMENTO.OpcaoBDI,IF(LEFT(ORÇAMENTO.OpcaoBDI,3)="BDI",HLOOKUP(ORÇAMENTO.OpcaoBDI,$F$4:$H$5,2,FALSE),0)),15-11*$AF$9) -> 0.2354 | AM14: =$X14 -> 0 | AN14: =ROUND(ORÇAMENTO.CustoUnitario*(1+$AH14),2) -> 0
A15: 0 | C15: L | D15: =COUNTA(OFFSET(D15,1,0):D$25) -> 9 | E15: 0 | L15: F | M15: =IF(TIPOORCAMENTO="LICITADO","CTEF","LOTE") -> LOTE | N15: =IF(TIPOORCAMENTO="LICITADO","CTEF","LOTE") -> LOTE | O15: =Import.DescLote -> Associação dos Municípios do Meio Oeste Catarinense | X15: =SUMIF(OFFSET($C15,1,0,ROW(X25)-ROW(X15)-1),"S",OFFSET(X15,1,0,ROW(X25)-ROW(X15)-1)) -> 175683.83 | Z15: =IF(AND($C15="S",$X15>0),LEFT($Y15,2),"") ->  | AA15: =SUMIF(OFFSET($C15,1,0,ROW(AA25)-ROW(AA15)-1),"S",OFFSET(AA15,1,0,ROW(AA25)-ROW(AA15)-1)) ->  | AB15: =SUMIF(OFFSET($C15,1,0,ROW(AB25)-ROW(AB15)-1),"S",OFFSET(AB15,1,0,ROW(AB25)-ROW(AB15)-1)) -> 0 | AM15: 175683.83
A16: =CHOOSE(1+LOG(1+2*(ORÇAMENTO.Nivel="Meta")+4*(ORÇAMENTO.Nivel="Nível 2")+8*(ORÇAMENTO.Nivel="Nível 3")+16*(ORÇAMENTO.Nivel="Nível 4")+32*(ORÇAMENTO.Nivel="Serviço"),2),0,1,2,3,4,"S") -> 1 | B16: =IF(OR(C16="s",C16=0),OFFSET(B16,-1,0),C16) -> 1 | C16: =IF(OFFSET(C16,-1,0)="L",1,IF(OFFSET(C16,-1,0)=1,2,IF(OR(A16="s",A16=0),"S",IF(AND(OFFSET(C16,-1,0)=2,A16=4),3,IF(AND(OR(OFFSET(C16,-1,0)="s",OFFSET(C16,-1,0)=0),A16<>"s",A16>OFFSET(B16,-1,0)),OFFSET(B16,-1,0),A16))))) -> 1 | D16: =IF(OR(C16="S",C16=0),0,IF(ISERROR(K16),J16,SMALL(J16:K16,1))) -> 9 | E16: =IF($C16=1,OFFSET(E16,-1,0)+MAX(1,COUNTIF(QCI!$A$13:$A$24,OFFSET(ORÇAMENTO!E16,-1,0))),OFFSET(E16,-1,0)) -> 1 | F16: =IF($C16=1,0,IF($C16=2,OFFSET(F16,-1,0)+1,OFFSET(F16,-1,0))) -> 0 | G16: =IF(AND($C16<=2,$C16<>0),0,IF($C16=3,OFFSET(G16,-1,0)+1,OFFSET(G16,-1,0))) -> 0 | H16: =IF(AND($C16<=3,$C16<>0),0,IF($C16=4,OFFSET(H16,-1,0)+1,OFFSET(H16,-1,0))) -> 0 | I16: =IF(AND($C16<=4,$C16<>0),0,IF(AND($C16="S",$X16>0),OFFSET(I16,-1,0)+1,OFFSET(I16,-1,0))) -> 0 | J16: =IF(OR($C16="S",$C16=0),0,MATCH(0,OFFSET($D16,1,$C16,ROW($C$25)-ROW($C16)),0)) -> 9 | K16: =IF(OR($C16="S",$C16=0),0,MATCH(OFFSET($D16,0,$C16)+IF($C16<>1,1,COUNTIF(QCI!$A$13:$A$24,ORÇAMENTO!E16)),OFFSET($D16,1,$C16,ROW($C$25)-ROW($C16)),0)) ->  | L16: =IF(OR($X16>0,$C16=1,$C16=2,$C16=3,$C16=4),"F","") -> F | M16: Meta | N16: =CHOOSE(1+LOG(1+2*(C16=1)+4*(C16=2)+8*(C16=3)+16*(C16=4)+32*(C16="S"),2),"","Meta","Nível 2","Nível 3","Nível 4","Serviço") -> Meta | O16: =IF(OR($C16=0,$L16=""),"-",CONCATENATE(E16&".",IF(AND($A$5>=2,$C16>=2),F16&".",""),IF(AND($A$5>=3,$C16>=3),G16&".",""),IF(AND($A$5>=4,$C16>=4),H16&".",""),IF($C16="S",I16&".",""))) -> 1. | P16: SINAPI | R16: REFORMA QUADRA GINÁSIO MUNICIPAL | S16: - | T16: =OFFSET(CÁLCULO!H$15,ROW($T16)-ROW(T$15),0) -> 0 | V16: BDI 1 | W16: =IF($C16="S",ROUND(IF(TIPOORCAMENTO="Proposto",ORÇAMENTO.CustoUnitario*(1+$AH16),ORÇAMENTO.PrecoUnitarioLicitado),15-13*$AF$10),0) -> 0 | X16: =IF($C16="S",VTOTAL1,IF($C16=0,0,ROUND(SomaAgrup,15-13*$AF$11))) -> 175683.83 | Y16: RA | Z16: =IF(AND($C16="S",$X16>0),IF(ISBLANK($Y16),"RA",LEFT($Y16,2)),"") ->  | AA16: =IF($C16="S",IF($Z16="CP",$X16,IF($Z16="RA",(($X16)*QCI!$AA$3),0)),SomaAgrup) ->  | AB16: =IF($C16="S",IF($Z16="OU",ROUND($X16,2),0),SomaAgrup) -> 0 | AC16: =IF($N16="","",IF(ORÇAMENTO.Descricao="","DESCRIÇÃO",IF(AND($C16="S",ORÇAMENTO.Unidade=""),"UNIDADE",IF($X16<0,"VALOR NEGATIVO",IF(OR(AND(TIPOORCAMENTO="Proposto",$AG16<>"",$AG16>0,ORÇAMENTO.CustoUnitario>$AG16),AND(TIPOORCAMENTO="LICITADO",ORÇAMENTO.PrecoUnitarioLicitado>$AN16)),"ACIMA REF.",""))))) ->  | AD16: =IF(C16<=CRONO.NivelExibicao,MAX($AD$15:OFFSET(AD16,-1,0))+IF($C16<>1,1,MAX(1,COUNTIF(QCI!$A$13:$A$24,OFFSET($E16,-1,0)))),"") -> 1 | AE16: =IF(AND($C16="S",ORÇAMENTO.CodBarra<>""),IF(ORÇAMENTO.Fonte="",ORÇAMENTO.CodBarra,CONCATENATE(ORÇAMENTO.Fonte," ",ORÇAMENTO.CodBarra))) -> FALSE | AF16: =IF(ISERROR(INDIRECT(ORÇAMENTO.BancoRef)),"(abra o arquivo 'Referência "&Excel_BuiltIn_Database&".xls)",IF(OR($C16<>"S",ORÇAMENTO.CodBarra=""),"(Sem Código)",IF(ISERROR(MATCH($AE16,INDIRECT(ORÇAMENTO.BancoRef),0)),"(Código não identificado nas referências)",MATCH($AE16,INDIRECT(ORÇAMENTO.BancoRef),0)))) -> (abra o arquivo 'Referência 11-2018.xls) | AG16: =ROUND(IF(DESONERACAO="sim",REFERENCIA.Desonerado,REFERENCIA.NaoDesonerado),2) -> 0 | AH16: =ROUND(IF(ISNUMBER(ORÇAMENTO.OpcaoBDI),ORÇAMENTO.OpcaoBDI,IF(LEFT(ORÇAMENTO.OpcaoBDI,3)="BDI",HLOOKUP(ORÇAMENTO.OpcaoBDI,$F$4:$H$5,2,FALSE),0)),15-11*$AF$9) -> 0.2354 | AM16: 175683.83 | AN16: =ROUND(ORÇAMENTO.CustoUnitario*(1+$AH16),2) -> 0
A17: 2 | B17: 2 | C17: 2 | D17: 2 | E17: =IF($C17=1,OFFSET(E17,-1,0)+MAX(1,COUNTIF(QCI!$A$13:$A$24,OFFSET(ORÇAMENTO!E17,-1,0))),OFFSET(E17,-1,0)) -> 1 | F17: 1 | G17: 0 | H17: 0 | I17: 0 | J17: 8 | K17: =IF(OR($C17="S",$C17=0),0,MATCH(OFFSET($D17,0,$C17)+IF($C17<>1,1,COUNTIF(QCI!$A$13:$A$24,ORÇAMENTO!E17)),OFFSET($D17,1,$C17,ROW($C$25)-ROW($C17)),0)) -> 2 | L17: F | M17: Nível 2 | N17: Nível 2 | O17: 1.1. | P17: SINAPI | R17: Serviços Iniciais | S17: - | T17: =OFFSET(CÁLCULO!H$15,ROW($T17)-ROW(T$15),0) -> 0 | V17: BDI 1 | W17: 0 | X17: 864.78 | Y17: RA | AA17: =IF($C17="S",IF($Z17="CP",$X17,IF($Z17="RA",(($X17)*QCI!$AA$3),0)),SomaAgrup) ->  | AB17: 0 | AD17: =IF(C17<=CRONO.NivelExibicao,MAX($AD$15:OFFSET(AD17,-1,0))+IF($C17<>1,1,MAX(1,COUNTIF(QCI!$A$13:$A$24,OFFSET($E17,-1,0)))),"") -> 2 | AE17: FALSE | AF17: (abra o arquivo 'Referência 11-2018.xls) | AG17: 0 | AH17: 0.2354 | AM17: 864.78 | AN17: 0
A18: S | B18: 2 | C18: S | D18: 0 | E18: =IF($C18=1,OFFSET(E18,-1,0)+MAX(1,COUNTIF(QCI!$A$13:$A$24,OFFSET(ORÇAMENTO!E18,-1,0))),OFFSET(E18,-1,0)) -> 1 | F18: 1 | G18: 0 | H18: 0 | I18: 1 | J18: 0 | K18: =IF(OR($C18="S",$C18=0),0,MATCH(OFFSET($D18,0,$C18)+IF($C18<>1,1,COUNTIF(QCI!$A$13:$A$24,ORÇAMENTO!E18)),OFFSET($D18,1,$C18,ROW($C$25)-ROW($C18)),0)) -> 0 | L18: F | M18: Serviço | N18: Serviço | O18: 1.1.1. | P18: SINAPI | Q18: 74209/1 | R18: PLACA DE OBRA EM CHAPA DE ACO GALVANIZADO PADRÃO AMMOC | S18: M2 | T18: =OFFSET(CÁLCULO!H$15,ROW($T18)-ROW(T$15),0) -> 2.5 | U18: 280 | V18: BDI 1 | W18: 345.91 | X18: 864.78 | Y18: RA | Z18: RA | AA18: =IF($C18="S",IF($Z18="CP",$X18,IF($Z18="RA",(($X18)*QCI!$AA$3),0)),SomaAgrup) ->  | AB18: 0 | AD18: =IF(C18<=CRONO.NivelExibicao,MAX($AD$15:OFFSET(AD18,-1,0))+IF($C18<>1,1,MAX(1,COUNTIF(QCI!$A$13:$A$24,OFFSET($E18,-1,0)))),"") ->  | AE18: SINAPI 74209/1 | AF18: (abra o arquivo 'Referência 11-2018.xls) | AG18: 0 | AH18: 0.2354 | AM18: 864.78 | AN18: 345.91
A19: 2 | B19: 2 | C19: 2 | D19: 4 | E19: =IF($C19=1,OFFSET(E19,-1,0)+MAX(1,COUNTIF(QCI!$A$13:$A$24,OFFSET(ORÇAMENTO!E19,-1,0))),OFFSET(E19,-1,0)) -> 1 | F19: 2 | G19: 0 | H19: 0 | I19: 0 | J19: 6 | K19: =IF(OR($C19="S",$C19=0),0,MATCH(OFFSET($D19,0,$C19)+IF($C19<>1,1,COUNTIF(QCI!$A$13:$A$24,ORÇAMENTO!E19)),OFFSET($D19,1,$C19,ROW($C$25)-ROW($C19)),0)) -> 4 | L19: F | M19: Nível 2 | N19: Nível 2 | O19: 1.2. | P19: SINAPI | R19: PAVIMENTAÇÃO | S19: - | T19: =OFFSET(CÁLCULO!H$15,ROW($T19)-ROW(T$15),0) -> 0 | V19: BDI 1 | W19: 0 | X19: 174342.26 | Y19: RA | AA19: =IF($C19="S",IF($Z19="CP",$X19,IF($Z19="RA",(($X19)*QCI!$AA$3),0)),SomaAgrup) ->  | AB19: 0 | AD19: =IF(C19<=CRONO.NivelExibicao,MAX($AD$15:OFFSET(AD19,-1,0))+IF($C19<>1,1,MAX(1,COUNTIF(QCI!$A$13:$A$24,OFFSET($E19,-1,0)))),"") -> 3 | AE19: FALSE | AF19: (abra o arquivo 'Referência 11-2018.xls) | AG19: 0 | AH19: 0.2354 | AM19: 174342.26 | AN19: 0
A20: S | B20: 2 | C20: S | D20: 0 | E20: =IF($C20=1,OFFSET(E20,-1,0)+MAX(1,COUNTIF(QCI!$A$13:$A$24,OFFSET(ORÇAMENTO!E20,-1,0))),OFFSET(E20,-1,0)) -> 1 | F20: 2 | G20: 0 | H20: 0 | I20: 1 | J20: 0 | K20: =IF(OR($C20="S",$C20=0),0,MATCH(OFFSET($D20,0,$C20)+IF($C20<>1,1,COUNTIF(QCI!$A$13:$A$24,ORÇAMENTO!E20)),OFFSET($D20,1,$C20,ROW($C$25)-ROW($C20)),0)) -> 0 | L20: F | M20: Serviço | N20: Serviço | O20: 1.2.1. | P20: SINAPI | Q20: 68053 | R20: FORNECIMENTO/INSTALACAO LONA PLASTICA PRETA, PARA IMPERMEABILIZACAO, ESPESSURA 150 MICRAS. | S20: M2 | T20: =OFFSET(CÁLCULO!H$15,ROW($T20)-ROW(T$15),0) -> 769.01 | U20: 4 | V20: BDI 1 | W20: 4.94 | X20: 3798.91 | Y20: RA | Z20: RA | AA20: =IF($C20="S",IF($Z20="CP",$X20,IF($Z20="RA",(($X20)*QCI!$AA$3),0)),SomaAgrup) ->  | AB20: 0 | AD20: =IF(C20<=CRONO.NivelExibicao,MAX($AD$15:OFFSET(AD20,-1,0))+IF($C20<>1,1,MAX(1,COUNTIF(QCI!$A$13:$A$24,OFFSET($E20,-1,0)))),"") ->  | AE20: SINAPI 68053 | AF20: (abra o arquivo 'Referência 11-2018.xls) | AG20: 0 | AH20: 0.2354 | AM20: 3798.91 | AN20: 4.94
A21: S | B21: 2 | C21: S | D21: 0 | E21: =IF($C21=1,OFFSET(E21,-1,0)+MAX(1,COUNTIF(QCI!$A$13:$A$24,OFFSET(ORÇAMENTO!E21,-1,0))),OFFSET(E21,-1,0)) -> 1 | F21: 2 | G21: 0 | H21: 0 | I21: 2 | J21: 0 | K21: =IF(OR($C21="S",$C21=0),0,MATCH(OFFSET($D21,0,$C21)+IF($C21<>1,1,COUNTIF(QCI!$A$13:$A$24,ORÇAMENTO!E21)),OFFSET($D21,1,$C21,ROW($C$25)-ROW($C21)),0)) -> 0 | L21: F | M21: Serviço | N21: Serviço | O21: 1.2.2. | P21: SINAPI | Q21: 72183 | R21: PISO EM CONCRETO 20MPA PREPARO MECANICO, ESPESSURA 7 CM, COM ARMACAO EM TELA SOLDADA, INCLUSO POLIMENTO COM DESEMPENADORA ELÉTRICA | S21: M2 | T21: =OFFSET(CÁLCULO!H$15,ROW($T21)-ROW(T$15),0) -> 769.01 | U21: 50 | V21: BDI 1 | W21: 61.77 | X21: 47501.75 | Y21: RA | Z21: RA | AA21: =IF($C21="S",IF($Z21="CP",$X21,IF($Z21="RA",(($X21)*QCI!$AA$3),0)),SomaAgrup) ->  | AB21: 0 | AD21: =IF(C21<=CRONO.NivelExibicao,MAX($AD$15:OFFSET(AD21,-1,0))+IF($C21<>1,1,MAX(1,COUNTIF(QCI!$A$13:$A$24,OFFSET($E21,-1,0)))),"") ->  | AE21: SINAPI 72183 | AF21: (abra o arquivo 'Referência 11-2018.xls) | AG21: 0 | AH21: 0.2354 | AM21: 47501.75 | AN21: 61.77
A22: S | B22: 2 | C22: S | D22: 0 | E22: =IF($C22=1,OFFSET(E22,-1,0)+MAX(1,COUNTIF(QCI!$A$13:$A$24,OFFSET(ORÇAMENTO!E22,-1,0))),OFFSET(E22,-1,0)) -> 1 | F22: 2 | G22: 0 | H22: 0 | I22: 3 | J22: 0 | K22: =IF(OR($C22="S",$C22=0),0,MATCH(OFFSET($D22,0,$C22)+IF($C22<>1,1,COUNTIF(QCI!$A$13:$A$24,ORÇAMENTO!E22)),OFFSET($D22,1,$C22,ROW($C$25)-ROW($C22)),0)) -> 0 | L22: F | M22: Serviço | N22: Serviço | O22: 1.2.3. | P22: Cotação | Q22: Mercado | R22: PISO MODULAR ESPORTIVO EM POLIPROPILENO COM SUPERFÍCIE EMBORRACHADA GARANTIA DE 10 ANOS E FITA PARA DEMARCAÇÃO DE MODALIDADES LARGURA 50MM, CORES VARIADAS | S22: M2 | T22: =OFFSET(CÁLCULO!H$15,ROW($T22)-ROW(T$15),0) -> 769.01 | U22: 160 | V22: 0 | W22: 160 | X22: 123041.6 | Y22: RA | Z22: RA | AA22: =IF($C22="S",IF($Z22="CP",$X22,IF($Z22="RA",(($X22)*QCI!$AA$3),0)),SomaAgrup) ->  | AB22: 0 | AD22: =IF(C22<=CRONO.NivelExibicao,MAX($AD$15:OFFSET(AD22,-1,0))+IF($C22<>1,1,MAX(1,COUNTIF(QCI!$A$13:$A$24,OFFSET($E22,-1,0)))),"") ->  | AE22: Cotação Mercado | AF22: (abra o arquivo 'Referência 11-2018.xls) | AG22: 0 | AH22: 0 | AM22: 123041.6 | AN22: 160
A23: 2 | B23: 2 | C23: 2 | D23: 2 | E23: =IF($C23=1,OFFSET(E23,-1,0)+MAX(1,COUNTIF(QCI!$A$13:$A$24,OFFSET(ORÇAMENTO!E23,-1,0))),OFFSET(E23,-1,0)) -> 1 | F23: 3 | G23: 0 | H23: 0 | I23: 0 | J23: 2 | K23: =IF(OR($C23="S",$C23=0),0,MATCH(OFFSET($D23,0,$C23)+IF($C23<>1,1,COUNTIF(QCI!$A$13:$A$24,ORÇAMENTO!E23)),OFFSET($D23,1,$C23,ROW($C$25)-ROW($C23)),0)) ->  | L23: F | M23: Nível 2 | N23: Nível 2 | O23: 1.3. | P23: SINAPI | R23: Serviços Finais | S23: - | T23: =OFFSET(CÁLCULO!H$15,ROW($T23)-ROW(T$15),0) -> 0 | V23: BDI 1 | W23: 0 | X23: 476.79 | Y23: RA | AA23: =IF($C23="S",IF($Z23="CP",$X23,IF($Z23="RA",(($X23)*QCI!$AA$3),0)),SomaAgrup) ->  | AB23: 0 | AD23: =IF(C23<=CRONO.NivelExibicao,MAX($AD$15:OFFSET(AD23,-1,0))+IF($C23<>1,1,MAX(1,COUNTIF(QCI!$A$13:$A$24,OFFSET($E23,-1,0)))),"") -> 4 | AE23: FALSE | AF23: (abra o arquivo 'Referência 11-2018.xls) | AG23: 0 | AH23: 0.2354 | AM23: 476.79 | AN23: 0
A24: S | B24: 2 | C24: S | D24: 0 | E24: =IF($C24=1,OFFSET(E24,-1,0)+MAX(1,COUNTIF(QCI!$A$13:$A$24,OFFSET(ORÇAMENTO!E24,-1,0))),OFFSET(E24,-1,0)) -> 1 | F24: 3 | G24: 0 | H24: 0 | I24: 1 | J24: 0 | K24: =IF(OR($C24="S",$C24=0),0,MATCH(OFFSET($D24,0,$C24)+IF($C24<>1,1,COUNTIF(QCI!$A$13:$A$24,ORÇAMENTO!E24)),OFFSET($D24,1,$C24,ROW($C$25)-ROW($C24)),0)) -> 0 | L24: F | M24: Serviço | N24: Serviço | O24: 1.3.1. | P24: SINAPI | Q24: 9537 | R24: LIMPEZA FINAL DE OBRA | S24: M2 | T24: =OFFSET(CÁLCULO!H$15,ROW($T24)-ROW(T$15),0) -> 769.01 | U24: 0.5 | V24: BDI 1 | W24: 0.62 | X24: 476.79 | Y24: RA | Z24: RA | AA24: =IF($C24="S",IF($Z24="CP",$X24,IF($Z24="RA",(($X24)*QCI!$AA$3),0)),SomaAgrup) ->  | AB24: 0 | AD24: =IF(C24<=CRONO.NivelExibicao,MAX($AD$15:OFFSET(AD24,-1,0))+IF($C24<>1,1,MAX(1,COUNTIF(QCI!$A$13:$A$24,OFFSET($E24,-1,0)))),"") ->  | AE24: SINAPI 9537 | AF24: (abra o arquivo 'Referência 11-2018.xls) | AG24: 0 | AH24: 0.2354 | AM24: 476.79 | AN24: 0.62
A25: -1 | C25: -1 | E25: 0 | F25: 0 | G25: 0 | H25: 0 | I25: 0 | L25: F
O28: Encargos sociais: | Q28: Para elaboração deste orçamento, foram utilizados os encargos sociais do SINAPI para a Unidade da Federação indicada.
O30: Observações:
O35: =IF(AND($AF$7=FALSE,$AF$8=FALSE,$AF$9=FALSE,$AF$10=FALSE,$AF$11=FALSE),"Não foi considerado arredondamento nos valores da planilha.",CONCATENATE("Foi considerado arredondamento de duas casas decimais para ",IF($AF$7=TRUE,"Quantidade; ",""),IF($AF$8=TRUE,"Custo Unitário; ",""),IF($AF$9=TRUE,"BDI; ",""),IF($AF$10=TRUE,"Preço Unitário; ",""),IF($AF$11=TRUE,"Preço Total.",""))) -> Foi considerado arredondamento de duas casas decimais para Quantidade; Custo Unitário; BDI; Preço Unitário; Preço Total.
O36: Siglas da Composição do Investimento: RA - Rateio proporcional entre Repasse e Contrapartida; RP - 100% Repasse; CP - 100% Contrapartida; OU - 100% Outros.
O38: =Import.Município -> Lacerdópolis/SC
O39: Local | S39: Responsável Técnico
S40: Nome: | T40: =Import.RespOrçamento -> Max Mooshammer
O41: =DADOS!$F$18 -> 2019-02-27 | S41: CREA/CAU: | T41: 139.164-0
O42: Data | S42: ART/RRT: | T42: 0

Sheet CÁLCULO
F1: =IF(ACOMPANHAMENTO="BM","MEMÓRIA DE CÁLCULO","PLQ - PLANILHA DE LEVANTAMENTO DE QUANTIDADES") -> PLQ - PLANILHA DE LEVANTAMENTO DE QUANTIDADES | Q1: Grau de Sigilo | Y1: Grau de Sigilo
F2: =IF(ACOMPANHAMENTO="BM","","Memória de Cálculo")&" - "&import.recurso -> Memória de Cálculo - | Q2: #PUBLICO | Y2: #PUBLICO
E4: APELIDO DO EMPREENDIMENTO | G4: =IF(TIPOORCAMENTO="Licitado","NOME DA EMPRESA","PROJETO") -> PROJETO | K4: PROPONENTE / TOMADOR | S4: Nº OPERAÇÃO | U4: PROPONENTE / TOMADOR
E5: =Import.Apelido -> REFORMA QUADRA GINÁSIO MUNICIPAL | G5: =IF(TIPOORCAMENTO="Licitado",Import.empresa,Import.DescLote) -> Associação dos Municípios do Meio Oeste Catarinense | K5: =Import.Proponente -> PREFEITURA MUNICIPAL DE LACERDÓPOLIS | S5: =Import.CR ->  | U5: =Import.Proponente -> PREFEITURA MUNICIPAL DE LACERDÓPOLIS
AB6: Preços dos serviços por frente | AM6: Mês do cronograma | AX6: Número da Medição
A12: =IF(OFFSET(EVENTOS!$C$5,1,0)="Automática, conforme os agrupadores Nível 4 do Orçamento",4,IF(OFFSET(EVENTOS!$C$5,1,0)="Automática, conforme os agrupadores Nível 3 do Orçamento",3,IF(OFFSET(EVENTOS!$C$5,1,0)="Definir Manualmente","Manual",2))) -> 2 | B12: Empty | J12: . | K12: Nº AGRUPADOR DE EVENTOS | L12: . | M12: =IF(ACOMPANHAMENTO="BM",0,COUNTIF(M15:M25,0)) -> 0 | N12: FRENTES DE OBRA: | P12: . | Q12: ÚNICA | AA12: . | AB12: =OFFSET($P$12,0,AB$13) -> ÚNICA | AC12: =OFFSET($P$12,0,AC$13) -> 0 | AD12: 0 | AE12: 0 | AF12: 0 | AG12: 0 | AH12: 0 | AI12: 0 | AJ12: 0 | AK12: 0 | AM12: =OFFSET($P$12,0,AM$13) -> ÚNICA | AN12: =OFFSET($P$12,0,AN$13) -> 0 | AO12: 0 | AP12: 0 | AQ12: 0 | AR12: 0 | AS12: 0 | AT12: 0 | AU12: 0 | AV12: 0 | AX12: =OFFSET($P$12,0,AX$13) -> ÚNICA | AY12: =OFFSET($P$12,0,AY$13) -> 0 | AZ12: 0 | BA12: 0 | BB12: 0 | BC12: 0 | BD12: 0 | BE12: 0 | BF12: 0 | BG12: 0
A13: AUTOEVENTO | B13: Empty | D13: Nível | E13: Item | F13: Descrição | G13: Unidade | H13: Quantidade | I13: Memória de Cálculo | K13: Nº | M13: # Evento | N13: Agrupador de Eventos | O13: =OFFSET(O13,0,-1)+1 ->  | Q13: =OFFSET(Q13,0,-1)+1 -> 1 | R13: 2 | S13: 3 | T13: 4 | U13: 5 | V13: 6 | W13: 7 | X13: 8 | Y13: 9 | Z13: 10 | AB13: =OFFSET(AB13,0,-1)+1 -> 1 | AC13: 2 | AD13: 3 | AE13: 4 | AF13: 5 | AG13: 6 | AH13: 7 | AI13: 8 | AJ13: 9 | AK13: 10 | AM13: 1 | AN13: 2 | AO13: 3 | AP13: 4 | AQ13: 5 | AR13: 6 | AS13: 7 | AT13: 8 | AU13: 9 | AV13: 10 | AX13: 1 | AY13: 2 | AZ13: 3 | BA13: 4 | BB13: 5 | BC13: 6 | BD13: 7 | BE13: 8 | BF13: 9 | BG13: 10
A14: =IF(AUTOEVENTO="Manual",IF(K14<>"",MIN(VALUE(LEFT(K14,FIND(".",K14)-1)),COUNTA(EVENTOS.Lista)),0),IF(OR($B14>AUTOEVENTO,$B14="S",$B14=0),SUBSTITUTE(OFFSET($A14,-1,0),IF($D14="Serviço",".",""),""),ROW(A14)-ROW($A$15)&".")) -> AUTOEVENTO | B14: =OFFSET(ORÇAMENTO!C$15,ROW(B14)-ROW(B$15),0) -> S | C14: =OFFSET(ORÇAMENTO!L$15,ROW(C14)-ROW(C$15),0) ->  | D14: =OFFSET(ORÇAMENTO!N$15,ROW(D14)-ROW(D$15),0) -> Serviço | E14: =OFFSET(ORÇAMENTO!O$15,ROW(E14)-ROW(E$15),0) -> - | F14: =OFFSET(ORÇAMENTO!R$15,ROW(F14)-ROW(F$15),0) -> (abra o arquivo 'Referência 11-2018.xls) | G14: =IF($D14<>"Serviço","",OFFSET(ORÇAMENTO!S$15,ROW(G14)-ROW(G$15),0)) -> - | H14: =IF($D14<>"Serviço",0,IF(ACOMPANHAMENTO="BM",ROUND(OFFSET(ORÇAMENTO!AJ$15,ROW(H14)-ROW(H$15),0),15-13*ORÇAMENTO!$AF$7),SUMPRODUCT(($Q$12:$AA$12<>"")*ROUND($Q14:$AA14,15-13*ORÇAMENTO!$AF$7)))) -> 0 | L14: . | M14: =IF($D14<>"Serviço","",IF(AUTOEVENTO="manual",$A14,IF(ISERROR(MATCH($A14,$A$15:OFFSET($A14,-1,0),0)),MAX($M$15:OFFSET(M14,-1,0))+1,INDEX($M$15:OFFSET(M14,-1,0),MATCH($A14,$A$15:OFFSET($A14,-1,0),0))))) -> # Evento | N14: =IF($D14<>"Serviço","",IF(AUTOEVENTO="Manual",IF($A14=0,"<-- defina o número do agrupador",OFFSET(EVENTOS!$D$14,$A14,0)),OFFSET($F$15,$A14,0))) ->  | AB14: =IF(AND($D14="Serviço",AB$12<>0,$H14>0,OR(AUTOEVENTO<>"manual",$M14<>1)),ROUND(OFFSET($P14,0,AB$13),15-13*ORÇAMENTO!$AF$7)/$H14*OFFSET(ORÇAMENTO!$X$15,ROW(AB14)-ROW(AB$15),0),0) -> 0 | AC14: =IF(AND($D14="Serviço",AC$12<>0,$H14>0,OR(AUTOEVENTO<>"manual",$M14<>1)),ROUND(OFFSET($P14,0,AC$13),15-13*ORÇAMENTO!$AF$7)/$H14*OFFSET(ORÇAMENTO!$X$15,ROW(AC14)-ROW(AC$15),0),0) -> 0 | AD14: =IF(AND($D14="Serviço",AD$12<>0,$H14>0,OR(AUTOEVENTO<>"manual",$M14<>1)),ROUND(OFFSET($P14,0,AD$13),15-13*ORÇAMENTO!$AF$7)/$H14*OFFSET(ORÇAMENTO!$X$15,ROW(AD14)-ROW(AD$15),0),0) -> 0 | AE14: =IF(AND($D14="Serviço",AE$12<>0,$H14>0,OR(AUTOEVENTO<>"manual",$M14<>1)),ROUND(OFFSET($P14,0,AE$13),15-13*ORÇAMENTO!$AF$7)/$H14*OFFSET(ORÇAMENTO!$X$15,ROW(AE14)-ROW(AE$15),0),0) -> 0 | AF14: =IF(AND($D14="Serviço",AF$12<>0,$H14>0,OR(AUTOEVENTO<>"manual",$M14<>1)),ROUND(OFFSET($P14,0,AF$13),15-13*ORÇAMENTO!$AF$7)/$H14*OFFSET(ORÇAMENTO!$X$15,ROW(AF14)-ROW(AF$15),0),0) -> 0 | AG14: =IF(AND($D14="Serviço",AG$12<>0,$H14>0,OR(AUTOEVENTO<>"manual",$M14<>1)),ROUND(OFFSET($P14,0,AG$13),15-13*ORÇAMENTO!$AF$7)/$H14*OFFSET(ORÇAMENTO!$X$15,ROW(AG14)-ROW(AG$15),0),0) -> 0 | AH14: =IF(AND($D14="Serviço",AH$12<>0,$H14>0,OR(AUTOEVENTO<>"manual",$M14<>1)),ROUND(OFFSET($P14,0,AH$13),15-13*ORÇAMENTO!$AF$7)/$H14*OFFSET(ORÇAMENTO!$X$15,ROW(AH14)-ROW(AH$15),0),0) -> 0 | AI14: =IF(AND($D14="Serviço",AI$12<>0,$H14>0,OR(AUTOEVENTO<>"manual",$M14<>1)),ROUND(OFFSET($P14,0,AI$13),15-13*ORÇAMENTO!$AF$7)/$H14*OFFSET(ORÇAMENTO!$X$15,ROW(AI14)-ROW(AI$15),0),0) -> 0 | AJ14: =IF(AND($D14="Serviço",AJ$12<>0,$H14>0,OR(AUTOEVENTO<>"manual",$M14<>1)),ROUND(OFFSET($P14,0,AJ$13),15-13*ORÇAMENTO!$AF$7)/$H14*OFFSET(ORÇAMENTO!$X$15,ROW(AJ14)-ROW(AJ$15),0),0) -> 0 | AK14: =IF(AND($D14="Serviço",AK$12<>0,$H14>0,OR(AUTOEVENTO<>"manual",$M14<>1)),ROUND(OFFSET($P14,0,AK$13),15-13*ORÇAMENTO!$AF$7)/$H14*OFFSET(ORÇAMENTO!$X$15,ROW(AK14)-ROW(AK$15),0),0) -> 0 | AM14: =IF($D14<>"Serviço",0,IF(AND(AUTOEVENTO="Manual",$M14=1),0,IF(OFFSET(CRONOPLE!$F$14,$M14,AM$13)="",10^12,OFFSET(CRONOPLE!$F$14,$M14,AM$13)))) ->  | AN14: =IF($D14<>"Serviço",0,IF(AND(AUTOEVENTO="Manual",$M14=1),0,IF(OFFSET(CRONOPLE!$F$14,$M14,AN$13)="",10^12,OFFSET(CRONOPLE!$F$14,$M14,AN$13)))) ->  | AO14: =IF($D14<>"Serviço",0,IF(AND(AUTOEVENTO="Manual",$M14=1),0,IF(OFFSET(CRONOPLE!$F$14,$M14,AO$13)="",10^12,OFFSET(CRONOPLE!$F$14,$M14,AO$13)))) ->  | AP14: =IF($D14<>"Serviço",0,IF(AND(AUTOEVENTO="Manual",$M14=1),0,IF(OFFSET(CRONOPLE!$F$14,$M14,AP$13)="",10^12,OFFSET(CRONOPLE!$F$14,$M14,AP$13)))) ->  | AQ14: =IF($D14<>"Serviço",0,IF(AND(AUTOEVENTO="Manual",$M14=1),0,IF(OFFSET(CRONOPLE!$F$14,$M14,AQ$13)="",10^12,OFFSET(CRONOPLE!$F$14,$M14,AQ$13)))) ->  | AR14: =IF($D14<>"Serviço",0,IF(AND(AUTOEVENTO="Manual",$M14=1),0,IF(OFFSET(CRONOPLE!$F$14,$M14,AR$13)="",10^12,OFFSET(CRONOPLE!$F$14,$M14,AR$13)))) ->  | AS14: =IF($D14<>"Serviço",0,IF(AND(AUTOEVENTO="Manual",$M14=1),0,IF(OFFSET(CRONOPLE!$F$14,$M14,AS$13)="",10^12,OFFSET(CRONOPLE!$F$14,$M14,AS$13)))) ->  | AT14: =IF($D14<>"Serviço",0,IF(AND(AUTOEVENTO="Manual",$M14=1),0,IF(OFFSET(CRONOPLE!$F$14,$M14,AT$13)="",10^12,OFFSET(CRONOPLE!$F$14,$M14,AT$13)))) ->  | AU14: =IF($D14<>"Serviço",0,IF(AND(AUTOEVENTO="Manual",$M14=1),0,IF(OFFSET(CRONOPLE!$F$14,$M14,AU$13)="",10^12,OFFSET(CRONOPLE!$F$14,$M14,AU$13)))) ->  | AV14: =IF($D14<>"Serviço",0,IF(AND(AUTOEVENTO="Manual",$M14=1),0,IF(OFFSET(CRONOPLE!$F$14,$M14,AV$13)="",10^12,OFFSET(CRONOPLE!$F$14,$M14,AV$13)))) ->  | AX14: =IF($D14<>"Serviço",0,IF(OR(AND(AUTOEVENTO="Manual",$M14=1),$M14>(ROW(PLE.lastrow)-ROW(PLE.firstrow))),0,IF(OFFSET(PLE!$G$14,$M14,AX$13)="",10^12,OFFSET(PLE!$G$14,$M14,AX$13)))) -> 0 | AY14: =IF($D14<>"Serviço",0,IF(OR(AND(AUTOEVENTO="Manual",$M14=1),$M14>(ROW(PLE.lastrow)-ROW(PLE.firstrow))),0,IF(OFFSET(PLE!$G$14,$M14,AY$13)="",10^12,OFFSET(PLE!$G$14,$M14,AY$13)))) -> 0 | AZ14: =IF($D14<>"Serviço",0,IF(OR(AND(AUTOEVENTO="Manual",$M14=1),$M14>(ROW(PLE.lastrow)-ROW(PLE.firstrow))),0,IF(OFFSET(PLE!$G$14,$M14,AZ$13)="",10^12,OFFSET(PLE!$G$14,$M14,AZ$13)))) -> 0 | BA14: =IF($D14<>"Serviço",0,IF(OR(AND(AUTOEVENTO="Manual",$M14=1),$M14>(ROW(PLE.lastrow)-ROW(PLE.firstrow))),0,IF(OFFSET(PLE!$G$14,$M14,BA$13)="",10^12,OFFSET(PLE!$G$14,$M14,BA$13)))) -> 0 | BB14: =IF($D14<>"Serviço",0,IF(OR(AND(AUTOEVENTO="Manual",$M14=1),$M14>(ROW(PLE.lastrow)-ROW(PLE.firstrow))),0,IF(OFFSET(PLE!$G$14,$M14,BB$13)="",10^12,OFFSET(PLE!$G$14,$M14,BB$13)))) -> 0 | BC14: =IF($D14<>"Serviço",0,IF(OR(AND(AUTOEVENTO="Manual",$M14=1),$M14>(ROW(PLE.lastrow)-ROW(PLE.firstrow))),0,IF(OFFSET(PLE!$G$14,$M14,BC$13)="",10^12,OFFSET(PLE!$G$14,$M14,BC$13)))) -> 0 | BD14: =IF($D14<>"Serviço",0,IF(OR(AND(AUTOEVENTO="Manual",$M14=1),$M14>(ROW(PLE.lastrow)-ROW(PLE.firstrow))),0,IF(OFFSET(PLE!$G$14,$M14,BD$13)="",10^12,OFFSET(PLE!$G$14,$M14,BD$13)))) -> 0 | BE14: =IF($D14<>"Serviço",0,IF(OR(AND(AUTOEVENTO="Manual",$M14=1),$M14>(ROW(PLE.lastrow)-ROW(PLE.firstrow))),0,IF(OFFSET(PLE!$G$14,$M14,BE$13)="",10^12,OFFSET(PLE!$G$14,$M14,BE$13)))) -> 0 | BF14: =IF($D14<>"Serviço",0,IF(OR(AND(AUTOEVENTO="Manual",$M14=1),$M14>(ROW(PLE.lastrow)-ROW(PLE.firstrow))),0,IF(OFFSET(PLE!$G$14,$M14,BF$13)="",10^12,OFFSET(PLE!$G$14,$M14,BF$13)))) -> 0 | BG14: =IF($D14<>"Serviço",0,IF(OR(AND(AUTOEVENTO="Manual",$M14=1),$M14>(ROW(PLE.lastrow)-ROW(PLE.firstrow))),0,IF(OFFSET(PLE!$G$14,$M14,BG$13)="",10^12,OFFSET(PLE!$G$14,$M14,BG$13)))) -> 0
B15: =OFFSET(ORÇAMENTO!C$15,ROW(B15)-ROW(B$15),0) -> L | C15: =OFFSET(ORÇAMENTO!L$15,ROW(C15)-ROW(C$15),0) -> F | D15: =IF(TIPOORCAMENTO="LICITADO","CTEF","LOTE") -> LOTE | E15: =Import.DescLote -> Associação dos Municípios do Meio Oeste Catarinense | L15: . | M15: =IF(AUTOEVENTO="MANUAL",0,1) -> 1 | N15: TOTAL FINANC. POR FRENTE (R$): | O15: =OFFSET($AA$15,0,O$13) ->  | Q15: =OFFSET($AA$15,0,Q$13) -> 175683.83 | R15: 0 | S15: 0 | T15: 0 | U15: 0 | V15: 0 | W15: 0 | X15: 0 | Y15: 0 | Z15: 0 | AB15: =ROUND(SUM(OFFSET(AB$15,1,0):AB$25),2) -> 175683.83 | AC15: =SUM(OFFSET(AC$15,1,0):AC$25) -> 0 | AD15: =SUM(OFFSET(AD$15,1,0):AD$25) -> 0 | AE15: =SUM(OFFSET(AE$15,1,0):AE$25) -> 0 | AF15: =SUM(OFFSET(AF$15,1,0):AF$25) -> 0 | AG15: =SUM(OFFSET(AG$15,1,0):AG$25) -> 0 | AH15: =SUM(OFFSET(AH$15,1,0):AH$25) -> 0 | AI15: =SUM(OFFSET(AI$15,1,0):AI$25) -> 0 | AJ15: =SUM(OFFSET(AJ$15,1,0):AJ$25) -> 0 | AK15: =SUM(OFFSET(AK$15,1,0):AK$25) -> 0 | AM15: =10^12 -> 1000000000000 | AN15: =10^12 -> 1000000000000 | AO15: 1000000000000 | AP15: 1000000000000 | AQ15: 1000000000000 | AR15: 1000000000000 | AS15: 1000000000000 | AT15: 1000000000000 | AU15: 1000000000000 | AV15: 1000000000000 | AX15: =10^12 -> 1000000000000 | AY15: 1000000000000 | AZ15: 1000000000000 | BA15: 1000000000000 | BB15: 1000000000000 | BC15: 1000000000000 | BD15: 1000000000000 | BE15: 1000000000000 | BF15: 1000000000000 | BG15: 1000000000000
A16: =IF(AUTOEVENTO="Manual",IF(K16<>"",MIN(VALUE(LEFT(K16,FIND(".",K16)-1)),COUNTA(EVENTOS.Lista)),0),IF(OR($B16>AUTOEVENTO,$B16="S",$B16=0),SUBSTITUTE(OFFSET($A16,-1,0),IF($D16="Serviço",".",""),""),ROW(A16)-ROW($A$15)&".")) -> 1. | B16: =OFFSET(ORÇAMENTO!C$15,ROW(B16)-ROW(B$15),0) -> 1 | C16: =OFFSET(ORÇAMENTO!L$15,ROW(C16)-ROW(C$15),0) -> F | D16: =OFFSET(ORÇAMENTO!N$15,ROW(D16)-ROW(D$15),0) -> Meta | E16: =OFFSET(ORÇAMENTO!O$15,ROW(E16)-ROW(E$15),0) -> 1. | F16: =OFFSET(ORÇAMENTO!R$15,ROW(F16)-ROW(F$15),0) -> REFORMA QUADRA GINÁSIO MUNICIPAL | G16: =IF($D16<>"Serviço","",OFFSET(ORÇAMENTO!S$15,ROW(G16)-ROW(G$15),0)) ->  | H16: =IF($D16<>"Serviço",0,IF(ACOMPANHAMENTO="BM",ROUND(OFFSET(ORÇAMENTO!AJ$15,ROW(H16)-ROW(H$15),0),15-13*ORÇAMENTO!$AF$7),SUMPRODUCT(($Q$12:$AA$12<>"")*ROUND($Q16:$AA16,15-13*ORÇAMENTO!$AF$7)))) -> 0 | L16: . | M16: =IF($D16<>"Serviço","",IF(AUTOEVENTO="manual",$A16,IF(ISERROR(MATCH($A16,$A$15:OFFSET($A16,-1,0),0)),MAX($M$15:OFFSET(M16,-1,0))+1,INDEX($M$15:OFFSET(M16,-1,0),MATCH($A16,$A$15:OFFSET($A16,-1,0),0))))) ->  | N16: =IF($D16<>"Serviço","",IF(AUTOEVENTO="Manual",IF($A16=0,"<-- defina o número do agrupador",OFFSET(EVENTOS!$D$14,$A16,0)),OFFSET($F$15,$A16,0))) ->  | AB16: =IF(AND($D16="Serviço",AB$12<>0,$H16>0,OR(AUTOEVENTO<>"manual",$M16<>1)),ROUND(OFFSET($P16,0,AB$13),15-13*ORÇAMENTO!$AF$7)/$H16*OFFSET(ORÇAMENTO!$X$15,ROW(AB16)-ROW(AB$15),0),0) -> 0 | AC16: =IF(AND($D16="Serviço",AC$12<>0,$H16>0,OR(AUTOEVENTO<>"manual",$M16<>1)),ROUND(OFFSET($P16,0,AC$13),15-13*ORÇAMENTO!$AF$7)/$H16*OFFSET(ORÇAMENTO!$X$15,ROW(AC16)-ROW(AC$15),0),0) -> 0 | AD16: =IF(AND($D16="Serviço",AD$12<>0,$H16>0,OR(AUTOEVENTO<>"manual",$M16<>1)),ROUND(OFFSET($P16,0,AD$13),15-13*ORÇAMENTO!$AF$7)/$H16*OFFSET(ORÇAMENTO!$X$15,ROW(AD16)-ROW(AD$15),0),0) -> 0 | AE16: =IF(AND($D16="Serviço",AE$12<>0,$H16>0,OR(AUTOEVENTO<>"manual",$M16<>1)),ROUND(OFFSET($P16,0,AE$13),15-13*ORÇAMENTO!$AF$7)/$H16*OFFSET(ORÇAMENTO!$X$15,ROW(AE16)-ROW(AE$15),0),0) -> 0 | AF16: =IF(AND($D16="Serviço",AF$12<>0,$H16>0,OR(AUTOEVENTO<>"manual",$M16<>1)),ROUND(OFFSET($P16,0,AF$13),15-13*ORÇAMENTO!$AF$7)/$H16*OFFSET(ORÇAMENTO!$X$15,ROW(AF16)-ROW(AF$15),0),0) -> 0 | AG16: =IF(AND($D16="Serviço",AG$12<>0,$H16>0,OR(AUTOEVENTO<>"manual",$M16<>1)),ROUND(OFFSET($P16,0,AG$13),15-13*ORÇAMENTO!$AF$7)/$H16*OFFSET(ORÇAMENTO!$X$15,ROW(AG16)-ROW(AG$15),0),0) -> 0 | AH16: =IF(AND($D16="Serviço",AH$12<>0,$H16>0,OR(AUTOEVENTO<>"manual",$M16<>1)),ROUND(OFFSET($P16,0,AH$13),15-13*ORÇAMENTO!$AF$7)/$H16*OFFSET(ORÇAMENTO!$X$15,ROW(AH16)-ROW(AH$15),0),0) -> 0 | AI16: =IF(AND($D16="Serviço",AI$12<>0,$H16>0,OR(AUTOEVENTO<>"manual",$M16<>1)),ROUND(OFFSET($P16,0,AI$13),15-13*ORÇAMENTO!$AF$7)/$H16*OFFSET(ORÇAMENTO!$X$15,ROW(AI16)-ROW(AI$15),0),0) -> 0 | AJ16: =IF(AND($D16="Serviço",AJ$12<>0,$H16>0,OR(AUTOEVENTO<>"manual",$M16<>1)),ROUND(OFFSET($P16,0,AJ$13),15-13*ORÇAMENTO!$AF$7)/$H16*OFFSET(ORÇAMENTO!$X$15,ROW(AJ16)-ROW(AJ$15),0),0) -> 0 | AK16: =IF(AND($D16="Serviço",AK$12<>0,$H16>0,OR(AUTOEVENTO<>"manual",$M16<>1)),ROUND(OFFSET($P16,0,AK$13),15-13*ORÇAMENTO!$AF$7)/$H16*OFFSET(ORÇAMENTO!$X$15,ROW(AK16)-ROW(AK$15),0),0) -> 0 | AM16: =IF($D16<>"Serviço",0,IF(AND(AUTOEVENTO="Manual",$M16=1),0,IF(OFFSET(CRONOPLE!$F$14,$M16,AM$13)="",10^12,OFFSET(CRONOPLE!$F$14,$M16,AM$13)))) -> 0 | AN16: =IF($D16<>"Serviço",0,IF(AND(AUTOEVENTO="Manual",$M16=1),0,IF(OFFSET(CRONOPLE!$F$14,$M16,AN$13)="",10^12,OFFSET(CRONOPLE!$F$14,$M16,AN$13)))) -> 0 | AO16: =IF($D16<>"Serviço",0,IF(AND(AUTOEVENTO="Manual",$M16=1),0,IF(OFFSET(CRONOPLE!$F$14,$M16,AO$13)="",10^12,OFFSET(CRONOPLE!$F$14,$M16,AO$13)))) -> 0 | AP16: =IF($D16<>"Serviço",0,IF(AND(AUTOEVENTO="Manual",$M16=1),0,IF(OFFSET(CRONOPLE!$F$14,$M16,AP$13)="",10^12,OFFSET(CRONOPLE!$F$14,$M16,AP$13)))) -> 0 | AQ16: =IF($D16<>"Serviço",0,IF(AND(AUTOEVENTO="Manual",$M16=1),0,IF(OFFSET(CRONOPLE!$F$14,$M16,AQ$13)="",10^12,OFFSET(CRONOPLE!$F$14,$M16,AQ$13)))) -> 0 | AR16: =IF($D16<>"Serviço",0,IF(AND(AUTOEVENTO="Manual",$M16=1),0,IF(OFFSET(CRONOPLE!$F$14,$M16,AR$13)="",10^12,OFFSET(CRONOPLE!$F$14,$M16,AR$13)))) -> 0 | AS16: =IF($D16<>"Serviço",0,IF(AND(AUTOEVENTO="Manual",$M16=1),0,IF(OFFSET(CRONOPLE!$F$14,$M16,AS$13)="",10^12,OFFSET(CRONOPLE!$F$14,$M16,AS$13)))) -> 0 | AT16: =IF($D16<>"Serviço",0,IF(AND(AUTOEVENTO="Manual",$M16=1),0,IF(OFFSET(CRONOPLE!$F$14,$M16,AT$13)="",10^12,OFFSET(CRONOPLE!$F$14,$M16,AT$13)))) -> 0 | AU16: =IF($D16<>"Serviço",0,IF(AND(AUTOEVENTO="Manual",$M16=1),0,IF(OFFSET(CRONOPLE!$F$14,$M16,AU$13)="",10^12,OFFSET(CRONOPLE!$F$14,$M16,AU$13)))) -> 0 | AV16: =IF($D16<>"Serviço",0,IF(AND(AUTOEVENTO="Manual",$M16=1),0,IF(OFFSET(CRONOPLE!$F$14,$M16,AV$13)="",10^12,OFFSET(CRONOPLE!$F$14,$M16,AV$13)))) -> 0 | AX16: =IF($D16<>"Serviço",0,IF(OR(AND(AUTOEVENTO="Manual",$M16=1),$M16>(ROW(PLE.lastrow)-ROW(PLE.firstrow))),0,IF(OFFSET(PLE!$G$14,$M16,AX$13)="",10^12,OFFSET(PLE!$G$14,$M16,AX$13)))) -> 0 | AY16: =IF($D16<>"Serviço",0,IF(OR(AND(AUTOEVENTO="Manual",$M16=1),$M16>(ROW(PLE.lastrow)-ROW(PLE.firstrow))),0,IF(OFFSET(PLE!$G$14,$M16,AY$13)="",10^12,OFFSET(PLE!$G$14,$M16,AY$13)))) -> 0 | AZ16: =IF($D16<>"Serviço",0,IF(OR(AND(AUTOEVENTO="Manual",$M16=1),$M16>(ROW(PLE.lastrow)-ROW(PLE.firstrow))),0,IF(OFFSET(PLE!$G$14,$M16,AZ$13)="",10^12,OFFSET(PLE!$G$14,$M16,AZ$13)))) -> 0 | BA16: =IF($D16<>"Serviço",0,IF(OR(AND(AUTOEVENTO="Manual",$M16=1),$M16>(ROW(PLE.lastrow)-ROW(PLE.firstrow))),0,IF(OFFSET(PLE!$G$14,$M16,BA$13)="",10^12,OFFSET(PLE!$G$14,$M16,BA$13)))) -> 0 | BB16: =IF($D16<>"Serviço",0,IF(OR(AND(AUTOEVENTO="Manual",$M16=1),$M16>(ROW(PLE.lastrow)-ROW(PLE.firstrow))),0,IF(OFFSET(PLE!$G$14,$M16,BB$13)="",10^12,OFFSET(PLE!$G$14,$M16,BB$13)))) -> 0 | BC16: =IF($D16<>"Serviço",0,IF(OR(AND(AUTOEVENTO="Manual",$M16=1),$M16>(ROW(PLE.lastrow)-ROW(PLE.firstrow))),0,IF(OFFSET(PLE!$G$14,$M16,BC$13)="",10^12,OFFSET(PLE!$G$14,$M16,BC$13)))) -> 0 | BD16: =IF($D16<>"Serviço",0,IF(OR(AND(AUTOEVENTO="Manual",$M16=1),$M16>(ROW(PLE.lastrow)-ROW(PLE.firstrow))),0,IF(OFFSET(PLE!$G$14,$M16,BD$13)="",10^12,OFFSET(PLE!$G$14,$M16,BD$13)))) -> 0 | BE16: =IF($D16<>"Serviço",0,IF(OR(AND(AUTOEVENTO="Manual",$M16=1),$M16>(ROW(PLE.lastrow)-ROW(PLE.firstrow))),0,IF(OFFSET(PLE!$G$14,$M16,BE$13)="",10^12,OFFSET(PLE!$G$14,$M16,BE$13)))) -> 0 | BF16: =IF($D16<>"Serviço",0,IF(OR(AND(AUTOEVENTO="Manual",$M16=1),$M16>(ROW(PLE.lastrow)-ROW(PLE.firstrow))),0,IF(OFFSET(PLE!$G$14,$M16,BF$13)="",10^12,OFFSET(PLE!$G$14,$M16,BF$13)))) -> 0 | BG16: =IF($D16<>"Serviço",0,IF(OR(AND(AUTOEVENTO="Manual",$M16=1),$M16>(ROW(PLE.lastrow)-ROW(PLE.firstrow))),0,IF(OFFSET(PLE!$G$14,$M16,BG$13)="",10^12,OFFSET(PLE!$G$14,$M16,BG$13)))) -> 0
A17: 2. | B17: =OFFSET(ORÇAMENTO!C$15,ROW(B17)-ROW(B$15),0) -> 2 | C17: =OFFSET(ORÇAMENTO!L$15,ROW(C17)-ROW(C$15),0) -> F | D17: =OFFSET(ORÇAMENTO!N$15,ROW(D17)-ROW(D$15),0) -> Nível 2 | E17: =OFFSET(ORÇAMENTO!O$15,ROW(E17)-ROW(E$15),0) -> 1.1. | F17: =OFFSET(ORÇAMENTO!R$15,ROW(F17)-ROW(F$15),0) -> Serviços Iniciais | G17: =IF($D17<>"Serviço","",OFFSET(ORÇAMENTO!S$15,ROW(G17)-ROW(G$15),0)) ->  | H17: =IF($D17<>"Serviço",0,IF(ACOMPANHAMENTO="BM",ROUND(OFFSET(ORÇAMENTO!AJ$15,ROW(H17)-ROW(H$15),0),15-13*ORÇAMENTO!$AF$7),SUMPRODUCT(($Q$12:$AA$12<>"")*ROUND($Q17:$AA17,15-13*ORÇAMENTO!$AF$7)))) -> 0 | L17: . | M17: =IF($D17<>"Serviço","",IF(AUTOEVENTO="manual",$A17,IF(ISERROR(MATCH($A17,$A$15:OFFSET($A17,-1,0),0)),MAX($M$15:OFFSET(M17,-1,0))+1,INDEX($M$15:OFFSET(M17,-1,0),MATCH($A17,$A$15:OFFSET($A17,-1,0),0))))) ->  | N17: =IF($D17<>"Serviço","",IF(AUTOEVENTO="Manual",IF($A17=0,"<-- defina o número do agrupador",OFFSET(EVENTOS!$D$14,$A17,0)),OFFSET($F$15,$A17,0))) ->  | AB17: =IF(AND($D17="Serviço",AB$12<>0,$H17>0,OR(AUTOEVENTO<>"manual",$M17<>1)),ROUND(OFFSET($P17,0,AB$13),15-13*ORÇAMENTO!$AF$7)/$H17*OFFSET(ORÇAMENTO!$X$15,ROW(AB17)-ROW(AB$15),0),0) -> 0 | AC17: =IF(AND($D17="Serviço",AC$12<>0,$H17>0,OR(AUTOEVENTO<>"manual",$M17<>1)),ROUND(OFFSET($P17,0,AC$13),15-13*ORÇAMENTO!$AF$7)/$H17*OFFSET(ORÇAMENTO!$X$15,ROW(AC17)-ROW(AC$15),0),0) -> 0 | AD17: =IF(AND($D17="Serviço",AD$12<>0,$H17>0,OR(AUTOEVENTO<>"manual",$M17<>1)),ROUND(OFFSET($P17,0,AD$13),15-13*ORÇAMENTO!$AF$7)/$H17*OFFSET(ORÇAMENTO!$X$15,ROW(AD17)-ROW(AD$15),0),0) -> 0 | AE17: =IF(AND($D17="Serviço",AE$12<>0,$H17>0,OR(AUTOEVENTO<>"manual",$M17<>1)),ROUND(OFFSET($P17,0,AE$13),15-13*ORÇAMENTO!$AF$7)/$H17*OFFSET(ORÇAMENTO!$X$15,ROW(AE17)-ROW(AE$15),0),0) -> 0 | AF17: =IF(AND($D17="Serviço",AF$12<>0,$H17>0,OR(AUTOEVENTO<>"manual",$M17<>1)),ROUND(OFFSET($P17,0,AF$13),15-13*ORÇAMENTO!$AF$7)/$H17*OFFSET(ORÇAMENTO!$X$15,ROW(AF17)-ROW(AF$15),0),0) -> 0 | AG17: =IF(AND($D17="Serviço",AG$12<>0,$H17>0,OR(AUTOEVENTO<>"manual",$M17<>1)),ROUND(OFFSET($P17,0,AG$13),15-13*ORÇAMENTO!$AF$7)/$H17*OFFSET(ORÇAMENTO!$X$15,ROW(AG17)-ROW(AG$15),0),0) -> 0 | AH17: =IF(AND($D17="Serviço",AH$12<>0,$H17>0,OR(AUTOEVENTO<>"manual",$M17<>1)),ROUND(OFFSET($P17,0,AH$13),15-13*ORÇAMENTO!$AF$7)/$H17*OFFSET(ORÇAMENTO!$X$15,ROW(AH17)-ROW(AH$15),0),0) -> 0 | AI17: =IF(AND($D17="Serviço",AI$12<>0,$H17>0,OR(AUTOEVENTO<>"manual",$M17<>1)),ROUND(OFFSET($P17,0,AI$13),15-13*ORÇAMENTO!$AF$7)/$H17*OFFSET(ORÇAMENTO!$X$15,ROW(AI17)-ROW(AI$15),0),0) -> 0 | AJ17: =IF(AND($D17="Serviço",AJ$12<>0,$H17>0,OR(AUTOEVENTO<>"manual",$M17<>1)),ROUND(OFFSET($P17,0,AJ$13),15-13*ORÇAMENTO!$AF$7)/$H17*OFFSET(ORÇAMENTO!$X$15,ROW(AJ17)-ROW(AJ$15),0),0) -> 0 | AK17: =IF(AND($D17="Serviço",AK$12<>0,$H17>0,OR(AUTOEVENTO<>"manual",$M17<>1)),ROUND(OFFSET($P17,0,AK$13),15-13*ORÇAMENTO!$AF$7)/$H17*OFFSET(ORÇAMENTO!$X$15,ROW(AK17)-ROW(AK$15),0),0) -> 0 | AM17: =IF($D17<>"Serviço",0,IF(AND(AUTOEVENTO="Manual",$M17=1),0,IF(OFFSET(CRONOPLE!$F$14,$M17,AM$13)="",10^12,OFFSET(CRONOPLE!$F$14,$M17,AM$13)))) -> 0 | AN17: =IF($D17<>"Serviço",0,IF(AND(AUTOEVENTO="Manual",$M17=1),0,IF(OFFSET(CRONOPLE!$F$14,$M17,AN$13)="",10^12,OFFSET(CRONOPLE!$F$14,$M17,AN$13)))) -> 0 | AO17: =IF($D17<>"Serviço",0,IF(AND(AUTOEVENTO="Manual",$M17=1),0,IF(OFFSET(CRONOPLE!$F$14,$M17,AO$13)="",10^12,OFFSET(CRONOPLE!$F$14,$M17,AO$13)))) -> 0 | AP17: =IF($D17<>"Serviço",0,IF(AND(AUTOEVENTO="Manual",$M17=1),0,IF(OFFSET(CRONOPLE!$F$14,$M17,AP$13)="",10^12,OFFSET(CRONOPLE!$F$14,$M17,AP$13)))) -> 0 | AQ17: =IF($D17<>"Serviço",0,IF(AND(AUTOEVENTO="Manual",$M17=1),0,IF(OFFSET(CRONOPLE!$F$14,$M17,AQ$13)="",10^12,OFFSET(CRONOPLE!$F$14,$M17,AQ$13)))) -> 0 | AR17: =IF($D17<>"Serviço",0,IF(AND(AUTOEVENTO="Manual",$M17=1),0,IF(OFFSET(CRONOPLE!$F$14,$M17,AR$13)="",10^12,OFFSET(CRONOPLE!$F$14,$M17,AR$13)))) -> 0 | AS17: =IF($D17<>"Serviço",0,IF(AND(AUTOEVENTO="Manual",$M17=1),0,IF(OFFSET(CRONOPLE!$F$14,$M17,AS$13)="",10^12,OFFSET(CRONOPLE!$F$14,$M17,AS$13)))) -> 0 | AT17: =IF($D17<>"Serviço",0,IF(AND(AUTOEVENTO="Manual",$M17=1),0,IF(OFFSET(CRONOPLE!$F$14,$M17,AT$13)="",10^12,OFFSET(CRONOPLE!$F$14,$M17,AT$13)))) -> 0 | AU17: =IF($D17<>"Serviço",0,IF(AND(AUTOEVENTO="Manual",$M17=1),0,IF(OFFSET(CRONOPLE!$F$14,$M17,AU$13)="",10^12,OFFSET(CRONOPLE!$F$14,$M17,AU$13)))) -> 0 | AV17: =IF($D17<>"Serviço",0,IF(AND(AUTOEVENTO="Manual",$M17=1),0,IF(OFFSET(CRONOPLE!$F$14,$M17,AV$13)="",10^12,OFFSET(CRONOPLE!$F$14,$M17,AV$13)))) -> 0 | AX17: =IF($D17<>"Serviço",0,IF(OR(AND(AUTOEVENTO="Manual",$M17=1),$M17>(ROW(PLE.lastrow)-ROW(PLE.firstrow))),0,IF(OFFSET(PLE!$G$14,$M17,AX$13)="",10^12,OFFSET(PLE!$G$14,$M17,AX$13)))) -> 0 | AY17: =IF($D17<>"Serviço",0,IF(OR(AND(AUTOEVENTO="Manual",$M17=1),$M17>(ROW(PLE.lastrow)-ROW(PLE.firstrow))),0,IF(OFFSET(PLE!$G$14,$M17,AY$13)="",10^12,OFFSET(PLE!$G$14,$M17,AY$13)))) -> 0 | AZ17: =IF($D17<>"Serviço",0,IF(OR(AND(AUTOEVENTO="Manual",$M17=1),$M17>(ROW(PLE.lastrow)-ROW(PLE.firstrow))),0,IF(OFFSET(PLE!$G$14,$M17,AZ$13)="",10^12,OFFSET(PLE!$G$14,$M17,AZ$13)))) -> 0 | BA17: =IF($D17<>"Serviço",0,IF(OR(AND(AUTOEVENTO="Manual",$M17=1),$M17>(ROW(PLE.lastrow)-ROW(PLE.firstrow))),0,IF(OFFSET(PLE!$G$14,$M17,BA$13)="",10^12,OFFSET(PLE!$G$14,$M17,BA$13)))) -> 0 | BB17: =IF($D17<>"Serviço",0,IF(OR(AND(AUTOEVENTO="Manual",$M17=1),$M17>(ROW(PLE.lastrow)-ROW(PLE.firstrow))),0,IF(OFFSET(PLE!$G$14,$M17,BB$13)="",10^12,OFFSET(PLE!$G$14,$M17,BB$13)))) -> 0 | BC17: =IF($D17<>"Serviço",0,IF(OR(AND(AUTOEVENTO="Manual",$M17=1),$M17>(ROW(PLE.lastrow)-ROW(PLE.firstrow))),0,IF(OFFSET(PLE!$G$14,$M17,BC$13)="",10^12,OFFSET(PLE!$G$14,$M17,BC$13)))) -> 0 | BD17: =IF($D17<>"Serviço",0,IF(OR(AND(AUTOEVENTO="Manual",$M17=1),$M17>(ROW(PLE.lastrow)-ROW(PLE.firstrow))),0,IF(OFFSET(PLE!$G$14,$M17,BD$13)="",10^12,OFFSET(PLE!$G$14,$M17,BD$13)))) -> 0 | BE17: =IF($D17<>"Serviço",0,IF(OR(AND(AUTOEVENTO="Manual",$M17=1),$M17>(ROW(PLE.lastrow)-ROW(PLE.firstrow))),0,IF(OFFSET(PLE!$G$14,$M17,BE$13)="",10^12,OFFSET(PLE!$G$14,$M17,BE$13)))) -> 0 | BF17: =IF($D17<>"Serviço",0,IF(OR(AND(AUTOEVENTO="Manual",$M17=1),$M17>(ROW(PLE.lastrow)-ROW(PLE.firstrow))),0,IF(OFFSET(PLE!$G$14,$M17,BF$13)="",10^12,OFFSET(PLE!$G$14,$M17,BF$13)))) -> 0 | BG17: =IF($D17<>"Serviço",0,IF(OR(AND(AUTOEVENTO="Manual",$M17=1),$M17>(ROW(PLE.lastrow)-ROW(PLE.firstrow))),0,IF(OFFSET(PLE!$G$14,$M17,BG$13)="",10^12,OFFSET(PLE!$G$14,$M17,BG$13)))) -> 0
A18: 2 | B18: =OFFSET(ORÇAMENTO!C$15,ROW(B18)-ROW(B$15),0) -> S | C18: =OFFSET(ORÇAMENTO!L$15,ROW(C18)-ROW(C$15),0) -> F | D18: =OFFSET(ORÇAMENTO!N$15,ROW(D18)-ROW(D$15),0) -> Serviço | E18: =OFFSET(ORÇAMENTO!O$15,ROW(E18)-ROW(E$15),0) -> 1.1.1. | F18: =OFFSET(ORÇAMENTO!R$15,ROW(F18)-ROW(F$15),0) -> PLACA DE OBRA EM CHAPA DE ACO GALVANIZADO PADRÃO AMMOC | G18: =IF($D18<>"Serviço","",OFFSET(ORÇAMENTO!S$15,ROW(G18)-ROW(G$15),0)) -> M2 | H18: =IF($D18<>"Serviço",0,IF(ACOMPANHAMENTO="BM",ROUND(OFFSET(ORÇAMENTO!AJ$15,ROW(H18)-ROW(H$15),0),15-13*ORÇAMENTO!$AF$7),SUMPRODUCT(($Q$12:$AA$12<>"")*ROUND($Q18:$AA18,15-13*ORÇAMENTO!$AF$7)))) -> 2.5 | L18: . | M18: =IF($D18<>"Serviço","",IF(AUTOEVENTO="manual",$A18,IF(ISERROR(MATCH($A18,$A$15:OFFSET($A18,-1,0),0)),MAX($M$15:OFFSET(M18,-1,0))+1,INDEX($M$15:OFFSET(M18,-1,0),MATCH($A18,$A$15:OFFSET($A18,-1,0),0))))) -> 2 | N18: =IF($D18<>"Serviço","",IF(AUTOEVENTO="Manual",IF($A18=0,"<-- defina o número do agrupador",OFFSET(EVENTOS!$D$14,$A18,0)),OFFSET($F$15,$A18,0))) -> Serviços Iniciais | Q18: 2.5 | AB18: =IF(AND($D18="Serviço",AB$12<>0,$H18>0,OR(AUTOEVENTO<>"manual",$M18<>1)),ROUND(OFFSET($P18,0,AB$13),15-13*ORÇAMENTO!$AF$7)/$H18*OFFSET(ORÇAMENTO!$X$15,ROW(AB18)-ROW(AB$15),0),0) -> 864.78 | AC18: =IF(AND($D18="Serviço",AC$12<>0,$H18>0,OR(AUTOEVENTO<>"manual",$M18<>1)),ROUND(OFFSET($P18,0,AC$13),15-13*ORÇAMENTO!$AF$7)/$H18*OFFSET(ORÇAMENTO!$X$15,ROW(AC18)-ROW(AC$15),0),0) -> 0 | AD18: =IF(AND($D18="Serviço",AD$12<>0,$H18>0,OR(AUTOEVENTO<>"manual",$M18<>1)),ROUND(OFFSET($P18,0,AD$13),15-13*ORÇAMENTO!$AF$7)/$H18*OFFSET(ORÇAMENTO!$X$15,ROW(AD18)-ROW(AD$15),0),0) -> 0 | AE18: =IF(AND($D18="Serviço",AE$12<>0,$H18>0,OR(AUTOEVENTO<>"manual",$M18<>1)),ROUND(OFFSET($P18,0,AE$13),15-13*ORÇAMENTO!$AF$7)/$H18*OFFSET(ORÇAMENTO!$X$15,ROW(AE18)-ROW(AE$15),0),0) -> 0 | AF18: =IF(AND($D18="Serviço",AF$12<>0,$H18>0,OR(AUTOEVENTO<>"manual",$M18<>1)),ROUND(OFFSET($P18,0,AF$13),15-13*ORÇAMENTO!$AF$7)/$H18*OFFSET(ORÇAMENTO!$X$15,ROW(AF18)-ROW(AF$15),0),0) -> 0 | AG18: =IF(AND($D18="Serviço",AG$12<>0,$H18>0,OR(AUTOEVENTO<>"manual",$M18<>1)),ROUND(OFFSET($P18,0,AG$13),15-13*ORÇAMENTO!$AF$7)/$H18*OFFSET(ORÇAMENTO!$X$15,ROW(AG18)-ROW(AG$15),0),0) -> 0 | AH18: =IF(AND($D18="Serviço",AH$12<>0,$H18>0,OR(AUTOEVENTO<>"manual",$M18<>1)),ROUND(OFFSET($P18,0,AH$13),15-13*ORÇAMENTO!$AF$7)/$H18*OFFSET(ORÇAMENTO!$X$15,ROW(AH18)-ROW(AH$15),0),0) -> 0 | AI18: =IF(AND($D18="Serviço",AI$12<>0,$H18>0,OR(AUTOEVENTO<>"manual",$M18<>1)),ROUND(OFFSET($P18,0,AI$13),15-13*ORÇAMENTO!$AF$7)/$H18*OFFSET(ORÇAMENTO!$X$15,ROW(AI18)-ROW(AI$15),0),0) -> 0 | AJ18: =IF(AND($D18="Serviço",AJ$12<>0,$H18>0,OR(AUTOEVENTO<>"manual",$M18<>1)),ROUND(OFFSET($P18,0,AJ$13),15-13*ORÇAMENTO!$AF$7)/$H18*OFFSET(ORÇAMENTO!$X$15,ROW(AJ18)-ROW(AJ$15),0),0) -> 0 | AK18: =IF(AND($D18="Serviço",AK$12<>0,$H18>0,OR(AUTOEVENTO<>"manual",$M18<>1)),ROUND(OFFSET($P18,0,AK$13),15-13*ORÇAMENTO!$AF$7)/$H18*OFFSET(ORÇAMENTO!$X$15,ROW(AK18)-ROW(AK$15),0),0) -> 0 | AM18: =IF($D18<>"Serviço",0,IF(AND(AUTOEVENTO="Manual",$M18=1),0,IF(OFFSET(CRONOPLE!$F$14,$M18,AM$13)="",10^12,OFFSET(CRONOPLE!$F$14,$M18,AM$13)))) -> 1 | AN18: =IF($D18<>"Serviço",0,IF(AND(AUTOEVENTO="Manual",$M18=1),0,IF(OFFSET(CRONOPLE!$F$14,$M18,AN$13)="",10^12,OFFSET(CRONOPLE!$F$14,$M18,AN$13)))) -> 1000000000000 | AO18: =IF($D18<>"Serviço",0,IF(AND(AUTOEVENTO="Manual",$M18=1),0,IF(OFFSET(CRONOPLE!$F$14,$M18,AO$13)="",10^12,OFFSET(CRONOPLE!$F$14,$M18,AO$13)))) -> 1000000000000 | AP18: =IF($D18<>"Serviço",0,IF(AND(AUTOEVENTO="Manual",$M18=1),0,IF(OFFSET(CRONOPLE!$F$14,$M18,AP$13)="",10^12,OFFSET(CRONOPLE!$F$14,$M18,AP$13)))) -> 1000000000000 | AQ18: =IF($D18<>"Serviço",0,IF(AND(AUTOEVENTO="Manual",$M18=1),0,IF(OFFSET(CRONOPLE!$F$14,$M18,AQ$13)="",10^12,OFFSET(CRONOPLE!$F$14,$M18,AQ$13)))) -> 1000000000000 | AR18: =IF($D18<>"Serviço",0,IF(AND(AUTOEVENTO="Manual",$M18=1),0,IF(OFFSET(CRONOPLE!$F$14,$M18,AR$13)="",10^12,OFFSET(CRONOPLE!$F$14,$M18,AR$13)))) -> 1000000000000 | AS18: =IF($D18<>"Serviço",0,IF(AND(AUTOEVENTO="Manual",$M18=1),0,IF(OFFSET(CRONOPLE!$F$14,$M18,AS$13)="",10^12,OFFSET(CRONOPLE!$F$14,$M18,AS$13)))) -> 1000000000000 | AT18: =IF($D18<>"Serviço",0,IF(AND(AUTOEVENTO="Manual",$M18=1),0,IF(OFFSET(CRONOPLE!$F$14,$M18,AT$13)="",10^12,OFFSET(CRONOPLE!$F$14,$M18,AT$13)))) -> 1000000000000 | AU18: =IF($D18<>"Serviço",0,IF(AND(AUTOEVENTO="Manual",$M18=1),0,IF(OFFSET(CRONOPLE!$F$14,$M18,AU$13)="",10^12,OFFSET(CRONOPLE!$F$14,$M18,AU$13)))) -> 1000000000000 | AV18: =IF($D18<>"Serviço",0,IF(AND(AUTOEVENTO="Manual",$M18=1),0,IF(OFFSET(CRONOPLE!$F$14,$M18,AV$13)="",10^12,OFFSET(CRONOPLE!$F$14,$M18,AV$13)))) -> 1000000000000 | AX18: =IF($D18<>"Serviço",0,IF(OR(AND(AUTOEVENTO="Manual",$M18=1),$M18>(ROW(PLE.lastrow)-ROW(PLE.firstrow))),0,IF(OFFSET(PLE!$G$14,$M18,AX$13)="",10^12,OFFSET(PLE!$G$14,$M18,AX$13)))) -> 1000000000000 | AY18: =IF($D18<>"Serviço",0,IF(OR(AND(AUTOEVENTO="Manual",$M18=1),$M18>(ROW(PLE.lastrow)-ROW(PLE.firstrow))),0,IF(OFFSET(PLE!$G$14,$M18,AY$13)="",10^12,OFFSET(PLE!$G$14,$M18,AY$13)))) -> 1000000000000 | AZ18: =IF($D18<>"Serviço",0,IF(OR(AND(AUTOEVENTO="Manual",$M18=1),$M18>(ROW(PLE.lastrow)-ROW(PLE.firstrow))),0,IF(OFFSET(PLE!$G$14,$M18,AZ$13)="",10^12,OFFSET(PLE!$G$14,$M18,AZ$13)))) -> 1000000000000 | BA18: =IF($D18<>"Serviço",0,IF(OR(AND(AUTOEVENTO="Manual",$M18=1),$M18>(ROW(PLE.lastrow)-ROW(PLE.firstrow))),0,IF(OFFSET(PLE!$G$14,$M18,BA$13)="",10^12,OFFSET(PLE!$G$14,$M18,BA$13)))) -> 1000000000000 | BB18: =IF($D18<>"Serviço",0,IF(OR(AND(AUTOEVENTO="Manual",$M18=1),$M18>(ROW(PLE.lastrow)-ROW(PLE.firstrow))),0,IF(OFFSET(PLE!$G$14,$M18,BB$13)="",10^12,OFFSET(PLE!$G$14,$M18,BB$13)))) -> 1000000000000 | BC18: =IF($D18<>"Serviço",0,IF(OR(AND(AUTOEVENTO="Manual",$M18=1),$M18>(ROW(PLE.lastrow)-ROW(PLE.firstrow))),0,IF(OFFSET(PLE!$G$14,$M18,BC$13)="",10^12,OFFSET(PLE!$G$14,$M18,BC$13)))) -> 1000000000000 | BD18: =IF($D18<>"Serviço",0,IF(OR(AND(AUTOEVENTO="Manual",$M18=1),$M18>(ROW(PLE.lastrow)-ROW(PLE.firstrow))),0,IF(OFFSET(PLE!$G$14,$M18,BD$13)="",10^12,OFFSET(PLE!$G$14,$M18,BD$13)))) -> 1000000000000 | BE18: =IF($D18<>"Serviço",0,IF(OR(AND(AUTOEVENTO="Manual",$M18=1),$M18>(ROW(PLE.lastrow)-ROW(PLE.firstrow))),0,IF(OFFSET(PLE!$G$14,$M18,BE$13)="",10^12,OFFSET(PLE!$G$14,$M18,BE$13)))) -> 1000000000000 | BF18: =IF($D18<>"Serviço",0,IF(OR(AND(AUTOEVENTO="Manual",$M18=1),$M18>(ROW(PLE.lastrow)-ROW(PLE.firstrow))),0,IF(OFFSET(PLE!$G$14,$M18,BF$13)="",10^12,OFFSET(PLE!$G$14,$M18,BF$13)))) -> 1000000000000 | BG18: =IF($D18<>"Serviço",0,IF(OR(AND(AUTOEVENTO="Manual",$M18=1),$M18>(ROW(PLE.lastrow)-ROW(PLE.firstrow))),0,IF(OFFSET(PLE!$G$14,$M18,BG$13)="",10^12,OFFSET(PLE!$G$14,$M18,BG$13)))) -> 1000000000000
A19: 4. | B19: =OFFSET(ORÇAMENTO!C$15,ROW(B19)-ROW(B$15),0) -> 2 | C19: =OFFSET(ORÇAMENTO!L$15,ROW(C19)-ROW(C$15),0) -> F | D19: =OFFSET(ORÇAMENTO!N$15,ROW(D19)-ROW(D$15),0) -> Nível 2 | E19: =OFFSET(ORÇAMENTO!O$15,ROW(E19)-ROW(E$15),0) -> 1.2. | F19: =OFFSET(ORÇAMENTO!R$15,ROW(F19)-ROW(F$15),0) -> PAVIMENTAÇÃO | G19: =IF($D19<>"Serviço","",OFFSET(ORÇAMENTO!S$15,ROW(G19)-ROW(G$15),0)) ->  | H19: =IF($D19<>"Serviço",0,IF(ACOMPANHAMENTO="BM",ROUND(OFFSET(ORÇAMENTO!AJ$15,ROW(H19)-ROW(H$15),0),15-13*ORÇAMENTO!$AF$7),SUMPRODUCT(($Q$12:$AA$12<>"")*ROUND($Q19:$AA19,15-13*ORÇAMENTO!$AF$7)))) -> 0 | L19: . | M19: =IF($D19<>"Serviço","",IF(AUTOEVENTO="manual",$A19,IF(ISERROR(MATCH($A19,$A$15:OFFSET($A19,-1,0),0)),MAX($M$15:OFFSET(M19,-1,0))+1,INDEX($M$15:OFFSET(M19,-1,0),MATCH($A19,$A$15:OFFSET($A19,-1,0),0))))) ->  | N19: =IF($D19<>"Serviço","",IF(AUTOEVENTO="Manual",IF($A19=0,"<-- defina o número do agrupador",OFFSET(EVENTOS!$D$14,$A19,0)),OFFSET($F$15,$A19,0))) ->  | AB19: =IF(AND($D19="Serviço",AB$12<>0,$H19>0,OR(AUTOEVENTO<>"manual",$M19<>1)),ROUND(OFFSET($P19,0,AB$13),15-13*ORÇAMENTO!$AF$7)/$H19*OFFSET(ORÇAMENTO!$X$15,ROW(AB19)-ROW(AB$15),0),0) -> 0 | AC19: =IF(AND($D19="Serviço",AC$12<>0,$H19>0,OR(AUTOEVENTO<>"manual",$M19<>1)),ROUND(OFFSET($P19,0,AC$13),15-13*ORÇAMENTO!$AF$7)/$H19*OFFSET(ORÇAMENTO!$X$15,ROW(AC19)-ROW(AC$15),0),0) -> 0 | AD19: =IF(AND($D19="Serviço",AD$12<>0,$H19>0,OR(AUTOEVENTO<>"manual",$M19<>1)),ROUND(OFFSET($P19,0,AD$13),15-13*ORÇAMENTO!$AF$7)/$H19*OFFSET(ORÇAMENTO!$X$15,ROW(AD19)-ROW(AD$15),0),0) -> 0 | AE19: =IF(AND($D19="Serviço",AE$12<>0,$H19>0,OR(AUTOEVENTO<>"manual",$M19<>1)),ROUND(OFFSET($P19,0,AE$13),15-13*ORÇAMENTO!$AF$7)/$H19*OFFSET(ORÇAMENTO!$X$15,ROW(AE19)-ROW(AE$15),0),0) -> 0 | AF19: =IF(AND($D19="Serviço",AF$12<>0,$H19>0,OR(AUTOEVENTO<>"manual",$M19<>1)),ROUND(OFFSET($P19,0,AF$13),15-13*ORÇAMENTO!$AF$7)/$H19*OFFSET(ORÇAMENTO!$X$15,ROW(AF19)-ROW(AF$15),0),0) -> 0 | AG19: =IF(AND($D19="Serviço",AG$12<>0,$H19>0,OR(AUTOEVENTO<>"manual",$M19<>1)),ROUND(OFFSET($P19,0,AG$13),15-13*ORÇAMENTO!$AF$7)/$H19*OFFSET(ORÇAMENTO!$X$15,ROW(AG19)-ROW(AG$15),0),0) -> 0 | AH19: =IF(AND($D19="Serviço",AH$12<>0,$H19>0,OR(AUTOEVENTO<>"manual",$M19<>1)),ROUND(OFFSET($P19,0,AH$13),15-13*ORÇAMENTO!$AF$7)/$H19*OFFSET(ORÇAMENTO!$X$15,ROW(AH19)-ROW(AH$15),0),0) -> 0 | AI19: =IF(AND($D19="Serviço",AI$12<>0,$H19>0,OR(AUTOEVENTO<>"manual",$M19<>1)),ROUND(OFFSET($P19,0,AI$13),15-13*ORÇAMENTO!$AF$7)/$H19*OFFSET(ORÇAMENTO!$X$15,ROW(AI19)-ROW(AI$15),0),0) -> 0 | AJ19: =IF(AND($D19="Serviço",AJ$12<>0,$H19>0,OR(AUTOEVENTO<>"manual",$M19<>1)),ROUND(OFFSET($P19,0,AJ$13),15-13*ORÇAMENTO!$AF$7)/$H19*OFFSET(ORÇAMENTO!$X$15,ROW(AJ19)-ROW(AJ$15),0),0) -> 0 | AK19: =IF(AND($D19="Serviço",AK$12<>0,$H19>0,OR(AUTOEVENTO<>"manual",$M19<>1)),ROUND(OFFSET($P19,0,AK$13),15-13*ORÇAMENTO!$AF$7)/$H19*OFFSET(ORÇAMENTO!$X$15,ROW(AK19)-ROW(AK$15),0),0) -> 0 | AM19: =IF($D19<>"Serviço",0,IF(AND(AUTOEVENTO="Manual",$M19=1),0,IF(OFFSET(CRONOPLE!$F$14,$M19,AM$13)="",10^12,OFFSET(CRONOPLE!$F$14,$M19,AM$13)))) -> 0 | AN19: =IF($D19<>"Serviço",0,IF(AND(AUTOEVENTO="Manual",$M19=1),0,IF(OFFSET(CRONOPLE!$F$14,$M19,AN$13)="",10^12,OFFSET(CRONOPLE!$F$14,$M19,AN$13)))) -> 0 | AO19: =IF($D19<>"Serviço",0,IF(AND(AUTOEVENTO="Manual",$M19=1),0,IF(OFFSET(CRONOPLE!$F$14,$M19,AO$13)="",10^12,OFFSET(CRONOPLE!$F$14,$M19,AO$13)))) -> 0 | AP19: =IF($D19<>"Serviço",0,IF(AND(AUTOEVENTO="Manual",$M19=1),0,IF(OFFSET(CRONOPLE!$F$14,$M19,AP$13)="",10^12,OFFSET(CRONOPLE!$F$14,$M19,AP$13)))) -> 0 | AQ19: =IF($D19<>"Serviço",0,IF(AND(AUTOEVENTO="Manual",$M19=1),0,IF(OFFSET(CRONOPLE!$F$14,$M19,AQ$13)="",10^12,OFFSET(CRONOPLE!$F$14,$M19,AQ$13)))) -> 0 | AR19: =IF($D19<>"Serviço",0,IF(AND(AUTOEVENTO="Manual",$M19=1),0,IF(OFFSET(CRONOPLE!$F$14,$M19,AR$13)="",10^12,OFFSET(CRONOPLE!$F$14,$M19,AR$13)))) -> 0 | AS19: =IF($D19<>"Serviço",0,IF(AND(AUTOEVENTO="Manual",$M19=1),0,IF(OFFSET(CRONOPLE!$F$14,$M19,AS$13)="",10^12,OFFSET(CRONOPLE!$F$14,$M19,AS$13)))) -> 0 | AT19: =IF($D19<>"Serviço",0,IF(AND(AUTOEVENTO="Manual",$M19=1),0,IF(OFFSET(CRONOPLE!$F$14,$M19,AT$13)="",10^12,OFFSET(CRONOPLE!$F$14,$M19,AT$13)))) -> 0 | AU19: =IF($D19<>"Serviço",0,IF(AND(AUTOEVENTO="Manual",$M19=1),0,IF(OFFSET(CRONOPLE!$F$14,$M19,AU$13)="",10^12,OFFSET(CRONOPLE!$F$14,$M19,AU$13)))) -> 0 | AV19: =IF($D19<>"Serviço",0,IF(AND(AUTOEVENTO="Manual",$M19=1),0,IF(OFFSET(CRONOPLE!$F$14,$M19,AV$13)="",10^12,OFFSET(CRONOPLE!$F$14,$M19,AV$13)))) -> 0 | AX19: =IF($D19<>"Serviço",0,IF(OR(AND(AUTOEVENTO="Manual",$M19=1),$M19>(ROW(PLE.lastrow)-ROW(PLE.firstrow))),0,IF(OFFSET(PLE!$G$14,$M19,AX$13)="",10^12,OFFSET(PLE!$G$14,$M19,AX$13)))) -> 0 | AY19: =IF($D19<>"Serviço",0,IF(OR(AND(AUTOEVENTO="Manual",$M19=1),$M19>(ROW(PLE.lastrow)-ROW(PLE.firstrow))),0,IF(OFFSET(PLE!$G$14,$M19,AY$13)="",10^12,OFFSET(PLE!$G$14,$M19,AY$13)))) -> 0 | AZ19: =IF($D19<>"Serviço",0,IF(OR(AND(AUTOEVENTO="Manual",$M19=1),$M19>(ROW(PLE.lastrow)-ROW(PLE.firstrow))),0,IF(OFFSET(PLE!$G$14,$M19,AZ$13)="",10^12,OFFSET(PLE!$G$14,$M19,AZ$13)))) -> 0 | BA19: =IF($D19<>"Serviço",0,IF(OR(AND(AUTOEVENTO="Manual",$M19=1),$M19>(ROW(PLE.lastrow)-ROW(PLE.firstrow))),0,IF(OFFSET(PLE!$G$14,$M19,BA$13)="",10^12,OFFSET(PLE!$G$14,$M19,BA$13)))) -> 0 | BB19: =IF($D19<>"Serviço",0,IF(OR(AND(AUTOEVENTO="Manual",$M19=1),$M19>(ROW(PLE.lastrow)-ROW(PLE.firstrow))),0,IF(OFFSET(PLE!$G$14,$M19,BB$13)="",10^12,OFFSET(PLE!$G$14,$M19,BB$13)))) -> 0 | BC19: =IF($D19<>"Serviço",0,IF(OR(AND(AUTOEVENTO="Manual",$M19=1),$M19>(ROW(PLE.lastrow)-ROW(PLE.firstrow))),0,IF(OFFSET(PLE!$G$14,$M19,BC$13)="",10^12,OFFSET(PLE!$G$14,$M19,BC$13)))) -> 0 | BD19: =IF($D19<>"Serviço",0,IF(OR(AND(AUTOEVENTO="Manual",$M19=1),$M19>(ROW(PLE.lastrow)-ROW(PLE.firstrow))),0,IF(OFFSET(PLE!$G$14,$M19,BD$13)="",10^12,OFFSET(PLE!$G$14,$M19,BD$13)))) -> 0 | BE19: =IF($D19<>"Serviço",0,IF(OR(AND(AUTOEVENTO="Manual",$M19=1),$M19>(ROW(PLE.lastrow)-ROW(PLE.firstrow))),0,IF(OFFSET(PLE!$G$14,$M19,BE$13)="",10^12,OFFSET(PLE!$G$14,$M19,BE$13)))) -> 0 | BF19: =IF($D19<>"Serviço",0,IF(OR(AND(AUTOEVENTO="Manual",$M19=1),$M19>(ROW(PLE.lastrow)-ROW(PLE.firstrow))),0,IF(OFFSET(PLE!$G$14,$M19,BF$13)="",10^12,OFFSET(PLE!$G$14,$M19,BF$13)))) -> 0 | BG19: =IF($D19<>"Serviço",0,IF(OR(AND(AUTOEVENTO="Manual",$M19=1),$M19>(ROW(PLE.lastrow)-ROW(PLE.firstrow))),0,IF(OFFSET(PLE!$G$14,$M19,BG$13)="",10^12,OFFSET(PLE!$G$14,$M19,BG$13)))) -> 0
A20: 4 | B20: =OFFSET(ORÇAMENTO!C$15,ROW(B20)-ROW(B$15),0) -> S | C20: =OFFSET(ORÇAMENTO!L$15,ROW(C20)-ROW(C$15),0) -> F | D20: =OFFSET(ORÇAMENTO!N$15,ROW(D20)-ROW(D$15),0) -> Serviço | E20: =OFFSET(ORÇAMENTO!O$15,ROW(E20)-ROW(E$15),0) -> 1.2.1. | F20: =OFFSET(ORÇAMENTO!R$15,ROW(F20)-ROW(F$15),0) -> FORNECIMENTO/INSTALACAO LONA PLASTICA PRETA, PARA IMPERMEABILIZACAO, ESPESSURA 150 MICRAS. | G20: =IF($D20<>"Serviço","",OFFSET(ORÇAMENTO!S$15,ROW(G20)-ROW(G$15),0)) -> M2 | H20: =IF($D20<>"Serviço",0,IF(ACOMPANHAMENTO="BM",ROUND(OFFSET(ORÇAMENTO!AJ$15,ROW(H20)-ROW(H$15),0),15-13*ORÇAMENTO!$AF$7),SUMPRODUCT(($Q$12:$AA$12<>"")*ROUND($Q20:$AA20,15-13*ORÇAMENTO!$AF$7)))) -> 769.01 | L20: . | M20: =IF($D20<>"Serviço","",IF(AUTOEVENTO="manual",$A20,IF(ISERROR(MATCH($A20,$A$15:OFFSET($A20,-1,0),0)),MAX($M$15:OFFSET(M20,-1,0))+1,INDEX($M$15:OFFSET(M20,-1,0),MATCH($A20,$A$15:OFFSET($A20,-1,0),0))))) -> 3 | N20: =IF($D20<>"Serviço","",IF(AUTOEVENTO="Manual",IF($A20=0,"<-- defina o número do agrupador",OFFSET(EVENTOS!$D$14,$A20,0)),OFFSET($F$15,$A20,0))) -> PAVIMENTAÇÃO | Q20: 769.01 | AB20: =IF(AND($D20="Serviço",AB$12<>0,$H20>0,OR(AUTOEVENTO<>"manual",$M20<>1)),ROUND(OFFSET($P20,0,AB$13),15-13*ORÇAMENTO!$AF$7)/$H20*OFFSET(ORÇAMENTO!$X$15,ROW(AB20)-ROW(AB$15),0),0) -> 3798.91 | AC20: =IF(AND($D20="Serviço",AC$12<>0,$H20>0,OR(AUTOEVENTO<>"manual",$M20<>1)),ROUND(OFFSET($P20,0,AC$13),15-13*ORÇAMENTO!$AF$7)/$H20*OFFSET(ORÇAMENTO!$X$15,ROW(AC20)-ROW(AC$15),0),0) -> 0 | AD20: =IF(AND($D20="Serviço",AD$12<>0,$H20>0,OR(AUTOEVENTO<>"manual",$M20<>1)),ROUND(OFFSET($P20,0,AD$13),15-13*ORÇAMENTO!$AF$7)/$H20*OFFSET(ORÇAMENTO!$X$15,ROW(AD20)-ROW(AD$15),0),0) -> 0 | AE20: =IF(AND($D20="Serviço",AE$12<>0,$H20>0,OR(AUTOEVENTO<>"manual",$M20<>1)),ROUND(OFFSET($P20,0,AE$13),15-13*ORÇAMENTO!$AF$7)/$H20*OFFSET(ORÇAMENTO!$X$15,ROW(AE20)-ROW(AE$15),0),0) -> 0 | AF20: =IF(AND($D20="Serviço",AF$12<>0,$H20>0,OR(AUTOEVENTO<>"manual",$M20<>1)),ROUND(OFFSET($P20,0,AF$13),15-13*ORÇAMENTO!$AF$7)/$H20*OFFSET(ORÇAMENTO!$X$15,ROW(AF20)-ROW(AF$15),0),0) -> 0 | AG20: =IF(AND($D20="Serviço",AG$12<>0,$H20>0,OR(AUTOEVENTO<>"manual",$M20<>1)),ROUND(OFFSET($P20,0,AG$13),15-13*ORÇAMENTO!$AF$7)/$H20*OFFSET(ORÇAMENTO!$X$15,ROW(AG20)-ROW(AG$15),0),0) -> 0 | AH20: =IF(AND($D20="Serviço",AH$12<>0,$H20>0,OR(AUTOEVENTO<>"manual",$M20<>1)),ROUND(OFFSET($P20,0,AH$13),15-13*ORÇAMENTO!$AF$7)/$H20*OFFSET(ORÇAMENTO!$X$15,ROW(AH20)-ROW(AH$15),0),0) -> 0 | AI20: =IF(AND($D20="Serviço",AI$12<>0,$H20>0,OR(AUTOEVENTO<>"manual",$M20<>1)),ROUND(OFFSET($P20,0,AI$13),15-13*ORÇAMENTO!$AF$7)/$H20*OFFSET(ORÇAMENTO!$X$15,ROW(AI20)-ROW(AI$15),0),0) -> 0 | AJ20: =IF(AND($D20="Serviço",AJ$12<>0,$H20>0,OR(AUTOEVENTO<>"manual",$M20<>1)),ROUND(OFFSET($P20,0,AJ$13),15-13*ORÇAMENTO!$AF$7)/$H20*OFFSET(ORÇAMENTO!$X$15,ROW(AJ20)-ROW(AJ$15),0),0) -> 0 | AK20: =IF(AND($D20="Serviço",AK$12<>0,$H20>0,OR(AUTOEVENTO<>"manual",$M20<>1)),ROUND(OFFSET($P20,0,AK$13),15-13*ORÇAMENTO!$AF$7)/$H20*OFFSET(ORÇAMENTO!$X$15,ROW(AK20)-ROW(AK$15),0),0) -> 0 | AM20: =IF($D20<>"Serviço",0,IF(AND(AUTOEVENTO="Manual",$M20=1),0,IF(OFFSET(CRONOPLE!$F$14,$M20,AM$13)="",10^12,OFFSET(CRONOPLE!$F$14,$M20,AM$13)))) -> 2 | AN20: =IF($D20<>"Serviço",0,IF(AND(AUTOEVENTO="Manual",$M20=1),0,IF(OFFSET(CRONOPLE!$F$14,$M20,AN$13)="",10^12,OFFSET(CRONOPLE!$F$14,$M20,AN$13)))) -> 1000000000000 | AO20: =IF($D20<>"Serviço",0,IF(AND(AUTOEVENTO="Manual",$M20=1),0,IF(OFFSET(CRONOPLE!$F$14,$M20,AO$13)="",10^12,OFFSET(CRONOPLE!$F$14,$M20,AO$13)))) -> 1000000000000 | AP20: =IF($D20<>"Serviço",0,IF(AND(AUTOEVENTO="Manual",$M20=1),0,IF(OFFSET(CRONOPLE!$F$14,$M20,AP$13)="",10^12,OFFSET(CRONOPLE!$F$14,$M20,AP$13)))) -> 1000000000000 | AQ20: =IF($D20<>"Serviço",0,IF(AND(AUTOEVENTO="Manual",$M20=1),0,IF(OFFSET(CRONOPLE!$F$14,$M20,AQ$13)="",10^12,OFFSET(CRONOPLE!$F$14,$M20,AQ$13)))) -> 1000000000000 | AR20: =IF($D20<>"Serviço",0,IF(AND(AUTOEVENTO="Manual",$M20=1),0,IF(OFFSET(CRONOPLE!$F$14,$M20,AR$13)="",10^12,OFFSET(CRONOPLE!$F$14,$M20,AR$13)))) -> 1000000000000 | AS20: =IF($D20<>"Serviço",0,IF(AND(AUTOEVENTO="Manual",$M20=1),0,IF(OFFSET(CRONOPLE!$F$14,$M20,AS$13)="",10^12,OFFSET(CRONOPLE!$F$14,$M20,AS$13)))) -> 1000000000000 | AT20: =IF($D20<>"Serviço",0,IF(AND(AUTOEVENTO="Manual",$M20=1),0,IF(OFFSET(CRONOPLE!$F$14,$M20,AT$13)="",10^12,OFFSET(CRONOPLE!$F$14,$M20,AT$13)))) -> 1000000000000 | AU20: =IF($D20<>"Serviço",0,IF(AND(AUTOEVENTO="Manual",$M20=1),0,IF(OFFSET(CRONOPLE!$F$14,$M20,AU$13)="",10^12,OFFSET(CRONOPLE!$F$14,$M20,AU$13)))) -> 1000000000000 | AV20: =IF($D20<>"Serviço",0,IF(AND(AUTOEVENTO="Manual",$M20=1),0,IF(OFFSET(CRONOPLE!$F$14,$M20,AV$13)="",10^12,OFFSET(CRONOPLE!$F$14,$M20,AV$13)))) -> 1000000000000 | AX20: =IF($D20<>"Serviço",0,IF(OR(AND(AUTOEVENTO="Manual",$M20=1),$M20>(ROW(PLE.lastrow)-ROW(PLE.firstrow))),0,IF(OFFSET(PLE!$G$14,$M20,AX$13)="",10^12,OFFSET(PLE!$G$14,$M20,AX$13)))) -> 1000000000000 | AY20: =IF($D20<>"Serviço",0,IF(OR(AND(AUTOEVENTO="Manual",$M20=1),$M20>(ROW(PLE.lastrow)-ROW(PLE.firstrow))),0,IF(OFFSET(PLE!$G$14,$M20,AY$13)="",10^12,OFFSET(PLE!$G$14,$M20,AY$13)))) -> 1000000000000 | AZ20: =IF($D20<>"Serviço",0,IF(OR(AND(AUTOEVENTO="Manual",$M20=1),$M20>(ROW(PLE.lastrow)-ROW(PLE.firstrow))),0,IF(OFFSET(PLE!$G$14,$M20,AZ$13)="",10^12,OFFSET(PLE!$G$14,$M20,AZ$13)))) -> 1000000000000 | BA20: =IF($D20<>"Serviço",0,IF(OR(AND(AUTOEVENTO="Manual",$M20=1),$M20>(ROW(PLE.lastrow)-ROW(PLE.firstrow))),0,IF(OFFSET(PLE!$G$14,$M20,BA$13)="",10^12,OFFSET(PLE!$G$14,$M20,BA$13)))) -> 1000000000000 | BB20: =IF($D20<>"Serviço",0,IF(OR(AND(AUTOEVENTO="Manual",$M20=1),$M20>(ROW(PLE.lastrow)-ROW(PLE.firstrow))),0,IF(OFFSET(PLE!$G$14,$M20,BB$13)="",10^12,OFFSET(PLE!$G$14,$M20,BB$13)))) -> 1000000000000 | BC20: =IF($D20<>"Serviço",0,IF(OR(AND(AUTOEVENTO="Manual",$M20=1),$M20>(ROW(PLE.lastrow)-ROW(PLE.firstrow))),0,IF(OFFSET(PLE!$G$14,$M20,BC$13)="",10^12,OFFSET(PLE!$G$14,$M20,BC$13)))) -> 1000000000000 | BD20: =IF($D20<>"Serviço",0,IF(OR(AND(AUTOEVENTO="Manual",$M20=1),$M20>(ROW(PLE.lastrow)-ROW(PLE.firstrow))),0,IF(OFFSET(PLE!$G$14,$M20,BD$13)="",10^12,OFFSET(PLE!$G$14,$M20,BD$13)))) -> 1000000000000 | BE20: =IF($D20<>"Serviço",0,IF(OR(AND(AUTOEVENTO="Manual",$M20=1),$M20>(ROW(PLE.lastrow)-ROW(PLE.firstrow))),0,IF(OFFSET(PLE!$G$14,$M20,BE$13)="",10^12,OFFSET(PLE!$G$14,$M20,BE$13)))) -> 1000000000000 | BF20: =IF($D20<>"Serviço",0,IF(OR(AND(AUTOEVENTO="Manual",$M20=1),$M20>(ROW(PLE.lastrow)-ROW(PLE.firstrow))),0,IF(OFFSET(PLE!$G$14,$M20,BF$13)="",10^12,OFFSET(PLE!$G$14,$M20,BF$13)))) -> 1000000000000 | BG20: =IF($D20<>"Serviço",0,IF(OR(AND(AUTOEVENTO="Manual",$M20=1),$M20>(ROW(PLE.lastrow)-ROW(PLE.firstrow))),0,IF(OFFSET(PLE!$G$14,$M20,BG$13)="",10^12,OFFSET(PLE!$G$14,$M20,BG$13)))) -> 1000000000000
A21: 4 | B21: =OFFSET(ORÇAMENTO!C$15,ROW(B21)-ROW(B$15),0) -> S | C21: =OFFSET(ORÇAMENTO!L$15,ROW(C21)-ROW(C$15),0) -> F | D21: =OFFSET(ORÇAMENTO!N$15,ROW(D21)-ROW(D$15),0) -> Serviço | E21: =OFFSET(ORÇAMENTO!O$15,ROW(E21)-ROW(E$15),0) -> 1.2.2. | F21: =OFFSET(ORÇAMENTO!R$15,ROW(F21)-ROW(F$15),0) -> PISO EM CONCRETO 20MPA PREPARO MECANICO, ESPESSURA 7 CM, COM ARMACAO EM TELA SOLDADA, INCLUSO POLIMENTO COM DESEMPENADORA ELÉTRICA | G21: =IF($D21<>"Serviço","",OFFSET(ORÇAMENTO!S$15,ROW(G21)-ROW(G$15),0)) -> M2 | H21: =IF($D21<>"Serviço",0,IF(ACOMPANHAMENTO="BM",ROUND(OFFSET(ORÇAMENTO!AJ$15,ROW(H21)-ROW(H$15),0),15-13*ORÇAMENTO!$AF$7),SUMPRODUCT(($Q$12:$AA$12<>"")*ROUND($Q21:$AA21,15-13*ORÇAMENTO!$AF$7)))) -> 769.01 | L21: . | M21: =IF($D21<>"Serviço","",IF(AUTOEVENTO="manual",$A21,IF(ISERROR(MATCH($A21,$A$15:OFFSET($A21,-1,0),0)),MAX($M$15:OFFSET(M21,-1,0))+1,INDEX($M$15:OFFSET(M21,-1,0),MATCH($A21,$A$15:OFFSET($A21,-1,0),0))))) -> 3 | N21: =IF($D21<>"Serviço","",IF(AUTOEVENTO="Manual",IF($A21=0,"<-- defina o número do agrupador",OFFSET(EVENTOS!$D$14,$A21,0)),OFFSET($F$15,$A21,0))) -> PAVIMENTAÇÃO | Q21: 769.01 | AB21: =IF(AND($D21="Serviço",AB$12<>0,$H21>0,OR(AUTOEVENTO<>"manual",$M21<>1)),ROUND(OFFSET($P21,0,AB$13),15-13*ORÇAMENTO!$AF$7)/$H21*OFFSET(ORÇAMENTO!$X$15,ROW(AB21)-ROW(AB$15),0),0) -> 47501.75 | AC21: =IF(AND($D21="Serviço",AC$12<>0,$H21>0,OR(AUTOEVENTO<>"manual",$M21<>1)),ROUND(OFFSET($P21,0,AC$13),15-13*ORÇAMENTO!$AF$7)/$H21*OFFSET(ORÇAMENTO!$X$15,ROW(AC21)-ROW(AC$15),0),0) -> 0 | AD21: =IF(AND($D21="Serviço",AD$12<>0,$H21>0,OR(AUTOEVENTO<>"manual",$M21<>1)),ROUND(OFFSET($P21,0,AD$13),15-13*ORÇAMENTO!$AF$7)/$H21*OFFSET(ORÇAMENTO!$X$15,ROW(AD21)-ROW(AD$15),0),0) -> 0 | AE21: =IF(AND($D21="Serviço",AE$12<>0,$H21>0,OR(AUTOEVENTO<>"manual",$M21<>1)),ROUND(OFFSET($P21,0,AE$13),15-13*ORÇAMENTO!$AF$7)/$H21*OFFSET(ORÇAMENTO!$X$15,ROW(AE21)-ROW(AE$15),0),0) -> 0 | AF21: =IF(AND($D21="Serviço",AF$12<>0,$H21>0,OR(AUTOEVENTO<>"manual",$M21<>1)),ROUND(OFFSET($P21,0,AF$13),15-13*ORÇAMENTO!$AF$7)/$H21*OFFSET(ORÇAMENTO!$X$15,ROW(AF21)-ROW(AF$15),0),0) -> 0 | AG21: =IF(AND($D21="Serviço",AG$12<>0,$H21>0,OR(AUTOEVENTO<>"manual",$M21<>1)),ROUND(OFFSET($P21,0,AG$13),15-13*ORÇAMENTO!$AF$7)/$H21*OFFSET(ORÇAMENTO!$X$15,ROW(AG21)-ROW(AG$15),0),0) -> 0 | AH21: =IF(AND($D21="Serviço",AH$12<>0,$H21>0,OR(AUTOEVENTO<>"manual",$M21<>1)),ROUND(OFFSET($P21,0,AH$13),15-13*ORÇAMENTO!$AF$7)/$H21*OFFSET(ORÇAMENTO!$X$15,ROW(AH21)-ROW(AH$15),0),0) -> 0 | AI21: =IF(AND($D21="Serviço",AI$12<>0,$H21>0,OR(AUTOEVENTO<>"manual",$M21<>1)),ROUND(OFFSET($P21,0,AI$13),15-13*ORÇAMENTO!$AF$7)/$H21*OFFSET(ORÇAMENTO!$X$15,ROW(AI21)-ROW(AI$15),0),0) -> 0 | AJ21: =IF(AND($D21="Serviço",AJ$12<>0,$H21>0,OR(AUTOEVENTO<>"manual",$M21<>1)),ROUND(OFFSET($P21,0,AJ$13),15-13*ORÇAMENTO!$AF$7)/$H21*OFFSET(ORÇAMENTO!$X$15,ROW(AJ21)-ROW(AJ$15),0),0) -> 0 | AK21: =IF(AND($D21="Serviço",AK$12<>0,$H21>0,OR(AUTOEVENTO<>"manual",$M21<>1)),ROUND(OFFSET($P21,0,AK$13),15-13*ORÇAMENTO!$AF$7)/$H21*OFFSET(ORÇAMENTO!$X$15,ROW(AK21)-ROW(AK$15),0),0) -> 0 | AM21: =IF($D21<>"Serviço",0,IF(AND(AUTOEVENTO="Manual",$M21=1),0,IF(OFFSET(CRONOPLE!$F$14,$M21,AM$13)="",10^12,OFFSET(CRONOPLE!$F$14,$M21,AM$13)))) -> 2 | AN21: =IF($D21<>"Serviço",0,IF(AND(AUTOEVENTO="Manual",$M21=1),0,IF(OFFSET(CRONOPLE!$F$14,$M21,AN$13)="",10^12,OFFSET(CRONOPLE!$F$14,$M21,AN$13)))) -> 1000000000000 | AO21: =IF($D21<>"Serviço",0,IF(AND(AUTOEVENTO="Manual",$M21=1),0,IF(OFFSET(CRONOPLE!$F$14,$M21,AO$13)="",10^12,OFFSET(CRONOPLE!$F$14,$M21,AO$13)))) -> 1000000000000 | AP21: =IF($D21<>"Serviço",0,IF(AND(AUTOEVENTO="Manual",$M21=1),0,IF(OFFSET(CRONOPLE!$F$14,$M21,AP$13)="",10^12,OFFSET(CRONOPLE!$F$14,$M21,AP$13)))) -> 1000000000000 | AQ21: =IF($D21<>"Serviço",0,IF(AND(AUTOEVENTO="Manual",$M21=1),0,IF(OFFSET(CRONOPLE!$F$14,$M21,AQ$13)="",10^12,OFFSET(CRONOPLE!$F$14,$M21,AQ$13)))) -> 1000000000000 | AR21: =IF($D21<>"Serviço",0,IF(AND(AUTOEVENTO="Manual",$M21=1),0,IF(OFFSET(CRONOPLE!$F$14,$M21,AR$13)="",10^12,OFFSET(CRONOPLE!$F$14,$M21,AR$13)))) -> 1000000000000 | AS21: =IF($D21<>"Serviço",0,IF(AND(AUTOEVENTO="Manual",$M21=1),0,IF(OFFSET(CRONOPLE!$F$14,$M21,AS$13)="",10^12,OFFSET(CRONOPLE!$F$14,$M21,AS$13)))) -> 1000000000000 | AT21: =IF($D21<>"Serviço",0,IF(AND(AUTOEVENTO="Manual",$M21=1),0,IF(OFFSET(CRONOPLE!$F$14,$M21,AT$13)="",10^12,OFFSET(CRONOPLE!$F$14,$M21,AT$13)))) -> 1000000000000 | AU21: =IF($D21<>"Serviço",0,IF(AND(AUTOEVENTO="Manual",$M21=1),0,IF(OFFSET(CRONOPLE!$F$14,$M21,AU$13)="",10^12,OFFSET(CRONOPLE!$F$14,$M21,AU$13)))) -> 1000000000000 | AV21: =IF($D21<>"Serviço",0,IF(AND(AUTOEVENTO="Manual",$M21=1),0,IF(OFFSET(CRONOPLE!$F$14,$M21,AV$13)="",10^12,OFFSET(CRONOPLE!$F$14,$M21,AV$13)))) -> 1000000000000 | AX21: =IF($D21<>"Serviço",0,IF(OR(AND(AUTOEVENTO="Manual",$M21=1),$M21>(ROW(PLE.lastrow)-ROW(PLE.firstrow))),0,IF(OFFSET(PLE!$G$14,$M21,AX$13)="",10^12,OFFSET(PLE!$G$14,$M21,AX$13)))) -> 1000000000000 | AY21: =IF($D21<>"Serviço",0,IF(OR(AND(AUTOEVENTO="Manual",$M21=1),$M21>(ROW(PLE.lastrow)-ROW(PLE.firstrow))),0,IF(OFFSET(PLE!$G$14,$M21,AY$13)="",10^12,OFFSET(PLE!$G$14,$M21,AY$13)))) -> 1000000000000 | AZ21: =IF($D21<>"Serviço",0,IF(OR(AND(AUTOEVENTO="Manual",$M21=1),$M21>(ROW(PLE.lastrow)-ROW(PLE.firstrow))),0,IF(OFFSET(PLE!$G$14,$M21,AZ$13)="",10^12,OFFSET(PLE!$G$14,$M21,AZ$13)))) -> 1000000000000 | BA21: =IF($D21<>"Serviço",0,IF(OR(AND(AUTOEVENTO="Manual",$M21=1),$M21>(ROW(PLE.lastrow)-ROW(PLE.firstrow))),0,IF(OFFSET(PLE!$G$14,$M21,BA$13)="",10^12,OFFSET(PLE!$G$14,$M21,BA$13)))) -> 1000000000000 | BB21: =IF($D21<>"Serviço",0,IF(OR(AND(AUTOEVENTO="Manual",$M21=1),$M21>(ROW(PLE.lastrow)-ROW(PLE.firstrow))),0,IF(OFFSET(PLE!$G$14,$M21,BB$13)="",10^12,OFFSET(PLE!$G$14,$M21,BB$13)))) -> 1000000000000 | BC21: =IF($D21<>"Serviço",0,IF(OR(AND(AUTOEVENTO="Manual",$M21=1),$M21>(ROW(PLE.lastrow)-ROW(PLE.firstrow))),0,IF(OFFSET(PLE!$G$14,$M21,BC$13)="",10^12,OFFSET(PLE!$G$14,$M21,BC$13)))) -> 1000000000000 | BD21: =IF($D21<>"Serviço",0,IF(OR(AND(AUTOEVENTO="Manual",$M21=1),$M21>(ROW(PLE.lastrow)-ROW(PLE.firstrow))),0,IF(OFFSET(PLE!$G$14,$M21,BD$13)="",10^12,OFFSET(PLE!$G$14,$M21,BD$13)))) -> 1000000000000 | BE21: =IF($D21<>"Serviço",0,IF(OR(AND(AUTOEVENTO="Manual",$M21=1),$M21>(ROW(PLE.lastrow)-ROW(PLE.firstrow))),0,IF(OFFSET(PLE!$G$14,$M21,BE$13)="",10^12,OFFSET(PLE!$G$14,$M21,BE$13)))) -> 1000000000000 | BF21: =IF($D21<>"Serviço",0,IF(OR(AND(AUTOEVENTO="Manual",$M21=1),$M21>(ROW(PLE.lastrow)-ROW(PLE.firstrow))),0,IF(OFFSET(PLE!$G$14,$M21,BF$13)="",10^12,OFFSET(PLE!$G$14,$M21,BF$13)))) -> 1000000000000 | BG21: =IF($D21<>"Serviço",0,IF(OR(AND(AUTOEVENTO="Manual",$M21=1),$M21>(ROW(PLE.lastrow)-ROW(PLE.firstrow))),0,IF(OFFSET(PLE!$G$14,$M21,BG$13)="",10^12,OFFSET(PLE!$G$14,$M21,BG$13)))) -> 1000000000000
A22: 4 | B22: =OFFSET(ORÇAMENTO!C$15,ROW(B22)-ROW(B$15),0) -> S | C22: =OFFSET(ORÇAMENTO!L$15,ROW(C22)-ROW(C$15),0) -> F | D22: =OFFSET(ORÇAMENTO!N$15,ROW(D22)-ROW(D$15),0) -> Serviço | E22: =OFFSET(ORÇAMENTO!O$15,ROW(E22)-ROW(E$15),0) -> 1.2.3. | F22: =OFFSET(ORÇAMENTO!R$15,ROW(F22)-ROW(F$15),0) -> PISO MODULAR ESPORTIVO EM POLIPROPILENO COM SUPERFÍCIE EMBORRACHADA GARANTIA DE 10 ANOS E FITA PARA DEMARCAÇÃO DE MODALIDADES LARGURA 50MM, CORES VARIADAS | G22: =IF($D22<>"Serviço","",OFFSET(ORÇAMENTO!S$15,ROW(G22)-ROW(G$15),0)) -> M2 | H22: =IF($D22<>"Serviço",0,IF(ACOMPANHAMENTO="BM",ROUND(OFFSET(ORÇAMENTO!AJ$15,ROW(H22)-ROW(H$15),0),15-13*ORÇAMENTO!$AF$7),SUMPRODUCT(($Q$12:$AA$12<>"")*ROUND($Q22:$AA22,15-13*ORÇAMENTO!$AF$7)))) -> 769.01 | L22: . | M22: =IF($D22<>"Serviço","",IF(AUTOEVENTO="manual",$A22,IF(ISERROR(MATCH($A22,$A$15:OFFSET($A22,-1,0),0)),MAX($M$15:OFFSET(M22,-1,0))+1,INDEX($M$15:OFFSET(M22,-1,0),MATCH($A22,$A$15:OFFSET($A22,-1,0),0))))) -> 3 | N22: =IF($D22<>"Serviço","",IF(AUTOEVENTO="Manual",IF($A22=0,"<-- defina o número do agrupador",OFFSET(EVENTOS!$D$14,$A22,0)),OFFSET($F$15,$A22,0))) -> PAVIMENTAÇÃO | Q22: 769.01 | AB22: =IF(AND($D22="Serviço",AB$12<>0,$H22>0,OR(AUTOEVENTO<>"manual",$M22<>1)),ROUND(OFFSET($P22,0,AB$13),15-13*ORÇAMENTO!$AF$7)/$H22*OFFSET(ORÇAMENTO!$X$15,ROW(AB22)-ROW(AB$15),0),0) -> 123041.6 | AC22: =IF(AND($D22="Serviço",AC$12<>0,$H22>0,OR(AUTOEVENTO<>"manual",$M22<>1)),ROUND(OFFSET($P22,0,AC$13),15-13*ORÇAMENTO!$AF$7)/$H22*OFFSET(ORÇAMENTO!$X$15,ROW(AC22)-ROW(AC$15),0),0) -> 0 | AD22: =IF(AND($D22="Serviço",AD$12<>0,$H22>0,OR(AUTOEVENTO<>"manual",$M22<>1)),ROUND(OFFSET($P22,0,AD$13),15-13*ORÇAMENTO!$AF$7)/$H22*OFFSET(ORÇAMENTO!$X$15,ROW(AD22)-ROW(AD$15),0),0) -> 0 | AE22: =IF(AND($D22="Serviço",AE$12<>0,$H22>0,OR(AUTOEVENTO<>"manual",$M22<>1)),ROUND(OFFSET($P22,0,AE$13),15-13*ORÇAMENTO!$AF$7)/$H22*OFFSET(ORÇAMENTO!$X$15,ROW(AE22)-ROW(AE$15),0),0) -> 0 | AF22: =IF(AND($D22="Serviço",AF$12<>0,$H22>0,OR(AUTOEVENTO<>"manual",$M22<>1)),ROUND(OFFSET($P22,0,AF$13),15-13*ORÇAMENTO!$AF$7)/$H22*OFFSET(ORÇAMENTO!$X$15,ROW(AF22)-ROW(AF$15),0),0) -> 0 | AG22: =IF(AND($D22="Serviço",AG$12<>0,$H22>0,OR(AUTOEVENTO<>"manual",$M22<>1)),ROUND(OFFSET($P22,0,AG$13),15-13*ORÇAMENTO!$AF$7)/$H22*OFFSET(ORÇAMENTO!$X$15,ROW(AG22)-ROW(AG$15),0),0) -> 0 | AH22: =IF(AND($D22="Serviço",AH$12<>0,$H22>0,OR(AUTOEVENTO<>"manual",$M22<>1)),ROUND(OFFSET($P22,0,AH$13),15-13*ORÇAMENTO!$AF$7)/$H22*OFFSET(ORÇAMENTO!$X$15,ROW(AH22)-ROW(AH$15),0),0) -> 0 | AI22: =IF(AND($D22="Serviço",AI$12<>0,$H22>0,OR(AUTOEVENTO<>"manual",$M22<>1)),ROUND(OFFSET($P22,0,AI$13),15-13*ORÇAMENTO!$AF$7)/$H22*OFFSET(ORÇAMENTO!$X$15,ROW(AI22)-ROW(AI$15),0),0) -> 0 | AJ22: =IF(AND($D22="Serviço",AJ$12<>0,$H22>0,OR(AUTOEVENTO<>"manual",$M22<>1)),ROUND(OFFSET($P22,0,AJ$13),15-13*ORÇAMENTO!$AF$7)/$H22*OFFSET(ORÇAMENTO!$X$15,ROW(AJ22)-ROW(AJ$15),0),0) -> 0 | AK22: =IF(AND($D22="Serviço",AK$12<>0,$H22>0,OR(AUTOEVENTO<>"manual",$M22<>1)),ROUND(OFFSET($P22,0,AK$13),15-13*ORÇAMENTO!$AF$7)/$H22*OFFSET(ORÇAMENTO!$X$15,ROW(AK22)-ROW(AK$15),0),0) -> 0 | AM22: =IF($D22<>"Serviço",0,IF(AND(AUTOEVENTO="Manual",$M22=1),0,IF(OFFSET(CRONOPLE!$F$14,$M22,AM$13)="",10^12,OFFSET(CRONOPLE!$F$14,$M22,AM$13)))) -> 2 | AN22: =IF($D22<>"Serviço",0,IF(AND(AUTOEVENTO="Manual",$M22=1),0,IF(OFFSET(CRONOPLE!$F$14,$M22,AN$13)="",10^12,OFFSET(CRONOPLE!$F$14,$M22,AN$13)))) -> 1000000000000 | AO22: =IF($D22<>"Serviço",0,IF(AND(AUTOEVENTO="Manual",$M22=1),0,IF(OFFSET(CRONOPLE!$F$14,$M22,AO$13)="",10^12,OFFSET(CRONOPLE!$F$14,$M22,AO$13)))) -> 1000000000000 | AP22: =IF($D22<>"Serviço",0,IF(AND(AUTOEVENTO="Manual",$M22=1),0,IF(OFFSET(CRONOPLE!$F$14,$M22,AP$13)="",10^12,OFFSET(CRONOPLE!$F$14,$M22,AP$13)))) -> 1000000000000 | AQ22: =IF($D22<>"Serviço",0,IF(AND(AUTOEVENTO="Manual",$M22=1),0,IF(OFFSET(CRONOPLE!$F$14,$M22,AQ$13)="",10^12,OFFSET(CRONOPLE!$F$14,$M22,AQ$13)))) -> 1000000000000 | AR22: =IF($D22<>"Serviço",0,IF(AND(AUTOEVENTO="Manual",$M22=1),0,IF(OFFSET(CRONOPLE!$F$14,$M22,AR$13)="",10^12,OFFSET(CRONOPLE!$F$14,$M22,AR$13)))) -> 1000000000000 | AS22: =IF($D22<>"Serviço",0,IF(AND(AUTOEVENTO="Manual",$M22=1),0,IF(OFFSET(CRONOPLE!$F$14,$M22,AS$13)="",10^12,OFFSET(CRONOPLE!$F$14,$M22,AS$13)))) -> 1000000000000 | AT22: =IF($D22<>"Serviço",0,IF(AND(AUTOEVENTO="Manual",$M22=1),0,IF(OFFSET(CRONOPLE!$F$14,$M22,AT$13)="",10^12,OFFSET(CRONOPLE!$F$14,$M22,AT$13)))) -> 1000000000000 | AU22: =IF($D22<>"Serviço",0,IF(AND(AUTOEVENTO="Manual",$M22=1),0,IF(OFFSET(CRONOPLE!$F$14,$M22,AU$13)="",10^12,OFFSET(CRONOPLE!$F$14,$M22,AU$13)))) -> 1000000000000 | AV22: =IF($D22<>"Serviço",0,IF(AND(AUTOEVENTO="Manual",$M22=1),0,IF(OFFSET(CRONOPLE!$F$14,$M22,AV$13)="",10^12,OFFSET(CRONOPLE!$F$14,$M22,AV$13)))) -> 1000000000000 | AX22: =IF($D22<>"Serviço",0,IF(OR(AND(AUTOEVENTO="Manual",$M22=1),$M22>(ROW(PLE.lastrow)-ROW(PLE.firstrow))),0,IF(OFFSET(PLE!$G$14,$M22,AX$13)="",10^12,OFFSET(PLE!$G$14,$M22,AX$13)))) -> 1000000000000 | AY22: =IF($D22<>"Serviço",0,IF(OR(AND(AUTOEVENTO="Manual",$M22=1),$M22>(ROW(PLE.lastrow)-ROW(PLE.firstrow))),0,IF(OFFSET(PLE!$G$14,$M22,AY$13)="",10^12,OFFSET(PLE!$G$14,$M22,AY$13)))) -> 1000000000000 | AZ22: =IF($D22<>"Serviço",0,IF(OR(AND(AUTOEVENTO="Manual",$M22=1),$M22>(ROW(PLE.lastrow)-ROW(PLE.firstrow))),0,IF(OFFSET(PLE!$G$14,$M22,AZ$13)="",10^12,OFFSET(PLE!$G$14,$M22,AZ$13)))) -> 1000000000000 | BA22: =IF($D22<>"Serviço",0,IF(OR(AND(AUTOEVENTO="Manual",$M22=1),$M22>(ROW(PLE.lastrow)-ROW(PLE.firstrow))),0,IF(OFFSET(PLE!$G$14,$M22,BA$13)="",10^12,OFFSET(PLE!$G$14,$M22,BA$13)))) -> 1000000000000 | BB22: =IF($D22<>"Serviço",0,IF(OR(AND(AUTOEVENTO="Manual",$M22=1),$M22>(ROW(PLE.lastrow)-ROW(PLE.firstrow))),0,IF(OFFSET(PLE!$G$14,$M22,BB$13)="",10^12,OFFSET(PLE!$G$14,$M22,BB$13)))) -> 1000000000000 | BC22: =IF($D22<>"Serviço",0,IF(OR(AND(AUTOEVENTO="Manual",$M22=1),$M22>(ROW(PLE.lastrow)-ROW(PLE.firstrow))),0,IF(OFFSET(PLE!$G$14,$M22,BC$13)="",10^12,OFFSET(PLE!$G$14,$M22,BC$13)))) -> 1000000000000 | BD22: =IF($D22<>"Serviço",0,IF(OR(AND(AUTOEVENTO="Manual",$M22=1),$M22>(ROW(PLE.lastrow)-ROW(PLE.firstrow))),0,IF(OFFSET(PLE!$G$14,$M22,BD$13)="",10^12,OFFSET(PLE!$G$14,$M22,BD$13)))) -> 1000000000000 | BE22: =IF($D22<>"Serviço",0,IF(OR(AND(AUTOEVENTO="Manual",$M22=1),$M22>(ROW(PLE.lastrow)-ROW(PLE.firstrow))),0,IF(OFFSET(PLE!$G$14,$M22,BE$13)="",10^12,OFFSET(PLE!$G$14,$M22,BE$13)))) -> 1000000000000 | BF22: =IF($D22<>"Serviço",0,IF(OR(AND(AUTOEVENTO="Manual",$M22=1),$M22>(ROW(PLE.lastrow)-ROW(PLE.firstrow))),0,IF(OFFSET(PLE!$G$14,$M22,BF$13)="",10^12,OFFSET(PLE!$G$14,$M22,BF$13)))) -> 1000000000000 | BG22: =IF($D22<>"Serviço",0,IF(OR(AND(AUTOEVENTO="Manual",$M22=1),$M22>(ROW(PLE.lastrow)-ROW(PLE.firstrow))),0,IF(OFFSET(PLE!$G$14,$M22,BG$13)="",10^12,OFFSET(PLE!$G$14,$M22,BG$13)))) -> 1000000000000
A23: 8. | B23: =OFFSET(ORÇAMENTO!C$15,ROW(B23)-ROW(B$15),0) -> 2 | C23: =OFFSET(ORÇAMENTO!L$15,ROW(C23)-ROW(C$15),0) -> F | D23: =OFFSET(ORÇAMENTO!N$15,ROW(D23)-ROW(D$15),0) -> Nível 2 | E23: =OFFSET(ORÇAMENTO!O$15,ROW(E23)-ROW(E$15),0) -> 1.3. | F23: =OFFSET(ORÇAMENTO!R$15,ROW(F23)-ROW(F$15),0) -> Serviços Finais | G23: =IF($D23<>"Serviço","",OFFSET(ORÇAMENTO!S$15,ROW(G23)-ROW(G$15),0)) ->  | H23: =IF($D23<>"Serviço",0,IF(ACOMPANHAMENTO="BM",ROUND(OFFSET(ORÇAMENTO!AJ$15,ROW(H23)-ROW(H$15),0),15-13*ORÇAMENTO!$AF$7),SUMPRODUCT(($Q$12:$AA$12<>"")*ROUND($Q23:$AA23,15-13*ORÇAMENTO!$AF$7)))) -> 0 | L23: . | M23: =IF($D23<>"Serviço","",IF(AUTOEVENTO="manual",$A23,IF(ISERROR(MATCH($A23,$A$15:OFFSET($A23,-1,0),0)),MAX($M$15:OFFSET(M23,-1,0))+1,INDEX($M$15:OFFSET(M23,-1,0),MATCH($A23,$A$15:OFFSET($A23,-1,0),0))))) ->  | N23: =IF($D23<>"Serviço","",IF(AUTOEVENTO="Manual",IF($A23=0,"<-- defina o número do agrupador",OFFSET(EVENTOS!$D$14,$A23,0)),OFFSET($F$15,$A23,0))) ->  | AB23: =IF(AND($D23="Serviço",AB$12<>0,$H23>0,OR(AUTOEVENTO<>"manual",$M23<>1)),ROUND(OFFSET($P23,0,AB$13),15-13*ORÇAMENTO!$AF$7)/$H23*OFFSET(ORÇAMENTO!$X$15,ROW(AB23)-ROW(AB$15),0),0) -> 0 | AC23: =IF(AND($D23="Serviço",AC$12<>0,$H23>0,OR(AUTOEVENTO<>"manual",$M23<>1)),ROUND(OFFSET($P23,0,AC$13),15-13*ORÇAMENTO!$AF$7)/$H23*OFFSET(ORÇAMENTO!$X$15,ROW(AC23)-ROW(AC$15),0),0) -> 0 | AD23: =IF(AND($D23="Serviço",AD$12<>0,$H23>0,OR(AUTOEVENTO<>"manual",$M23<>1)),ROUND(OFFSET($P23,0,AD$13),15-13*ORÇAMENTO!$AF$7)/$H23*OFFSET(ORÇAMENTO!$X$15,ROW(AD23)-ROW(AD$15),0),0) -> 0 | AE23: =IF(AND($D23="Serviço",AE$12<>0,$H23>0,OR(AUTOEVENTO<>"manual",$M23<>1)),ROUND(OFFSET($P23,0,AE$13),15-13*ORÇAMENTO!$AF$7)/$H23*OFFSET(ORÇAMENTO!$X$15,ROW(AE23)-ROW(AE$15),0),0) -> 0 | AF23: =IF(AND($D23="Serviço",AF$12<>0,$H23>0,OR(AUTOEVENTO<>"manual",$M23<>1)),ROUND(OFFSET($P23,0,AF$13),15-13*ORÇAMENTO!$AF$7)/$H23*OFFSET(ORÇAMENTO!$X$15,ROW(AF23)-ROW(AF$15),0),0) -> 0 | AG23: =IF(AND($D23="Serviço",AG$12<>0,$H23>0,OR(AUTOEVENTO<>"manual",$M23<>1)),ROUND(OFFSET($P23,0,AG$13),15-13*ORÇAMENTO!$AF$7)/$H23*OFFSET(ORÇAMENTO!$X$15,ROW(AG23)-ROW(AG$15),0),0) -> 0 | AH23: =IF(AND($D23="Serviço",AH$12<>0,$H23>0,OR(AUTOEVENTO<>"manual",$M23<>1)),ROUND(OFFSET($P23,0,AH$13),15-13*ORÇAMENTO!$AF$7)/$H23*OFFSET(ORÇAMENTO!$X$15,ROW(AH23)-ROW(AH$15),0),0) -> 0 | AI23: =IF(AND($D23="Serviço",AI$12<>0,$H23>0,OR(AUTOEVENTO<>"manual",$M23<>1)),ROUND(OFFSET($P23,0,AI$13),15-13*ORÇAMENTO!$AF$7)/$H23*OFFSET(ORÇAMENTO!$X$15,ROW(AI23)-ROW(AI$15),0),0) -> 0 | AJ23: =IF(AND($D23="Serviço",AJ$12<>0,$H23>0,OR(AUTOEVENTO<>"manual",$M23<>1)),ROUND(OFFSET($P23,0,AJ$13),15-13*ORÇAMENTO!$AF$7)/$H23*OFFSET(ORÇAMENTO!$X$15,ROW(AJ23)-ROW(AJ$15),0),0) -> 0 | AK23: =IF(AND($D23="Serviço",AK$12<>0,$H23>0,OR(AUTOEVENTO<>"manual",$M23<>1)),ROUND(OFFSET($P23,0,AK$13),15-13*ORÇAMENTO!$AF$7)/$H23*OFFSET(ORÇAMENTO!$X$15,ROW(AK23)-ROW(AK$15),0),0) -> 0 | AM23: =IF($D23<>"Serviço",0,IF(AND(AUTOEVENTO="Manual",$M23=1),0,IF(OFFSET(CRONOPLE!$F$14,$M23,AM$13)="",10^12,OFFSET(CRONOPLE!$F$14,$M23,AM$13)))) -> 0 | AN23: =IF($D23<>"Serviço",0,IF(AND(AUTOEVENTO="Manual",$M23=1),0,IF(OFFSET(CRONOPLE!$F$14,$M23,AN$13)="",10^12,OFFSET(CRONOPLE!$F$14,$M23,AN$13)))) -> 0 | AO23: =IF($D23<>"Serviço",0,IF(AND(AUTOEVENTO="Manual",$M23=1),0,IF(OFFSET(CRONOPLE!$F$14,$M23,AO$13)="",10^12,OFFSET(CRONOPLE!$F$14,$M23,AO$13)))) -> 0 | AP23: =IF($D23<>"Serviço",0,IF(AND(AUTOEVENTO="Manual",$M23=1),0,IF(OFFSET(CRONOPLE!$F$14,$M23,AP$13)="",10^12,OFFSET(CRONOPLE!$F$14,$M23,AP$13)))) -> 0 | AQ23: =IF($D23<>"Serviço",0,IF(AND(AUTOEVENTO="Manual",$M23=1),0,IF(OFFSET(CRONOPLE!$F$14,$M23,AQ$13)="",10^12,OFFSET(CRONOPLE!$F$14,$M23,AQ$13)))) -> 0 | AR23: =IF($D23<>"Serviço",0,IF(AND(AUTOEVENTO="Manual",$M23=1),0,IF(OFFSET(CRONOPLE!$F$14,$M23,AR$13)="",10^12,OFFSET(CRONOPLE!$F$14,$M23,AR$13)))) -> 0 | AS23: =IF($D23<>"Serviço",0,IF(AND(AUTOEVENTO="Manual",$M23=1),0,IF(OFFSET(CRONOPLE!$F$14,$M23,AS$13)="",10^12,OFFSET(CRONOPLE!$F$14,$M23,AS$13)))) -> 0 | AT23: =IF($D23<>"Serviço",0,IF(AND(AUTOEVENTO="Manual",$M23=1),0,IF(OFFSET(CRONOPLE!$F$14,$M23,AT$13)="",10^12,OFFSET(CRONOPLE!$F$14,$M23,AT$13)))) -> 0 | AU23: =IF($D23<>"Serviço",0,IF(AND(AUTOEVENTO="Manual",$M23=1),0,IF(OFFSET(CRONOPLE!$F$14,$M23,AU$13)="",10^12,OFFSET(CRONOPLE!$F$14,$M23,AU$13)))) -> 0 | AV23: =IF($D23<>"Serviço",0,IF(AND(AUTOEVENTO="Manual",$M23=1),0,IF(OFFSET(CRONOPLE!$F$14,$M23,AV$13)="",10^12,OFFSET(CRONOPLE!$F$14,$M23,AV$13)))) -> 0 | AX23: =IF($D23<>"Serviço",0,IF(OR(AND(AUTOEVENTO="Manual",$M23=1),$M23>(ROW(PLE.lastrow)-ROW(PLE.firstrow))),0,IF(OFFSET(PLE!$G$14,$M23,AX$13)="",10^12,OFFSET(PLE!$G$14,$M23,AX$13)))) -> 0 | AY23: =IF($D23<>"Serviço",0,IF(OR(AND(AUTOEVENTO="Manual",$M23=1),$M23>(ROW(PLE.lastrow)-ROW(PLE.firstrow))),0,IF(OFFSET(PLE!$G$14,$M23,AY$13)="",10^12,OFFSET(PLE!$G$14,$M23,AY$13)))) -> 0 | AZ23: =IF($D23<>"Serviço",0,IF(OR(AND(AUTOEVENTO="Manual",$M23=1),$M23>(ROW(PLE.lastrow)-ROW(PLE.firstrow))),0,IF(OFFSET(PLE!$G$14,$M23,AZ$13)="",10^12,OFFSET(PLE!$G$14,$M23,AZ$13)))) -> 0 | BA23: =IF($D23<>"Serviço",0,IF(OR(AND(AUTOEVENTO="Manual",$M23=1),$M23>(ROW(PLE.lastrow)-ROW(PLE.firstrow))),0,IF(OFFSET(PLE!$G$14,$M23,BA$13)="",10^12,OFFSET(PLE!$G$14,$M23,BA$13)))) -> 0 | BB23: =IF($D23<>"Serviço",0,IF(OR(AND(AUTOEVENTO="Manual",$M23=1),$M23>(ROW(PLE.lastrow)-ROW(PLE.firstrow))),0,IF(OFFSET(PLE!$G$14,$M23,BB$13)="",10^12,OFFSET(PLE!$G$14,$M23,BB$13)))) -> 0 | BC23: =IF($D23<>"Serviço",0,IF(OR(AND(AUTOEVENTO="Manual",$M23=1),$M23>(ROW(PLE.lastrow)-ROW(PLE.firstrow))),0,IF(OFFSET(PLE!$G$14,$M23,BC$13)="",10^12,OFFSET(PLE!$G$14,$M23,BC$13)))) -> 0 | BD23: =IF($D23<>"Serviço",0,IF(OR(AND(AUTOEVENTO="Manual",$M23=1),$M23>(ROW(PLE.lastrow)-ROW(PLE.firstrow))),0,IF(OFFSET(PLE!$G$14,$M23,BD$13)="",10^12,OFFSET(PLE!$G$14,$M23,BD$13)))) -> 0 | BE23: =IF($D23<>"Serviço",0,IF(OR(AND(AUTOEVENTO="Manual",$M23=1),$M23>(ROW(PLE.lastrow)-ROW(PLE.firstrow))),0,IF(OFFSET(PLE!$G$14,$M23,BE$13)="",10^12,OFFSET(PLE!$G$14,$M23,BE$13)))) -> 0 | BF23: =IF($D23<>"Serviço",0,IF(OR(AND(AUTOEVENTO="Manual",$M23=1),$M23>(ROW(PLE.lastrow)-ROW(PLE.firstrow))),0,IF(OFFSET(PLE!$G$14,$M23,BF$13)="",10^12,OFFSET(PLE!$G$14,$M23,BF$13)))) -> 0 | BG23: =IF($D23<>"Serviço",0,IF(OR(AND(AUTOEVENTO="Manual",$M23=1),$M23>(ROW(PLE.lastrow)-ROW(PLE.firstrow))),0,IF(OFFSET(PLE!$G$14,$M23,BG$13)="",10^12,OFFSET(PLE!$G$14,$M23,BG$13)))) -> 0
A24: 8 | B24: =OFFSET(ORÇAMENTO!C$15,ROW(B24)-ROW(B$15),0) -> S | C24: =OFFSET(ORÇAMENTO!L$15,ROW(C24)-ROW(C$15),0) -> F | D24: =OFFSET(ORÇAMENTO!N$15,ROW(D24)-ROW(D$15),0) -> Serviço | E24: =OFFSET(ORÇAMENTO!O$15,ROW(E24)-ROW(E$15),0) -> 1.3.1. | F24: =OFFSET(ORÇAMENTO!R$15,ROW(F24)-ROW(F$15),0) -> LIMPEZA FINAL DE OBRA | G24: =IF($D24<>"Serviço","",OFFSET(ORÇAMENTO!S$15,ROW(G24)-ROW(G$15),0)) -> M2 | H24: =IF($D24<>"Serviço",0,IF(ACOMPANHAMENTO="BM",ROUND(OFFSET(ORÇAMENTO!AJ$15,ROW(H24)-ROW(H$15),0),15-13*ORÇAMENTO!$AF$7),SUMPRODUCT(($Q$12:$AA$12<>"")*ROUND($Q24:$AA24,15-13*ORÇAMENTO!$AF$7)))) -> 769.01 | L24: . | M24: =IF($D24<>"Serviço","",IF(AUTOEVENTO="manual",$A24,IF(ISERROR(MATCH($A24,$A$15:OFFSET($A24,-1,0),0)),MAX($M$15:OFFSET(M24,-1,0))+1,INDEX($M$15:OFFSET(M24,-1,0),MATCH($A24,$A$15:OFFSET($A24,-1,0),0))))) -> 4 | N24: =IF($D24<>"Serviço","",IF(AUTOEVENTO="Manual",IF($A24=0,"<-- defina o número do agrupador",OFFSET(EVENTOS!$D$14,$A24,0)),OFFSET($F$15,$A24,0))) -> Serviços Finais | Q24: 769.01 | AB24: =IF(AND($D24="Serviço",AB$12<>0,$H24>0,OR(AUTOEVENTO<>"manual",$M24<>1)),ROUND(OFFSET($P24,0,AB$13),15-13*ORÇAMENTO!$AF$7)/$H24*OFFSET(ORÇAMENTO!$X$15,ROW(AB24)-ROW(AB$15),0),0) -> 476.79 | AC24: =IF(AND($D24="Serviço",AC$12<>0,$H24>0,OR(AUTOEVENTO<>"manual",$M24<>1)),ROUND(OFFSET($P24,0,AC$13),15-13*ORÇAMENTO!$AF$7)/$H24*OFFSET(ORÇAMENTO!$X$15,ROW(AC24)-ROW(AC$15),0),0) -> 0 | AD24: =IF(AND($D24="Serviço",AD$12<>0,$H24>0,OR(AUTOEVENTO<>"manual",$M24<>1)),ROUND(OFFSET($P24,0,AD$13),15-13*ORÇAMENTO!$AF$7)/$H24*OFFSET(ORÇAMENTO!$X$15,ROW(AD24)-ROW(AD$15),0),0) -> 0 | AE24: =IF(AND($D24="Serviço",AE$12<>0,$H24>0,OR(AUTOEVENTO<>"manual",$M24<>1)),ROUND(OFFSET($P24,0,AE$13),15-13*ORÇAMENTO!$AF$7)/$H24*OFFSET(ORÇAMENTO!$X$15,ROW(AE24)-ROW(AE$15),0),0) -> 0 | AF24: =IF(AND($D24="Serviço",AF$12<>0,$H24>0,OR(AUTOEVENTO<>"manual",$M24<>1)),ROUND(OFFSET($P24,0,AF$13),15-13*ORÇAMENTO!$AF$7)/$H24*OFFSET(ORÇAMENTO!$X$15,ROW(AF24)-ROW(AF$15),0),0) -> 0 | AG24: =IF(AND($D24="Serviço",AG$12<>0,$H24>0,OR(AUTOEVENTO<>"manual",$M24<>1)),ROUND(OFFSET($P24,0,AG$13),15-13*ORÇAMENTO!$AF$7)/$H24*OFFSET(ORÇAMENTO!$X$15,ROW(AG24)-ROW(AG$15),0),0) -> 0 | AH24: =IF(AND($D24="Serviço",AH$12<>0,$H24>0,OR(AUTOEVENTO<>"manual",$M24<>1)),ROUND(OFFSET($P24,0,AH$13),15-13*ORÇAMENTO!$AF$7)/$H24*OFFSET(ORÇAMENTO!$X$15,ROW(AH24)-ROW(AH$15),0),0) -> 0 | AI24: =IF(AND($D24="Serviço",AI$12<>0,$H24>0,OR(AUTOEVENTO<>"manual",$M24<>1)),ROUND(OFFSET($P24,0,AI$13),15-13*ORÇAMENTO!$AF$7)/$H24*OFFSET(ORÇAMENTO!$X$15,ROW(AI24)-ROW(AI$15),0),0) -> 0 | AJ24: =IF(AND($D24="Serviço",AJ$12<>0,$H24>0,OR(AUTOEVENTO<>"manual",$M24<>1)),ROUND(OFFSET($P24,0,AJ$13),15-13*ORÇAMENTO!$AF$7)/$H24*OFFSET(ORÇAMENTO!$X$15,ROW(AJ24)-ROW(AJ$15),0),0) -> 0 | AK24: =IF(AND($D24="Serviço",AK$12<>0,$H24>0,OR(AUTOEVENTO<>"manual",$M24<>1)),ROUND(OFFSET($P24,0,AK$13),15-13*ORÇAMENTO!$AF$7)/$H24*OFFSET(ORÇAMENTO!$X$15,ROW(AK24)-ROW(AK$15),0),0) -> 0 | AM24: =IF($D24<>"Serviço",0,IF(AND(AUTOEVENTO="Manual",$M24=1),0,IF(OFFSET(CRONOPLE!$F$14,$M24,AM$13)="",10^12,OFFSET(CRONOPLE!$F$14,$M24,AM$13)))) -> 2 | AN24: =IF($D24<>"Serviço",0,IF(AND(AUTOEVENTO="Manual",$M24=1),0,IF(OFFSET(CRONOPLE!$F$14,$M24,AN$13)="",10^12,OFFSET(CRONOPLE!$F$14,$M24,AN$13)))) -> 1000000000000 | AO24: =IF($D24<>"Serviço",0,IF(AND(AUTOEVENTO="Manual",$M24=1),0,IF(OFFSET(CRONOPLE!$F$14,$M24,AO$13)="",10^12,OFFSET(CRONOPLE!$F$14,$M24,AO$13)))) -> 1000000000000 | AP24: =IF($D24<>"Serviço",0,IF(AND(AUTOEVENTO="Manual",$M24=1),0,IF(OFFSET(CRONOPLE!$F$14,$M24,AP$13)="",10^12,OFFSET(CRONOPLE!$F$14,$M24,AP$13)))) -> 1000000000000 | AQ24: =IF($D24<>"Serviço",0,IF(AND(AUTOEVENTO="Manual",$M24=1),0,IF(OFFSET(CRONOPLE!$F$14,$M24,AQ$13)="",10^12,OFFSET(CRONOPLE!$F$14,$M24,AQ$13)))) -> 1000000000000 | AR24: =IF($D24<>"Serviço",0,IF(AND(AUTOEVENTO="Manual",$M24=1),0,IF(OFFSET(CRONOPLE!$F$14,$M24,AR$13)="",10^12,OFFSET(CRONOPLE!$F$14,$M24,AR$13)))) -> 1000000000000 | AS24: =IF($D24<>"Serviço",0,IF(AND(AUTOEVENTO="Manual",$M24=1),0,IF(OFFSET(CRONOPLE!$F$14,$M24,AS$13)="",10^12,OFFSET(CRONOPLE!$F$14,$M24,AS$13)))) -> 1000000000000 | AT24: =IF($D24<>"Serviço",0,IF(AND(AUTOEVENTO="Manual",$M24=1),0,IF(OFFSET(CRONOPLE!$F$14,$M24,AT$13)="",10^12,OFFSET(CRONOPLE!$F$14,$M24,AT$13)))) -> 1000000000000 | AU24: =IF($D24<>"Serviço",0,IF(AND(AUTOEVENTO="Manual",$M24=1),0,IF(OFFSET(CRONOPLE!$F$14,$M24,AU$13)="",10^12,OFFSET(CRONOPLE!$F$14,$M24,AU$13)))) -> 1000000000000 | AV24: =IF($D24<>"Serviço",0,IF(AND(AUTOEVENTO="Manual",$M24=1),0,IF(OFFSET(CRONOPLE!$F$14,$M24,AV$13)="",10^12,OFFSET(CRONOPLE!$F$14,$M24,AV$13)))) -> 1000000000000 | AX24: =IF($D24<>"Serviço",0,IF(OR(AND(AUTOEVENTO="Manual",$M24=1),$M24>(ROW(PLE.lastrow)-ROW(PLE.firstrow))),0,IF(OFFSET(PLE!$G$14,$M24,AX$13)="",10^12,OFFSET(PLE!$G$14,$M24,AX$13)))) -> 1000000000000 | AY24: =IF($D24<>"Serviço",0,IF(OR(AND(AUTOEVENTO="Manual",$M24=1),$M24>(ROW(PLE.lastrow)-ROW(PLE.firstrow))),0,IF(OFFSET(PLE!$G$14,$M24,AY$13)="",10^12,OFFSET(PLE!$G$14,$M24,AY$13)))) -> 1000000000000 | AZ24: =IF($D24<>"Serviço",0,IF(OR(AND(AUTOEVENTO="Manual",$M24=1),$M24>(ROW(PLE.lastrow)-ROW(PLE.firstrow))),0,IF(OFFSET(PLE!$G$14,$M24,AZ$13)="",10^12,OFFSET(PLE!$G$14,$M24,AZ$13)))) -> 1000000000000 | BA24: =IF($D24<>"Serviço",0,IF(OR(AND(AUTOEVENTO="Manual",$M24=1),$M24>(ROW(PLE.lastrow)-ROW(PLE.firstrow))),0,IF(OFFSET(PLE!$G$14,$M24,BA$13)="",10^12,OFFSET(PLE!$G$14,$M24,BA$13)))) -> 1000000000000 | BB24: =IF($D24<>"Serviço",0,IF(OR(AND(AUTOEVENTO="Manual",$M24=1),$M24>(ROW(PLE.lastrow)-ROW(PLE.firstrow))),0,IF(OFFSET(PLE!$G$14,$M24,BB$13)="",10^12,OFFSET(PLE!$G$14,$M24,BB$13)))) -> 1000000000000 | BC24: =IF($D24<>"Serviço",0,IF(OR(AND(AUTOEVENTO="Manual",$M24=1),$M24>(ROW(PLE.lastrow)-ROW(PLE.firstrow))),0,IF(OFFSET(PLE!$G$14,$M24,BC$13)="",10^12,OFFSET(PLE!$G$14,$M24,BC$13)))) -> 1000000000000 | BD24: =IF($D24<>"Serviço",0,IF(OR(AND(AUTOEVENTO="Manual",$M24=1),$M24>(ROW(PLE.lastrow)-ROW(PLE.firstrow))),0,IF(OFFSET(PLE!$G$14,$M24,BD$13)="",10^12,OFFSET(PLE!$G$14,$M24,BD$13)))) -> 1000000000000 | BE24: =IF($D24<>"Serviço",0,IF(OR(AND(AUTOEVENTO="Manual",$M24=1),$M24>(ROW(PLE.lastrow)-ROW(PLE.firstrow))),0,IF(OFFSET(PLE!$G$14,$M24,BE$13)="",10^12,OFFSET(PLE!$G$14,$M24,BE$13)))) -> 1000000000000 | BF24: =IF($D24<>"Serviço",0,IF(OR(AND(AUTOEVENTO="Manual",$M24=1),$M24>(ROW(PLE.lastrow)-ROW(PLE.firstrow))),0,IF(OFFSET(PLE!$G$14,$M24,BF$13)="",10^12,OFFSET(PLE!$G$14,$M24,BF$13)))) -> 1000000000000 | BG24: =IF($D24<>"Serviço",0,IF(OR(AND(AUTOEVENTO="Manual",$M24=1),$M24>(ROW(PLE.lastrow)-ROW(PLE.firstrow))),0,IF(OFFSET(PLE!$G$14,$M24,BG$13)="",10^12,OFFSET(PLE!$G$14,$M24,BG$13)))) -> 1000000000000
B25: =OFFSET(ORÇAMENTO!C$15,ROW(B25)-ROW(B$15),0) -> -1 | C25: =OFFSET(ORÇAMENTO!L$15,ROW(C25)-ROW(C$15),0) -> F | D25: LOTE | L25: .
F29: =Import.Município -> Lacerdópolis/SC
F30: Local | I30: Responsável Técnico | T30: Responsável Técnico
I31: =OFFSET(Import.RespOrçamento,0,-1) & " " & Import.RespOrçamento -> Nome: Max Mooshammer | T31: =OFFSET(Import.RespOrçamento,0,-1) & " " & Import.RespOrçamento -> Nome: Max Mooshammer
F32: =DADOS!$F$18 -> 2019-02-27 | I32: CREA: 139.164-0 | T32: CREA: 139.164-0
F33: Data | I33: ART: | T33: ART:

Sheet EVENTOS
C2: AGRUPADORES DE EVENTOS
C4: 1. Selecione abaixo a forma de definição dos agrupadores de eventos:
C6: Automática, conforme os agrupadores Nível 2 do Orçamento
C9: =IF(ACOMPANHAMENTO="BM","Foi selecionado na aba 'MENU' o acompanhamento por BM. Não há necessidade de definição de Eventos.","") -> 
C13: Nº do Evento | D13: Título do Evento | F13: Valor Total dos Eventos (R$)
B14: =CONCATENATE(C14,".",D14) ->  | C14: =OFFSET(C14,-1,0)+1 ->  | F14: =IF(AUTOEVENTO="Manual",ROUND(SUMPRODUCT((CÁLCULO!$M$15:$M$25=EVENTOS!$C14)*(OFFSET(CÁLCULO!$AA$15,0,1):OFFSET(CÁLCULO!$AL$25,0,-1))),2),0) -> 0
B15: =CONCATENATE(C15,".",D15) -> 1.Administração Local | C15: 1 | D15: Administração Local | F15: =IF(AUTOEVENTO="Manual",ROUND(SUMIF(CÁLCULO!$M$15:$M$25,1,ORÇAMENTO!$X$15:$X$25),2),0) -> 0
B16: =CONCATENATE(C16,".",D16) -> 2. | C16: =OFFSET(C16,-1,0)+1 -> 2 | F16: =IF(AUTOEVENTO="Manual",ROUND(SUMPRODUCT((CÁLCULO!$M$15:$M$25=EVENTOS!$C16)*(OFFSET(CÁLCULO!$AA$15,0,1):OFFSET(CÁLCULO!$AL$25,0,-1))),2),0) -> 0
B17: =CONCATENATE(C17,".",D17) -> 3. | C17: =OFFSET(C17,-1,0)+1 -> 3 | F17: =IF(AUTOEVENTO="Manual",ROUND(SUMPRODUCT((CÁLCULO!$M$15:$M$25=EVENTOS!$C17)*(OFFSET(CÁLCULO!$AA$15,0,1):OFFSET(CÁLCULO!$AL$25,0,-1))),2),0) -> 0
B18: =CONCATENATE(C18,".",D18) -> 4. | C18: =OFFSET(C18,-1,0)+1 -> 4 | F18: =IF(AUTOEVENTO="Manual",ROUND(SUMPRODUCT((CÁLCULO!$M$15:$M$25=EVENTOS!$C18)*(OFFSET(CÁLCULO!$AA$15,0,1):OFFSET(CÁLCULO!$AL$25,0,-1))),2),0) -> 0

Sheet CRONO
A1: =OFFSET(A1,-3,0)+1 ->  | B1: =IF($Q1<>2,0,IF($R1=0,1,IF(E2>0,OFFSET(QCI!$M$13,SUBSTITUTE(E2,".",""),0),OFFSET(ORÇAMENTO!$AA$15,CRONO!$E1,0))/$R1)) ->  | C1: =IF($Q1<>2,0,IF($R1=0,1,IF(E2>0,OFFSET(QCI!$N$13,SUBSTITUTE(E2,".",""),0),OFFSET(ORÇAMENTO!$AB$15,CRONO!$E1,0))/$R1)) ->  | D1: =IF(AND($Q1=2,ACOMPANHAMENTO="BM"),D2,D3/$R1) ->  | E1: =IF(A1<=ORÇAMENTO.MáximoListaCrono,MATCH(A1,ORÇAMENTO.ListaCrono,0),NA()) ->  | F1: =IF(AND($E2<>-1,$R1>0),"F","") ->  | G1: =IF(OR(R1=0,R1=""),"Linha",IF(AND(OR(ACOMPANHAMENTO="PLE",$Q1<>2),$E2=0),"Linha",1-SUM(T1:AF1))) ->  | H1: =IF($E2=0,OFFSET(ORÇAMENTO!O$15,$E1,0),IF($E2<>-1,OFFSET(QCI!$D$13,$E2,0),"")) ->  | I1: =IF($E2=0,OFFSET(ORÇAMENTO!R$15,$E1,0),IF($E2<>-1,OFFSET(QCI!$G$13,$E2,0),"")) ->  | L1: =IF($E2=0,OFFSET(ORÇAMENTO!C$15,$E1,0),1) ->  | M1: =IF($E2=-1,0,IF(M$13<=$L1,IF(ISERROR(MATCH(M$13,OFFSET($L1,1,0,ROW($L$26)-ROW($L1)-1),0)),ROW($L$26)-ROW($L1)-1,MATCH(M$13,OFFSET($L1,1,0,ROW($L$26)-ROW($L1)-1),0)-1),0)) ->  | N1: =IF($E2=-1,0,IF(N$13<=$L1,IF(ISERROR(MATCH(N$13,OFFSET($L1,1,0,ROW($L$26)-ROW($L1)-1),0)),ROW($L$26)-ROW($L1)-1,MATCH(N$13,OFFSET($L1,1,0,ROW($L$26)-ROW($L1)-1),0)-1),0)) ->  | O1: =IF($E2=-1,0,IF(O$13<=$L1,IF(ISERROR(MATCH(O$13,OFFSET($L1,1,0,ROW($L$26)-ROW($L1)-1),0)),ROW($L$26)-ROW($L1)-1,MATCH(O$13,OFFSET($L1,1,0,ROW($L$26)-ROW($L1)-1),0)-1),0)) ->  | P1: =IF($E2=-1,0,IF(P$13<=$L1,IF(ISERROR(MATCH(P$13,OFFSET($L1,1,0,ROW($L$26)-ROW($L1)-1),0)),ROW($L$26)-ROW($L1)-1,MATCH(P$13,OFFSET($L1,1,0,ROW($L$26)-ROW($L1)-1),0)-1),0)) ->  | Q1: =MIN(OFFSET(L1,0,1,,L1)) ->  | R1: =IF($E2=0,OFFSET(ORÇAMENTO!X$15,$E1,0),IF($E2<>-1,OFFSET(QCI!$O$13,$E2,0),"")) ->  | S1: % Período: | T1: =IF(AND($Q1=2,ACOMPANHAMENTO="BM"),T2,T3/$R1) -> 
E2: =IF(ISERROR(E1),IF(1+COUNTIF($L$13:OFFSET(L1,-1,0),1)<=MAX(QCI!$D$13:$D$24),1+COUNTIF($L$13:OFFSET(L1,-1,0),1),-1),0) ->  | F2: =IF(AND($E2<>-1,$R1>0),"F","") ->  | G2: =IF(OR(R1=0,R1=""),"vazia",IF(AND(OR(ACOMPANHAMENTO="PLE",$Q1<>2),$E2=0),"calculada","-->")) ->  | I2: =IF(AND(G1<>0,ISNUMBER(G1)),"PREENCHA ESTA LINHA -->","") -> 
D3: =IF($Q1=2,IF(AND(ACOMPANHAMENTO="PLE",ISNUMBER($E1)),SUMIF((OFFSET(CÁLCULO!$AM$15:$AW$15,$E1,0,OFFSET(ORÇAMENTO!$D$15,CRONO!$E1,0))),"="&CRONO!D$12,OFFSET(CÁLCULO!$AB$15:$AL$15,$E1,0,OFFSET(ORÇAMENTO!$D$15,CRONO!$E1,0)))+IF(AND($E3<>"",$E3<>0),SUMIF(CÁLCULO!$AM$15:$AW$25,"="&CRONO!D$12,CÁLCULO!$AB$15:$AL$25)/(ORÇAMENTO!$X$15-CÁLCULO.TotalAdmLocal)*CRONO!$E3,0),D2*$R1),SUMIF(OFFSET($R3,1,0,$Q1-2),($L1+1)&"$",OFFSET(D3,1,0,$Q1-2))) ->  | E3: =IF(OR($Q1<>2,AUTOEVENTO<>"manual",$E2>0),"",SUMIF(OFFSET(CÁLCULO!$M$15,CRONO!$E1,0,OFFSET(ORÇAMENTO!$D$15,CRONO!$E1,0)),1,OFFSET(ORÇAMENTO!$X$15,CRONO!$E1,0,OFFSET(ORÇAMENTO!$D$15,CRONO!$E1,0)))) ->  | R3: =L1&"$" ->  | T3: =IF($Q1=2,IF(AND(ACOMPANHAMENTO="PLE",ISNUMBER($E1)),SUMIF((OFFSET(CÁLCULO!$AM$15:$AW$15,$E1,0,OFFSET(ORÇAMENTO!$D$15,CRONO!$E1,0))),"<="&CRONO!T$12,OFFSET(CÁLCULO!$AB$15:$AL$15,$E1,0,OFFSET(ORÇAMENTO!$D$15,CRONO!$E1,0)))+IF(AND($E3<>"",$E3<>0),SUMIF(CÁLCULO!$AM$15:$AW$25,"<="&CRONO!T$12,CÁLCULO!$AB$15:$AL$25)/(ORÇAMENTO!$X$15-CÁLCULO.TotalAdmLocal)*CRONO!$E3,0),T2*$R1),SUMIF(OFFSET($R3,1,0,$Q1-2),($L1+1)&"$",OFFSET(T3,1,0,$Q1-2))) ->  | U3: =IF($Q1=2,IF(AND(ACOMPANHAMENTO="PLE",ISNUMBER($E1)),SUMIF((OFFSET(CÁLCULO!$AM$15:$AW$15,$E1,0,OFFSET(ORÇAMENTO!$D$15,CRONO!$E1,0))),"="&CRONO!U$12,OFFSET(CÁLCULO!$AB$15:$AL$15,$E1,0,OFFSET(ORÇAMENTO!$D$15,CRONO!$E1,0)))+IF(AND($E3<>"",$E3<>0),SUMIF(CÁLCULO!$AM$15:$AW$25,"="&CRONO!U$12,CÁLCULO!$AB$15:$AL$25)/(ORÇAMENTO!$X$15-CÁLCULO.TotalAdmLocal)*CRONO!$E3,0),U2*$R1),SUMIF(OFFSET($R3,1,0,$Q1-2),($L1+1)&"$",OFFSET(U3,1,0,$Q1-2))) ->  | V3: =IF($Q1=2,IF(AND(ACOMPANHAMENTO="PLE",ISNUMBER($E1)),SUMIF((OFFSET(CÁLCULO!$AM$15:$AW$15,$E1,0,OFFSET(ORÇAMENTO!$D$15,CRONO!$E1,0))),"="&CRONO!V$12,OFFSET(CÁLCULO!$AB$15:$AL$15,$E1,0,OFFSET(ORÇAMENTO!$D$15,CRONO!$E1,0)))+IF(AND($E3<>"",$E3<>0),SUMIF(CÁLCULO!$AM$15:$AW$25,"="&CRONO!V$12,CÁLCULO!$AB$15:$AL$25)/(ORÇAMENTO!$X$15-CÁLCULO.TotalAdmLocal)*CRONO!$E3,0),V2*$R1),SUMIF(OFFSET($R3,1,0,$Q1-2),($L1+1)&"$",OFFSET(V3,1,0,$Q1-2))) ->  | W3: =IF($Q1=2,IF(AND(ACOMPANHAMENTO="PLE",ISNUMBER($E1)),SUMIF((OFFSET(CÁLCULO!$AM$15:$AW$15,$E1,0,OFFSET(ORÇAMENTO!$D$15,CRONO!$E1,0))),"="&CRONO!W$12,OFFSET(CÁLCULO!$AB$15:$AL$15,$E1,0,OFFSET(ORÇAMENTO!$D$15,CRONO!$E1,0)))+IF(AND($E3<>"",$E3<>0),SUMIF(CÁLCULO!$AM$15:$AW$25,"="&CRONO!W$12,CÁLCULO!$AB$15:$AL$25)/(ORÇAMENTO!$X$15-CÁLCULO.TotalAdmLocal)*CRONO!$E3,0),W2*$R1),SUMIF(OFFSET($R3,1,0,$Q1-2),($L1+1)&"$",OFFSET(W3,1,0,$Q1-2))) ->  | X3: =IF($Q1=2,IF(AND(ACOMPANHAMENTO="PLE",ISNUMBER($E1)),SUMIF((OFFSET(CÁLCULO!$AM$15:$AW$15,$E1,0,OFFSET(ORÇAMENTO!$D$15,CRONO!$E1,0))),"="&CRONO!X$12,OFFSET(CÁLCULO!$AB$15:$AL$15,$E1,0,OFFSET(ORÇAMENTO!$D$15,CRONO!$E1,0)))+IF(AND($E3<>"",$E3<>0),SUMIF(CÁLCULO!$AM$15:$AW$25,"="&CRONO!X$12,CÁLCULO!$AB$15:$AL$25)/(ORÇAMENTO!$X$15-CÁLCULO.TotalAdmLocal)*CRONO!$E3,0),X2*$R1),SUMIF(OFFSET($R3,1,0,$Q1-2),($L1+1)&"$",OFFSET(X3,1,0,$Q1-2))) ->  | Y3: =IF($Q1=2,IF(AND(ACOMPANHAMENTO="PLE",ISNUMBER($E1)),SUMIF((OFFSET(CÁLCULO!$AM$15:$AW$15,$E1,0,OFFSET(ORÇAMENTO!$D$15,CRONO!$E1,0))),"="&CRONO!Y$12,OFFSET(CÁLCULO!$AB$15:$AL$15,$E1,0,OFFSET(ORÇAMENTO!$D$15,CRONO!$E1,0)))+IF(AND($E3<>"",$E3<>0),SUMIF(CÁLCULO!$AM$15:$AW$25,"="&CRONO!Y$12,CÁLCULO!$AB$15:$AL$25)/(ORÇAMENTO!$X$15-CÁLCULO.TotalAdmLocal)*CRONO!$E3,0),Y2*$R1),SUMIF(OFFSET($R3,1,0,$Q1-2),($L1+1)&"$",OFFSET(Y3,1,0,$Q1-2))) ->  | Z3: =IF($Q1=2,IF(AND(ACOMPANHAMENTO="PLE",ISNUMBER($E1)),SUMIF((OFFSET(CÁLCULO!$AM$15:$AW$15,$E1,0,OFFSET(ORÇAMENTO!$D$15,CRONO!$E1,0))),"="&CRONO!Z$12,OFFSET(CÁLCULO!$AB$15:$AL$15,$E1,0,OFFSET(ORÇAMENTO!$D$15,CRONO!$E1,0)))+IF(AND($E3<>"",$E3<>0),SUMIF(CÁLCULO!$AM$15:$AW$25,"="&CRONO!Z$12,CÁLCULO!$AB$15:$AL$25)/(ORÇAMENTO!$X$15-CÁLCULO.TotalAdmLocal)*CRONO!$E3,0),Z2*$R1),SUMIF(OFFSET($R3,1,0,$Q1-2),($L1+1)&"$",OFFSET(Z3,1,0,$Q1-2))) ->  | AA3: =IF($Q1=2,IF(AND(ACOMPANHAMENTO="PLE",ISNUMBER($E1)),SUMIF((OFFSET(CÁLCULO!$AM$15:$AW$15,$E1,0,OFFSET(ORÇAMENTO!$D$15,CRONO!$E1,0))),"="&CRONO!AA$12,OFFSET(CÁLCULO!$AB$15:$AL$15,$E1,0,OFFSET(ORÇAMENTO!$D$15,CRONO!$E1,0)))+IF(AND($E3<>"",$E3<>0),SUMIF(CÁLCULO!$AM$15:$AW$25,"="&CRONO!AA$12,CÁLCULO!$AB$15:$AL$25)/(ORÇAMENTO!$X$15-CÁLCULO.TotalAdmLocal)*CRONO!$E3,0),AA2*$R1),SUMIF(OFFSET($R3,1,0,$Q1-2),($L1+1)&"$",OFFSET(AA3,1,0,$Q1-2))) ->  | AB3: =IF($Q1=2,IF(AND(ACOMPANHAMENTO="PLE",ISNUMBER($E1)),SUMIF((OFFSET(CÁLCULO!$AM$15:$AW$15,$E1,0,OFFSET(ORÇAMENTO!$D$15,CRONO!$E1,0))),"="&CRONO!AB$12,OFFSET(CÁLCULO!$AB$15:$AL$15,$E1,0,OFFSET(ORÇAMENTO!$D$15,CRONO!$E1,0)))+IF(AND($E3<>"",$E3<>0),SUMIF(CÁLCULO!$AM$15:$AW$25,"="&CRONO!AB$12,CÁLCULO!$AB$15:$AL$25)/(ORÇAMENTO!$X$15-CÁLCULO.TotalAdmLocal)*CRONO!$E3,0),AB2*$R1),SUMIF(OFFSET($R3,1,0,$Q1-2),($L1+1)&"$",OFFSET(AB3,1,0,$Q1-2))) ->  | AC3: =IF($Q1=2,IF(AND(ACOMPANHAMENTO="PLE",ISNUMBER($E1)),SUMIF((OFFSET(CÁLCULO!$AM$15:$AW$15,$E1,0,OFFSET(ORÇAMENTO!$D$15,CRONO!$E1,0))),"="&CRONO!AC$12,OFFSET(CÁLCULO!$AB$15:$AL$15,$E1,0,OFFSET(ORÇAMENTO!$D$15,CRONO!$E1,0)))+IF(AND($E3<>"",$E3<>0),SUMIF(CÁLCULO!$AM$15:$AW$25,"="&CRONO!AC$12,CÁLCULO!$AB$15:$AL$25)/(ORÇAMENTO!$X$15-CÁLCULO.TotalAdmLocal)*CRONO!$E3,0),AC2*$R1),SUMIF(OFFSET($R3,1,0,$Q1-2),($L1+1)&"$",OFFSET(AC3,1,0,$Q1-2))) ->  | AD3: =IF($Q1=2,IF(AND(ACOMPANHAMENTO="PLE",ISNUMBER($E1)),SUMIF((OFFSET(CÁLCULO!$AM$15:$AW$15,$E1,0,OFFSET(ORÇAMENTO!$D$15,CRONO!$E1,0))),"="&CRONO!AD$12,OFFSET(CÁLCULO!$AB$15:$AL$15,$E1,0,OFFSET(ORÇAMENTO!$D$15,CRONO!$E1,0)))+IF(AND($E3<>"",$E3<>0),SUMIF(CÁLCULO!$AM$15:$AW$25,"="&CRONO!AD$12,CÁLCULO!$AB$15:$AL$25)/(ORÇAMENTO!$X$15-CÁLCULO.TotalAdmLocal)*CRONO!$E3,0),AD2*$R1),SUMIF(OFFSET($R3,1,0,$Q1-2),($L1+1)&"$",OFFSET(AD3,1,0,$Q1-2))) ->  | AE3: =IF($Q1=2,IF(AND(ACOMPANHAMENTO="PLE",ISNUMBER($E1)),SUMIF((OFFSET(CÁLCULO!$AM$15:$AW$15,$E1,0,OFFSET(ORÇAMENTO!$D$15,CRONO!$E1,0))),"="&CRONO!AE$12,OFFSET(CÁLCULO!$AB$15:$AL$15,$E1,0,OFFSET(ORÇAMENTO!$D$15,CRONO!$E1,0)))+IF(AND($E3<>"",$E3<>0),SUMIF(CÁLCULO!$AM$15:$AW$25,"="&CRONO!AE$12,CÁLCULO!$AB$15:$AL$25)/(ORÇAMENTO!$X$15-CÁLCULO.TotalAdmLocal)*CRONO!$E3,0),AE2*$R1),SUMIF(OFFSET($R3,1,0,$Q1-2),($L1+1)&"$",OFFSET(AE3,1,0,$Q1-2))) -> 
R4: =IF(TIPOORCAMENTO="licitado","CRONOGRAMA FÍSICO-FINANCEIRO LICITADO","CRONOGRAMA FÍSICO-FINANCEIRO") -> CRONOGRAMA FÍSICO-FINANCEIRO | AD4: Grau de Sigilo
R5: =import.recurso -> 0 | AD5: #PUBLICO
G7: Níveis a Exibir no Cronograma: | R7: PROPONENTE TOMADOR | W7: APELIDO EMPREENDIMENTO | AE7: =IF(TIPOORCAMENTO="Licitado","Nº CTEF","") -> 
F8: FILTRO | R8: =Import.Proponente -> PREFEITURA MUNICIPAL DE LACERDÓPOLIS | W8: =Import.Apelido -> REFORMA QUADRA GINÁSIO MUNICIPAL | AE8: =IF(TIPOORCAMENTO="Licitado",Import.CTEF,"") -> 
G10: 2 | J10: =IF(MAX($A$13:$A$26)<CRONO.LinhasNecessarias,"ERRO: NÚMERO DE LINHAS DO CRONOGRAMA INSUFICIENTE. CLIQUE EM ATUALIZAR LINHAS.",IF(AND(ACOMPANHAMENTO="PLE",ROUND(OFFSET($AF$36,0,-1),2)=0),"CRONOGRAMA DEVE SER PREENCHIDO POR EVENTOS",IF(ROUND(OFFSET($AF$36,0,-1),2)<>$Q$27,"ERRO: CRONOGRAMA NÃO FECHA 100%",""))) -> 
D12: =OFFSET(D12,0,-1)+1 -> 1 | F12: ↓ | G12: Falta distribuir: | H12: Item | I12: Descrição | R12: Valor (R$) | S12: Parcelas: | T12: 1 | U12: =OFFSET(U12,0,-1)+1 -> 2 | V12: =OFFSET(V12,0,-1)+1 -> 3 | W12: 4 | X12: 5 | Y12: 6 | Z12: 7 | AA12: 8 | AB12: 9 | AC12: 10 | AD12: 11 | AE12: 12
A13: Item CRONO | B13: CP | C13: OU | D13: =OFFSET(D13,0,-1)+41-DAY(OFFSET(D13,0,-1)+40) ->  | E13: Linha PO Linha QCI Total Adm Local | L13: Nível | M13: 1 | N13: 2 | O13: 3 | P13: 4 | Q13: Linhas a somar | T13: 2019-01-01 | U13: =OFFSET(U13,0,-1)+41-DAY(OFFSET(U13,0,-1)+40) -> 2019-02-01 | V13: =OFFSET(V13,0,-1)+41-DAY(OFFSET(V13,0,-1)+40) -> 2019-03-01 | W13: =OFFSET(W13,0,-1)+41-DAY(OFFSET(W13,0,-1)+40) -> 2019-04-01 | X13: 2019-05-01 | Y13: 2019-06-01 | Z13: 2019-07-01 | AA13: 2019-08-01 | AB13: 2019-09-01 | AC13: 2019-10-01 | AD13: 2019-11-01 | AE13: 2019-12-01
A14: =OFFSET(A14,-3,0)+1 -> 1 | B14: =IF($Q14<>2,0,IF($R14=0,1,IF(E15>0,OFFSET(QCI!$M$13,SUBSTITUTE(E15,".",""),0),OFFSET(ORÇAMENTO!$AA$15,CRONO!$E14,0))/$R14)) -> 0 | C14: =IF($Q14<>2,0,IF($R14=0,1,IF(E15>0,OFFSET(QCI!$N$13,SUBSTITUTE(E15,".",""),0),OFFSET(ORÇAMENTO!$AB$15,CRONO!$E14,0))/$R14)) -> 0 | D14: =IF(AND($Q14=2,ACOMPANHAMENTO="BM"),D15,D16/$R14) -> 0.004922365365 | E14: =IF(A14<=ORÇAMENTO.MáximoListaCrono,MATCH(A14,ORÇAMENTO.ListaCrono,0),NA()) -> 1 | F14: =IF(AND($E15<>-1,$R14>0),"F","") -> F | G14: =IF(OR(R14=0,R14=""),"Linha",IF(AND(OR(ACOMPANHAMENTO="PLE",$Q14<>2),$E15=0),"Linha",1-SUM(T14:AF14))) -> Linha | H14: =IF($E15=0,OFFSET(ORÇAMENTO!O$15,$E14,0),IF($E15<>-1,OFFSET(QCI!$D$13,$E15,0),"")) -> 1. | I14: =IF($E15=0,OFFSET(ORÇAMENTO!R$15,$E14,0),IF($E15<>-1,OFFSET(QCI!$G$13,$E15,0),"")) -> REFORMA QUADRA GINÁSIO MUNICIPAL | L14: =IF($E15=0,OFFSET(ORÇAMENTO!C$15,$E14,0),1) -> 1 | M14: =IF($E15=-1,0,IF(M$13<=$L14,IF(ISERROR(MATCH(M$13,OFFSET($L14,1,0,ROW($L$26)-ROW($L14)-1),0)),ROW($L$26)-ROW($L14)-1,MATCH(M$13,OFFSET($L14,1,0,ROW($L$26)-ROW($L14)-1),0)-1),0)) -> 11 | N14: =IF($E15=-1,0,IF(N$13<=$L14,IF(ISERROR(MATCH(N$13,OFFSET($L14,1,0,ROW($L$26)-ROW($L14)-1),0)),ROW($L$26)-ROW($L14)-1,MATCH(N$13,OFFSET($L14,1,0,ROW($L$26)-ROW($L14)-1),0)-1),0)) -> 0 | O14: =IF($E15=-1,0,IF(O$13<=$L14,IF(ISERROR(MATCH(O$13,OFFSET($L14,1,0,ROW($L$26)-ROW($L14)-1),0)),ROW($L$26)-ROW($L14)-1,MATCH(O$13,OFFSET($L14,1,0,ROW($L$26)-ROW($L14)-1),0)-1),0)) -> 0 | P14: =IF($E15=-1,0,IF(P$13<=$L14,IF(ISERROR(MATCH(P$13,OFFSET($L14,1,0,ROW($L$26)-ROW($L14)-1),0)),ROW($L$26)-ROW($L14)-1,MATCH(P$13,OFFSET($L14,1,0,ROW($L$26)-ROW($L14)-1),0)-1),0)) -> 0 | Q14: =MIN(OFFSET(L14,0,1,,L14)) -> 11 | R14: =IF($E15=0,OFFSET(ORÇAMENTO!X$15,$E14,0),IF($E15<>-1,OFFSET(QCI!$O$13,$E15,0),"")) -> 175683.83 | S14: % Período: | T14: =IF(AND($Q14=2,ACOMPANHAMENTO="BM"),T15,T16/$R14) -> 0.004922365365 | U14: 0.9950776346 | V14: 0 | W14: 0 | X14: 0 | Y14: 0 | Z14: 0 | AA14: 0 | AB14: 0 | AC14: 0 | AD14: 0 | AE14: 0
E15: =IF(ISERROR(E14),IF(1+COUNTIF($L$13:OFFSET(L14,-1,0),1)<=MAX(QCI!$D$13:$D$24),1+COUNTIF($L$13:OFFSET(L14,-1,0),1),-1),0) -> 0 | F15: =IF(AND($E15<>-1,$R14>0),"F","") -> F | G15: =IF(OR(R14=0,R14=""),"vazia",IF(AND(OR(ACOMPANHAMENTO="PLE",$Q14<>2),$E15=0),"calculada","-->")) -> calculada | I15: =IF(AND(G14<>0,ISNUMBER(G14)),"PREENCHA ESTA LINHA -->","") -> 
D16: =IF($Q14=2,IF(AND(ACOMPANHAMENTO="PLE",ISNUMBER($E14)),SUMIF((OFFSET(CÁLCULO!$AM$15:$AW$15,$E14,0,OFFSET(ORÇAMENTO!$D$15,CRONO!$E14,0))),"="&CRONO!D$12,OFFSET(CÁLCULO!$AB$15:$AL$15,$E14,0,OFFSET(ORÇAMENTO!$D$15,CRONO!$E14,0)))+IF(AND($E16<>"",$E16<>0),SUMIF(CÁLCULO!$AM$15:$AW$25,"="&CRONO!D$12,CÁLCULO!$AB$15:$AL$25)/(ORÇAMENTO!$X$15-CÁLCULO.TotalAdmLocal)*CRONO!$E16,0),D15*$R14),SUMIF(OFFSET($R16,1,0,$Q14-2),($L14+1)&"$",OFFSET(D16,1,0,$Q14-2))) -> 864.78 | E16: =IF(OR($Q14<>2,AUTOEVENTO<>"manual",$E15>0),"",SUMIF(OFFSET(CÁLCULO!$M$15,CRONO!$E14,0,OFFSET(ORÇAMENTO!$D$15,CRONO!$E14,0)),1,OFFSET(ORÇAMENTO!$X$15,CRONO!$E14,0,OFFSET(ORÇAMENTO!$D$15,CRONO!$E14,0)))) ->  | R16: =L14&"$" -> 1$ | T16: =IF($Q14=2,IF(AND(ACOMPANHAMENTO="PLE",ISNUMBER($E14)),SUMIF((OFFSET(CÁLCULO!$AM$15:$AW$15,$E14,0,OFFSET(ORÇAMENTO!$D$15,CRONO!$E14,0))),"<="&CRONO!T$12,OFFSET(CÁLCULO!$AB$15:$AL$15,$E14,0,OFFSET(ORÇAMENTO!$D$15,CRONO!$E14,0)))+IF(AND($E16<>"",$E16<>0),SUMIF(CÁLCULO!$AM$15:$AW$25,"<="&CRONO!T$12,CÁLCULO!$AB$15:$AL$25)/(ORÇAMENTO!$X$15-CÁLCULO.TotalAdmLocal)*CRONO!$E16,0),T15*$R14),SUMIF(OFFSET($R16,1,0,$Q14-2),($L14+1)&"$",OFFSET(T16,1,0,$Q14-2))) -> 864.78 | U16: =IF($Q14=2,IF(AND(ACOMPANHAMENTO="PLE",ISNUMBER($E14)),SUMIF((OFFSET(CÁLCULO!$AM$15:$AW$15,$E14,0,OFFSET(ORÇAMENTO!$D$15,CRONO!$E14,0))),"="&CRONO!U$12,OFFSET(CÁLCULO!$AB$15:$AL$15,$E14,0,OFFSET(ORÇAMENTO!$D$15,CRONO!$E14,0)))+IF(AND($E16<>"",$E16<>0),SUMIF(CÁLCULO!$AM$15:$AW$25,"="&CRONO!U$12,CÁLCULO!$AB$15:$AL$25)/(ORÇAMENTO!$X$15-CÁLCULO.TotalAdmLocal)*CRONO!$E16,0),U15*$R14),SUMIF(OFFSET($R16,1,0,$Q14-2),($L14+1)&"$",OFFSET(U16,1,0,$Q14-2))) -> 174819.05 | V16: =IF($Q14=2,IF(AND(ACOMPANHAMENTO="PLE",ISNUMBER($E14)),SUMIF((OFFSET(CÁLCULO!$AM$15:$AW$15,$E14,0,OFFSET(ORÇAMENTO!$D$15,CRONO!$E14,0))),"="&CRONO!V$12,OFFSET(CÁLCULO!$AB$15:$AL$15,$E14,0,OFFSET(ORÇAMENTO!$D$15,CRONO!$E14,0)))+IF(AND($E16<>"",$E16<>0),SUMIF(CÁLCULO!$AM$15:$AW$25,"="&CRONO!V$12,CÁLCULO!$AB$15:$AL$25)/(ORÇAMENTO!$X$15-CÁLCULO.TotalAdmLocal)*CRONO!$E16,0),V15*$R14),SUMIF(OFFSET($R16,1,0,$Q14-2),($L14+1)&"$",OFFSET(V16,1,0,$Q14-2))) -> 0 | W16: =IF($Q14=2,IF(AND(ACOMPANHAMENTO="PLE",ISNUMBER($E14)),SUMIF((OFFSET(CÁLCULO!$AM$15:$AW$15,$E14,0,OFFSET(ORÇAMENTO!$D$15,CRONO!$E14,0))),"="&CRONO!W$12,OFFSET(CÁLCULO!$AB$15:$AL$15,$E14,0,OFFSET(ORÇAMENTO!$D$15,CRONO!$E14,0)))+IF(AND($E16<>"",$E16<>0),SUMIF(CÁLCULO!$AM$15:$AW$25,"="&CRONO!W$12,CÁLCULO!$AB$15:$AL$25)/(ORÇAMENTO!$X$15-CÁLCULO.TotalAdmLocal)*CRONO!$E16,0),W15*$R14),SUMIF(OFFSET($R16,1,0,$Q14-2),($L14+1)&"$",OFFSET(W16,1,0,$Q14-2))) -> 0 | X16: =IF($Q14=2,IF(AND(ACOMPANHAMENTO="PLE",ISNUMBER($E14)),SUMIF((OFFSET(CÁLCULO!$AM$15:$AW$15,$E14,0,OFFSET(ORÇAMENTO!$D$15,CRONO!$E14,0))),"="&CRONO!X$12,OFFSET(CÁLCULO!$AB$15:$AL$15,$E14,0,OFFSET(ORÇAMENTO!$D$15,CRONO!$E14,0)))+IF(AND($E16<>"",$E16<>0),SUMIF(CÁLCULO!$AM$15:$AW$25,"="&CRONO!X$12,CÁLCULO!$AB$15:$AL$25)/(ORÇAMENTO!$X$15-CÁLCULO.TotalAdmLocal)*CRONO!$E16,0),X15*$R14),SUMIF(OFFSET($R16,1,0,$Q14-2),($L14+1)&"$",OFFSET(X16,1,0,$Q14-2))) -> 0 | Y16: =IF($Q14=2,IF(AND(ACOMPANHAMENTO="PLE",ISNUMBER($E14)),SUMIF((OFFSET(CÁLCULO!$AM$15:$AW$15,$E14,0,OFFSET(ORÇAMENTO!$D$15,CRONO!$E14,0))),"="&CRONO!Y$12,OFFSET(CÁLCULO!$AB$15:$AL$15,$E14,0,OFFSET(ORÇAMENTO!$D$15,CRONO!$E14,0)))+IF(AND($E16<>"",$E16<>0),SUMIF(CÁLCULO!$AM$15:$AW$25,"="&CRONO!Y$12,CÁLCULO!$AB$15:$AL$25)/(ORÇAMENTO!$X$15-CÁLCULO.TotalAdmLocal)*CRONO!$E16,0),Y15*$R14),SUMIF(OFFSET($R16,1,0,$Q14-2),($L14+1)&"$",OFFSET(Y16,1,0,$Q14-2))) -> 0 | Z16: =IF($Q14=2,IF(AND(ACOMPANHAMENTO="PLE",ISNUMBER($E14)),SUMIF((OFFSET(CÁLCULO!$AM$15:$AW$15,$E14,0,OFFSET(ORÇAMENTO!$D$15,CRONO!$E14,0))),"="&CRONO!Z$12,OFFSET(CÁLCULO!$AB$15:$AL$15,$E14,0,OFFSET(ORÇAMENTO!$D$15,CRONO!$E14,0)))+IF(AND($E16<>"",$E16<>0),SUMIF(CÁLCULO!$AM$15:$AW$25,"="&CRONO!Z$12,CÁLCULO!$AB$15:$AL$25)/(ORÇAMENTO!$X$15-CÁLCULO.TotalAdmLocal)*CRONO!$E16,0),Z15*$R14),SUMIF(OFFSET($R16,1,0,$Q14-2),($L14+1)&"$",OFFSET(Z16,1,0,$Q14-2))) -> 0 | AA16: =IF($Q14=2,IF(AND(ACOMPANHAMENTO="PLE",ISNUMBER($E14)),SUMIF((OFFSET(CÁLCULO!$AM$15:$AW$15,$E14,0,OFFSET(ORÇAMENTO!$D$15,CRONO!$E14,0))),"="&CRONO!AA$12,OFFSET(CÁLCULO!$AB$15:$AL$15,$E14,0,OFFSET(ORÇAMENTO!$D$15,CRONO!$E14,0)))+IF(AND($E16<>"",$E16<>0),SUMIF(CÁLCULO!$AM$15:$AW$25,"="&CRONO!AA$12,CÁLCULO!$AB$15:$AL$25)/(ORÇAMENTO!$X$15-CÁLCULO.TotalAdmLocal)*CRONO!$E16,0),AA15*$R14),SUMIF(OFFSET($R16,1,0,$Q14-2),($L14+1)&"$",OFFSET(AA16,1,0,$Q14-2))) -> 0 | AB16: =IF($Q14=2,IF(AND(ACOMPANHAMENTO="PLE",ISNUMBER($E14)),SUMIF((OFFSET(CÁLCULO!$AM$15:$AW$15,$E14,0,OFFSET(ORÇAMENTO!$D$15,CRONO!$E14,0))),"="&CRONO!AB$12,OFFSET(CÁLCULO!$AB$15:$AL$15,$E14,0,OFFSET(ORÇAMENTO!$D$15,CRONO!$E14,0)))+IF(AND($E16<>"",$E16<>0),SUMIF(CÁLCULO!$AM$15:$AW$25,"="&CRONO!AB$12,CÁLCULO!$AB$15:$AL$25)/(ORÇAMENTO!$X$15-CÁLCULO.TotalAdmLocal)*CRONO!$E16,0),AB15*$R14),SUMIF(OFFSET($R16,1,0,$Q14-2),($L14+1)&"$",OFFSET(AB16,1,0,$Q14-2))) -> 0 | AC16: =IF($Q14=2,IF(AND(ACOMPANHAMENTO="PLE",ISNUMBER($E14)),SUMIF((OFFSET(CÁLCULO!$AM$15:$AW$15,$E14,0,OFFSET(ORÇAMENTO!$D$15,CRONO!$E14,0))),"="&CRONO!AC$12,OFFSET(CÁLCULO!$AB$15:$AL$15,$E14,0,OFFSET(ORÇAMENTO!$D$15,CRONO!$E14,0)))+IF(AND($E16<>"",$E16<>0),SUMIF(CÁLCULO!$AM$15:$AW$25,"="&CRONO!AC$12,CÁLCULO!$AB$15:$AL$25)/(ORÇAMENTO!$X$15-CÁLCULO.TotalAdmLocal)*CRONO!$E16,0),AC15*$R14),SUMIF(OFFSET($R16,1,0,$Q14-2),($L14+1)&"$",OFFSET(AC16,1,0,$Q14-2))) -> 0 | AD16: =IF($Q14=2,IF(AND(ACOMPANHAMENTO="PLE",ISNUMBER($E14)),SUMIF((OFFSET(CÁLCULO!$AM$15:$AW$15,$E14,0,OFFSET(ORÇAMENTO!$D$15,CRONO!$E14,0))),"="&CRONO!AD$12,OFFSET(CÁLCULO!$AB$15:$AL$15,$E14,0,OFFSET(ORÇAMENTO!$D$15,CRONO!$E14,0)))+IF(AND($E16<>"",$E16<>0),SUMIF(CÁLCULO!$AM$15:$AW$25,"="&CRONO!AD$12,CÁLCULO!$AB$15:$AL$25)/(ORÇAMENTO!$X$15-CÁLCULO.TotalAdmLocal)*CRONO!$E16,0),AD15*$R14),SUMIF(OFFSET($R16,1,0,$Q14-2),($L14+1)&"$",OFFSET(AD16,1,0,$Q14-2))) -> 0 | AE16: =IF($Q14=2,IF(AND(ACOMPANHAMENTO="PLE",ISNUMBER($E14)),SUMIF((OFFSET(CÁLCULO!$AM$15:$AW$15,$E14,0,OFFSET(ORÇAMENTO!$D$15,CRONO!$E14,0))),"="&CRONO!AE$12,OFFSET(CÁLCULO!$AB$15:$AL$15,$E14,0,OFFSET(ORÇAMENTO!$D$15,CRONO!$E14,0)))+IF(AND($E16<>"",$E16<>0),SUMIF(CÁLCULO!$AM$15:$AW$25,"="&CRONO!AE$12,CÁLCULO!$AB$15:$AL$25)/(ORÇAMENTO!$X$15-CÁLCULO.TotalAdmLocal)*CRONO!$E16,0),AE15*$R14),SUMIF(OFFSET($R16,1,0,$Q14-2),($L14+1)&"$",OFFSET(AE16,1,0,$Q14-2))) -> 0
A17: =OFFSET(A17,-3,0)+1 -> 2 | B17: =IF($Q17<>2,0,IF($R17=0,1,IF(E18>0,OFFSET(QCI!$M$13,SUBSTITUTE(E18,".",""),0),OFFSET(ORÇAMENTO!$AA$15,CRONO!$E17,0))/$R17)) ->  | C17: =IF($Q17<>2,0,IF($R17=0,1,IF(E18>0,OFFSET(QCI!$N$13,SUBSTITUTE(E18,".",""),0),OFFSET(ORÇAMENTO!$AB$15,CRONO!$E17,0))/$R17)) -> 0 | D17: =IF(AND($Q17=2,ACOMPANHAMENTO="BM"),D18,D19/$R17) -> 1 | E17: =IF(A17<=ORÇAMENTO.MáximoListaCrono,MATCH(A17,ORÇAMENTO.ListaCrono,0),NA()) -> 2 | F17: =IF(AND($E18<>-1,$R17>0),"F","") -> F | G17: =IF(OR(R17=0,R17=""),"Linha",IF(AND(OR(ACOMPANHAMENTO="PLE",$Q17<>2),$E18=0),"Linha",1-SUM(T17:AF17))) -> Linha | H17: =IF($E18=0,OFFSET(ORÇAMENTO!O$15,$E17,0),IF($E18<>-1,OFFSET(QCI!$D$13,$E18,0),"")) -> 1.1. | I17: =IF($E18=0,OFFSET(ORÇAMENTO!R$15,$E17,0),IF($E18<>-1,OFFSET(QCI!$G$13,$E18,0),"")) -> Serviços Iniciais | L17: =IF($E18=0,OFFSET(ORÇAMENTO!C$15,$E17,0),1) -> 2 | M17: =IF($E18=-1,0,IF(M$13<=$L17,IF(ISERROR(MATCH(M$13,OFFSET($L17,1,0,ROW($L$26)-ROW($L17)-1),0)),ROW($L$26)-ROW($L17)-1,MATCH(M$13,OFFSET($L17,1,0,ROW($L$26)-ROW($L17)-1),0)-1),0)) -> 8 | N17: =IF($E18=-1,0,IF(N$13<=$L17,IF(ISERROR(MATCH(N$13,OFFSET($L17,1,0,ROW($L$26)-ROW($L17)-1),0)),ROW($L$26)-ROW($L17)-1,MATCH(N$13,OFFSET($L17,1,0,ROW($L$26)-ROW($L17)-1),0)-1),0)) -> 2 | O17: =IF($E18=-1,0,IF(O$13<=$L17,IF(ISERROR(MATCH(O$13,OFFSET($L17,1,0,ROW($L$26)-ROW($L17)-1),0)),ROW($L$26)-ROW($L17)-1,MATCH(O$13,OFFSET($L17,1,0,ROW($L$26)-ROW($L17)-1),0)-1),0)) -> 0 | P17: =IF($E18=-1,0,IF(P$13<=$L17,IF(ISERROR(MATCH(P$13,OFFSET($L17,1,0,ROW($L$26)-ROW($L17)-1),0)),ROW($L$26)-ROW($L17)-1,MATCH(P$13,OFFSET($L17,1,0,ROW($L$26)-ROW($L17)-1),0)-1),0)) -> 0 | Q17: =MIN(OFFSET(L17,0,1,,L17)) -> 2 | R17: =IF($E18=0,OFFSET(ORÇAMENTO!X$15,$E17,0),IF($E18<>-1,OFFSET(QCI!$O$13,$E18,0),"")) -> 864.78 | S17: % Período: | T17: =IF(AND($Q17=2,ACOMPANHAMENTO="BM"),T18,T19/$R17) -> 1 | U17: 0 | V17: 0 | W17: 0 | X17: 0 | Y17: 0 | Z17: 0 | AA17: 0 | AB17: 0 | AC17: 0 | AD17: 0 | AE17: 0
E18: =IF(ISERROR(E17),IF(1+COUNTIF($L$13:OFFSET(L17,-1,0),1)<=MAX(QCI!$D$13:$D$24),1+COUNTIF($L$13:OFFSET(L17,-1,0),1),-1),0) -> 0 | F18: =IF(AND($E18<>-1,$R17>0),"F","") -> F | G18: =IF(OR(R17=0,R17=""),"vazia",IF(AND(OR(ACOMPANHAMENTO="PLE",$Q17<>2),$E18=0),"calculada","-->")) -> calculada | I18: =IF(AND(G17<>0,ISNUMBER(G17)),"PREENCHA ESTA LINHA -->","") -> 
D19: =IF($Q17=2,IF(AND(ACOMPANHAMENTO="PLE",ISNUMBER($E17)),SUMIF((OFFSET(CÁLCULO!$AM$15:$AW$15,$E17,0,OFFSET(ORÇAMENTO!$D$15,CRONO!$E17,0))),"="&CRONO!D$12,OFFSET(CÁLCULO!$AB$15:$AL$15,$E17,0,OFFSET(ORÇAMENTO!$D$15,CRONO!$E17,0)))+IF(AND($E19<>"",$E19<>0),SUMIF(CÁLCULO!$AM$15:$AW$25,"="&CRONO!D$12,CÁLCULO!$AB$15:$AL$25)/(ORÇAMENTO!$X$15-CÁLCULO.TotalAdmLocal)*CRONO!$E19,0),D18*$R17),SUMIF(OFFSET($R19,1,0,$Q17-2),($L17+1)&"$",OFFSET(D19,1,0,$Q17-2))) -> 864.78 | E19: =IF(OR($Q17<>2,AUTOEVENTO<>"manual",$E18>0),"",SUMIF(OFFSET(CÁLCULO!$M$15,CRONO!$E17,0,OFFSET(ORÇAMENTO!$D$15,CRONO!$E17,0)),1,OFFSET(ORÇAMENTO!$X$15,CRONO!$E17,0,OFFSET(ORÇAMENTO!$D$15,CRONO!$E17,0)))) ->  | R19: =L17&"$" -> 2$ | T19: =IF($Q17=2,IF(AND(ACOMPANHAMENTO="PLE",ISNUMBER($E17)),SUMIF((OFFSET(CÁLCULO!$AM$15:$AW$15,$E17,0,OFFSET(ORÇAMENTO!$D$15,CRONO!$E17,0))),"<="&CRONO!T$12,OFFSET(CÁLCULO!$AB$15:$AL$15,$E17,0,OFFSET(ORÇAMENTO!$D$15,CRONO!$E17,0)))+IF(AND($E19<>"",$E19<>0),SUMIF(CÁLCULO!$AM$15:$AW$25,"<="&CRONO!T$12,CÁLCULO!$AB$15:$AL$25)/(ORÇAMENTO!$X$15-CÁLCULO.TotalAdmLocal)*CRONO!$E19,0),T18*$R17),SUMIF(OFFSET($R19,1,0,$Q17-2),($L17+1)&"$",OFFSET(T19,1,0,$Q17-2))) -> 864.78 | U19: =IF($Q17=2,IF(AND(ACOMPANHAMENTO="PLE",ISNUMBER($E17)),SUMIF((OFFSET(CÁLCULO!$AM$15:$AW$15,$E17,0,OFFSET(ORÇAMENTO!$D$15,CRONO!$E17,0))),"="&CRONO!U$12,OFFSET(CÁLCULO!$AB$15:$AL$15,$E17,0,OFFSET(ORÇAMENTO!$D$15,CRONO!$E17,0)))+IF(AND($E19<>"",$E19<>0),SUMIF(CÁLCULO!$AM$15:$AW$25,"="&CRONO!U$12,CÁLCULO!$AB$15:$AL$25)/(ORÇAMENTO!$X$15-CÁLCULO.TotalAdmLocal)*CRONO!$E19,0),U18*$R17),SUMIF(OFFSET($R19,1,0,$Q17-2),($L17+1)&"$",OFFSET(U19,1,0,$Q17-2))) -> 0 | V19: =IF($Q17=2,IF(AND(ACOMPANHAMENTO="PLE",ISNUMBER($E17)),SUMIF((OFFSET(CÁLCULO!$AM$15:$AW$15,$E17,0,OFFSET(ORÇAMENTO!$D$15,CRONO!$E17,0))),"="&CRONO!V$12,OFFSET(CÁLCULO!$AB$15:$AL$15,$E17,0,OFFSET(ORÇAMENTO!$D$15,CRONO!$E17,0)))+IF(AND($E19<>"",$E19<>0),SUMIF(CÁLCULO!$AM$15:$AW$25,"="&CRONO!V$12,CÁLCULO!$AB$15:$AL$25)/(ORÇAMENTO!$X$15-CÁLCULO.TotalAdmLocal)*CRONO!$E19,0),V18*$R17),SUMIF(OFFSET($R19,1,0,$Q17-2),($L17+1)&"$",OFFSET(V19,1,0,$Q17-2))) -> 0 | W19: =IF($Q17=2,IF(AND(ACOMPANHAMENTO="PLE",ISNUMBER($E17)),SUMIF((OFFSET(CÁLCULO!$AM$15:$AW$15,$E17,0,OFFSET(ORÇAMENTO!$D$15,CRONO!$E17,0))),"="&CRONO!W$12,OFFSET(CÁLCULO!$AB$15:$AL$15,$E17,0,OFFSET(ORÇAMENTO!$D$15,CRONO!$E17,0)))+IF(AND($E19<>"",$E19<>0),SUMIF(CÁLCULO!$AM$15:$AW$25,"="&CRONO!W$12,CÁLCULO!$AB$15:$AL$25)/(ORÇAMENTO!$X$15-CÁLCULO.TotalAdmLocal)*CRONO!$E19,0),W18*$R17),SUMIF(OFFSET($R19,1,0,$Q17-2),($L17+1)&"$",OFFSET(W19,1,0,$Q17-2))) -> 0 | X19: =IF($Q17=2,IF(AND(ACOMPANHAMENTO="PLE",ISNUMBER($E17)),SUMIF((OFFSET(CÁLCULO!$AM$15:$AW$15,$E17,0,OFFSET(ORÇAMENTO!$D$15,CRONO!$E17,0))),"="&CRONO!X$12,OFFSET(CÁLCULO!$AB$15:$AL$15,$E17,0,OFFSET(ORÇAMENTO!$D$15,CRONO!$E17,0)))+IF(AND($E19<>"",$E19<>0),SUMIF(CÁLCULO!$AM$15:$AW$25,"="&CRONO!X$12,CÁLCULO!$AB$15:$AL$25)/(ORÇAMENTO!$X$15-CÁLCULO.TotalAdmLocal)*CRONO!$E19,0),X18*$R17),SUMIF(OFFSET($R19,1,0,$Q17-2),($L17+1)&"$",OFFSET(X19,1,0,$Q17-2))) -> 0 | Y19: =IF($Q17=2,IF(AND(ACOMPANHAMENTO="PLE",ISNUMBER($E17)),SUMIF((OFFSET(CÁLCULO!$AM$15:$AW$15,$E17,0,OFFSET(ORÇAMENTO!$D$15,CRONO!$E17,0))),"="&CRONO!Y$12,OFFSET(CÁLCULO!$AB$15:$AL$15,$E17,0,OFFSET(ORÇAMENTO!$D$15,CRONO!$E17,0)))+IF(AND($E19<>"",$E19<>0),SUMIF(CÁLCULO!$AM$15:$AW$25,"="&CRONO!Y$12,CÁLCULO!$AB$15:$AL$25)/(ORÇAMENTO!$X$15-CÁLCULO.TotalAdmLocal)*CRONO!$E19,0),Y18*$R17),SUMIF(OFFSET($R19,1,0,$Q17-2),($L17+1)&"$",OFFSET(Y19,1,0,$Q17-2))) -> 0 | Z19: =IF($Q17=2,IF(AND(ACOMPANHAMENTO="PLE",ISNUMBER($E17)),SUMIF((OFFSET(CÁLCULO!$AM$15:$AW$15,$E17,0,OFFSET(ORÇAMENTO!$D$15,CRONO!$E17,0))),"="&CRONO!Z$12,OFFSET(CÁLCULO!$AB$15:$AL$15,$E17,0,OFFSET(ORÇAMENTO!$D$15,CRONO!$E17,0)))+IF(AND($E19<>"",$E19<>0),SUMIF(CÁLCULO!$AM$15:$AW$25,"="&CRONO!Z$12,CÁLCULO!$AB$15:$AL$25)/(ORÇAMENTO!$X$15-CÁLCULO.TotalAdmLocal)*CRONO!$E19,0),Z18*$R17),SUMIF(OFFSET($R19,1,0,$Q17-2),($L17+1)&"$",OFFSET(Z19,1,0,$Q17-2))) -> 0 | AA19: =IF($Q17=2,IF(AND(ACOMPANHAMENTO="PLE",ISNUMBER($E17)),SUMIF((OFFSET(CÁLCULO!$AM$15:$AW$15,$E17,0,OFFSET(ORÇAMENTO!$D$15,CRONO!$E17,0))),"="&CRONO!AA$12,OFFSET(CÁLCULO!$AB$15:$AL$15,$E17,0,OFFSET(ORÇAMENTO!$D$15,CRONO!$E17,0)))+IF(AND($E19<>"",$E19<>0),SUMIF(CÁLCULO!$AM$15:$AW$25,"="&CRONO!AA$12,CÁLCULO!$AB$15:$AL$25)/(ORÇAMENTO!$X$15-CÁLCULO.TotalAdmLocal)*CRONO!$E19,0),AA18*$R17),SUMIF(OFFSET($R19,1,0,$Q17-2),($L17+1)&"$",OFFSET(AA19,1,0,$Q17-2))) -> 0 | AB19: =IF($Q17=2,IF(AND(ACOMPANHAMENTO="PLE",ISNUMBER($E17)),SUMIF((OFFSET(CÁLCULO!$AM$15:$AW$15,$E17,0,OFFSET(ORÇAMENTO!$D$15,CRONO!$E17,0))),"="&CRONO!AB$12,OFFSET(CÁLCULO!$AB$15:$AL$15,$E17,0,OFFSET(ORÇAMENTO!$D$15,CRONO!$E17,0)))+IF(AND($E19<>"",$E19<>0),SUMIF(CÁLCULO!$AM$15:$AW$25,"="&CRONO!AB$12,CÁLCULO!$AB$15:$AL$25)/(ORÇAMENTO!$X$15-CÁLCULO.TotalAdmLocal)*CRONO!$E19,0),AB18*$R17),SUMIF(OFFSET($R19,1,0,$Q17-2),($L17+1)&"$",OFFSET(AB19,1,0,$Q17-2))) -> 0 | AC19: =IF($Q17=2,IF(AND(ACOMPANHAMENTO="PLE",ISNUMBER($E17)),SUMIF((OFFSET(CÁLCULO!$AM$15:$AW$15,$E17,0,OFFSET(ORÇAMENTO!$D$15,CRONO!$E17,0))),"="&CRONO!AC$12,OFFSET(CÁLCULO!$AB$15:$AL$15,$E17,0,OFFSET(ORÇAMENTO!$D$15,CRONO!$E17,0)))+IF(AND($E19<>"",$E19<>0),SUMIF(CÁLCULO!$AM$15:$AW$25,"="&CRONO!AC$12,CÁLCULO!$AB$15:$AL$25)/(ORÇAMENTO!$X$15-CÁLCULO.TotalAdmLocal)*CRONO!$E19,0),AC18*$R17),SUMIF(OFFSET($R19,1,0,$Q17-2),($L17+1)&"$",OFFSET(AC19,1,0,$Q17-2))) -> 0 | AD19: =IF($Q17=2,IF(AND(ACOMPANHAMENTO="PLE",ISNUMBER($E17)),SUMIF((OFFSET(CÁLCULO!$AM$15:$AW$15,$E17,0,OFFSET(ORÇAMENTO!$D$15,CRONO!$E17,0))),"="&CRONO!AD$12,OFFSET(CÁLCULO!$AB$15:$AL$15,$E17,0,OFFSET(ORÇAMENTO!$D$15,CRONO!$E17,0)))+IF(AND($E19<>"",$E19<>0),SUMIF(CÁLCULO!$AM$15:$AW$25,"="&CRONO!AD$12,CÁLCULO!$AB$15:$AL$25)/(ORÇAMENTO!$X$15-CÁLCULO.TotalAdmLocal)*CRONO!$E19,0),AD18*$R17),SUMIF(OFFSET($R19,1,0,$Q17-2),($L17+1)&"$",OFFSET(AD19,1,0,$Q17-2))) -> 0 | AE19: =IF($Q17=2,IF(AND(ACOMPANHAMENTO="PLE",ISNUMBER($E17)),SUMIF((OFFSET(CÁLCULO!$AM$15:$AW$15,$E17,0,OFFSET(ORÇAMENTO!$D$15,CRONO!$E17,0))),"="&CRONO!AE$12,OFFSET(CÁLCULO!$AB$15:$AL$15,$E17,0,OFFSET(ORÇAMENTO!$D$15,CRONO!$E17,0)))+IF(AND($E19<>"",$E19<>0),SUMIF(CÁLCULO!$AM$15:$AW$25,"="&CRONO!AE$12,CÁLCULO!$AB$15:$AL$25)/(ORÇAMENTO!$X$15-CÁLCULO.TotalAdmLocal)*CRONO!$E19,0),AE18*$R17),SUMIF(OFFSET($R19,1,0,$Q17-2),($L17+1)&"$",OFFSET(AE19,1,0,$Q17-2))) -> 0
A20: =OFFSET(A20,-3,0)+1 -> 3 | B20: =IF($Q20<>2,0,IF($R20=0,1,IF(E21>0,OFFSET(QCI!$M$13,SUBSTITUTE(E21,".",""),0),OFFSET(ORÇAMENTO!$AA$15,CRONO!$E20,0))/$R20)) ->  | C20: =IF($Q20<>2,0,IF($R20=0,1,IF(E21>0,OFFSET(QCI!$N$13,SUBSTITUTE(E21,".",""),0),OFFSET(ORÇAMENTO!$AB$15,CRONO!$E20,0))/$R20)) -> 0 | D20: =IF(AND($Q20=2,ACOMPANHAMENTO="BM"),D21,D22/$R20) -> 0 | E20: =IF(A20<=ORÇAMENTO.MáximoListaCrono,MATCH(A20,ORÇAMENTO.ListaCrono,0),NA()) -> 4 | F20: =IF(AND($E21<>-1,$R20>0),"F","") -> F | G20: =IF(OR(R20=0,R20=""),"Linha",IF(AND(OR(ACOMPANHAMENTO="PLE",$Q20<>2),$E21=0),"Linha",1-SUM(T20:AF20))) -> Linha | H20: =IF($E21=0,OFFSET(ORÇAMENTO!O$15,$E20,0),IF($E21<>-1,OFFSET(QCI!$D$13,$E21,0),"")) -> 1.2. | I20: =IF($E21=0,OFFSET(ORÇAMENTO!R$15,$E20,0),IF($E21<>-1,OFFSET(QCI!$G$13,$E21,0),"")) -> PAVIMENTAÇÃO | L20: =IF($E21=0,OFFSET(ORÇAMENTO!C$15,$E20,0),1) -> 2 | M20: =IF($E21=-1,0,IF(M$13<=$L20,IF(ISERROR(MATCH(M$13,OFFSET($L20,1,0,ROW($L$26)-ROW($L20)-1),0)),ROW($L$26)-ROW($L20)-1,MATCH(M$13,OFFSET($L20,1,0,ROW($L$26)-ROW($L20)-1),0)-1),0)) -> 5 | N20: =IF($E21=-1,0,IF(N$13<=$L20,IF(ISERROR(MATCH(N$13,OFFSET($L20,1,0,ROW($L$26)-ROW($L20)-1),0)),ROW($L$26)-ROW($L20)-1,MATCH(N$13,OFFSET($L20,1,0,ROW($L$26)-ROW($L20)-1),0)-1),0)) -> 2 | O20: =IF($E21=-1,0,IF(O$13<=$L20,IF(ISERROR(MATCH(O$13,OFFSET($L20,1,0,ROW($L$26)-ROW($L20)-1),0)),ROW($L$26)-ROW($L20)-1,MATCH(O$13,OFFSET($L20,1,0,ROW($L$26)-ROW($L20)-1),0)-1),0)) -> 0 | P20: =IF($E21=-1,0,IF(P$13<=$L20,IF(ISERROR(MATCH(P$13,OFFSET($L20,1,0,ROW($L$26)-ROW($L20)-1),0)),ROW($L$26)-ROW($L20)-1,MATCH(P$13,OFFSET($L20,1,0,ROW($L$26)-ROW($L20)-1),0)-1),0)) -> 0 | Q20: =MIN(OFFSET(L20,0,1,,L20)) -> 2 | R20: =IF($E21=0,OFFSET(ORÇAMENTO!X$15,$E20,0),IF($E21<>-1,OFFSET(QCI!$O$13,$E21,0),"")) -> 174342.26 | S20: % Período: | T20: =IF(AND($Q20=2,ACOMPANHAMENTO="BM"),T21,T22/$R20) -> 0 | U20: 1 | V20: 0 | W20: 0 | X20: 0 | Y20: 0 | Z20: 0 | AA20: 0 | AB20: 0 | AC20: 0 | AD20: 0 | AE20: 0
E21: =IF(ISERROR(E20),IF(1+COUNTIF($L$13:OFFSET(L20,-1,0),1)<=MAX(QCI!$D$13:$D$24),1+COUNTIF($L$13:OFFSET(L20,-1,0),1),-1),0) -> 0 | F21: =IF(AND($E21<>-1,$R20>0),"F","") -> F | G21: =IF(OR(R20=0,R20=""),"vazia",IF(AND(OR(ACOMPANHAMENTO="PLE",$Q20<>2),$E21=0),"calculada","-->")) -> calculada | I21: =IF(AND(G20<>0,ISNUMBER(G20)),"PREENCHA ESTA LINHA -->","") -> 
D22: =IF($Q20=2,IF(AND(ACOMPANHAMENTO="PLE",ISNUMBER($E20)),SUMIF((OFFSET(CÁLCULO!$AM$15:$AW$15,$E20,0,OFFSET(ORÇAMENTO!$D$15,CRONO!$E20,0))),"="&CRONO!D$12,OFFSET(CÁLCULO!$AB$15:$AL$15,$E20,0,OFFSET(ORÇAMENTO!$D$15,CRONO!$E20,0)))+IF(AND($E22<>"",$E22<>0),SUMIF(CÁLCULO!$AM$15:$AW$25,"="&CRONO!D$12,CÁLCULO!$AB$15:$AL$25)/(ORÇAMENTO!$X$15-CÁLCULO.TotalAdmLocal)*CRONO!$E22,0),D21*$R20),SUMIF(OFFSET($R22,1,0,$Q20-2),($L20+1)&"$",OFFSET(D22,1,0,$Q20-2))) -> 0 | E22: =IF(OR($Q20<>2,AUTOEVENTO<>"manual",$E21>0),"",SUMIF(OFFSET(CÁLCULO!$M$15,CRONO!$E20,0,OFFSET(ORÇAMENTO!$D$15,CRONO!$E20,0)),1,OFFSET(ORÇAMENTO!$X$15,CRONO!$E20,0,OFFSET(ORÇAMENTO!$D$15,CRONO!$E20,0)))) ->  | R22: =L20&"$" -> 2$ | T22: =IF($Q20=2,IF(AND(ACOMPANHAMENTO="PLE",ISNUMBER($E20)),SUMIF((OFFSET(CÁLCULO!$AM$15:$AW$15,$E20,0,OFFSET(ORÇAMENTO!$D$15,CRONO!$E20,0))),"<="&CRONO!T$12,OFFSET(CÁLCULO!$AB$15:$AL$15,$E20,0,OFFSET(ORÇAMENTO!$D$15,CRONO!$E20,0)))+IF(AND($E22<>"",$E22<>0),SUMIF(CÁLCULO!$AM$15:$AW$25,"<="&CRONO!T$12,CÁLCULO!$AB$15:$AL$25)/(ORÇAMENTO!$X$15-CÁLCULO.TotalAdmLocal)*CRONO!$E22,0),T21*$R20),SUMIF(OFFSET($R22,1,0,$Q20-2),($L20+1)&"$",OFFSET(T22,1,0,$Q20-2))) -> 0 | U22: =IF($Q20=2,IF(AND(ACOMPANHAMENTO="PLE",ISNUMBER($E20)),SUMIF((OFFSET(CÁLCULO!$AM$15:$AW$15,$E20,0,OFFSET(ORÇAMENTO!$D$15,CRONO!$E20,0))),"="&CRONO!U$12,OFFSET(CÁLCULO!$AB$15:$AL$15,$E20,0,OFFSET(ORÇAMENTO!$D$15,CRONO!$E20,0)))+IF(AND($E22<>"",$E22<>0),SUMIF(CÁLCULO!$AM$15:$AW$25,"="&CRONO!U$12,CÁLCULO!$AB$15:$AL$25)/(ORÇAMENTO!$X$15-CÁLCULO.TotalAdmLocal)*CRONO!$E22,0),U21*$R20),SUMIF(OFFSET($R22,1,0,$Q20-2),($L20+1)&"$",OFFSET(U22,1,0,$Q20-2))) -> 174342.26 | V22: =IF($Q20=2,IF(AND(ACOMPANHAMENTO="PLE",ISNUMBER($E20)),SUMIF((OFFSET(CÁLCULO!$AM$15:$AW$15,$E20,0,OFFSET(ORÇAMENTO!$D$15,CRONO!$E20,0))),"="&CRONO!V$12,OFFSET(CÁLCULO!$AB$15:$AL$15,$E20,0,OFFSET(ORÇAMENTO!$D$15,CRONO!$E20,0)))+IF(AND($E22<>"",$E22<>0),SUMIF(CÁLCULO!$AM$15:$AW$25,"="&CRONO!V$12,CÁLCULO!$AB$15:$AL$25)/(ORÇAMENTO!$X$15-CÁLCULO.TotalAdmLocal)*CRONO!$E22,0),V21*$R20),SUMIF(OFFSET($R22,1,0,$Q20-2),($L20+1)&"$",OFFSET(V22,1,0,$Q20-2))) -> 0 | W22: =IF($Q20=2,IF(AND(ACOMPANHAMENTO="PLE",ISNUMBER($E20)),SUMIF((OFFSET(CÁLCULO!$AM$15:$AW$15,$E20,0,OFFSET(ORÇAMENTO!$D$15,CRONO!$E20,0))),"="&CRONO!W$12,OFFSET(CÁLCULO!$AB$15:$AL$15,$E20,0,OFFSET(ORÇAMENTO!$D$15,CRONO!$E20,0)))+IF(AND($E22<>"",$E22<>0),SUMIF(CÁLCULO!$AM$15:$AW$25,"="&CRONO!W$12,CÁLCULO!$AB$15:$AL$25)/(ORÇAMENTO!$X$15-CÁLCULO.TotalAdmLocal)*CRONO!$E22,0),W21*$R20),SUMIF(OFFSET($R22,1,0,$Q20-2),($L20+1)&"$",OFFSET(W22,1,0,$Q20-2))) -> 0 | X22: =IF($Q20=2,IF(AND(ACOMPANHAMENTO="PLE",ISNUMBER($E20)),SUMIF((OFFSET(CÁLCULO!$AM$15:$AW$15,$E20,0,OFFSET(ORÇAMENTO!$D$15,CRONO!$E20,0))),"="&CRONO!X$12,OFFSET(CÁLCULO!$AB$15:$AL$15,$E20,0,OFFSET(ORÇAMENTO!$D$15,CRONO!$E20,0)))+IF(AND($E22<>"",$E22<>0),SUMIF(CÁLCULO!$AM$15:$AW$25,"="&CRONO!X$12,CÁLCULO!$AB$15:$AL$25)/(ORÇAMENTO!$X$15-CÁLCULO.TotalAdmLocal)*CRONO!$E22,0),X21*$R20),SUMIF(OFFSET($R22,1,0,$Q20-2),($L20+1)&"$",OFFSET(X22,1,0,$Q20-2))) -> 0 | Y22: =IF($Q20=2,IF(AND(ACOMPANHAMENTO="PLE",ISNUMBER($E20)),SUMIF((OFFSET(CÁLCULO!$AM$15:$AW$15,$E20,0,OFFSET(ORÇAMENTO!$D$15,CRONO!$E20,0))),"="&CRONO!Y$12,OFFSET(CÁLCULO!$AB$15:$AL$15,$E20,0,OFFSET(ORÇAMENTO!$D$15,CRONO!$E20,0)))+IF(AND($E22<>"",$E22<>0),SUMIF(CÁLCULO!$AM$15:$AW$25,"="&CRONO!Y$12,CÁLCULO!$AB$15:$AL$25)/(ORÇAMENTO!$X$15-CÁLCULO.TotalAdmLocal)*CRONO!$E22,0),Y21*$R20),SUMIF(OFFSET($R22,1,0,$Q20-2),($L20+1)&"$",OFFSET(Y22,1,0,$Q20-2))) -> 0 | Z22: =IF($Q20=2,IF(AND(ACOMPANHAMENTO="PLE",ISNUMBER($E20)),SUMIF((OFFSET(CÁLCULO!$AM$15:$AW$15,$E20,0,OFFSET(ORÇAMENTO!$D$15,CRONO!$E20,0))),"="&CRONO!Z$12,OFFSET(CÁLCULO!$AB$15:$AL$15,$E20,0,OFFSET(ORÇAMENTO!$D$15,CRONO!$E20,0)))+IF(AND($E22<>"",$E22<>0),SUMIF(CÁLCULO!$AM$15:$AW$25,"="&CRONO!Z$12,CÁLCULO!$AB$15:$AL$25)/(ORÇAMENTO!$X$15-CÁLCULO.TotalAdmLocal)*CRONO!$E22,0),Z21*$R20),SUMIF(OFFSET($R22,1,0,$Q20-2),($L20+1)&"$",OFFSET(Z22,1,0,$Q20-2))) -> 0 | AA22: =IF($Q20=2,IF(AND(ACOMPANHAMENTO="PLE",ISNUMBER($E20)),SUMIF((OFFSET(CÁLCULO!$AM$15:$AW$15,$E20,0,OFFSET(ORÇAMENTO!$D$15,CRONO!$E20,0))),"="&CRONO!AA$12,OFFSET(CÁLCULO!$AB$15:$AL$15,$E20,0,OFFSET(ORÇAMENTO!$D$15,CRONO!$E20,0)))+IF(AND($E22<>"",$E22<>0),SUMIF(CÁLCULO!$AM$15:$AW$25,"="&CRONO!AA$12,CÁLCULO!$AB$15:$AL$25)/(ORÇAMENTO!$X$15-CÁLCULO.TotalAdmLocal)*CRONO!$E22,0),AA21*$R20),SUMIF(OFFSET($R22,1,0,$Q20-2),($L20+1)&"$",OFFSET(AA22,1,0,$Q20-2))) -> 0 | AB22: =IF($Q20=2,IF(AND(ACOMPANHAMENTO="PLE",ISNUMBER($E20)),SUMIF((OFFSET(CÁLCULO!$AM$15:$AW$15,$E20,0,OFFSET(ORÇAMENTO!$D$15,CRONO!$E20,0))),"="&CRONO!AB$12,OFFSET(CÁLCULO!$AB$15:$AL$15,$E20,0,OFFSET(ORÇAMENTO!$D$15,CRONO!$E20,0)))+IF(AND($E22<>"",$E22<>0),SUMIF(CÁLCULO!$AM$15:$AW$25,"="&CRONO!AB$12,CÁLCULO!$AB$15:$AL$25)/(ORÇAMENTO!$X$15-CÁLCULO.TotalAdmLocal)*CRONO!$E22,0),AB21*$R20),SUMIF(OFFSET($R22,1,0,$Q20-2),($L20+1)&"$",OFFSET(AB22,1,0,$Q20-2))) -> 0 | AC22: =IF($Q20=2,IF(AND(ACOMPANHAMENTO="PLE",ISNUMBER($E20)),SUMIF((OFFSET(CÁLCULO!$AM$15:$AW$15,$E20,0,OFFSET(ORÇAMENTO!$D$15,CRONO!$E20,0))),"="&CRONO!AC$12,OFFSET(CÁLCULO!$AB$15:$AL$15,$E20,0,OFFSET(ORÇAMENTO!$D$15,CRONO!$E20,0)))+IF(AND($E22<>"",$E22<>0),SUMIF(CÁLCULO!$AM$15:$AW$25,"="&CRONO!AC$12,CÁLCULO!$AB$15:$AL$25)/(ORÇAMENTO!$X$15-CÁLCULO.TotalAdmLocal)*CRONO!$E22,0),AC21*$R20),SUMIF(OFFSET($R22,1,0,$Q20-2),($L20+1)&"$",OFFSET(AC22,1,0,$Q20-2))) -> 0 | AD22: =IF($Q20=2,IF(AND(ACOMPANHAMENTO="PLE",ISNUMBER($E20)),SUMIF((OFFSET(CÁLCULO!$AM$15:$AW$15,$E20,0,OFFSET(ORÇAMENTO!$D$15,CRONO!$E20,0))),"="&CRONO!AD$12,OFFSET(CÁLCULO!$AB$15:$AL$15,$E20,0,OFFSET(ORÇAMENTO!$D$15,CRONO!$E20,0)))+IF(AND($E22<>"",$E22<>0),SUMIF(CÁLCULO!$AM$15:$AW$25,"="&CRONO!AD$12,CÁLCULO!$AB$15:$AL$25)/(ORÇAMENTO!$X$15-CÁLCULO.TotalAdmLocal)*CRONO!$E22,0),AD21*$R20),SUMIF(OFFSET($R22,1,0,$Q20-2),($L20+1)&"$",OFFSET(AD22,1,0,$Q20-2))) -> 0 | AE22: =IF($Q20=2,IF(AND(ACOMPANHAMENTO="PLE",ISNUMBER($E20)),SUMIF((OFFSET(CÁLCULO!$AM$15:$AW$15,$E20,0,OFFSET(ORÇAMENTO!$D$15,CRONO!$E20,0))),"="&CRONO!AE$12,OFFSET(CÁLCULO!$AB$15:$AL$15,$E20,0,OFFSET(ORÇAMENTO!$D$15,CRONO!$E20,0)))+IF(AND($E22<>"",$E22<>0),SUMIF(CÁLCULO!$AM$15:$AW$25,"="&CRONO!AE$12,CÁLCULO!$AB$15:$AL$25)/(ORÇAMENTO!$X$15-CÁLCULO.TotalAdmLocal)*CRONO!$E22,0),AE21*$R20),SUMIF(OFFSET($R22,1,0,$Q20-2),($L20+1)&"$",OFFSET(AE22,1,0,$Q20-2))) -> 0
A23: =OFFSET(A23,-3,0)+1 -> 4 | B23: =IF($Q23<>2,0,IF($R23=0,1,IF(E24>0,OFFSET(QCI!$M$13,SUBSTITUTE(E24,".",""),0),OFFSET(ORÇAMENTO!$AA$15,CRONO!$E23,0))/$R23)) ->  | C23: =IF($Q23<>2,0,IF($R23=0,1,IF(E24>0,OFFSET(QCI!$N$13,SUBSTITUTE(E24,".",""),0),OFFSET(ORÇAMENTO!$AB$15,CRONO!$E23,0))/$R23)) -> 0 | D23: =IF(AND($Q23=2,ACOMPANHAMENTO="BM"),D24,D25/$R23) -> 0 | E23: =IF(A23<=ORÇAMENTO.MáximoListaCrono,MATCH(A23,ORÇAMENTO.ListaCrono,0),NA()) -> 8 | F23: =IF(AND($E24<>-1,$R23>0),"F","") -> F | G23: =IF(OR(R23=0,R23=""),"Linha",IF(AND(OR(ACOMPANHAMENTO="PLE",$Q23<>2),$E24=0),"Linha",1-SUM(T23:AF23))) -> Linha | H23: =IF($E24=0,OFFSET(ORÇAMENTO!O$15,$E23,0),IF($E24<>-1,OFFSET(QCI!$D$13,$E24,0),"")) -> 1.3. | I23: =IF($E24=0,OFFSET(ORÇAMENTO!R$15,$E23,0),IF($E24<>-1,OFFSET(QCI!$G$13,$E24,0),"")) -> Serviços Finais | L23: =IF($E24=0,OFFSET(ORÇAMENTO!C$15,$E23,0),1) -> 2 | M23: =IF($E24=-1,0,IF(M$13<=$L23,IF(ISERROR(MATCH(M$13,OFFSET($L23,1,0,ROW($L$26)-ROW($L23)-1),0)),ROW($L$26)-ROW($L23)-1,MATCH(M$13,OFFSET($L23,1,0,ROW($L$26)-ROW($L23)-1),0)-1),0)) -> 2 | N23: =IF($E24=-1,0,IF(N$13<=$L23,IF(ISERROR(MATCH(N$13,OFFSET($L23,1,0,ROW($L$26)-ROW($L23)-1),0)),ROW($L$26)-ROW($L23)-1,MATCH(N$13,OFFSET($L23,1,0,ROW($L$26)-ROW($L23)-1),0)-1),0)) -> 2 | O23: =IF($E24=-1,0,IF(O$13<=$L23,IF(ISERROR(MATCH(O$13,OFFSET($L23,1,0,ROW($L$26)-ROW($L23)-1),0)),ROW($L$26)-ROW($L23)-1,MATCH(O$13,OFFSET($L23,1,0,ROW($L$26)-ROW($L23)-1),0)-1),0)) -> 0 | P23: =IF($E24=-1,0,IF(P$13<=$L23,IF(ISERROR(MATCH(P$13,OFFSET($L23,1,0,ROW($L$26)-ROW($L23)-1),0)),ROW($L$26)-ROW($L23)-1,MATCH(P$13,OFFSET($L23,1,0,ROW($L$26)-ROW($L23)-1),0)-1),0)) -> 0 | Q23: =MIN(OFFSET(L23,0,1,,L23)) -> 2 | R23: =IF($E24=0,OFFSET(ORÇAMENTO!X$15,$E23,0),IF($E24<>-1,OFFSET(QCI!$O$13,$E24,0),"")) -> 476.79 | S23: % Período: | T23: =IF(AND($Q23=2,ACOMPANHAMENTO="BM"),T24,T25/$R23) -> 0 | U23: 1 | V23: 0 | W23: 0 | X23: 0 | Y23: 0 | Z23: 0 | AA23: 0 | AB23: 0 | AC23: 0 | AD23: 0 | AE23: 0
E24: =IF(ISERROR(E23),IF(1+COUNTIF($L$13:OFFSET(L23,-1,0),1)<=MAX(QCI!$D$13:$D$24),1+COUNTIF($L$13:OFFSET(L23,-1,0),1),-1),0) -> 0 | F24: =IF(AND($E24<>-1,$R23>0),"F","") -> F | G24: =IF(OR(R23=0,R23=""),"vazia",IF(AND(OR(ACOMPANHAMENTO="PLE",$Q23<>2),$E24=0),"calculada","-->")) -> calculada | I24: =IF(AND(G23<>0,ISNUMBER(G23)),"PREENCHA ESTA LINHA -->","") -> 
D25: =IF($Q23=2,IF(AND(ACOMPANHAMENTO="PLE",ISNUMBER($E23)),SUMIF((OFFSET(CÁLCULO!$AM$15:$AW$15,$E23,0,OFFSET(ORÇAMENTO!$D$15,CRONO!$E23,0))),"="&CRONO!D$12,OFFSET(CÁLCULO!$AB$15:$AL$15,$E23,0,OFFSET(ORÇAMENTO!$D$15,CRONO!$E23,0)))+IF(AND($E25<>"",$E25<>0),SUMIF(CÁLCULO!$AM$15:$AW$25,"="&CRONO!D$12,CÁLCULO!$AB$15:$AL$25)/(ORÇAMENTO!$X$15-CÁLCULO.TotalAdmLocal)*CRONO!$E25,0),D24*$R23),SUMIF(OFFSET($R25,1,0,$Q23-2),($L23+1)&"$",OFFSET(D25,1,0,$Q23-2))) -> 0 | E25: =IF(OR($Q23<>2,AUTOEVENTO<>"manual",$E24>0),"",SUMIF(OFFSET(CÁLCULO!$M$15,CRONO!$E23,0,OFFSET(ORÇAMENTO!$D$15,CRONO!$E23,0)),1,OFFSET(ORÇAMENTO!$X$15,CRONO!$E23,0,OFFSET(ORÇAMENTO!$D$15,CRONO!$E23,0)))) ->  | R25: =L23&"$" -> 2$ | T25: =IF($Q23=2,IF(AND(ACOMPANHAMENTO="PLE",ISNUMBER($E23)),SUMIF((OFFSET(CÁLCULO!$AM$15:$AW$15,$E23,0,OFFSET(ORÇAMENTO!$D$15,CRONO!$E23,0))),"<="&CRONO!T$12,OFFSET(CÁLCULO!$AB$15:$AL$15,$E23,0,OFFSET(ORÇAMENTO!$D$15,CRONO!$E23,0)))+IF(AND($E25<>"",$E25<>0),SUMIF(CÁLCULO!$AM$15:$AW$25,"<="&CRONO!T$12,CÁLCULO!$AB$15:$AL$25)/(ORÇAMENTO!$X$15-CÁLCULO.TotalAdmLocal)*CRONO!$E25,0),T24*$R23),SUMIF(OFFSET($R25,1,0,$Q23-2),($L23+1)&"$",OFFSET(T25,1,0,$Q23-2))) -> 0 | U25: =IF($Q23=2,IF(AND(ACOMPANHAMENTO="PLE",ISNUMBER($E23)),SUMIF((OFFSET(CÁLCULO!$AM$15:$AW$15,$E23,0,OFFSET(ORÇAMENTO!$D$15,CRONO!$E23,0))),"="&CRONO!U$12,OFFSET(CÁLCULO!$AB$15:$AL$15,$E23,0,OFFSET(ORÇAMENTO!$D$15,CRONO!$E23,0)))+IF(AND($E25<>"",$E25<>0),SUMIF(CÁLCULO!$AM$15:$AW$25,"="&CRONO!U$12,CÁLCULO!$AB$15:$AL$25)/(ORÇAMENTO!$X$15-CÁLCULO.TotalAdmLocal)*CRONO!$E25,0),U24*$R23),SUMIF(OFFSET($R25,1,0,$Q23-2),($L23+1)&"$",OFFSET(U25,1,0,$Q23-2))) -> 476.79 | V25: =IF($Q23=2,IF(AND(ACOMPANHAMENTO="PLE",ISNUMBER($E23)),SUMIF((OFFSET(CÁLCULO!$AM$15:$AW$15,$E23,0,OFFSET(ORÇAMENTO!$D$15,CRONO!$E23,0))),"="&CRONO!V$12,OFFSET(CÁLCULO!$AB$15:$AL$15,$E23,0,OFFSET(ORÇAMENTO!$D$15,CRONO!$E23,0)))+IF(AND($E25<>"",$E25<>0),SUMIF(CÁLCULO!$AM$15:$AW$25,"="&CRONO!V$12,CÁLCULO!$AB$15:$AL$25)/(ORÇAMENTO!$X$15-CÁLCULO.TotalAdmLocal)*CRONO!$E25,0),V24*$R23),SUMIF(OFFSET($R25,1,0,$Q23-2),($L23+1)&"$",OFFSET(V25,1,0,$Q23-2))) -> 0 | W25: =IF($Q23=2,IF(AND(ACOMPANHAMENTO="PLE",ISNUMBER($E23)),SUMIF((OFFSET(CÁLCULO!$AM$15:$AW$15,$E23,0,OFFSET(ORÇAMENTO!$D$15,CRONO!$E23,0))),"="&CRONO!W$12,OFFSET(CÁLCULO!$AB$15:$AL$15,$E23,0,OFFSET(ORÇAMENTO!$D$15,CRONO!$E23,0)))+IF(AND($E25<>"",$E25<>0),SUMIF(CÁLCULO!$AM$15:$AW$25,"="&CRONO!W$12,CÁLCULO!$AB$15:$AL$25)/(ORÇAMENTO!$X$15-CÁLCULO.TotalAdmLocal)*CRONO!$E25,0),W24*$R23),SUMIF(OFFSET($R25,1,0,$Q23-2),($L23+1)&"$",OFFSET(W25,1,0,$Q23-2))) -> 0 | X25: =IF($Q23=2,IF(AND(ACOMPANHAMENTO="PLE",ISNUMBER($E23)),SUMIF((OFFSET(CÁLCULO!$AM$15:$AW$15,$E23,0,OFFSET(ORÇAMENTO!$D$15,CRONO!$E23,0))),"="&CRONO!X$12,OFFSET(CÁLCULO!$AB$15:$AL$15,$E23,0,OFFSET(ORÇAMENTO!$D$15,CRONO!$E23,0)))+IF(AND($E25<>"",$E25<>0),SUMIF(CÁLCULO!$AM$15:$AW$25,"="&CRONO!X$12,CÁLCULO!$AB$15:$AL$25)/(ORÇAMENTO!$X$15-CÁLCULO.TotalAdmLocal)*CRONO!$E25,0),X24*$R23),SUMIF(OFFSET($R25,1,0,$Q23-2),($L23+1)&"$",OFFSET(X25,1,0,$Q23-2))) -> 0 | Y25: =IF($Q23=2,IF(AND(ACOMPANHAMENTO="PLE",ISNUMBER($E23)),SUMIF((OFFSET(CÁLCULO!$AM$15:$AW$15,$E23,0,OFFSET(ORÇAMENTO!$D$15,CRONO!$E23,0))),"="&CRONO!Y$12,OFFSET(CÁLCULO!$AB$15:$AL$15,$E23,0,OFFSET(ORÇAMENTO!$D$15,CRONO!$E23,0)))+IF(AND($E25<>"",$E25<>0),SUMIF(CÁLCULO!$AM$15:$AW$25,"="&CRONO!Y$12,CÁLCULO!$AB$15:$AL$25)/(ORÇAMENTO!$X$15-CÁLCULO.TotalAdmLocal)*CRONO!$E25,0),Y24*$R23),SUMIF(OFFSET($R25,1,0,$Q23-2),($L23+1)&"$",OFFSET(Y25,1,0,$Q23-2))) -> 0 | Z25: =IF($Q23=2,IF(AND(ACOMPANHAMENTO="PLE",ISNUMBER($E23)),SUMIF((OFFSET(CÁLCULO!$AM$15:$AW$15,$E23,0,OFFSET(ORÇAMENTO!$D$15,CRONO!$E23,0))),"="&CRONO!Z$12,OFFSET(CÁLCULO!$AB$15:$AL$15,$E23,0,OFFSET(ORÇAMENTO!$D$15,CRONO!$E23,0)))+IF(AND($E25<>"",$E25<>0),SUMIF(CÁLCULO!$AM$15:$AW$25,"="&CRONO!Z$12,CÁLCULO!$AB$15:$AL$25)/(ORÇAMENTO!$X$15-CÁLCULO.TotalAdmLocal)*CRONO!$E25,0),Z24*$R23),SUMIF(OFFSET($R25,1,0,$Q23-2),($L23+1)&"$",OFFSET(Z25,1,0,$Q23-2))) -> 0 | AA25: =IF($Q23=2,IF(AND(ACOMPANHAMENTO="PLE",ISNUMBER($E23)),SUMIF((OFFSET(CÁLCULO!$AM$15:$AW$15,$E23,0,OFFSET(ORÇAMENTO!$D$15,CRONO!$E23,0))),"="&CRONO!AA$12,OFFSET(CÁLCULO!$AB$15:$AL$15,$E23,0,OFFSET(ORÇAMENTO!$D$15,CRONO!$E23,0)))+IF(AND($E25<>"",$E25<>0),SUMIF(CÁLCULO!$AM$15:$AW$25,"="&CRONO!AA$12,CÁLCULO!$AB$15:$AL$25)/(ORÇAMENTO!$X$15-CÁLCULO.TotalAdmLocal)*CRONO!$E25,0),AA24*$R23),SUMIF(OFFSET($R25,1,0,$Q23-2),($L23+1)&"$",OFFSET(AA25,1,0,$Q23-2))) -> 0 | AB25: =IF($Q23=2,IF(AND(ACOMPANHAMENTO="PLE",ISNUMBER($E23)),SUMIF((OFFSET(CÁLCULO!$AM$15:$AW$15,$E23,0,OFFSET(ORÇAMENTO!$D$15,CRONO!$E23,0))),"="&CRONO!AB$12,OFFSET(CÁLCULO!$AB$15:$AL$15,$E23,0,OFFSET(ORÇAMENTO!$D$15,CRONO!$E23,0)))+IF(AND($E25<>"",$E25<>0),SUMIF(CÁLCULO!$AM$15:$AW$25,"="&CRONO!AB$12,CÁLCULO!$AB$15:$AL$25)/(ORÇAMENTO!$X$15-CÁLCULO.TotalAdmLocal)*CRONO!$E25,0),AB24*$R23),SUMIF(OFFSET($R25,1,0,$Q23-2),($L23+1)&"$",OFFSET(AB25,1,0,$Q23-2))) -> 0 | AC25: =IF($Q23=2,IF(AND(ACOMPANHAMENTO="PLE",ISNUMBER($E23)),SUMIF((OFFSET(CÁLCULO!$AM$15:$AW$15,$E23,0,OFFSET(ORÇAMENTO!$D$15,CRONO!$E23,0))),"="&CRONO!AC$12,OFFSET(CÁLCULO!$AB$15:$AL$15,$E23,0,OFFSET(ORÇAMENTO!$D$15,CRONO!$E23,0)))+IF(AND($E25<>"",$E25<>0),SUMIF(CÁLCULO!$AM$15:$AW$25,"="&CRONO!AC$12,CÁLCULO!$AB$15:$AL$25)/(ORÇAMENTO!$X$15-CÁLCULO.TotalAdmLocal)*CRONO!$E25,0),AC24*$R23),SUMIF(OFFSET($R25,1,0,$Q23-2),($L23+1)&"$",OFFSET(AC25,1,0,$Q23-2))) -> 0 | AD25: =IF($Q23=2,IF(AND(ACOMPANHAMENTO="PLE",ISNUMBER($E23)),SUMIF((OFFSET(CÁLCULO!$AM$15:$AW$15,$E23,0,OFFSET(ORÇAMENTO!$D$15,CRONO!$E23,0))),"="&CRONO!AD$12,OFFSET(CÁLCULO!$AB$15:$AL$15,$E23,0,OFFSET(ORÇAMENTO!$D$15,CRONO!$E23,0)))+IF(AND($E25<>"",$E25<>0),SUMIF(CÁLCULO!$AM$15:$AW$25,"="&CRONO!AD$12,CÁLCULO!$AB$15:$AL$25)/(ORÇAMENTO!$X$15-CÁLCULO.TotalAdmLocal)*CRONO!$E25,0),AD24*$R23),SUMIF(OFFSET($R25,1,0,$Q23-2),($L23+1)&"$",OFFSET(AD25,1,0,$Q23-2))) -> 0 | AE25: =IF($Q23=2,IF(AND(ACOMPANHAMENTO="PLE",ISNUMBER($E23)),SUMIF((OFFSET(CÁLCULO!$AM$15:$AW$15,$E23,0,OFFSET(ORÇAMENTO!$D$15,CRONO!$E23,0))),"="&CRONO!AE$12,OFFSET(CÁLCULO!$AB$15:$AL$15,$E23,0,OFFSET(ORÇAMENTO!$D$15,CRONO!$E23,0)))+IF(AND($E25<>"",$E25<>0),SUMIF(CÁLCULO!$AM$15:$AW$25,"="&CRONO!AE$12,CÁLCULO!$AB$15:$AL$25)/(ORÇAMENTO!$X$15-CÁLCULO.TotalAdmLocal)*CRONO!$E25,0),AE24*$R23),SUMIF(OFFSET($R25,1,0,$Q23-2),($L23+1)&"$",OFFSET(AE25,1,0,$Q23-2))) -> 0
F26: F | L26: #
D27: =D31/$Q$27 -> 0.004922365365 | F27: F | H27: ="Total: R$ "&TEXT(Q27,"#.##0,00") -> Total: R$ 175.683,83 | Q27: =SUMIF(L12:L26,1,R12:R26) -> 175683.83 | S27: %: | T27: =ROUND(T31,2)/$Q$27 -> 0.004922365365 | U27: 0.9950776346 | V27: 0 | W27: 0 | X27: 0 | Y27: 0 | Z27: 0 | AA27: 0 | AB27: 0 | AC27: 0 | AD27: 0 | AE27: 0
D28: =ROUND(D33,2)-ROUND(C33,2) ->  | F28: F | S28: =IF(import.recurso="FGTS","Financiamento:","Repasse:") -> Repasse: | T28: =ROUND(T33,2) ->  | U28: =ROUND(U33,2)-ROUND(T33,2) -> 
D29: =ROUND(D34,2)-ROUND(C34,2) ->  | F29: F | K29: Período: | S29: Contrapartida: | T29: =ROUND(T34,2) ->  | U29: =ROUND(U34,2)-ROUND(T34,2) -> 
D30: =ROUND(D35,2)-ROUND(C35,2) -> 0 | F30: F | S30: Outros: | T30: =ROUND(T35,2) -> 0 | U30: =ROUND(U35,2)-ROUND(T35,2) -> 0 | V30: 0 | W30: 0 | X30: 0 | Y30: 0 | Z30: 0 | AA30: 0 | AB30: 0 | AC30: 0 | AD30: 0 | AE30: 0
D31: =ROUND(D36,2)-ROUND(C36,2) -> 864.78 | F31: F | S31: Investimento: | T31: =ROUND(T36,2) -> 864.78 | U31: =ROUND(U36,2)-ROUND(T36,2) -> 174819.05 | V31: 0 | W31: 0 | X31: 0 | Y31: 0 | Z31: 0 | AA31: 0 | AB31: 0 | AC31: 0 | AD31: 0 | AE31: 0
D32: =D36/$Q$27 -> 0.004922365365 | F32: F | S32: %: | T32: =ROUND(T36,2)/$Q$27 -> 0.004922365365 | U32: =ROUND(U36,2)/$Q$27 -> 1 | V32: 1 | W32: 1 | X32: 1 | Y32: 1 | Z32: 1 | AA32: 1 | AB32: 1 | AC32: 1 | AD32: 1 | AE32: 1
D33: =ROUND(D36-D35-D34,2) ->  | F33: F | S33: =IF(import.recurso="FGTS","Financiamento:","Repasse:") -> Repasse: | T33: =ROUND(T36-T35-T34,2) ->  | U33: =ROUND(U36-U35-U34,2) ->  | AF33: =AE33+SUMPRODUCT((OFFSET($B$13,1,0):OFFSET($B$26,-3,0))*IF(ISNUMBER(OFFSET(AF$11,5,0):OFFSET(AF$26,-1,0)),OFFSET(AF$11,5,0):OFFSET(AF$26,-1,0),0)) -> 
D34: =C34+SUM((OFFSET($B$13,1,0):OFFSET($B$26,-3,0))*IF(ISNUMBER(OFFSET(D$11,5,0):OFFSET(D$26,-1,0)),OFFSET(D$11,5,0):OFFSET(D$26,-1,0),0)) ->  | F34: F | K34: Acumulado: | S34: Contrapartida: | T34: =SUM((OFFSET($B$13,1,0):OFFSET($B$26,-3,0))*IF(ISNUMBER(OFFSET(T$11,5,0):OFFSET(T$26,-1,0)),OFFSET(T$11,5,0):OFFSET(T$26,-1,0),0)) ->  | U34: =T34+SUM((OFFSET($B$13,1,0):OFFSET($B$26,-3,0))*IF(ISNUMBER(OFFSET(U$11,5,0):OFFSET(U$26,-1,0)),OFFSET(U$11,5,0):OFFSET(U$26,-1,0),0)) ->  | V34: =U34+SUM((OFFSET($B$13,1,0):OFFSET($B$26,-3,0))*IF(ISNUMBER(OFFSET(V$11,5,0):OFFSET(V$26,-1,0)),OFFSET(V$11,5,0):OFFSET(V$26,-1,0),0)) ->  | W34: =V34+SUM((OFFSET($B$13,1,0):OFFSET($B$26,-3,0))*IF(ISNUMBER(OFFSET(W$11,5,0):OFFSET(W$26,-1,0)),OFFSET(W$11,5,0):OFFSET(W$26,-1,0),0)) ->  | X34: =W34+SUM((OFFSET($B$13,1,0):OFFSET($B$26,-3,0))*IF(ISNUMBER(OFFSET(X$11,5,0):OFFSET(X$26,-1,0)),OFFSET(X$11,5,0):OFFSET(X$26,-1,0),0)) ->  | Y34: =X34+SUM((OFFSET($B$13,1,0):OFFSET($B$26,-3,0))*IF(ISNUMBER(OFFSET(Y$11,5,0):OFFSET(Y$26,-1,0)),OFFSET(Y$11,5,0):OFFSET(Y$26,-1,0),0)) ->  | Z34: =Y34+SUM((OFFSET($B$13,1,0):OFFSET($B$26,-3,0))*IF(ISNUMBER(OFFSET(Z$11,5,0):OFFSET(Z$26,-1,0)),OFFSET(Z$11,5,0):OFFSET(Z$26,-1,0),0)) ->  | AA34: =Z34+SUM((OFFSET($B$13,1,0):OFFSET($B$26,-3,0))*IF(ISNUMBER(OFFSET(AA$11,5,0):OFFSET(AA$26,-1,0)),OFFSET(AA$11,5,0):OFFSET(AA$26,-1,0),0)) ->  | AB34: =AA34+SUM((OFFSET($B$13,1,0):OFFSET($B$26,-3,0))*IF(ISNUMBER(OFFSET(AB$11,5,0):OFFSET(AB$26,-1,0)),OFFSET(AB$11,5,0):OFFSET(AB$26,-1,0),0)) ->  | AC34: =AB34+SUM((OFFSET($B$13,1,0):OFFSET($B$26,-3,0))*IF(ISNUMBER(OFFSET(AC$11,5,0):OFFSET(AC$26,-1,0)),OFFSET(AC$11,5,0):OFFSET(AC$26,-1,0),0)) ->  | AD34: =AC34+SUM((OFFSET($B$13,1,0):OFFSET($B$26,-3,0))*IF(ISNUMBER(OFFSET(AD$11,5,0):OFFSET(AD$26,-1,0)),OFFSET(AD$11,5,0):OFFSET(AD$26,-1,0),0)) ->  | AE34: =AD34+SUM((OFFSET($B$13,1,0):OFFSET($B$26,-3,0))*IF(ISNUMBER(OFFSET(AE$11,5,0):OFFSET(AE$26,-1,0)),OFFSET(AE$11,5,0):OFFSET(AE$26,-1,0),0)) ->  | AF34: =AE34+SUMPRODUCT((OFFSET($C$13,1,0):OFFSET($C$26,-3,0))*IF(ISNUMBER(OFFSET(AF$11,5,0):OFFSET(AF$26,-1,0)),OFFSET(AF$11,5,0):OFFSET(AF$26,-1,0),0)) -> 
D35: =C35+SUM((OFFSET($C$13,1,0):OFFSET($C$26,-3,0))*IF(ISNUMBER(OFFSET(D$11,5,0):OFFSET(D$26,-1,0)),OFFSET(D$11,5,0):OFFSET(D$26,-1,0),0)) -> 0 | F35: F | S35: Outros: | T35: =SUM((OFFSET($C$13,1,0):OFFSET($C$26,-3,0))*IF(ISNUMBER(OFFSET(T$11,5,0):OFFSET(T$26,-1,0)),OFFSET(T$11,5,0):OFFSET(T$26,-1,0),0)) -> 0 | U35: =T35+SUM((OFFSET($C$13,1,0):OFFSET($C$26,-3,0))*IF(ISNUMBER(OFFSET(U$11,5,0):OFFSET(U$26,-1,0)),OFFSET(U$11,5,0):OFFSET(U$26,-1,0),0)) -> 0 | V35: =U35+SUM((OFFSET($C$13,1,0):OFFSET($C$26,-3,0))*IF(ISNUMBER(OFFSET(V$11,5,0):OFFSET(V$26,-1,0)),OFFSET(V$11,5,0):OFFSET(V$26,-1,0),0)) -> 0 | W35: =V35+SUM((OFFSET($C$13,1,0):OFFSET($C$26,-3,0))*IF(ISNUMBER(OFFSET(W$11,5,0):OFFSET(W$26,-1,0)),OFFSET(W$11,5,0):OFFSET(W$26,-1,0),0)) -> 0 | X35: =W35+SUM((OFFSET($C$13,1,0):OFFSET($C$26,-3,0))*IF(ISNUMBER(OFFSET(X$11,5,0):OFFSET(X$26,-1,0)),OFFSET(X$11,5,0):OFFSET(X$26,-1,0),0)) -> 0 | Y35: =X35+SUM((OFFSET($C$13,1,0):OFFSET($C$26,-3,0))*IF(ISNUMBER(OFFSET(Y$11,5,0):OFFSET(Y$26,-1,0)),OFFSET(Y$11,5,0):OFFSET(Y$26,-1,0),0)) -> 0 | Z35: =Y35+SUM((OFFSET($C$13,1,0):OFFSET($C$26,-3,0))*IF(ISNUMBER(OFFSET(Z$11,5,0):OFFSET(Z$26,-1,0)),OFFSET(Z$11,5,0):OFFSET(Z$26,-1,0),0)) -> 0 | AA35: =Z35+SUM((OFFSET($C$13,1,0):OFFSET($C$26,-3,0))*IF(ISNUMBER(OFFSET(AA$11,5,0):OFFSET(AA$26,-1,0)),OFFSET(AA$11,5,0):OFFSET(AA$26,-1,0),0)) -> 0 | AB35: =AA35+SUM((OFFSET($C$13,1,0):OFFSET($C$26,-3,0))*IF(ISNUMBER(OFFSET(AB$11,5,0):OFFSET(AB$26,-1,0)),OFFSET(AB$11,5,0):OFFSET(AB$26,-1,0),0)) -> 0 | AC35: =AB35+SUM((OFFSET($C$13,1,0):OFFSET($C$26,-3,0))*IF(ISNUMBER(OFFSET(AC$11,5,0):OFFSET(AC$26,-1,0)),OFFSET(AC$11,5,0):OFFSET(AC$26,-1,0),0)) -> 0 | AD35: =AC35+SUM((OFFSET($C$13,1,0):OFFSET($C$26,-3,0))*IF(ISNUMBER(OFFSET(AD$11,5,0):OFFSET(AD$26,-1,0)),OFFSET(AD$11,5,0):OFFSET(AD$26,-1,0),0)) -> 0 | AE35: =AD35+SUM((OFFSET($C$13,1,0):OFFSET($C$26,-3,0))*IF(ISNUMBER(OFFSET(AE$11,5,0):OFFSET(AE$26,-1,0)),OFFSET(AE$11,5,0):OFFSET(AE$26,-1,0),0)) -> 0 | AF35: =ROUND(AF36-AF33-AF34,2) -> 
D36: =C36+SUMIF($R$12:$R$26,"1$",D12:D26) -> 864.78 | F36: F | S36: Investimento: | T36: =SUMIF($R$12:$R$26,"1$",T12:T26) -> 864.78 | U36: =T36+SUMIF($R$12:$R$26,"1$",U12:U26) -> 175683.83 | V36: 175683.83 | W36: 175683.83 | X36: 175683.83 | Y36: 175683.83 | Z36: 175683.83 | AA36: 175683.83 | AB36: 175683.83 | AC36: 175683.83 | AD36: 175683.83 | AE36: 175683.83 | AF36: 175683.83
F37: F
F38: F | H38: =Import.Município -> Lacerdópolis/SC
F39: F | H39: Local | Z39: Responsável Técnico
F40: F | Z40: =OFFSET(Import.RespOrçamento,0,-1) & " " & Import.RespOrçamento -> Nome: Max Mooshammer
F41: F | H41: =DADOS!$F$18 -> 2019-02-27 | Z41: CREA: 139.164-0
F42: F | H42: Data | Z42: ART:

Sheet CRONOPLE
A1: =IF(AUTOEVENTO="Manual",IF(OFFSET(EVENTOS!$F$14,CRONOPLE!$B1,0)>0,"F",""),IF(CRONOPLE!B1<=MAX(CÁLCULO!$M$15:$M$25),"F","")) ->  | B1: =OFFSET(B1,-1,0)+1 ->  | C1: =IF(AUTOEVENTO="Manual",IF($B1<>1,OFFSET(EVENTOS!$D$14,$B1,0),0),IF(B1<=MAX(CÁLCULO!$M$15:$M$25),VLOOKUP($B1,CÁLCULO!$M$15:$N$25,2,FALSE),0)) -> 
B5: CRONOGRAMA PREVISTO PLE
B7: 1. Digite nas células em amarelo o número do período em que os eventos serão concluídos:
B9: =IF(ACOMPANHAMENTO="BM","NO ACOMPANHAMENTO POR BM, UTILIZE A ABA CRONO",IF(MAX($B$14:$B$19)<MAX(CÁLCULO!$M$15:$M$25),"ERRO: NÚMERO DE EVENTOS INSUFICIENTE, CLIQUE EM ATUALIZAR LINHAS",IF(ROUND(OFFSET(CRONO!$AF$36,0,-1),2)<>CRONO!$Q$27,"ERRO: CRONOGRAMA NÃO FECHA 100%",""))) -> 
E11: =IF(E$12>CÁLCULO.NúmeroDeFrentes,"",OFFSET(CÁLCULO!$P$12,0,E$12)) -> ÚNICA | G11: =IF(G$12>CÁLCULO.NúmeroDeFrentes,"",OFFSET(CÁLCULO!$P$12,0,G$12)) -> ÚNICA | H11: =IF(H$12>CÁLCULO.NúmeroDeFrentes,"",OFFSET(CÁLCULO!$P$12,0,H$12)) -> 0 | I11: =IF(I$12>CÁLCULO.NúmeroDeFrentes,"",OFFSET(CÁLCULO!$P$12,0,I$12)) -> 0 | J11: =IF(J$12>CÁLCULO.NúmeroDeFrentes,"",OFFSET(CÁLCULO!$P$12,0,J$12)) -> 0 | K11: =IF(K$12>CÁLCULO.NúmeroDeFrentes,"",OFFSET(CÁLCULO!$P$12,0,K$12)) -> 0 | L11: =IF(L$12>CÁLCULO.NúmeroDeFrentes,"",OFFSET(CÁLCULO!$P$12,0,L$12)) -> 0 | M11: =IF(M$12>CÁLCULO.NúmeroDeFrentes,"",OFFSET(CÁLCULO!$P$12,0,M$12)) -> 0 | N11: =IF(N$12>CÁLCULO.NúmeroDeFrentes,"",OFFSET(CÁLCULO!$P$12,0,N$12)) -> 0 | O11: =IF(O$12>CÁLCULO.NúmeroDeFrentes,"",OFFSET(CÁLCULO!$P$12,0,O$12)) -> 0 | P11: =IF(P$12>CÁLCULO.NúmeroDeFrentes,"",OFFSET(CÁLCULO!$P$12,0,P$12)) -> 0 | Q11: =IF(Q$12>CÁLCULO.NúmeroDeFrentes,"",OFFSET(CÁLCULO!$P$12,0,Q$12)) ->  | R11: =IF(R$12>CÁLCULO.NúmeroDeFrentes,"",OFFSET(CÁLCULO!$P$12,0,R$12)) ->  | S11: =IF(S$12>CÁLCULO.NúmeroDeFrentes,"",OFFSET(CÁLCULO!$P$12,0,S$12)) ->  | T11: =IF(T$12>CÁLCULO.NúmeroDeFrentes,"",OFFSET(CÁLCULO!$P$12,0,T$12)) ->  | U11: =IF(U$12>CÁLCULO.NúmeroDeFrentes,"",OFFSET(CÁLCULO!$P$12,0,U$12)) ->  | V11: =IF(V$12>CÁLCULO.NúmeroDeFrentes,"",OFFSET(CÁLCULO!$P$12,0,V$12)) ->  | W11: =IF(W$12>CÁLCULO.NúmeroDeFrentes,"",OFFSET(CÁLCULO!$P$12,0,W$12)) ->  | X11: =IF(X$12>CÁLCULO.NúmeroDeFrentes,"",OFFSET(CÁLCULO!$P$12,0,X$12)) ->  | Y11: =IF(Y$12>CÁLCULO.NúmeroDeFrentes,"",OFFSET(CÁLCULO!$P$12,0,Y$12)) ->  | Z11: =IF(Z$12>CÁLCULO.NúmeroDeFrentes,"",OFFSET(CÁLCULO!$P$12,0,Z$12)) ->  | AA11: =IF(AA$12>CÁLCULO.NúmeroDeFrentes,"",OFFSET(CÁLCULO!$P$12,0,AA$12)) ->  | AB11: =IF(AB$12>CÁLCULO.NúmeroDeFrentes,"",OFFSET(CÁLCULO!$P$12,0,AB$12)) ->  | AC11: =IF(AC$12>CÁLCULO.NúmeroDeFrentes,"",OFFSET(CÁLCULO!$P$12,0,AC$12)) ->  | AD11: =IF(AD$12>CÁLCULO.NúmeroDeFrentes,"",OFFSET(CÁLCULO!$P$12,0,AD$12)) ->  | AE11: =IF(AE$12>CÁLCULO.NúmeroDeFrentes,"",OFFSET(CÁLCULO!$P$12,0,AE$12)) -> 
B12: Nº do Evento | C12: Título dos Eventos | E12: =OFFSET(E12,0,-1)+1 -> 1 | G12: =OFFSET(G12,0,-1)+1 -> 1 | H12: =OFFSET(H12,0,-1)+1 -> 2 | I12: =OFFSET(I12,0,-1)+1 -> 3 | J12: 4 | K12: 5 | L12: 6 | M12: 7 | N12: 8 | O12: 9 | P12: 10 | Q12: 11 | R12: 12 | S12: 13 | T12: 14 | U12: 15 | V12: 16 | W12: 17 | X12: 18 | Y12: 19 | Z12: 20 | AA12: 21 | AB12: 22 | AC12: 23 | AD12: 24 | AE12: 25
M13: Informe abaixo o NÚMERO DO PERÍODO em que os eventos serão concluídos
B15: 1 | C15: Administração Local | G15: =IF(AUTOEVENTO="MANUAL","A administração local será proporcional a execução dos demais eventos, independente de frentes de obra.","Para aplicação de Adm. Local é necessário definir os eventos manualmente.") -> Para aplicação de Adm. Local é necessário definir os eventos manualmente.
A16: =IF(AUTOEVENTO="Manual",IF(OFFSET(EVENTOS!$F$14,CRONOPLE!$B16,0)>0,"F",""),IF(CRONOPLE!B16<=MAX(CÁLCULO!$M$15:$M$25),"F","")) -> F | B16: =OFFSET(B16,-1,0)+1 -> 2 | C16: =IF(AUTOEVENTO="Manual",IF($B16<>1,OFFSET(EVENTOS!$D$14,$B16,0),0),IF(B16<=MAX(CÁLCULO!$M$15:$M$25),VLOOKUP($B16,CÁLCULO!$M$15:$N$25,2,FALSE),0)) -> Serviços Iniciais | G16: 1
A17: =IF(AUTOEVENTO="Manual",IF(OFFSET(EVENTOS!$F$14,CRONOPLE!$B17,0)>0,"F",""),IF(CRONOPLE!B17<=MAX(CÁLCULO!$M$15:$M$25),"F","")) -> F | B17: =OFFSET(B17,-1,0)+1 -> 3 | C17: =IF(AUTOEVENTO="Manual",IF($B17<>1,OFFSET(EVENTOS!$D$14,$B17,0),0),IF(B17<=MAX(CÁLCULO!$M$15:$M$25),VLOOKUP($B17,CÁLCULO!$M$15:$N$25,2,FALSE),0)) -> PAVIMENTAÇÃO | G17: 2
A18: =IF(AUTOEVENTO="Manual",IF(OFFSET(EVENTOS!$F$14,CRONOPLE!$B18,0)>0,"F",""),IF(CRONOPLE!B18<=MAX(CÁLCULO!$M$15:$M$25),"F","")) -> F | B18: =OFFSET(B18,-1,0)+1 -> 4 | C18: =IF(AUTOEVENTO="Manual",IF($B18<>1,OFFSET(EVENTOS!$D$14,$B18,0),0),IF(B18<=MAX(CÁLCULO!$M$15:$M$25),VLOOKUP($B18,CÁLCULO!$M$15:$N$25,2,FALSE),0)) -> Serviços Finais | G18: 2

Sheet PLE
A1: =IF(AUTOEVENTO="Manual",IF(OFFSET(EVENTOS!$F$14,PLE!$B1,0)>0,"F",""),IF(PLE!B1<=MAX(CÁLCULO!$M$15:$M$25),"F","")) ->  | B1: =OFFSET(B1,-1,0)+1 ->  | C1: =IF(AUTOEVENTO="Manual",IF($B1<>1,OFFSET(EVENTOS!$D$14,$B1,0),0),IF(B1<=MAX(CÁLCULO!$M$15:$M$25),VLOOKUP($B1,CÁLCULO!$M$15:$N$25,2,FALSE),0)) -> 
H3: PLE - PLANILHA DE LEVANTAMENTO DE EVENTOS | AD3: Grau de Sigilo
H4: =import.recurso -> 0 | AD4: #PUBLICO
H6: PROPONENTE TOMADOR | O6: APELIDO EMPREENDIMENTO
H7: =Import.Proponente -> PREFEITURA MUNICIPAL DE LACERDÓPOLIS | O7: =Import.Apelido -> REFORMA QUADRA GINÁSIO MUNICIPAL
A9: 0 | I9: Medição: | J9: 1 | M9: Período: | N9: =TEXT(IF(PLE.Medicao=1,Import.DataInicioObra,OFFSET($H$22,0,1+(PLE.Medicao-$I$23)*2-2)+1),"dd/mm/aaaa")&" a "&TEXT(OFFSET($H$22,0,1+(PLE.Medicao-$I$23)*2),"dd/mm/aaaa") -> 00/01/1900 a 00/01/1900 | X9: % Realizado Período.: | Y9: =OFFSET($I$23,1+8*(ROUNDUP(($J$9-0)/((COLUMN($AG$14)-COLUMN($G$14)-1)/25*12),0)-1),ROUNDDOWN((($J$9-0)-OFFSET($I$23,8*(ROUNDUP(($J$9-0)/((COLUMN($AG$14)-COLUMN($G$14)-1)/25*12),0)-1),0))*(2+1/12),0)) -> 0 | AD9: % Realizado Acum.: | AE9: =OFFSET($I$23,3+8*(ROUNDUP(($J$9-0)/((COLUMN($AG$14)-COLUMN($G$14)-1)/25*12),0)-1),ROUNDDOWN((($J$9-0)-OFFSET($I$23,8*(ROUNDUP(($J$9-0)/((COLUMN($AG$14)-COLUMN($G$14)-1)/25*12),0)-1),0))*(2+1/12),0)) -> 0
A11: Filtro | C11: =IF(TIPOORCAMENTO="proposto","ALTERE O TIPO DE ORÇAMENTO NA ABA 'MENU' PARA LICITADO.",IF(ACOMPANHAMENTO="BM","FOI SELECIONADO NA ABA 'MENU' O ACOMPANHAMENTO POR BM.","")) -> ALTERE O TIPO DE ORÇAMENTO NA ABA 'MENU' PARA LICITADO. | F11: =IF(F$12>CÁLCULO.NúmeroDeFrentes,"",OFFSET(CÁLCULO!$P$12,0,F$12)) -> ÚNICA | H11: =IF(H$12>CÁLCULO.NúmeroDeFrentes,"",OFFSET(CÁLCULO!$P$12,0,H$12)) -> ÚNICA | I11: =IF(I$12>CÁLCULO.NúmeroDeFrentes,"",OFFSET(CÁLCULO!$P$12,0,I$12)) -> 0 | J11: =IF(J$12>CÁLCULO.NúmeroDeFrentes,"",OFFSET(CÁLCULO!$P$12,0,J$12)) -> 0 | K11: =IF(K$12>CÁLCULO.NúmeroDeFrentes,"",OFFSET(CÁLCULO!$P$12,0,K$12)) -> 0 | L11: =IF(L$12>CÁLCULO.NúmeroDeFrentes,"",OFFSET(CÁLCULO!$P$12,0,L$12)) -> 0 | M11: =IF(M$12>CÁLCULO.NúmeroDeFrentes,"",OFFSET(CÁLCULO!$P$12,0,M$12)) -> 0 | N11: =IF(N$12>CÁLCULO.NúmeroDeFrentes,"",OFFSET(CÁLCULO!$P$12,0,N$12)) -> 0 | O11: =IF(O$12>CÁLCULO.NúmeroDeFrentes,"",OFFSET(CÁLCULO!$P$12,0,O$12)) -> 0 | P11: =IF(P$12>CÁLCULO.NúmeroDeFrentes,"",OFFSET(CÁLCULO!$P$12,0,P$12)) -> 0 | Q11: =IF(Q$12>CÁLCULO.NúmeroDeFrentes,"",OFFSET(CÁLCULO!$P$12,0,Q$12)) -> 0 | R11: =IF(R$12>CÁLCULO.NúmeroDeFrentes,"",OFFSET(CÁLCULO!$P$12,0,R$12)) ->  | S11: =IF(S$12>CÁLCULO.NúmeroDeFrentes,"",OFFSET(CÁLCULO!$P$12,0,S$12)) ->  | T11: =IF(T$12>CÁLCULO.NúmeroDeFrentes,"",OFFSET(CÁLCULO!$P$12,0,T$12)) ->  | U11: =IF(U$12>CÁLCULO.NúmeroDeFrentes,"",OFFSET(CÁLCULO!$P$12,0,U$12)) ->  | V11: =IF(V$12>CÁLCULO.NúmeroDeFrentes,"",OFFSET(CÁLCULO!$P$12,0,V$12)) ->  | W11: =IF(W$12>CÁLCULO.NúmeroDeFrentes,"",OFFSET(CÁLCULO!$P$12,0,W$12)) ->  | X11: =IF(X$12>CÁLCULO.NúmeroDeFrentes,"",OFFSET(CÁLCULO!$P$12,0,X$12)) ->  | Y11: =IF(Y$12>CÁLCULO.NúmeroDeFrentes,"",OFFSET(CÁLCULO!$P$12,0,Y$12)) ->  | Z11: =IF(Z$12>CÁLCULO.NúmeroDeFrentes,"",OFFSET(CÁLCULO!$P$12,0,Z$12)) ->  | AA11: =IF(AA$12>CÁLCULO.NúmeroDeFrentes,"",OFFSET(CÁLCULO!$P$12,0,AA$12)) ->  | AB11: =IF(AB$12>CÁLCULO.NúmeroDeFrentes,"",OFFSET(CÁLCULO!$P$12,0,AB$12)) ->  | AC11: =IF(AC$12>CÁLCULO.NúmeroDeFrentes,"",OFFSET(CÁLCULO!$P$12,0,AC$12)) ->  | AD11: =IF(AD$12>CÁLCULO.NúmeroDeFrentes,"",OFFSET(CÁLCULO!$P$12,0,AD$12)) ->  | AE11: =IF(AE$12>CÁLCULO.NúmeroDeFrentes,"",OFFSET(CÁLCULO!$P$12,0,AE$12)) ->  | AF11: =IF(AF$12>CÁLCULO.NúmeroDeFrentes,"",OFFSET(CÁLCULO!$P$12,0,AF$12)) -> 
A12: ↓ | B12: Nº do Evento | C12: Título dos Eventos | F12: =OFFSET(F12,0,-1)+1 -> 1 | H12: =OFFSET(H12,0,-1)+1 -> 1 | I12: =OFFSET(I12,0,-1)+1 -> 2 | J12: =OFFSET(J12,0,-1)+1 -> 3 | K12: 4 | L12: 5 | M12: 6 | N12: 7 | O12: 8 | P12: 9 | Q12: 10 | R12: 11 | S12: 12 | T12: 13 | U12: 14 | V12: 15 | W12: 16 | X12: 17 | Y12: 18 | Z12: 19 | AA12: 20 | AB12: 21 | AC12: 22 | AD12: 23 | AE12: 24 | AF12: 25
N13: Informe abaixo o NÚMERO DA MEDIÇÃO em que os eventos foram concluídos
A14: F
A15: =IF(AND(AUTOEVENTO="Manual",OFFSET(EVENTOS!$F$14,1,0)>0),"F","") ->  | B15: 1 | C15: Administração Local | H15: =IF(AUTOEVENTO="MANUAL","A administração local será proporcional a execução dos demais eventos, independente de frentes de obra.","Para aplicação de Adm. Local é necessário definir os eventos manualmente.") -> Para aplicação de Adm. Local é necessário definir os eventos manualmente.
A16: =IF(AUTOEVENTO="Manual",IF(OFFSET(EVENTOS!$F$14,PLE!$B16,0)>0,"F",""),IF(PLE!B16<=MAX(CÁLCULO!$M$15:$M$25),"F","")) -> F | B16: =OFFSET(B16,-1,0)+1 -> 2 | C16: =IF(AUTOEVENTO="Manual",IF($B16<>1,OFFSET(EVENTOS!$D$14,$B16,0),0),IF(B16<=MAX(CÁLCULO!$M$15:$M$25),VLOOKUP($B16,CÁLCULO!$M$15:$N$25,2,FALSE),0)) -> Serviços Iniciais
A17: =IF(AUTOEVENTO="Manual",IF(OFFSET(EVENTOS!$F$14,PLE!$B17,0)>0,"F",""),IF(PLE!B17<=MAX(CÁLCULO!$M$15:$M$25),"F","")) -> F | B17: =OFFSET(B17,-1,0)+1 -> 3 | C17: =IF(AUTOEVENTO="Manual",IF($B17<>1,OFFSET(EVENTOS!$D$14,$B17,0),0),IF(B17<=MAX(CÁLCULO!$M$15:$M$25),VLOOKUP($B17,CÁLCULO!$M$15:$N$25,2,FALSE),0)) -> PAVIMENTAÇÃO
A18: =IF(AUTOEVENTO="Manual",IF(OFFSET(EVENTOS!$F$14,PLE!$B18,0)>0,"F",""),IF(PLE!B18<=MAX(CÁLCULO!$M$15:$M$25),"F","")) -> F | B18: =OFFSET(B18,-1,0)+1 -> 4 | C18: =IF(AUTOEVENTO="Manual",IF($B18<>1,OFFSET(EVENTOS!$D$14,$B18,0),0),IF(B18<=MAX(CÁLCULO!$M$15:$M$25),VLOOKUP($B18,CÁLCULO!$M$15:$N$25,2,FALSE),0)) -> Serviços Finais
A19: F
A20: F
A21: F | I21: Data das Medições
A22: F
A23: F | D23: Medições | I23: =IF(PLE.Medicao<=12,1,TRUNC((PLE.Medicao - 2)/11,0) * 11 + 1) -> 1 | K23: =I23+1 -> 2 | M23: =K23+1 -> 3 | O23: =M23+1 -> 4 | Q23: =O23+1 -> 5 | S23: =Q23+1 -> 6 | U23: =S23+1 -> 7 | W23: =U23+1 -> 8 | Y23: =W23+1 -> 9 | AA23: =Y23+1 -> 10 | AC23: =AA23+1 -> 11 | AE23: =AC23+1 -> 12
A24: F | D24: Período: | H24: % | I24: =ROUND(I25,2)/ORÇAMENTO!$X$15 -> 0 | K24: =ROUND(K25,2)/ORÇAMENTO!$X$15 -> 0 | M24: =ROUND(M25,2)/ORÇAMENTO!$X$15 -> 0 | O24: =ROUND(O25,2)/ORÇAMENTO!$X$15 -> 0 | Q24: =ROUND(Q25,2)/ORÇAMENTO!$X$15 -> 0 | S24: =ROUND(S25,2)/ORÇAMENTO!$X$15 -> 0 | U24: =ROUND(U25,2)/ORÇAMENTO!$X$15 -> 0 | W24: =ROUND(W25,2)/ORÇAMENTO!$X$15 -> 0 | Y24: =ROUND(Y25,2)/ORÇAMENTO!$X$15 -> 0 | AA24: =ROUND(AA25,2)/ORÇAMENTO!$X$15 -> 0 | AC24: =ROUND(AC25,2)/ORÇAMENTO!$X$15 -> 0 | AE24: =ROUND(AE25,2)/ORÇAMENTO!$X$15 -> 0
A25: F | H25: R$ | I25: =IF(I23=1,I27,ROUND(I27,2)-ROUND(SUMIF(CÁLCULO!$AX$15:$BH$25,"<="&PLE!I23-1,CÁLCULO!$AB$15:$AL$25)*(1+CÁLCULO.TotalAdmLocal/(ORÇAMENTO!$X$15-CÁLCULO.TotalAdmLocal)),2)) -> 0 | K25: =ROUND(K27,2)-ROUND(I27,2) -> 0 | M25: =ROUND(M27,2)-ROUND(K27,2) -> 0 | O25: =ROUND(O27,2)-ROUND(M27,2) -> 0 | Q25: =ROUND(Q27,2)-ROUND(O27,2) -> 0 | S25: =ROUND(S27,2)-ROUND(Q27,2) -> 0 | U25: =ROUND(U27,2)-ROUND(S27,2) -> 0 | W25: =ROUND(W27,2)-ROUND(U27,2) -> 0 | Y25: =ROUND(Y27,2)-ROUND(W27,2) -> 0 | AA25: =ROUND(AA27,2)-ROUND(Y27,2) -> 0 | AC25: =ROUND(AC27,2)-ROUND(AA27,2) -> 0 | AE25: =ROUND(AE27,2)-ROUND(AC27,2) -> 0
A26: F | D26: Acumulado: | H26: % | I26: =ROUND(I27,2)/ORÇAMENTO!$X$15 -> 0 | K26: =ROUND(K27,2)/ORÇAMENTO!$X$15 -> 0 | M26: =ROUND(M27,2)/ORÇAMENTO!$X$15 -> 0 | O26: =ROUND(O27,2)/ORÇAMENTO!$X$15 -> 0 | Q26: =ROUND(Q27,2)/ORÇAMENTO!$X$15 -> 0 | S26: =ROUND(S27,2)/ORÇAMENTO!$X$15 -> 0 | U26: =ROUND(U27,2)/ORÇAMENTO!$X$15 -> 0 | W26: =ROUND(W27,2)/ORÇAMENTO!$X$15 -> 0 | Y26: =ROUND(Y27,2)/ORÇAMENTO!$X$15 -> 0 | AA26: =ROUND(AA27,2)/ORÇAMENTO!$X$15 -> 0 | AC26: =ROUND(AC27,2)/ORÇAMENTO!$X$15 -> 0 | AE26: =ROUND(AE27,2)/ORÇAMENTO!$X$15 -> 0
A27: F | H27: R$ | I27: =SUMIF(CÁLCULO!$AX$15:$BH$25,"<="&PLE!I23,CÁLCULO!$AB$15:$AL$25)*(1+CÁLCULO.TotalAdmLocal/(ORÇAMENTO!$X$15-CÁLCULO.TotalAdmLocal)) -> 0 | K27: =SUMIF(CÁLCULO!$AX$15:$BH$25,"<="&PLE!K23,CÁLCULO!$AB$15:$AL$25)*(1+CÁLCULO.TotalAdmLocal/(ORÇAMENTO!$X$15-CÁLCULO.TotalAdmLocal)) -> 0 | M27: =SUMIF(CÁLCULO!$AX$15:$BH$25,"<="&PLE!M23,CÁLCULO!$AB$15:$AL$25)*(1+CÁLCULO.TotalAdmLocal/(ORÇAMENTO!$X$15-CÁLCULO.TotalAdmLocal)) -> 0 | O27: =SUMIF(CÁLCULO!$AX$15:$BH$25,"<="&PLE!O23,CÁLCULO!$AB$15:$AL$25)*(1+CÁLCULO.TotalAdmLocal/(ORÇAMENTO!$X$15-CÁLCULO.TotalAdmLocal)) -> 0 | Q27: =SUMIF(CÁLCULO!$AX$15:$BH$25,"<="&PLE!Q23,CÁLCULO!$AB$15:$AL$25)*(1+CÁLCULO.TotalAdmLocal/(ORÇAMENTO!$X$15-CÁLCULO.TotalAdmLocal)) -> 0 | S27: =SUMIF(CÁLCULO!$AX$15:$BH$25,"<="&PLE!S23,CÁLCULO!$AB$15:$AL$25)*(1+CÁLCULO.TotalAdmLocal/(ORÇAMENTO!$X$15-CÁLCULO.TotalAdmLocal)) -> 0 | U27: =SUMIF(CÁLCULO!$AX$15:$BH$25,"<="&PLE!U23,CÁLCULO!$AB$15:$AL$25)*(1+CÁLCULO.TotalAdmLocal/(ORÇAMENTO!$X$15-CÁLCULO.TotalAdmLocal)) -> 0 | W27: =SUMIF(CÁLCULO!$AX$15:$BH$25,"<="&PLE!W23,CÁLCULO!$AB$15:$AL$25)*(1+CÁLCULO.TotalAdmLocal/(ORÇAMENTO!$X$15-CÁLCULO.TotalAdmLocal)) -> 0 | Y27: =SUMIF(CÁLCULO!$AX$15:$BH$25,"<="&PLE!Y23,CÁLCULO!$AB$15:$AL$25)*(1+CÁLCULO.TotalAdmLocal/(ORÇAMENTO!$X$15-CÁLCULO.TotalAdmLocal)) -> 0 | AA27: =SUMIF(CÁLCULO!$AX$15:$BH$25,"<="&PLE!AA23,CÁLCULO!$AB$15:$AL$25)*(1+CÁLCULO.TotalAdmLocal/(ORÇAMENTO!$X$15-CÁLCULO.TotalAdmLocal)) -> 0 | AC27: =SUMIF(CÁLCULO!$AX$15:$BH$25,"<="&PLE!AC23,CÁLCULO!$AB$15:$AL$25)*(1+CÁLCULO.TotalAdmLocal/(ORÇAMENTO!$X$15-CÁLCULO.TotalAdmLocal)) -> 0 | AE27: =SUMIF(CÁLCULO!$AX$15:$BH$25,"<="&PLE!AE23,CÁLCULO!$AB$15:$AL$25)*(1+CÁLCULO.TotalAdmLocal/(ORÇAMENTO!$X$15-CÁLCULO.TotalAdmLocal)) -> 0
A28: F
A29: F | B29: =Import.Município -> Lacerdópolis/SC
A30: F | B30: Local | U30: Responsável Técnico pela Fiscalização
A31: F | U31: Nome: | W31: =Import.RespFiscalização -> 0
A32: F | B32: =DADOS!$F$40 -> 2019-02-27 | U32: Profissão: | W32: 0
A33: F | B33: Data | U33: CREA/CAU: | W33: 0
U34: ART/RRT: | W34: 0

Sheet QCI (hidden)
F1: QCI - Quadro de Composição do Investimento
Z2: % Maior: | AA2: % Rateio CP Fin:
D3: Nº OPERAÇÃO | F3: Nº SICONV | G3: PROPONENTE / TOMADOR | J3: MUNICÍPIO / UF | M3: VALORES CONTRATADOS (R$): | Z3: =MAX(Z7:AB7) ->  | AA3: =IF(OR($O$24=ORÇAMENTO.SumINVMANUAL+QCI.SumINVMANUAL,$O$24=0),0,MIN(MAX(0,($Z$3*$O$24-ORÇAMENTO.SumCPMANUAL-QCI.SumCPMANUAL)/($O$24-ORÇAMENTO.SumINVMANUAL-QCI.SumINVMANUAL)),1)) -> 
D4: =Import.CR ->  | F4: =Import.SICONV ->  | G4: =Import.Proponente -> PREFEITURA MUNICIPAL DE LACERDÓPOLIS | J4: =Import.Município -> Lacerdópolis/SC
D6: APELIDO DO EMPREENDIMENTO | L6: RECURSO | M6: =IF(import.recurso="FGTS","FINANCIAMENTO","REPASSE") -> REPASSE | N6: CONTRAPARTIDA | O6: INVESTIMENTO | Z6: % CP Min Prog: | AA6: % CP Absoluta: | AB6: % CP Max Rep:
C7: FILTRO | D7: =Import.Apelido -> REFORMA QUADRA GINÁSIO MUNICIPAL | L7: =import.recurso -> 0 | M7: =Import.Repasse ->  | N7: =Import.Contrapartida ->  | O7: =M7+N7 ->  | Z7: =ROUND(Import.CPMinPerc,4) ->  | AA7: =IF($O$24=0,0,Import.CPMinAbsoluta/$O$24) ->  | AB7: =IF($O$24=0,0,($O$24-$AB$24-Import.Repasse)/($O$24)) -> 
G9: =CHOOSE(1+LOG(1+2*(AND($O$24>0,$M$25>Import.CPMaxPerc,Import.CPMaxPerc>0))+4*(OR(AND($O$24>0,$M$25<QCI!$Z$7),$M$24<ROUND(Import.CPMinAbsoluta,2)))+8*(OR($L$10<0,$M$10<0))+16*(COUNTIF($L$13:$L$24,"<0")>0)+32*(OFFSET($A$24,-1,0)<OFFSET(ORÇAMENTO!$E$25,-1,0)),2),"","ERRO: CONTRAPARTIDA MAIOR QUE A MÁXIMA","ERRO: CONTRAPARTIDA MENOR QUE A MÍNIMA","ERRO: SALDO NEGATIVO","ERRO: VALORES DE REPASSE NEGATIVOS","ERRO: NÚMERO DE LINHAS DO QCI INSUFICIENTE. CLIQUE NO BOTÃO ADICIONAR LINHAS") ->  | K9: Saldo a Reprogramar | L9: =$L$13 -> Repasse (R$) | M9: Contrapartida (R$)
A10: Ordem Meta | L10: =Import.Repasse-L24 ->  | M10: =Import.Contrapartida-M24 ->  | Z10: Valores não Arredondados | AD10: Arred
Z11: Repasse (R$) | AA11: Contrapartida (R$) | AB11: Outros (R$)
A12: =IF(NOT(ISBLANK(QCI.DescManual)),OFFSET(A12,-1,0),D12) -> -1 | B12: =IF(NOT(ISBLANK(QCI.DescManual)),IF(QCI.Divisao="Calculado","Manual","SemiAuto"),IF(ISERROR(MATCH($A12,ORÇAMENTO!$E$15:$E$25,0)),"Branco","Automático")) -> Branco | C12: =IF(O12>0,"F","") ->  | D12: =ROW()-ROW($D$13) -> -1 | G12: =IF(OR($B12="Manual",$B12="SemiAuto"),QCI.DescManual,IF($B12="Automático",INDEX(ORÇAMENTO!$R$15:$R$25,MATCH($A12,ORÇAMENTO!$E$15:$E$25,0)),"")) ->  | J12: =IF(AND(ISBLANK(E12),ISBLANK(F12)),"",VLOOKUP($F12,OFFSET(DADOS!$A$2,1,MATCH(QCI!$E12,DADOS!$2:$2,0)-1,100,50),2,FALSE)) ->  | K12: =IF(OR($B12="Manual",$B12="SemiAuto"),QCI.LoteManual,IF($B12="Automático",IF(TIPOORCAMENTO="Licitado",Import.CTEF,"LOTE 1"),"")) ->  | L12: =ROUND($O12,2)-ROUND($M12,2)-ROUND($N12,2) ->  | M12: =ROUND($AA12,2)-ROUND($AE12,2) ->  | N12: =ROUND($AB12,2) -> 0 | O12: =IF($B12="Branco",0,IF(OR($B12="Manual",$B12="SemiAuto"),QCI.InvManual,INDEX(ORÇAMENTO!X$15:X$25,MATCH($A12,ORÇAMENTO!$E$15:$E$25,0)))) -> 0 | V12: Proporcional | W12: =$O12 -> 0 | X12: 0 | Z12: =$O12-$AA12-$AB12 -> 0 | AA12: =IF($B12="Branco",0,IF($B12="Manual",QCI.CPManual,IF($B12="SemiAuto",ROUND(QCI!$AA$3*QCI.InvManual,2),INDEX(ORÇAMENTO!$AA$15:$AA$25,MATCH($A12,ORÇAMENTO!$E$15:$E$25,0))))) -> 0 | AB12: =IF($B12="Branco",0,IF($B12="Manual",QCI.OutrosManual,IF($B12="SemiAuto",0,INDEX(ORÇAMENTO!$AB$15:$AB$25,MATCH($A12,ORÇAMENTO!$E$15:$E$25,0))))) -> 0 | AD12: =AND($AA$3>0,$AA$3<1,$O12>0,OR($B12="Automático",$B12="SemiAuto"),OR(QCI!$Z$3=QCI!$Z$7,QCI!$Z$3=QCI!$AA$7,QCI!$Z$3=QCI!$AB$7)) ->  | AE12: =IF(AND($AD12,$O12>0,COUNTIF(OFFSET($AD12,1,0):$AD$24,TRUE)=0),CHOOSE(1+LOG(1+2*(QCI!$Z$3=QCI!$Z$7)+4*(QCI!$Z$3=QCI!$AA$7)+8*(QCI!$Z$3=QCI!$AB$7),2),0,$AA$24-ROUND(Import.CPMinPerc*$O$24,2),$AA$24-Import.CPMinAbsoluta,Import.Repasse-$Z$24),0) -> 
A13: 0 | B13: Busca | C13: ↓ | D13: Meta | E13: Item de Investimento | F13: Subitem de Investimento | G13: Descrição da Meta | H13: Situação | I13: Quantidade | J13: Unid. | K13: Lote de Licitação / nº do CTEF | L13: =IF(import.recurso="FGTS","Financiamento (R$)","Repasse (R$)") -> Repasse (R$) | M13: Contrapartida Financeira (R$) | N13: Outros (R$) | O13: Investimento (R$) | R13: Descrição da Meta | T13: Lote de Licitação / nº do CTEF | U13: Investimento (R$) | V13: Divisão do Investimento | W13: Contrapartida Financeira (R$) | X13: Outros (R$)
A14: =IF(NOT(ISBLANK(QCI.DescManual)),OFFSET(A14,-1,0),D14) -> 1 | B14: =IF(NOT(ISBLANK(QCI.DescManual)),IF(QCI.Divisao="Calculado","Manual","SemiAuto"),IF(ISERROR(MATCH($A14,ORÇAMENTO!$E$15:$E$25,0)),"Branco","Automático")) -> Automático | C14: =IF(O14>0,"F","") -> F | D14: =ROW()-ROW($D$13) -> 1 | G14: =IF(OR($B14="Manual",$B14="SemiAuto"),QCI.DescManual,IF($B14="Automático",INDEX(ORÇAMENTO!$R$15:$R$25,MATCH($A14,ORÇAMENTO!$E$15:$E$25,0)),"")) -> REFORMA QUADRA GINÁSIO MUNICIPAL | J14: =IF(AND(ISBLANK(E14),ISBLANK(F14)),"",VLOOKUP($F14,OFFSET(DADOS!$A$2,1,MATCH(QCI!$E14,DADOS!$2:$2,0)-1,100,50),2,FALSE)) ->  | K14: =IF(OR($B14="Manual",$B14="SemiAuto"),QCI.LoteManual,IF($B14="Automático",IF(TIPOORCAMENTO="Licitado",Import.CTEF,"LOTE 1"),"")) -> LOTE 1 | L14: =ROUND($O14,2)-ROUND($M14,2)-ROUND($N14,2) ->  | M14: =ROUND($AA14,2)-ROUND($AE14,2) ->  | N14: =ROUND($AB14,2) -> 0 | O14: =IF($B14="Branco",0,IF(OR($B14="Manual",$B14="SemiAuto"),QCI.InvManual,INDEX(ORÇAMENTO!X$15:X$25,MATCH($A14,ORÇAMENTO!$E$15:$E$25,0)))) -> 175683.83 | V14: Proporcional | W14: =$O14 -> 175683.83 | X14: 0 | Z14: =$O14-$AA14-$AB14 ->  | AA14: =IF($B14="Branco",0,IF($B14="Manual",QCI.CPManual,IF($B14="SemiAuto",ROUND(QCI!$AA$3*QCI.InvManual,2),INDEX(ORÇAMENTO!$AA$15:$AA$25,MATCH($A14,ORÇAMENTO!$E$15:$E$25,0))))) ->  | AB14: =IF($B14="Branco",0,IF($B14="Manual",QCI.OutrosManual,IF($B14="SemiAuto",0,INDEX(ORÇAMENTO!$AB$15:$AB$25,MATCH($A14,ORÇAMENTO!$E$15:$E$25,0))))) -> 0 | AD14: =AND($AA$3>0,$AA$3<1,$O14>0,OR($B14="Automático",$B14="SemiAuto"),OR(QCI!$Z$3=QCI!$Z$7,QCI!$Z$3=QCI!$AA$7,QCI!$Z$3=QCI!$AB$7)) ->  | AE14: =IF(AND($AD14,$O14>0,COUNTIF(OFFSET($AD14,1,0):$AD$24,TRUE)=0),CHOOSE(1+LOG(1+2*(QCI!$Z$3=QCI!$Z$7)+4*(QCI!$Z$3=QCI!$AA$7)+8*(QCI!$Z$3=QCI!$AB$7),2),0,$AA$24-ROUND(Import.CPMinPerc*$O$24,2),$AA$24-Import.CPMinAbsoluta,Import.Repasse-$Z$24),0) -> 
A15: 2 | B15: =IF(NOT(ISBLANK(QCI.DescManual)),IF(QCI.Divisao="Calculado","Manual","SemiAuto"),IF(ISERROR(MATCH($A15,ORÇAMENTO!$E$15:$E$25,0)),"Branco","Automático")) -> Branco | D15: 2 | G15: =IF(OR($B15="Manual",$B15="SemiAuto"),QCI.DescManual,IF($B15="Automático",INDEX(ORÇAMENTO!$R$15:$R$25,MATCH($A15,ORÇAMENTO!$E$15:$E$25,0)),"")) ->  | J15: =IF(AND(ISBLANK(E15),ISBLANK(F15)),"",VLOOKUP($F15,OFFSET(DADOS!$A$2,1,MATCH(QCI!$E15,DADOS!$2:$2,0)-1,100,50),2,FALSE)) ->  | N15: 0 | O15: =IF($B15="Branco",0,IF(OR($B15="Manual",$B15="SemiAuto"),QCI.InvManual,INDEX(ORÇAMENTO!X$15:X$25,MATCH($A15,ORÇAMENTO!$E$15:$E$25,0)))) -> 0 | V15: Proporcional | W15: 0 | X15: 0 | Z15: 0 | AA15: =IF($B15="Branco",0,IF($B15="Manual",QCI.CPManual,IF($B15="SemiAuto",ROUND(QCI!$AA$3*QCI.InvManual,2),INDEX(ORÇAMENTO!$AA$15:$AA$25,MATCH($A15,ORÇAMENTO!$E$15:$E$25,0))))) -> 0 | AB15: =IF($B15="Branco",0,IF($B15="Manual",QCI.OutrosManual,IF($B15="SemiAuto",0,INDEX(ORÇAMENTO!$AB$15:$AB$25,MATCH($A15,ORÇAMENTO!$E$15:$E$25,0))))) -> 0 | AD15: =AND($AA$3>0,$AA$3<1,$O15>0,OR($B15="Automático",$B15="SemiAuto"),OR(QCI!$Z$3=QCI!$Z$7,QCI!$Z$3=QCI!$AA$7,QCI!$Z$3=QCI!$AB$7)) ->  | AE15: =IF(AND($AD15,$O15>0,COUNTIF(OFFSET($AD15,1,0):$AD$24,TRUE)=0),CHOOSE(1+LOG(1+2*(QCI!$Z$3=QCI!$Z$7)+4*(QCI!$Z$3=QCI!$AA$7)+8*(QCI!$Z$3=QCI!$AB$7),2),0,$AA$24-ROUND(Import.CPMinPerc*$O$24,2),$AA$24-Import.CPMinAbsoluta,Import.Repasse-$Z$24),0) -> 
A16: 3 | B16: =IF(NOT(ISBLANK(QCI.DescManual)),IF(QCI.Divisao="Calculado","Manual","SemiAuto"),IF(ISERROR(MATCH($A16,ORÇAMENTO!$E$15:$E$25,0)),"Branco","Automático")) -> Branco | D16: 3 | G16: =IF(OR($B16="Manual",$B16="SemiAuto"),QCI.DescManual,IF($B16="Automático",INDEX(ORÇAMENTO!$R$15:$R$25,MATCH($A16,ORÇAMENTO!$E$15:$E$25,0)),"")) ->  | J16: =IF(AND(ISBLANK(E16),ISBLANK(F16)),"",VLOOKUP($F16,OFFSET(DADOS!$A$2,1,MATCH(QCI!$E16,DADOS!$2:$2,0)-1,100,50),2,FALSE)) ->  | N16: 0 | O16: =IF($B16="Branco",0,IF(OR($B16="Manual",$B16="SemiAuto"),QCI.InvManual,INDEX(ORÇAMENTO!X$15:X$25,MATCH($A16,ORÇAMENTO!$E$15:$E$25,0)))) -> 0 | V16: Proporcional | W16: 0 | X16: 0 | Z16: 0 | AA16: =IF($B16="Branco",0,IF($B16="Manual",QCI.CPManual,IF($B16="SemiAuto",ROUND(QCI!$AA$3*QCI.InvManual,2),INDEX(ORÇAMENTO!$AA$15:$AA$25,MATCH($A16,ORÇAMENTO!$E$15:$E$25,0))))) -> 0 | AB16: =IF($B16="Branco",0,IF($B16="Manual",QCI.OutrosManual,IF($B16="SemiAuto",0,INDEX(ORÇAMENTO!$AB$15:$AB$25,MATCH($A16,ORÇAMENTO!$E$15:$E$25,0))))) -> 0 | AD16: =AND($AA$3>0,$AA$3<1,$O16>0,OR($B16="Automático",$B16="SemiAuto"),OR(QCI!$Z$3=QCI!$Z$7,QCI!$Z$3=QCI!$AA$7,QCI!$Z$3=QCI!$AB$7)) ->  | AE16: =IF(AND($AD16,$O16>0,COUNTIF(OFFSET($AD16,1,0):$AD$24,TRUE)=0),CHOOSE(1+LOG(1+2*(QCI!$Z$3=QCI!$Z$7)+4*(QCI!$Z$3=QCI!$AA$7)+8*(QCI!$Z$3=QCI!$AB$7),2),0,$AA$24-ROUND(Import.CPMinPerc*$O$24,2),$AA$24-Import.CPMinAbsoluta,Import.Repasse-$Z$24),0) -> 
A17: 4 | B17: =IF(NOT(ISBLANK(QCI.DescManual)),IF(QCI.Divisao="Calculado","Manual","SemiAuto"),IF(ISERROR(MATCH($A17,ORÇAMENTO!$E$15:$E$25,0)),"Branco","Automático")) -> Branco | D17: 4 | G17: =IF(OR($B17="Manual",$B17="SemiAuto"),QCI.DescManual,IF($B17="Automático",INDEX(ORÇAMENTO!$R$15:$R$25,MATCH($A17,ORÇAMENTO!$E$15:$E$25,0)),"")) ->  | J17: =IF(AND(ISBLANK(E17),ISBLANK(F17)),"",VLOOKUP($F17,OFFSET(DADOS!$A$2,1,MATCH(QCI!$E17,DADOS!$2:$2,0)-1,100,50),2,FALSE)) ->  | N17: 0 | O17: =IF($B17="Branco",0,IF(OR($B17="Manual",$B17="SemiAuto"),QCI.InvManual,INDEX(ORÇAMENTO!X$15:X$25,MATCH($A17,ORÇAMENTO!$E$15:$E$25,0)))) -> 0 | V17: Proporcional | W17: 0 | X17: 0 | Z17: 0 | AA17: =IF($B17="Branco",0,IF($B17="Manual",QCI.CPManual,IF($B17="SemiAuto",ROUND(QCI!$AA$3*QCI.InvManual,2),INDEX(ORÇAMENTO!$AA$15:$AA$25,MATCH($A17,ORÇAMENTO!$E$15:$E$25,0))))) -> 0 | AB17: =IF($B17="Branco",0,IF($B17="Manual",QCI.OutrosManual,IF($B17="SemiAuto",0,INDEX(ORÇAMENTO!$AB$15:$AB$25,MATCH($A17,ORÇAMENTO!$E$15:$E$25,0))))) -> 0 | AD17: =AND($AA$3>0,$AA$3<1,$O17>0,OR($B17="Automático",$B17="SemiAuto"),OR(QCI!$Z$3=QCI!$Z$7,QCI!$Z$3=QCI!$AA$7,QCI!$Z$3=QCI!$AB$7)) ->  | AE17: =IF(AND($AD17,$O17>0,COUNTIF(OFFSET($AD17,1,0):$AD$24,TRUE)=0),CHOOSE(1+LOG(1+2*(QCI!$Z$3=QCI!$Z$7)+4*(QCI!$Z$3=QCI!$AA$7)+8*(QCI!$Z$3=QCI!$AB$7),2),0,$AA$24-ROUND(Import.CPMinPerc*$O$24,2),$AA$24-Import.CPMinAbsoluta,Import.Repasse-$Z$24),0) -> 
A18: 5 | B18: =IF(NOT(ISBLANK(QCI.DescManual)),IF(QCI.Divisao="Calculado","Manual","SemiAuto"),IF(ISERROR(MATCH($A18,ORÇAMENTO!$E$15:$E$25,0)),"Branco","Automático")) -> Branco | D18: 5 | G18: =IF(OR($B18="Manual",$B18="SemiAuto"),QCI.DescManual,IF($B18="Automático",INDEX(ORÇAMENTO!$R$15:$R$25,MATCH($A18,ORÇAMENTO!$E$15:$E$25,0)),"")) ->  | J18: =IF(AND(ISBLANK(E18),ISBLANK(F18)),"",VLOOKUP($F18,OFFSET(DADOS!$A$2,1,MATCH(QCI!$E18,DADOS!$2:$2,0)-1,100,50),2,FALSE)) ->  | N18: 0 | O18: =IF($B18="Branco",0,IF(OR($B18="Manual",$B18="SemiAuto"),QCI.InvManual,INDEX(ORÇAMENTO!X$15:X$25,MATCH($A18,ORÇAMENTO!$E$15:$E$25,0)))) -> 0 | V18: Proporcional | W18: 0 | X18: 0 | Z18: 0 | AA18: =IF($B18="Branco",0,IF($B18="Manual",QCI.CPManual,IF($B18="SemiAuto",ROUND(QCI!$AA$3*QCI.InvManual,2),INDEX(ORÇAMENTO!$AA$15:$AA$25,MATCH($A18,ORÇAMENTO!$E$15:$E$25,0))))) -> 0 | AB18: =IF($B18="Branco",0,IF($B18="Manual",QCI.OutrosManual,IF($B18="SemiAuto",0,INDEX(ORÇAMENTO!$AB$15:$AB$25,MATCH($A18,ORÇAMENTO!$E$15:$E$25,0))))) -> 0 | AD18: =AND($AA$3>0,$AA$3<1,$O18>0,OR($B18="Automático",$B18="SemiAuto"),OR(QCI!$Z$3=QCI!$Z$7,QCI!$Z$3=QCI!$AA$7,QCI!$Z$3=QCI!$AB$7)) ->  | AE18: =IF(AND($AD18,$O18>0,COUNTIF(OFFSET($AD18,1,0):$AD$24,TRUE)=0),CHOOSE(1+LOG(1+2*(QCI!$Z$3=QCI!$Z$7)+4*(QCI!$Z$3=QCI!$AA$7)+8*(QCI!$Z$3=QCI!$AB$7),2),0,$AA$24-ROUND(Import.CPMinPerc*$O$24,2),$AA$24-Import.CPMinAbsoluta,Import.Repasse-$Z$24),0) -> 
A19: 6 | B19: =IF(NOT(ISBLANK(QCI.DescManual)),IF(QCI.Divisao="Calculado","Manual","SemiAuto"),IF(ISERROR(MATCH($A19,ORÇAMENTO!$E$15:$E$25,0)),"Branco","Automático")) -> Branco | D19: 6 | G19: =IF(OR($B19="Manual",$B19="SemiAuto"),QCI.DescManual,IF($B19="Automático",INDEX(ORÇAMENTO!$R$15:$R$25,MATCH($A19,ORÇAMENTO!$E$15:$E$25,0)),"")) ->  | J19: =IF(AND(ISBLANK(E19),ISBLANK(F19)),"",VLOOKUP($F19,OFFSET(DADOS!$A$2,1,MATCH(QCI!$E19,DADOS!$2:$2,0)-1,100,50),2,FALSE)) ->  | N19: 0 | O19: =IF($B19="Branco",0,IF(OR($B19="Manual",$B19="SemiAuto"),QCI.InvManual,INDEX(ORÇAMENTO!X$15:X$25,MATCH($A19,ORÇAMENTO!$E$15:$E$25,0)))) -> 0 | V19: Proporcional | W19: 0 | X19: 0 | Z19: 0 | AA19: =IF($B19="Branco",0,IF($B19="Manual",QCI.CPManual,IF($B19="SemiAuto",ROUND(QCI!$AA$3*QCI.InvManual,2),INDEX(ORÇAMENTO!$AA$15:$AA$25,MATCH($A19,ORÇAMENTO!$E$15:$E$25,0))))) -> 0 | AB19: =IF($B19="Branco",0,IF($B19="Manual",QCI.OutrosManual,IF($B19="SemiAuto",0,INDEX(ORÇAMENTO!$AB$15:$AB$25,MATCH($A19,ORÇAMENTO!$E$15:$E$25,0))))) -> 0 | AD19: =AND($AA$3>0,$AA$3<1,$O19>0,OR($B19="Automático",$B19="SemiAuto"),OR(QCI!$Z$3=QCI!$Z$7,QCI!$Z$3=QCI!$AA$7,QCI!$Z$3=QCI!$AB$7)) ->  | AE19: =IF(AND($AD19,$O19>0,COUNTIF(OFFSET($AD19,1,0):$AD$24,TRUE)=0),CHOOSE(1+LOG(1+2*(QCI!$Z$3=QCI!$Z$7)+4*(QCI!$Z$3=QCI!$AA$7)+8*(QCI!$Z$3=QCI!$AB$7),2),0,$AA$24-ROUND(Import.CPMinPerc*$O$24,2),$AA$24-Import.CPMinAbsoluta,Import.Repasse-$Z$24),0) -> 
A20: 7 | B20: =IF(NOT(ISBLANK(QCI.DescManual)),IF(QCI.Divisao="Calculado","Manual","SemiAuto"),IF(ISERROR(MATCH($A20,ORÇAMENTO!$E$15:$E$25,0)),"Branco","Automático")) -> Branco | D20: 7 | G20: =IF(OR($B20="Manual",$B20="SemiAuto"),QCI.DescManual,IF($B20="Automático",INDEX(ORÇAMENTO!$R$15:$R$25,MATCH($A20,ORÇAMENTO!$E$15:$E$25,0)),"")) ->  | J20: =IF(AND(ISBLANK(E20),ISBLANK(F20)),"",VLOOKUP($F20,OFFSET(DADOS!$A$2,1,MATCH(QCI!$E20,DADOS!$2:$2,0)-1,100,50),2,FALSE)) ->  | N20: 0 | O20: =IF($B20="Branco",0,IF(OR($B20="Manual",$B20="SemiAuto"),QCI.InvManual,INDEX(ORÇAMENTO!X$15:X$25,MATCH($A20,ORÇAMENTO!$E$15:$E$25,0)))) -> 0 | V20: Proporcional | W20: 0 | X20: 0 | Z20: 0 | AA20: =IF($B20="Branco",0,IF($B20="Manual",QCI.CPManual,IF($B20="SemiAuto",ROUND(QCI!$AA$3*QCI.InvManual,2),INDEX(ORÇAMENTO!$AA$15:$AA$25,MATCH($A20,ORÇAMENTO!$E$15:$E$25,0))))) -> 0 | AB20: =IF($B20="Branco",0,IF($B20="Manual",QCI.OutrosManual,IF($B20="SemiAuto",0,INDEX(ORÇAMENTO!$AB$15:$AB$25,MATCH($A20,ORÇAMENTO!$E$15:$E$25,0))))) -> 0 | AD20: =AND($AA$3>0,$AA$3<1,$O20>0,OR($B20="Automático",$B20="SemiAuto"),OR(QCI!$Z$3=QCI!$Z$7,QCI!$Z$3=QCI!$AA$7,QCI!$Z$3=QCI!$AB$7)) ->  | AE20: =IF(AND($AD20,$O20>0,COUNTIF(OFFSET($AD20,1,0):$AD$24,TRUE)=0),CHOOSE(1+LOG(1+2*(QCI!$Z$3=QCI!$Z$7)+4*(QCI!$Z$3=QCI!$AA$7)+8*(QCI!$Z$3=QCI!$AB$7),2),0,$AA$24-ROUND(Import.CPMinPerc*$O$24,2),$AA$24-Import.CPMinAbsoluta,Import.Repasse-$Z$24),0) -> 
A21: 8 | B21: =IF(NOT(ISBLANK(QCI.DescManual)),IF(QCI.Divisao="Calculado","Manual","SemiAuto"),IF(ISERROR(MATCH($A21,ORÇAMENTO!$E$15:$E$25,0)),"Branco","Automático")) -> Branco | D21: 8 | G21: =IF(OR($B21="Manual",$B21="SemiAuto"),QCI.DescManual,IF($B21="Automático",INDEX(ORÇAMENTO!$R$15:$R$25,MATCH($A21,ORÇAMENTO!$E$15:$E$25,0)),"")) ->  | J21: =IF(AND(ISBLANK(E21),ISBLANK(F21)),"",VLOOKUP($F21,OFFSET(DADOS!$A$2,1,MATCH(QCI!$E21,DADOS!$2:$2,0)-1,100,50),2,FALSE)) ->  | N21: 0 | O21: =IF($B21="Branco",0,IF(OR($B21="Manual",$B21="SemiAuto"),QCI.InvManual,INDEX(ORÇAMENTO!X$15:X$25,MATCH($A21,ORÇAMENTO!$E$15:$E$25,0)))) -> 0 | V21: Proporcional | W21: 0 | X21: 0 | Z21: 0 | AA21: =IF($B21="Branco",0,IF($B21="Manual",QCI.CPManual,IF($B21="SemiAuto",ROUND(QCI!$AA$3*QCI.InvManual,2),INDEX(ORÇAMENTO!$AA$15:$AA$25,MATCH($A21,ORÇAMENTO!$E$15:$E$25,0))))) -> 0 | AB21: =IF($B21="Branco",0,IF($B21="Manual",QCI.OutrosManual,IF($B21="SemiAuto",0,INDEX(ORÇAMENTO!$AB$15:$AB$25,MATCH($A21,ORÇAMENTO!$E$15:$E$25,0))))) -> 0 | AD21: =AND($AA$3>0,$AA$3<1,$O21>0,OR($B21="Automático",$B21="SemiAuto"),OR(QCI!$Z$3=QCI!$Z$7,QCI!$Z$3=QCI!$AA$7,QCI!$Z$3=QCI!$AB$7)) ->  | AE21: =IF(AND($AD21,$O21>0,COUNTIF(OFFSET($AD21,1,0):$AD$24,TRUE)=0),CHOOSE(1+LOG(1+2*(QCI!$Z$3=QCI!$Z$7)+4*(QCI!$Z$3=QCI!$AA$7)+8*(QCI!$Z$3=QCI!$AB$7),2),0,$AA$24-ROUND(Import.CPMinPerc*$O$24,2),$AA$24-Import.CPMinAbsoluta,Import.Repasse-$Z$24),0) -> 
A22: 9 | B22: =IF(NOT(ISBLANK(QCI.DescManual)),IF(QCI.Divisao="Calculado","Manual","SemiAuto"),IF(ISERROR(MATCH($A22,ORÇAMENTO!$E$15:$E$25,0)),"Branco","Automático")) -> Branco | D22: 9 | G22: =IF(OR($B22="Manual",$B22="SemiAuto"),QCI.DescManual,IF($B22="Automático",INDEX(ORÇAMENTO!$R$15:$R$25,MATCH($A22,ORÇAMENTO!$E$15:$E$25,0)),"")) ->  | J22: =IF(AND(ISBLANK(E22),ISBLANK(F22)),"",VLOOKUP($F22,OFFSET(DADOS!$A$2,1,MATCH(QCI!$E22,DADOS!$2:$2,0)-1,100,50),2,FALSE)) ->  | N22: 0 | O22: =IF($B22="Branco",0,IF(OR($B22="Manual",$B22="SemiAuto"),QCI.InvManual,INDEX(ORÇAMENTO!X$15:X$25,MATCH($A22,ORÇAMENTO!$E$15:$E$25,0)))) -> 0 | V22: Proporcional | W22: 0 | X22: 0 | Z22: 0 | AA22: =IF($B22="Branco",0,IF($B22="Manual",QCI.CPManual,IF($B22="SemiAuto",ROUND(QCI!$AA$3*QCI.InvManual,2),INDEX(ORÇAMENTO!$AA$15:$AA$25,MATCH($A22,ORÇAMENTO!$E$15:$E$25,0))))) -> 0 | AB22: =IF($B22="Branco",0,IF($B22="Manual",QCI.OutrosManual,IF($B22="SemiAuto",0,INDEX(ORÇAMENTO!$AB$15:$AB$25,MATCH($A22,ORÇAMENTO!$E$15:$E$25,0))))) -> 0 | AD22: =AND($AA$3>0,$AA$3<1,$O22>0,OR($B22="Automático",$B22="SemiAuto"),OR(QCI!$Z$3=QCI!$Z$7,QCI!$Z$3=QCI!$AA$7,QCI!$Z$3=QCI!$AB$7)) ->  | AE22: =IF(AND($AD22,$O22>0,COUNTIF(OFFSET($AD22,1,0):$AD$24,TRUE)=0),CHOOSE(1+LOG(1+2*(QCI!$Z$3=QCI!$Z$7)+4*(QCI!$Z$3=QCI!$AA$7)+8*(QCI!$Z$3=QCI!$AB$7),2),0,$AA$24-ROUND(Import.CPMinPerc*$O$24,2),$AA$24-Import.CPMinAbsoluta,Import.Repasse-$Z$24),0) -> 
A23: 10 | B23: =IF(NOT(ISBLANK(QCI.DescManual)),IF(QCI.Divisao="Calculado","Manual","SemiAuto"),IF(ISERROR(MATCH($A23,ORÇAMENTO!$E$15:$E$25,0)),"Branco","Automático")) -> Branco | C23: =IF(O23>0,"F","") ->  | D23: =ROW()-ROW($D$13) -> 10 | G23: =IF(OR($B23="Manual",$B23="SemiAuto"),QCI.DescManual,IF($B23="Automático",INDEX(ORÇAMENTO!$R$15:$R$25,MATCH($A23,ORÇAMENTO!$E$15:$E$25,0)),"")) ->  | J23: =IF(AND(ISBLANK(E23),ISBLANK(F23)),"",VLOOKUP($F23,OFFSET(DADOS!$A$2,1,MATCH(QCI!$E23,DADOS!$2:$2,0)-1,100,50),2,FALSE)) ->  | L23: =ROUND($O23,2)-ROUND($M23,2)-ROUND($N23,2) ->  | M23: =ROUND($AA23,2)-ROUND($AE23,2) ->  | N23: =ROUND($AB23,2) -> 0 | O23: =IF($B23="Branco",0,IF(OR($B23="Manual",$B23="SemiAuto"),QCI.InvManual,INDEX(ORÇAMENTO!X$15:X$25,MATCH($A23,ORÇAMENTO!$E$15:$E$25,0)))) -> 0 | V23: Proporcional | W23: =$O23 -> 0 | X23: 0 | Z23: =$O23-$AA23-$AB23 -> 0 | AA23: =IF($B23="Branco",0,IF($B23="Manual",QCI.CPManual,IF($B23="SemiAuto",ROUND(QCI!$AA$3*QCI.InvManual,2),INDEX(ORÇAMENTO!$AA$15:$AA$25,MATCH($A23,ORÇAMENTO!$E$15:$E$25,0))))) -> 0 | AB23: =IF($B23="Branco",0,IF($B23="Manual",QCI.OutrosManual,IF($B23="SemiAuto",0,INDEX(ORÇAMENTO!$AB$15:$AB$25,MATCH($A23,ORÇAMENTO!$E$15:$E$25,0))))) -> 0 | AD23: =AND($AA$3>0,$AA$3<1,$O23>0,OR($B23="Automático",$B23="SemiAuto"),OR(QCI!$Z$3=QCI!$Z$7,QCI!$Z$3=QCI!$AA$7,QCI!$Z$3=QCI!$AB$7)) ->  | AE23: =IF(AND($AD23,$O23>0,COUNTIF(OFFSET($AD23,1,0):$AD$24,TRUE)=0),CHOOSE(1+LOG(1+2*(QCI!$Z$3=QCI!$Z$7)+4*(QCI!$Z$3=QCI!$AA$7)+8*(QCI!$Z$3=QCI!$AB$7),2),0,$AA$24-ROUND(Import.CPMinPerc*$O$24,2),$AA$24-Import.CPMinAbsoluta,Import.Repasse-$Z$24),0) -> 
B24: TR$ | C24: F | K24: TOTAL | L24: =SUM(L13:OFFSET(L24,-1,0)) ->  | M24: =SUM(M13:OFFSET(M24,-1,0)) ->  | N24: =SUM(N13:OFFSET(N24,-1,0)) -> 0 | O24: =SUM(O13:OFFSET(O24,-1,0)) -> 175683.83 | Z24: =SUMPRODUCT(ROUND(Z13:OFFSET(Z24,-1,0),2)) ->  | AA24: =SUMPRODUCT(ROUND(AA13:OFFSET(AA24,-1,0),2)) ->  | AB24: =SUM(AB13:OFFSET(AB24,-1,0)) -> 0
B25: T% | C25: F | L25: =IF(ISERROR(L24/$O24),0,ROUND(L24/$O24,4)) -> 0 | M25: =IF(ISERROR(M24/$O24),0,ROUND(M24/$O24,4)) -> 0 | N25: =IF(ISERROR(N24/$O24),0,ROUND(N24/$O24,4)) -> 0 | O25: =IF(ISERROR(O24/$O24),0,ROUND(O24/$O24,4)) -> 1
D27: Observações:
D33: =Import.Município -> Lacerdópolis/SC
D34: Local | I34: Representante Tomador
I35: ="Nome:" & " " & DADOS!F21 -> Nome: Sergio Callegari
D36: =DADOS!$F$18 -> 2019-02-27 | I36: ="Cargo:" & " " & DADOS!F22 -> Cargo: Prefeito Municipal
D37: Data

Sheet BM
E1: =IF(CAIXA.Modo,"BA - Boletim de Aferição","BM - Boletim de Medição") -> BM - Boletim de Medição | O1: Grau de Sigilo
A2: Modo CAIXA | E2: =IF(Import.RegimeExecução="(SELECIONAR)","Selecione o Regime de Execução na Aba Dados",Import.RegimeExecução&" - "&import.recurso) -> Selecione o Regime de Execução na Aba Dados | O2: #PUBLICO
A3: FALSE
D4: PROPONENTE / TOMADOR | J4: APELIDO DO EMPREENDIMENTO | O4: INÍCIO DE OBRA
A5: Regime | D5: =Import.Proponente -> PREFEITURA MUNICIPAL DE LACERDÓPOLIS | J5: =Import.Apelido -> REFORMA QUADRA GINÁSIO MUNICIPAL | O5: =Import.DataInicioObra -> 00:00:00 | AO5: Fórmula CopMed
A7: =RegimeExecucao -> Unitário | D7: Nº CTEF | E7: EMPRESA EXECUTORA | F7: CNPJ | I7: =IF(TIPOORCAMENTO="Licitado","REGIME DE EXECUÇÃO","MUNICÍPIO / UF") -> MUNICÍPIO / UF | M7: PERÍODO DA MEDIÇÃO | O7: Nº MEDIÇÃO | AO7: =BM.MEDAcumulado -> 0
A8: ARREDMED | C8: FILTRO | D8: =Import.CTEF -> 0 | E8: =Import.empresa -> 0 | F8: =Import.CNPJ -> 0 | I8: =IF(TIPOORCAMENTO="Licitado",Import.RegimeExecução,Import.Município) -> Lacerdópolis/SC | M8: =TEXT(IF(BM.medicao=1,Import.DataInicioObra,OFFSET($AB$12,0,BM.medicao-1-$AB$13)+1),"dd/mm/aaaa")&" a "&TEXT(OFFSET($AB$12,0,BM.medicao-$AB$13),"dd/mm/aaaa") -> 00/01/1900 a 00/01/1900 | O8: 1
A9: TRUE
E10: =IF(ACOMPANHAMENTO="PLE","Foi selecionado na aba 'MENU' o acompanhamento por PLE.",IF(TIPOORCAMENTO="Proposto","Altere na aba 'MENU' o tipo de orçamento para 'Licitado'.","")) -> Foi selecionado na aba 'MENU' o acompanhamento por PLE. | N10: ="Realizado Acumulado: "&TEXT(ROUND($O$15/($I$15+10^-12),4),"0,00%") -> Realizado Acumulado: 0,00%
T11: Anexo | AB11: Datas das Medições
E12: Orçamento Contratado | J12: ="Evolução Física "&CHOOSE(MATCH(RegimeExecucao,{"Unitário","Global"},0),"(Qtde.)","(%)") -> Evolução Física (Qtde.) | M12: Evolução Financeira (R$) | Q12: ="Aferido (CAIXA) "&CHOOSE(MATCH(RegimeExecucao,{"Unitário","Global"},0),"(Qtde.)","(%)") -> Aferido (CAIXA) (Qtde.) | T12: Quadro de Glosas
A13: n1 | B13: Altura | C13: ↓ | D13: Item | E13: Descrição | F13: Unidade | G13: Quantidade | H13: Preço Unitário (com BDI) (R$) | I13: Preço Total (R$) | J13: Acum. Anterior | K13: Período | L13: Acum. Incluindo o Período | M13: Acum. Anterior | N13: Período | O13: Acum. Incluindo o Período | Q13: Acum. Anterior | R13: Acum. Incluindo o Período | T13: Item | U13: Descrição | V13: =IF(RegimeExecucao="Unitário","Unidade","") -> Unidade | W13: =CHOOSE(MATCH(RegimeExecucao,{"Unitário","Global"},0),"Quant. Glosada (unid)","Percentual Glosado (%)") -> Quant. Glosada (unid) | X13: =CHOOSE(MATCH(RegimeExecucao,{"Unitário","Global"},0),"Preço Unitário (R$)","Valor Total do Item (R$)") -> Preço Unitário (R$) | Y13: Valor Total Glosado (R$) | Z13: Motivo da Glosa | AB13: =IF(BM.medicao<=12,1,TRUNC((BM.medicao - 2)/11,0) * 11 + 1) -> 1 | AC13: =OFFSET(AC13,0,-1)+1 -> 2 | AD13: =OFFSET(AD13,0,-1)+1 -> 3 | AE13: 4 | AF13: 5 | AG13: 6 | AH13: 7 | AI13: 8 | AJ13: 9 | AK13: 10 | AL13: 11 | AM13: 12 | AO13: Valor Total Medido (R$)
A14: =ORÇAMENTO!C14 -> S | B14: =ORÇAMENTO!D14 -> 0 | C14: =IF(OR($I14>0,$A14=1,$A14=2,$A14=3,$A14=4),"F","") ->  | D14: =ORÇAMENTO!O14 -> - | E14: =ORÇAMENTO.Descricao -> (abra o arquivo 'Referência 11-2018.xls) | F14: =IF(RegimeExecucao="Global","",ORÇAMENTO.Unidade) -> - | G14: =IF(RegimeExecucao="Global","",ORÇAMENTO!T14) -> 0 | H14: =IF(RegimeExecucao="Global","",ORÇAMENTO!W14) -> 0 | I14: =ORÇAMENTO!X14 -> 0 | J14: =IF($A14="S",IF(CAIXA.Modo,BM.AFAnterior,BM.MEDAnterior),IF(AND(RegimeExecucao="Global",$I14>0,COUNTIF($AB$13:$AM$13,BM.medicao-1)>0),M14/$I14*100,0)) -> 0 | K14: =L14-J14 -> 0 | L14: =IF($A14="S",IF(CAIXA.Modo,BM.AFAcumulado,BM.MEDAcumulado),IF(AND(RegimeExecucao="Global",$I14>0,COUNTIF($AB$13:$AM$13,BM.medicao)>0),O14/$I14*100,0)) -> 0 | M14: =IF($A14="S",VTOTALBM,IF($A14=0,0,ROUND(SomaAgrupBM,15-13*ORÇAMENTO!$AF$11))) -> 0 | N14: =O14-M14 -> 0 | O14: =IF($A14="S",VTOTALBM,IF($A14=0,0,ROUND(SomaAgrupBM,15-13*ORÇAMENTO!$AF$11))) -> 0 | T14: =IF($W14>0,$D14,"") ->  | U14: =IF($W14>0,$E14,"") ->  | V14: =IF(AND($W14>0,RegimeExecucao="Unitário"),$F14,"") ->  | W14: =IF($Y14>0,CHOOSE(MATCH(RegimeExecucao,{"Unitário","Global"},0),IF($A14="S",$Y14/$X14,""),($Y14/$X14)*100),0) -> 0 | X14: =IF($Y14>0,CHOOSE(MATCH(RegimeExecucao,{"Unitário","Global"},0),IF($A14="S",ROUND($H14,ORÇAMENTO!$AF$10),""),ROUND($I14,ORÇAMENTO!$AF$11)),"") ->  | Y14: =AO14-O14 -> 0 | AO14: =IF($A14="S",IF(BM!$I14=0,0,CHOOSE(MATCH(RegimeExecucao,{"Global","Unitário"},0),ROUND(ROUND(BM.MEDAcumulado,15-13*BM!$A$9)/100*BM!$I14,15-13*ORÇAMENTO!$AF$11),ROUND(ROUND(BM.MEDAcumulado,15-13*BM!$A$9)*ROUND(BM!$H14,15-13*ORÇAMENTO!$AF$10),15-13*ORÇAMENTO!$AF$11))),IF($A14=0,0,ROUND(SomaAgrupBM,15-13*ORÇAMENTO!$AF$11))) -> 0
C15: F | D15: ="Objeto do CTEF: "&Import.DescLote -> Objeto do CTEF: Associação dos Municípios do Meio Oeste Catarinense | H15: TOTAL: | I15: =IF(OR(ACOMPANHAMENTO="PLE",TIPOORCAMENTO="Proposto"),0,ORÇAMENTO!$X$15) -> 0 | J15: =IF(M$15=0,0,IF(RegimeExecucao="Global",M$15/$I$15*100,0)) -> 0 | K15: =L15-J15 -> 0 | L15: =IF(O$15=0,0,IF(RegimeExecucao="Global",O$15/$I$15*100,0)) -> 0 | M15: =IF(OR(ACOMPANHAMENTO="PLE",TIPOORCAMENTO="Proposto"),0,SUMIF(OFFSET($A15,1,0):$A$25,"S",OFFSET(M15,1,0):M$25)) -> 0 | N15: =O15-M15 -> 0 | O15: =IF(OR(ACOMPANHAMENTO="PLE",TIPOORCAMENTO="Proposto"),0,SUMIF(OFFSET($A15,1,0):$A$25,"S",OFFSET(O15,1,0):O$25)) -> 0 | AB15: ="Preencher abaixo com a "&CHOOSE(MATCH(RegimeExecucao,{"Unitário","Global"},0),"QUANTIDADE","PORCENTAGEM")&" executada no PERÍODO" -> Preencher abaixo com a QUANTIDADE executada no PERÍODO
A16: =ORÇAMENTO!C16 -> 1 | B16: =ORÇAMENTO!D16 -> 9 | C16: =IF(OR($I16>0,$A16=1,$A16=2,$A16=3,$A16=4),"F","") -> F | D16: =ORÇAMENTO!O16 -> 1. | E16: =ORÇAMENTO.Descricao -> REFORMA QUADRA GINÁSIO MUNICIPAL | F16: =IF(RegimeExecucao="Global","",ORÇAMENTO.Unidade) -> - | G16: =IF(RegimeExecucao="Global","",ORÇAMENTO!T16) -> 0 | H16: =IF(RegimeExecucao="Global","",ORÇAMENTO!W16) -> 0 | I16: =ORÇAMENTO!X16 -> 175683.83 | J16: =IF($A16="S",IF(CAIXA.Modo,BM.AFAnterior,BM.MEDAnterior),IF(AND(RegimeExecucao="Global",$I16>0,COUNTIF($AB$13:$AM$13,BM.medicao-1)>0),M16/$I16*100,0)) -> 0 | K16: =L16-J16 -> 0 | L16: =IF($A16="S",IF(CAIXA.Modo,BM.AFAcumulado,BM.MEDAcumulado),IF(AND(RegimeExecucao="Global",$I16>0,COUNTIF($AB$13:$AM$13,BM.medicao)>0),O16/$I16*100,0)) -> 0 | M16: =IF($A16="S",VTOTALBM,IF($A16=0,0,ROUND(SomaAgrupBM,15-13*ORÇAMENTO!$AF$11))) ->  | N16: =O16-M16 ->  | O16: =IF($A16="S",VTOTALBM,IF($A16=0,0,ROUND(SomaAgrupBM,15-13*ORÇAMENTO!$AF$11))) ->  | T16: =IF($W16>0,$D16,"") ->  | U16: =IF($W16>0,$E16,"") ->  | V16: =IF(AND($W16>0,RegimeExecucao="Unitário"),$F16,"") ->  | W16: =IF($Y16>0,CHOOSE(MATCH(RegimeExecucao,{"Unitário","Global"},0),IF($A16="S",$Y16/$X16,""),($Y16/$X16)*100),0) ->  | X16: =IF($Y16>0,CHOOSE(MATCH(RegimeExecucao,{"Unitário","Global"},0),IF($A16="S",ROUND($H16,ORÇAMENTO!$AF$10),""),ROUND($I16,ORÇAMENTO!$AF$11)),"") ->  | Y16: =AO16-O16 ->  | AO16: =IF($A16="S",IF(BM!$I16=0,0,CHOOSE(MATCH(RegimeExecucao,{"Global","Unitário"},0),ROUND(ROUND(BM.MEDAcumulado,15-13*BM!$A$9)/100*BM!$I16,15-13*ORÇAMENTO!$AF$11),ROUND(ROUND(BM.MEDAcumulado,15-13*BM!$A$9)*ROUND(BM!$H16,15-13*ORÇAMENTO!$AF$10),15-13*ORÇAMENTO!$AF$11))),IF($A16=0,0,ROUND(SomaAgrupBM,15-13*ORÇAMENTO!$AF$11))) -> 0
A17: =ORÇAMENTO!C17 -> 2 | B17: =ORÇAMENTO!D17 -> 2 | C17: F | D17: =ORÇAMENTO!O17 -> 1.1. | E17: Serviços Iniciais | F17: - | G17: =IF(RegimeExecucao="Global","",ORÇAMENTO!T17) -> 0 | H17: =IF(RegimeExecucao="Global","",ORÇAMENTO!W17) -> 0 | I17: =ORÇAMENTO!X17 -> 864.78 | J17: 0 | K17: 0 | L17: 0 | M17: =IF($A17="S",VTOTALBM,IF($A17=0,0,ROUND(SomaAgrupBM,15-13*ORÇAMENTO!$AF$11))) ->  | O17: =IF($A17="S",VTOTALBM,IF($A17=0,0,ROUND(SomaAgrupBM,15-13*ORÇAMENTO!$AF$11))) ->  | W17: =IF($Y17>0,CHOOSE(MATCH(RegimeExecucao,{"Unitário","Global"},0),IF($A17="S",$Y17/$X17,""),($Y17/$X17)*100),0) ->  | X17: =IF($Y17>0,CHOOSE(MATCH(RegimeExecucao,{"Unitário","Global"},0),IF($A17="S",ROUND($H17,ORÇAMENTO!$AF$10),""),ROUND($I17,ORÇAMENTO!$AF$11)),"") ->  | AO17: =IF($A17="S",IF(BM!$I17=0,0,CHOOSE(MATCH(RegimeExecucao,{"Global","Unitário"},0),ROUND(ROUND(BM.MEDAcumulado,15-13*BM!$A$9)/100*BM!$I17,15-13*ORÇAMENTO!$AF$11),ROUND(ROUND(BM.MEDAcumulado,15-13*BM!$A$9)*ROUND(BM!$H17,15-13*ORÇAMENTO!$AF$10),15-13*ORÇAMENTO!$AF$11))),IF($A17=0,0,ROUND(SomaAgrupBM,15-13*ORÇAMENTO!$AF$11))) -> 0
A18: =ORÇAMENTO!C18 -> S | B18: =ORÇAMENTO!D18 -> 0 | C18: F | D18: =ORÇAMENTO!O18 -> 1.1.1. | E18: PLACA DE OBRA EM CHAPA DE ACO GALVANIZADO PADRÃO AMMOC | F18: M2 | G18: =IF(RegimeExecucao="Global","",ORÇAMENTO!T18) -> 2.5 | H18: =IF(RegimeExecucao="Global","",ORÇAMENTO!W18) -> 345.91 | I18: =ORÇAMENTO!X18 -> 864.78 | J18: 0 | K18: 0 | L18: 0 | M18: =IF($A18="S",VTOTALBM,IF($A18=0,0,ROUND(SomaAgrupBM,15-13*ORÇAMENTO!$AF$11))) ->  | O18: =IF($A18="S",VTOTALBM,IF($A18=0,0,ROUND(SomaAgrupBM,15-13*ORÇAMENTO!$AF$11))) ->  | W18: =IF($Y18>0,CHOOSE(MATCH(RegimeExecucao,{"Unitário","Global"},0),IF($A18="S",$Y18/$X18,""),($Y18/$X18)*100),0) ->  | X18: =IF($Y18>0,CHOOSE(MATCH(RegimeExecucao,{"Unitário","Global"},0),IF($A18="S",ROUND($H18,ORÇAMENTO!$AF$10),""),ROUND($I18,ORÇAMENTO!$AF$11)),"") ->  | AO18: =IF($A18="S",IF(BM!$I18=0,0,CHOOSE(MATCH(RegimeExecucao,{"Global","Unitário"},0),ROUND(ROUND(BM.MEDAcumulado,15-13*BM!$A$9)/100*BM!$I18,15-13*ORÇAMENTO!$AF$11),ROUND(ROUND(BM.MEDAcumulado,15-13*BM!$A$9)*ROUND(BM!$H18,15-13*ORÇAMENTO!$AF$10),15-13*ORÇAMENTO!$AF$11))),IF($A18=0,0,ROUND(SomaAgrupBM,15-13*ORÇAMENTO!$AF$11))) -> 0
A19: =ORÇAMENTO!C19 -> 2 | B19: =ORÇAMENTO!D19 -> 4 | C19: F | D19: =ORÇAMENTO!O19 -> 1.2. | E19: PAVIMENTAÇÃO | F19: - | G19: =IF(RegimeExecucao="Global","",ORÇAMENTO!T19) -> 0 | H19: =IF(RegimeExecucao="Global","",ORÇAMENTO!W19) -> 0 | I19: =ORÇAMENTO!X19 -> 174342.26 | J19: 0 | K19: 0 | L19: 0 | M19: =IF($A19="S",VTOTALBM,IF($A19=0,0,ROUND(SomaAgrupBM,15-13*ORÇAMENTO!$AF$11))) ->  | O19: =IF($A19="S",VTOTALBM,IF($A19=0,0,ROUND(SomaAgrupBM,15-13*ORÇAMENTO!$AF$11))) ->  | W19: =IF($Y19>0,CHOOSE(MATCH(RegimeExecucao,{"Unitário","Global"},0),IF($A19="S",$Y19/$X19,""),($Y19/$X19)*100),0) ->  | X19: =IF($Y19>0,CHOOSE(MATCH(RegimeExecucao,{"Unitário","Global"},0),IF($A19="S",ROUND($H19,ORÇAMENTO!$AF$10),""),ROUND($I19,ORÇAMENTO!$AF$11)),"") ->  | AO19: =IF($A19="S",IF(BM!$I19=0,0,CHOOSE(MATCH(RegimeExecucao,{"Global","Unitário"},0),ROUND(ROUND(BM.MEDAcumulado,15-13*BM!$A$9)/100*BM!$I19,15-13*ORÇAMENTO!$AF$11),ROUND(ROUND(BM.MEDAcumulado,15-13*BM!$A$9)*ROUND(BM!$H19,15-13*ORÇAMENTO!$AF$10),15-13*ORÇAMENTO!$AF$11))),IF($A19=0,0,ROUND(SomaAgrupBM,15-13*ORÇAMENTO!$AF$11))) -> 0
A20: =ORÇAMENTO!C20 -> S | B20: =ORÇAMENTO!D20 -> 0 | C20: F | D20: =ORÇAMENTO!O20 -> 1.2.1. | E20: FORNECIMENTO/INSTALACAO LONA PLASTICA PRETA, PARA IMPERMEABILIZACAO, ESPESSURA 150 MICRAS. | F20: M2 | G20: =IF(RegimeExecucao="Global","",ORÇAMENTO!T20) -> 769.01 | H20: =IF(RegimeExecucao="Global","",ORÇAMENTO!W20) -> 4.94 | I20: =ORÇAMENTO!X20 -> 3798.91 | J20: 0 | K20: 0 | L20: 0 | M20: =IF($A20="S",VTOTALBM,IF($A20=0,0,ROUND(SomaAgrupBM,15-13*ORÇAMENTO!$AF$11))) ->  | O20: =IF($A20="S",VTOTALBM,IF($A20=0,0,ROUND(SomaAgrupBM,15-13*ORÇAMENTO!$AF$11))) ->  | W20: =IF($Y20>0,CHOOSE(MATCH(RegimeExecucao,{"Unitário","Global"},0),IF($A20="S",$Y20/$X20,""),($Y20/$X20)*100),0) ->  | X20: =IF($Y20>0,CHOOSE(MATCH(RegimeExecucao,{"Unitário","Global"},0),IF($A20="S",ROUND($H20,ORÇAMENTO!$AF$10),""),ROUND($I20,ORÇAMENTO!$AF$11)),"") ->  | AO20: =IF($A20="S",IF(BM!$I20=0,0,CHOOSE(MATCH(RegimeExecucao,{"Global","Unitário"},0),ROUND(ROUND(BM.MEDAcumulado,15-13*BM!$A$9)/100*BM!$I20,15-13*ORÇAMENTO!$AF$11),ROUND(ROUND(BM.MEDAcumulado,15-13*BM!$A$9)*ROUND(BM!$H20,15-13*ORÇAMENTO!$AF$10),15-13*ORÇAMENTO!$AF$11))),IF($A20=0,0,ROUND(SomaAgrupBM,15-13*ORÇAMENTO!$AF$11))) -> 0
A21: =ORÇAMENTO!C21 -> S | B21: =ORÇAMENTO!D21 -> 0 | C21: F | D21: =ORÇAMENTO!O21 -> 1.2.2. | E21: PISO EM CONCRETO 20MPA PREPARO MECANICO, ESPESSURA 7 CM, COM ARMACAO EM TELA SOLDADA, INCLUSO POLIMENTO COM DESEMPENADORA ELÉTRICA | F21: M2 | G21: =IF(RegimeExecucao="Global","",ORÇAMENTO!T21) -> 769.01 | H21: =IF(RegimeExecucao="Global","",ORÇAMENTO!W21) -> 61.77 | I21: =ORÇAMENTO!X21 -> 47501.75 | J21: 0 | K21: 0 | L21: 0 | M21: =IF($A21="S",VTOTALBM,IF($A21=0,0,ROUND(SomaAgrupBM,15-13*ORÇAMENTO!$AF$11))) ->  | O21: =IF($A21="S",VTOTALBM,IF($A21=0,0,ROUND(SomaAgrupBM,15-13*ORÇAMENTO!$AF$11))) ->  | W21: =IF($Y21>0,CHOOSE(MATCH(RegimeExecucao,{"Unitário","Global"},0),IF($A21="S",$Y21/$X21,""),($Y21/$X21)*100),0) ->  | X21: =IF($Y21>0,CHOOSE(MATCH(RegimeExecucao,{"Unitário","Global"},0),IF($A21="S",ROUND($H21,ORÇAMENTO!$AF$10),""),ROUND($I21,ORÇAMENTO!$AF$11)),"") ->  | AO21: =IF($A21="S",IF(BM!$I21=0,0,CHOOSE(MATCH(RegimeExecucao,{"Global","Unitário"},0),ROUND(ROUND(BM.MEDAcumulado,15-13*BM!$A$9)/100*BM!$I21,15-13*ORÇAMENTO!$AF$11),ROUND(ROUND(BM.MEDAcumulado,15-13*BM!$A$9)*ROUND(BM!$H21,15-13*ORÇAMENTO!$AF$10),15-13*ORÇAMENTO!$AF$11))),IF($A21=0,0,ROUND(SomaAgrupBM,15-13*ORÇAMENTO!$AF$11))) -> 0
A22: =ORÇAMENTO!C22 -> S | B22: =ORÇAMENTO!D22 -> 0 | C22: F | D22: =ORÇAMENTO!O22 -> 1.2.3. | E22: PISO MODULAR ESPORTIVO EM POLIPROPILENO COM SUPERFÍCIE EMBORRACHADA GARANTIA DE 10 ANOS E FITA PARA DEMARCAÇÃO DE MODALIDADES LARGURA 50MM, CORES VARIADAS | F22: M2 | G22: =IF(RegimeExecucao="Global","",ORÇAMENTO!T22) -> 769.01 | H22: =IF(RegimeExecucao="Global","",ORÇAMENTO!W22) -> 160 | I22: =ORÇAMENTO!X22 -> 123041.6 | J22: 0 | K22: 0 | L22: 0 | M22: =IF($A22="S",VTOTALBM,IF($A22=0,0,ROUND(SomaAgrupBM,15-13*ORÇAMENTO!$AF$11))) ->  | O22: =IF($A22="S",VTOTALBM,IF($A22=0,0,ROUND(SomaAgrupBM,15-13*ORÇAMENTO!$AF$11))) ->  | W22: =IF($Y22>0,CHOOSE(MATCH(RegimeExecucao,{"Unitário","Global"},0),IF($A22="S",$Y22/$X22,""),($Y22/$X22)*100),0) ->  | X22: =IF($Y22>0,CHOOSE(MATCH(RegimeExecucao,{"Unitário","Global"},0),IF($A22="S",ROUND($H22,ORÇAMENTO!$AF$10),""),ROUND($I22,ORÇAMENTO!$AF$11)),"") ->  | AO22: =IF($A22="S",IF(BM!$I22=0,0,CHOOSE(MATCH(RegimeExecucao,{"Global","Unitário"},0),ROUND(ROUND(BM.MEDAcumulado,15-13*BM!$A$9)/100*BM!$I22,15-13*ORÇAMENTO!$AF$11),ROUND(ROUND(BM.MEDAcumulado,15-13*BM!$A$9)*ROUND(BM!$H22,15-13*ORÇAMENTO!$AF$10),15-13*ORÇAMENTO!$AF$11))),IF($A22=0,0,ROUND(SomaAgrupBM,15-13*ORÇAMENTO!$AF$11))) -> 0
A23: =ORÇAMENTO!C23 -> 2 | B23: =ORÇAMENTO!D23 -> 2 | C23: F | D23: =ORÇAMENTO!O23 -> 1.3. | E23: Serviços Finais | F23: - | G23: =IF(RegimeExecucao="Global","",ORÇAMENTO!T23) -> 0 | H23: =IF(RegimeExecucao="Global","",ORÇAMENTO!W23) -> 0 | I23: =ORÇAMENTO!X23 -> 476.79 | J23: 0 | K23: 0 | L23: 0 | M23: =IF($A23="S",VTOTALBM,IF($A23=0,0,ROUND(SomaAgrupBM,15-13*ORÇAMENTO!$AF$11))) ->  | O23: =IF($A23="S",VTOTALBM,IF($A23=0,0,ROUND(SomaAgrupBM,15-13*ORÇAMENTO!$AF$11))) ->  | W23: =IF($Y23>0,CHOOSE(MATCH(RegimeExecucao,{"Unitário","Global"},0),IF($A23="S",$Y23/$X23,""),($Y23/$X23)*100),0) ->  | X23: =IF($Y23>0,CHOOSE(MATCH(RegimeExecucao,{"Unitário","Global"},0),IF($A23="S",ROUND($H23,ORÇAMENTO!$AF$10),""),ROUND($I23,ORÇAMENTO!$AF$11)),"") ->  | AO23: =IF($A23="S",IF(BM!$I23=0,0,CHOOSE(MATCH(RegimeExecucao,{"Global","Unitário"},0),ROUND(ROUND(BM.MEDAcumulado,15-13*BM!$A$9)/100*BM!$I23,15-13*ORÇAMENTO!$AF$11),ROUND(ROUND(BM.MEDAcumulado,15-13*BM!$A$9)*ROUND(BM!$H23,15-13*ORÇAMENTO!$AF$10),15-13*ORÇAMENTO!$AF$11))),IF($A23=0,0,ROUND(SomaAgrupBM,15-13*ORÇAMENTO!$AF$11))) -> 0
A24: =ORÇAMENTO!C24 -> S | B24: =ORÇAMENTO!D24 -> 0 | C24: F | D24: =ORÇAMENTO!O24 -> 1.3.1. | E24: LIMPEZA FINAL DE OBRA | F24: M2 | G24: =IF(RegimeExecucao="Global","",ORÇAMENTO!T24) -> 769.01 | H24: =IF(RegimeExecucao="Global","",ORÇAMENTO!W24) -> 0.62 | I24: =ORÇAMENTO!X24 -> 476.79 | J24: 0 | K24: 0 | L24: 0 | M24: =IF($A24="S",VTOTALBM,IF($A24=0,0,ROUND(SomaAgrupBM,15-13*ORÇAMENTO!$AF$11))) ->  | O24: =IF($A24="S",VTOTALBM,IF($A24=0,0,ROUND(SomaAgrupBM,15-13*ORÇAMENTO!$AF$11))) ->  | W24: =IF($Y24>0,CHOOSE(MATCH(RegimeExecucao,{"Unitário","Global"},0),IF($A24="S",$Y24/$X24,""),($Y24/$X24)*100),0) ->  | X24: =IF($Y24>0,CHOOSE(MATCH(RegimeExecucao,{"Unitário","Global"},0),IF($A24="S",ROUND($H24,ORÇAMENTO!$AF$10),""),ROUND($I24,ORÇAMENTO!$AF$11)),"") ->  | AO24: =IF($A24="S",IF(BM!$I24=0,0,CHOOSE(MATCH(RegimeExecucao,{"Global","Unitário"},0),ROUND(ROUND(BM.MEDAcumulado,15-13*BM!$A$9)/100*BM!$I24,15-13*ORÇAMENTO!$AF$11),ROUND(ROUND(BM.MEDAcumulado,15-13*BM!$A$9)*ROUND(BM!$H24,15-13*ORÇAMENTO!$AF$10),15-13*ORÇAMENTO!$AF$11))),IF($A24=0,0,ROUND(SomaAgrupBM,15-13*ORÇAMENTO!$AF$11))) -> 0
C25: F
D27: Observações: | T27: Observações
D32: =IF(OR(AND(ORÇAMENTO!$AF$7=FALSE,ORÇAMENTO!$AF$10=FALSE,RegimeExecucao="Global"),AND(ORÇAMENTO!$AF$7=FALSE,ORÇAMENTO!$AF$10=FALSE,ORÇAMENTO!$AF$11=FALSE,BM!$A$9=FALSE)),"Não foi considerado arredondamento nos valores da planilha.",CONCATENATE("Foi considerado arredondamento de duas casas decimais para ",IF(AND(RegimeExecucao="Unitário",ORÇAMENTO!$AF$7=TRUE),"Quantidade; ",""),IF(AND(RegimeExecucao="Unitário",ORÇAMENTO!$AF$10=TRUE),"Preço unitário; ",""),IF(ORÇAMENTO!$AF$11=TRUE,"Preço total; ",""),,IF(BM!$A$9=TRUE,"Medição.",""))) -> Foi considerado arredondamento de duas casas decimais para Quantidade; Preço unitário; Preço total; Medição.
D34: =IF(CAIXA.Modo,"","Os serviços medidos informados neste BM encontram-se concluídos, estão em conformidade com os projetos e especificações aceitos pela CAIXA e foram executados de acordo com as normas técnicas.") -> Os serviços medidos informados neste BM encontram-se concluídos, estão em conformidade com os projetos e especificações aceitos pela CAIXA e foram executados de acordo com as normas técnicas.
E35: =Import.Município -> Lacerdópolis/SC
E36: Local | J36: Responsável Técnico pela Fiscalização | W36: Profissional CAIXA:
J37: Nome: | K37: =Import.RespFiscalização -> 0 | W37: Nome:
E38: =DADOS!$F$40 -> 2019-02-27 | J38: Profissão: | K38: 0 | W38: Matrícula
E39: Data | J39: CREA/CAU: | K39: 0 | W39: CREA/CAU:
J40: ART/RRT: | K40: 0

Sheet RRE (hidden)
F1: =CONCATENATE("RRE - RELATÓRIO RESUMO DO EMPREENDIMENTO - ",IF(CAIXA.Modo,"CAIXA","TOMADOR")) -> RRE - RELATÓRIO RESUMO DO EMPREENDIMENTO - TOMADOR | AD1: Acum. Previsto | AE1: Acum. Chegada
AC2: =J25 -> Repasse | AD2: =AD6-AD4-AD3 ->  | AE2: =AE6-AE4-AE3 -> 
E3: PROPONENTE / TOMADOR | I3: Nº OPERAÇÃO | L3: Nº SICONV | P3: RECURSO | AC3: CP | AD3: =SUM(T13:OFFSET(T24,-1,0)) ->  | AE3: =IF(OR($O$28<$M$28,$M$26>$AD$3),MIN($M$26,$L$26),MIN($AD$3,$N$28-$N$27+$M$26)) -> 
E4: =Import.Proponente -> PREFEITURA MUNICIPAL DE LACERDÓPOLIS | I4: =Import.CR ->  | L4: =Import.SICONV ->  | M4: VALORES CONTRATADOS (R$): | P4: =import.recurso -> 0 | AC4: Outros | AD4: =SUM(U13:OFFSET(U24,-1,0)) -> 0 | AE4: =IF(OR($O$28<$M$28,$M$27>$AD$4),MIN($M$27,$L$27),MIN($AD$4,$N$28+$M$27)) -> 0
E6: APELIDO DO EMPREENDIMENTO | I6: MUNICÍPIO / UF | M6: =IF(import.recurso="FGTS","FINANCIAMENTO","REPASSE") -> REPASSE | N6: CONTRAPARTIDA | O6: INVESTIMENTO | P6: Nº RRE | AC6: Investimento | AD6: =$O$28 -> 0 | AE6: =AD6 -> 0
D7: FILTRO | E7: =Import.Apelido -> REFORMA QUADRA GINÁSIO MUNICIPAL | I7: =Import.Município -> Lacerdópolis/SC | M7: =Import.Repasse ->  | N7: =Import.Contrapartida ->  | O7: =M7+N7 ->  | P7: =IF(ACOMPANHAMENTO="PLE",PLE.Medicao,BM.medicao) -> 1
G9: Situação do TC/CR: | I9: Percentual previsto em: | L9: Saldo a Reprogramar | M9: Repasse (R$) | N9: Contrapartida (R$) | V9: Lista CTEF
G10: =IF(J10="-","-",IF($P$24<J10,"Atrasada",IF($P$24>J10,"Adiantada","Normal"))) -> Atrasada | I10: =DATE(YEAR($L$35),MONTH($L$35),1) -> 2019-02-01 | J10: =IF($I$10<DATE(YEAR(CRONO!$T$13),MONTH(CRONO!$T$13),1),0,IF($I$10>CRONO!$AE$13,1,INDEX(CRONO!$S$32:$AG$32,MATCH(RRE!$I$10,CRONO!$S$13:$AG$13,0)))) -> 1 | M10: =QCI!L10 ->  | N10: =QCI!M10 ->  | AC10: PLE | AJ10: BM
M11: =IF(CAIXA.Modo,"Valores Aferidos (R$)","Valores Medidos (R$)") -> Valores Medidos (R$) | V11: Lista CTEFs | Y11: =IF(CAIXA.Modo,"Valores Aferidos (R$)","Valores Medidos (R$)") -> Valores Medidos (R$) | AC11: Acumulado Período Anterior | AF11: Acumulado incluindo o Período | AJ11: Acumulado Período Anterior | AM11: Acumulado incluindo o Período
A12: =MATCH(E12,ORÇAMENTO!$E$15:$E$25,0)-1 ->  | B12: =IF(ISERROR($A12),NA(),OFFSET(ORÇAMENTO!$D$15,$A12,0)) ->  | C12: =QCI!B12 -> Branco | D12: =IF(L12>0,"F","") ->  | E12: =QCI!D12 -> -1 | F12: =QCI!G12 ->  | G12: =QCI!H12 -> 0 | H12: =QCI!I12 -> 0 | I12: =QCI!J12 ->  | J12: =QCI!K12 ->  | K12: =IF($C12="Automático",IF(ACOMPANHAMENTO="BM",BM.medicao,PLE.Medicao),IF(ISBLANK($X12),"",$X12)) ->  | L12: =QCI!$O12 -> 0 | M12: =ROUND(IF(C12="Automático",AE12+AL12,Y12),2) -> 0 | N12: =O12-M12 -> 0 | O12: =ROUND(IF(C12="Automático",AH12+AO12,Z12),2) -> 0 | P12: =O12/(L12+10^-12) -> 0 | R12: =ROUND(IF($C12="Automático",AC12+AJ12,$Y12*IF(ISERROR(QCI!$AA12/QCI!$O12),0,QCI!$AA12/QCI!$O12)),2) -> 0 | S12: =ROUND(IF($C12="Automático",AD12+AK12,$Y12*IF(ISERROR(QCI!$AB12/QCI!$O12),0,QCI!$AB12/QCI!$O12)),2) -> 0 | T12: =ROUND(IF($C12="Automático",AF12+AM12,$Z12*IF(ISERROR(QCI!$AA12/QCI!$O12),0,QCI!$AA12/QCI!$O12)),2) -> 0 | U12: =ROUND(IF($C12="Automático",AG12+AN12,$Z12*IF(ISERROR(QCI!$AB12/QCI!$O12),0,QCI!$AB12/QCI!$O12)),2) -> 0 | V12: =IF(AND($L12>0,$J12<>0,$J12<>"",COUNTIF($J12:$J$13,$J12)=1),OFFSET(V12,-1,0)+1,OFFSET(V12,-1,0)) -> Lista CTEFs | AC12: =IF(ACOMPANHAMENTO<>"PLE",0,SUMPRODUCT((OFFSET(CÁLCULO!$AX$15:$BH$15,$A12,0,$B12)<=(PLE.Medicao-1))*OFFSET(CÁLCULO!$AB$15:$AL$15,$A12,0,$B12)*OFFSET(ORÇAMENTO!$AA$15,$A12,0,$B12)/(OFFSET(ORÇAMENTO!$X$15,$A12,0,$B12)+10^-12))+IF(AUTOEVENTO="Manual",SUMPRODUCT((OFFSET(CÁLCULO!$M$15,$A12,0,$B12)=1)*OFFSET(ORÇAMENTO!$AA$15,$A12,0,$B12)*(PLE!$AE$9-PLE!$Y$9)),0)) ->  | AD12: =IF(ACOMPANHAMENTO<>"PLE",0,SUMPRODUCT((OFFSET(CÁLCULO!$AX$15:$BH$15,$A12,0,$B12)<=(PLE.Medicao-1))*OFFSET(CÁLCULO!$AB$15:$AL$15,$A12,0,$B12)*OFFSET(ORÇAMENTO!$AB$15,$A12,0,$B12)/(OFFSET(ORÇAMENTO!$X$15,$A12,0,$B12)+10^-12))+IF(AUTOEVENTO="Manual",SUMPRODUCT((OFFSET(CÁLCULO!$M$15,$A12,0,$B12)=1)*OFFSET(ORÇAMENTO!$AB$15,$A12,0,$B12)*(PLE!$AE$9-PLE!$Y$9)),0)) ->  | AE12: =ROUND(IF(ACOMPANHAMENTO<>"PLE",0,SUMIF(OFFSET(CÁLCULO!$AX$15:$BH$15,$A12,0,$B12),"<="&(PLE.Medicao-1),OFFSET(CÁLCULO!$AB$15:$AL$15,$A12,0,$B12))+IF(AUTOEVENTO="Manual",SUMIF(OFFSET(CÁLCULO!$M$15,$A12,0,$B12),1,OFFSET(ORÇAMENTO!$X$15,$A12,0,$B12))*(PLE!$AE$9-PLE!$Y$9),0)),2) ->  | AF12: =IF(ACOMPANHAMENTO<>"PLE",0,SUMPRODUCT((OFFSET(CÁLCULO!$AX$15:$BH$15,$A12,0,$B12)<=PLE.Medicao)*OFFSET(CÁLCULO!$AB$15:$AL$15,$A12,0,$B12)*OFFSET(ORÇAMENTO!$AA$15,$A12,0,$B12)/(OFFSET(ORÇAMENTO!$X$15,$A12,0,$B12)+10^-12))+IF(AUTOEVENTO="Manual",SUMPRODUCT((OFFSET(CÁLCULO!$M$15,$A12,0,$B12)=1)*OFFSET(ORÇAMENTO!$AA$15,$A12,0,$B12)*PLE!$AE$9),0)) ->  | AG12: =IF(ACOMPANHAMENTO<>"PLE",0,SUMPRODUCT((OFFSET(CÁLCULO!$AX$15:$BH$15,$A12,0,$B12)<=PLE.Medicao)*OFFSET(CÁLCULO!$AB$15:$AL$15,$A12,0,$B12)*OFFSET(ORÇAMENTO!$AB$15,$A12,0,$B12)/(OFFSET(ORÇAMENTO!$X$15,$A12,0,$B12)+10^-12))+IF(AUTOEVENTO="Manual",SUMPRODUCT((OFFSET(CÁLCULO!$M$15,$A12,0,$B12)=1)*OFFSET(ORÇAMENTO!$AB$15,$A12,0,$B12)*PLE!$AE$9),0)) ->  | AH12: =ROUND(IF(ACOMPANHAMENTO<>"PLE",0,SUMIF(OFFSET(CÁLCULO!$AX$15:$BH$15,$A12,0,$B12),"<="&PLE.Medicao,OFFSET(CÁLCULO!$AB$15:$AL$15,$A12,0,$B12))+IF(AUTOEVENTO="Manual",SUMIF(OFFSET(CÁLCULO!$M$15,$A12,0,$B12),1,OFFSET(ORÇAMENTO!$X$15,$A12,0,$B12))*PLE!$AE$9,0)),2) ->  | AJ12: =IF(ACOMPANHAMENTO<>"BM",0,SUMPRODUCT(OFFSET(BM!$M$15,$A12,0,$B12)*(OFFSET(BM!$A$15,$A12,0,$B12)="S")*OFFSET(ORÇAMENTO!AA$15,$A12,0,$B12)/(OFFSET(ORÇAMENTO!$X$15,$A12,0,$B12)+10^-12))) -> 0 | AK12: =IF(ACOMPANHAMENTO<>"BM",0,SUMPRODUCT(OFFSET(BM!$M$15,$A12,0,$B12)*(OFFSET(BM!$A$15,$A12,0,$B12)="S")*OFFSET(ORÇAMENTO!AB$15,$A12,0,$B12)/(OFFSET(ORÇAMENTO!$X$15,$A12,0,$B12)+10^-12))) -> 0 | AL12: =IF(ACOMPANHAMENTO<>"BM",0,OFFSET(BM!$M$15,$A12,0)) -> 0 | AM12: =IF(ACOMPANHAMENTO<>"BM",0,SUMPRODUCT(OFFSET(BM!$O$15,$A12,0,$B12)*(OFFSET(BM!$A$15,$A12,0,$B12)="S")*OFFSET(ORÇAMENTO!AA$15,$A12,0,$B12)/(OFFSET(ORÇAMENTO!$X$15,$A12,0,$B12)+10^-12))) -> 0 | AN12: =IF(ACOMPANHAMENTO<>"BM",0,SUMPRODUCT(OFFSET(BM!$O$15,$A12,0,$B12)*(OFFSET(BM!$A$15,$A12,0,$B12)="S")*OFFSET(ORÇAMENTO!AB$15,$A12,0,$B12)/(OFFSET(ORÇAMENTO!$X$15,$A12,0,$B12)+10^-12))) -> 0 | AO12: =IF(ACOMPANHAMENTO<>"BM",0,OFFSET(BM!$O$15,$A12,0)) -> 0
A13: Linha PO | B13: Altura | C13: Busca | D13: ↓ | E13: Meta | F13: Descrição da Meta | G13: Situação | H13: Quantidade | I13: Unid. | J13: Lote de Licitação / nº do CTEF | K13: BM / PLE nº | L13: Valor Total (R$) | M13: Acumulado Período Anterior | N13: No Período | O13: Acumulado incluindo o Período | P13: Execução Física Acum. | R13: Acum. Período Anterior - CP | S13: Acum. Período Anterior - Outros | T13: Acum. Incluindo Período - CP | U13: Acum. Incluindo Período - Outros | X13: BM / PLE nº | Y13: Acumulado Período Anterior | Z13: Acumulado incluindo o Período | AC13: CP | AD13: Outros | AE13: Investimento | AF13: CP | AG13: Outros | AH13: Investimento | AJ13: CP | AK13: Outros | AL13: Investimento | AM13: CP | AN13: Outros | AO13: Investimento
A14: =MATCH(E14,ORÇAMENTO!$E$15:$E$25,0)-1 -> 1 | B14: =IF(ISERROR($A14),NA(),OFFSET(ORÇAMENTO!$D$15,$A14,0)) -> 9 | C14: =QCI!B14 -> Automático | D14: =IF(L14>0,"F","") -> F | E14: =QCI!D14 -> 1 | F14: =QCI!G14 -> REFORMA QUADRA GINÁSIO MUNICIPAL | G14: =QCI!H14 -> 0 | H14: =QCI!I14 -> 0 | I14: =QCI!J14 ->  | J14: =QCI!K14 -> LOTE 1 | K14: =IF($C14="Automático",IF(ACOMPANHAMENTO="BM",BM.medicao,PLE.Medicao),IF(ISBLANK($X14),"",$X14)) -> 1 | L14: =QCI!$O14 -> 175683.83 | M14: =ROUND(IF(C14="Automático",AE14+AL14,Y14),2) -> 0 | N14: =O14-M14 -> 0 | O14: =ROUND(IF(C14="Automático",AH14+AO14,Z14),2) -> 0 | P14: =O14/(L14+10^-12) -> 0 | R14: =ROUND(IF($C14="Automático",AC14+AJ14,$Y14*IF(ISERROR(QCI!$AA14/QCI!$O14),0,QCI!$AA14/QCI!$O14)),2) ->  | S14: =ROUND(IF($C14="Automático",AD14+AK14,$Y14*IF(ISERROR(QCI!$AB14/QCI!$O14),0,QCI!$AB14/QCI!$O14)),2) -> 0 | T14: =ROUND(IF($C14="Automático",AF14+AM14,$Z14*IF(ISERROR(QCI!$AA14/QCI!$O14),0,QCI!$AA14/QCI!$O14)),2) ->  | U14: =ROUND(IF($C14="Automático",AG14+AN14,$Z14*IF(ISERROR(QCI!$AB14/QCI!$O14),0,QCI!$AB14/QCI!$O14)),2) -> 0 | V14: =IF(AND($L14>0,$J14<>0,$J14<>"",COUNTIF($J$13:$J14,$J14)=1),OFFSET(V14,-1,0)+1,OFFSET(V14,-1,0)) -> 1 | AC14: =IF(ACOMPANHAMENTO<>"PLE",0,SUMPRODUCT((OFFSET(CÁLCULO!$AX$15:$BH$15,$A14,0,$B14)<=(PLE.Medicao-1))*OFFSET(CÁLCULO!$AB$15:$AL$15,$A14,0,$B14)*OFFSET(ORÇAMENTO!$AA$15,$A14,0,$B14)/(OFFSET(ORÇAMENTO!$X$15,$A14,0,$B14)+10^-12))+IF(AUTOEVENTO="Manual",SUMPRODUCT((OFFSET(CÁLCULO!$M$15,$A14,0,$B14)=1)*OFFSET(ORÇAMENTO!$AA$15,$A14,0,$B14)*(PLE!$AE$9-PLE!$Y$9)),0)) ->  | AD14: =IF(ACOMPANHAMENTO<>"PLE",0,SUMPRODUCT((OFFSET(CÁLCULO!$AX$15:$BH$15,$A14,0,$B14)<=(PLE.Medicao-1))*OFFSET(CÁLCULO!$AB$15:$AL$15,$A14,0,$B14)*OFFSET(ORÇAMENTO!$AB$15,$A14,0,$B14)/(OFFSET(ORÇAMENTO!$X$15,$A14,0,$B14)+10^-12))+IF(AUTOEVENTO="Manual",SUMPRODUCT((OFFSET(CÁLCULO!$M$15,$A14,0,$B14)=1)*OFFSET(ORÇAMENTO!$AB$15,$A14,0,$B14)*(PLE!$AE$9-PLE!$Y$9)),0)) -> 0 | AE14: =ROUND(IF(ACOMPANHAMENTO<>"PLE",0,SUMIF(OFFSET(CÁLCULO!$AX$15:$BH$15,$A14,0,$B14),"<="&(PLE.Medicao-1),OFFSET(CÁLCULO!$AB$15:$AL$15,$A14,0,$B14))+IF(AUTOEVENTO="Manual",SUMIF(OFFSET(CÁLCULO!$M$15,$A14,0,$B14),1,OFFSET(ORÇAMENTO!$X$15,$A14,0,$B14))*(PLE!$AE$9-PLE!$Y$9),0)),2) -> 0 | AF14: =IF(ACOMPANHAMENTO<>"PLE",0,SUMPRODUCT((OFFSET(CÁLCULO!$AX$15:$BH$15,$A14,0,$B14)<=PLE.Medicao)*OFFSET(CÁLCULO!$AB$15:$AL$15,$A14,0,$B14)*OFFSET(ORÇAMENTO!$AA$15,$A14,0,$B14)/(OFFSET(ORÇAMENTO!$X$15,$A14,0,$B14)+10^-12))+IF(AUTOEVENTO="Manual",SUMPRODUCT((OFFSET(CÁLCULO!$M$15,$A14,0,$B14)=1)*OFFSET(ORÇAMENTO!$AA$15,$A14,0,$B14)*PLE!$AE$9),0)) ->  | AG14: =IF(ACOMPANHAMENTO<>"PLE",0,SUMPRODUCT((OFFSET(CÁLCULO!$AX$15:$BH$15,$A14,0,$B14)<=PLE.Medicao)*OFFSET(CÁLCULO!$AB$15:$AL$15,$A14,0,$B14)*OFFSET(ORÇAMENTO!$AB$15,$A14,0,$B14)/(OFFSET(ORÇAMENTO!$X$15,$A14,0,$B14)+10^-12))+IF(AUTOEVENTO="Manual",SUMPRODUCT((OFFSET(CÁLCULO!$M$15,$A14,0,$B14)=1)*OFFSET(ORÇAMENTO!$AB$15,$A14,0,$B14)*PLE!$AE$9),0)) -> 0 | AH14: =ROUND(IF(ACOMPANHAMENTO<>"PLE",0,SUMIF(OFFSET(CÁLCULO!$AX$15:$BH$15,$A14,0,$B14),"<="&PLE.Medicao,OFFSET(CÁLCULO!$AB$15:$AL$15,$A14,0,$B14))+IF(AUTOEVENTO="Manual",SUMIF(OFFSET(CÁLCULO!$M$15,$A14,0,$B14),1,OFFSET(ORÇAMENTO!$X$15,$A14,0,$B14))*PLE!$AE$9,0)),2) -> 0 | AJ14: =IF(ACOMPANHAMENTO<>"BM",0,SUMPRODUCT(OFFSET(BM!$M$15,$A14,0,$B14)*(OFFSET(BM!$A$15,$A14,0,$B14)="S")*OFFSET(ORÇAMENTO!AA$15,$A14,0,$B14)/(OFFSET(ORÇAMENTO!$X$15,$A14,0,$B14)+10^-12))) -> 0 | AK14: =IF(ACOMPANHAMENTO<>"BM",0,SUMPRODUCT(OFFSET(BM!$M$15,$A14,0,$B14)*(OFFSET(BM!$A$15,$A14,0,$B14)="S")*OFFSET(ORÇAMENTO!AB$15,$A14,0,$B14)/(OFFSET(ORÇAMENTO!$X$15,$A14,0,$B14)+10^-12))) -> 0 | AL14: =IF(ACOMPANHAMENTO<>"BM",0,OFFSET(BM!$M$15,$A14,0)) -> 0 | AM14: =IF(ACOMPANHAMENTO<>"BM",0,SUMPRODUCT(OFFSET(BM!$O$15,$A14,0,$B14)*(OFFSET(BM!$A$15,$A14,0,$B14)="S")*OFFSET(ORÇAMENTO!AA$15,$A14,0,$B14)/(OFFSET(ORÇAMENTO!$X$15,$A14,0,$B14)+10^-12))) -> 0 | AN14: =IF(ACOMPANHAMENTO<>"BM",0,SUMPRODUCT(OFFSET(BM!$O$15,$A14,0,$B14)*(OFFSET(BM!$A$15,$A14,0,$B14)="S")*OFFSET(ORÇAMENTO!AB$15,$A14,0,$B14)/(OFFSET(ORÇAMENTO!$X$15,$A14,0,$B14)+10^-12))) -> 0 | AO14: =IF(ACOMPANHAMENTO<>"BM",0,OFFSET(BM!$O$15,$A14,0)) -> 0
A15: =MATCH(E15,ORÇAMENTO!$E$15:$E$25,0)-1 ->  | B15: =IF(ISERROR($A15),NA(),OFFSET(ORÇAMENTO!$D$15,$A15,0)) ->  | C15: =QCI!B15 -> Branco | E15: =QCI!D15 -> 2 | F15: =QCI!G15 ->  | G15: =QCI!H15 -> 0 | H15: =QCI!I15 -> 0 | I15: =QCI!J15 ->  | J15: =QCI!K15 ->  | L15: =QCI!$O15 -> 0 | M15: 0 | N15: 0 | O15: 0 | P15: 0 | R15: =ROUND(IF($C15="Automático",AC15+AJ15,$Y15*IF(ISERROR(QCI!$AA15/QCI!$O15),0,QCI!$AA15/QCI!$O15)),2) -> 0 | S15: =ROUND(IF($C15="Automático",AD15+AK15,$Y15*IF(ISERROR(QCI!$AB15/QCI!$O15),0,QCI!$AB15/QCI!$O15)),2) -> 0 | T15: =ROUND(IF($C15="Automático",AF15+AM15,$Z15*IF(ISERROR(QCI!$AA15/QCI!$O15),0,QCI!$AA15/QCI!$O15)),2) -> 0 | U15: =ROUND(IF($C15="Automático",AG15+AN15,$Z15*IF(ISERROR(QCI!$AB15/QCI!$O15),0,QCI!$AB15/QCI!$O15)),2) -> 0 | V15: =IF(AND($L15>0,$J15<>0,$J15<>"",COUNTIF($J$13:$J15,$J15)=1),OFFSET(V15,-1,0)+1,OFFSET(V15,-1,0)) -> 1 | AC15: =IF(ACOMPANHAMENTO<>"PLE",0,SUMPRODUCT((OFFSET(CÁLCULO!$AX$15:$BH$15,$A15,0,$B15)<=(PLE.Medicao-1))*OFFSET(CÁLCULO!$AB$15:$AL$15,$A15,0,$B15)*OFFSET(ORÇAMENTO!$AA$15,$A15,0,$B15)/(OFFSET(ORÇAMENTO!$X$15,$A15,0,$B15)+10^-12))+IF(AUTOEVENTO="Manual",SUMPRODUCT((OFFSET(CÁLCULO!$M$15,$A15,0,$B15)=1)*OFFSET(ORÇAMENTO!$AA$15,$A15,0,$B15)*(PLE!$AE$9-PLE!$Y$9)),0)) ->  | AD15: =IF(ACOMPANHAMENTO<>"PLE",0,SUMPRODUCT((OFFSET(CÁLCULO!$AX$15:$BH$15,$A15,0,$B15)<=(PLE.Medicao-1))*OFFSET(CÁLCULO!$AB$15:$AL$15,$A15,0,$B15)*OFFSET(ORÇAMENTO!$AB$15,$A15,0,$B15)/(OFFSET(ORÇAMENTO!$X$15,$A15,0,$B15)+10^-12))+IF(AUTOEVENTO="Manual",SUMPRODUCT((OFFSET(CÁLCULO!$M$15,$A15,0,$B15)=1)*OFFSET(ORÇAMENTO!$AB$15,$A15,0,$B15)*(PLE!$AE$9-PLE!$Y$9)),0)) ->  | AE15: =ROUND(IF(ACOMPANHAMENTO<>"PLE",0,SUMIF(OFFSET(CÁLCULO!$AX$15:$BH$15,$A15,0,$B15),"<="&(PLE.Medicao-1),OFFSET(CÁLCULO!$AB$15:$AL$15,$A15,0,$B15))+IF(AUTOEVENTO="Manual",SUMIF(OFFSET(CÁLCULO!$M$15,$A15,0,$B15),1,OFFSET(ORÇAMENTO!$X$15,$A15,0,$B15))*(PLE!$AE$9-PLE!$Y$9),0)),2) ->  | AF15: =IF(ACOMPANHAMENTO<>"PLE",0,SUMPRODUCT((OFFSET(CÁLCULO!$AX$15:$BH$15,$A15,0,$B15)<=PLE.Medicao)*OFFSET(CÁLCULO!$AB$15:$AL$15,$A15,0,$B15)*OFFSET(ORÇAMENTO!$AA$15,$A15,0,$B15)/(OFFSET(ORÇAMENTO!$X$15,$A15,0,$B15)+10^-12))+IF(AUTOEVENTO="Manual",SUMPRODUCT((OFFSET(CÁLCULO!$M$15,$A15,0,$B15)=1)*OFFSET(ORÇAMENTO!$AA$15,$A15,0,$B15)*PLE!$AE$9),0)) ->  | AG15: =IF(ACOMPANHAMENTO<>"PLE",0,SUMPRODUCT((OFFSET(CÁLCULO!$AX$15:$BH$15,$A15,0,$B15)<=PLE.Medicao)*OFFSET(CÁLCULO!$AB$15:$AL$15,$A15,0,$B15)*OFFSET(ORÇAMENTO!$AB$15,$A15,0,$B15)/(OFFSET(ORÇAMENTO!$X$15,$A15,0,$B15)+10^-12))+IF(AUTOEVENTO="Manual",SUMPRODUCT((OFFSET(CÁLCULO!$M$15,$A15,0,$B15)=1)*OFFSET(ORÇAMENTO!$AB$15,$A15,0,$B15)*PLE!$AE$9),0)) ->  | AH15: =ROUND(IF(ACOMPANHAMENTO<>"PLE",0,SUMIF(OFFSET(CÁLCULO!$AX$15:$BH$15,$A15,0,$B15),"<="&PLE.Medicao,OFFSET(CÁLCULO!$AB$15:$AL$15,$A15,0,$B15))+IF(AUTOEVENTO="Manual",SUMIF(OFFSET(CÁLCULO!$M$15,$A15,0,$B15),1,OFFSET(ORÇAMENTO!$X$15,$A15,0,$B15))*PLE!$AE$9,0)),2) ->  | AJ15: =IF(ACOMPANHAMENTO<>"BM",0,SUMPRODUCT(OFFSET(BM!$M$15,$A15,0,$B15)*(OFFSET(BM!$A$15,$A15,0,$B15)="S")*OFFSET(ORÇAMENTO!AA$15,$A15,0,$B15)/(OFFSET(ORÇAMENTO!$X$15,$A15,0,$B15)+10^-12))) -> 0 | AK15: =IF(ACOMPANHAMENTO<>"BM",0,SUMPRODUCT(OFFSET(BM!$M$15,$A15,0,$B15)*(OFFSET(BM!$A$15,$A15,0,$B15)="S")*OFFSET(ORÇAMENTO!AB$15,$A15,0,$B15)/(OFFSET(ORÇAMENTO!$X$15,$A15,0,$B15)+10^-12))) -> 0 | AL15: =IF(ACOMPANHAMENTO<>"BM",0,OFFSET(BM!$M$15,$A15,0)) -> 0 | AM15: =IF(ACOMPANHAMENTO<>"BM",0,SUMPRODUCT(OFFSET(BM!$O$15,$A15,0,$B15)*(OFFSET(BM!$A$15,$A15,0,$B15)="S")*OFFSET(ORÇAMENTO!AA$15,$A15,0,$B15)/(OFFSET(ORÇAMENTO!$X$15,$A15,0,$B15)+10^-12))) -> 0 | AN15: =IF(ACOMPANHAMENTO<>"BM",0,SUMPRODUCT(OFFSET(BM!$O$15,$A15,0,$B15)*(OFFSET(BM!$A$15,$A15,0,$B15)="S")*OFFSET(ORÇAMENTO!AB$15,$A15,0,$B15)/(OFFSET(ORÇAMENTO!$X$15,$A15,0,$B15)+10^-12))) -> 0 | AO15: =IF(ACOMPANHAMENTO<>"BM",0,OFFSET(BM!$O$15,$A15,0)) -> 0
A16: =MATCH(E16,ORÇAMENTO!$E$15:$E$25,0)-1 ->  | B16: =IF(ISERROR($A16),NA(),OFFSET(ORÇAMENTO!$D$15,$A16,0)) ->  | C16: =QCI!B16 -> Branco | E16: =QCI!D16 -> 3 | F16: =QCI!G16 ->  | G16: =QCI!H16 -> 0 | H16: =QCI!I16 -> 0 | I16: =QCI!J16 ->  | J16: =QCI!K16 ->  | L16: =QCI!$O16 -> 0 | M16: 0 | N16: 0 | O16: 0 | P16: 0 | R16: =ROUND(IF($C16="Automático",AC16+AJ16,$Y16*IF(ISERROR(QCI!$AA16/QCI!$O16),0,QCI!$AA16/QCI!$O16)),2) -> 0 | S16: =ROUND(IF($C16="Automático",AD16+AK16,$Y16*IF(ISERROR(QCI!$AB16/QCI!$O16),0,QCI!$AB16/QCI!$O16)),2) -> 0 | T16: =ROUND(IF($C16="Automático",AF16+AM16,$Z16*IF(ISERROR(QCI!$AA16/QCI!$O16),0,QCI!$AA16/QCI!$O16)),2) -> 0 | U16: =ROUND(IF($C16="Automático",AG16+AN16,$Z16*IF(ISERROR(QCI!$AB16/QCI!$O16),0,QCI!$AB16/QCI!$O16)),2) -> 0 | V16: =IF(AND($L16>0,$J16<>0,$J16<>"",COUNTIF($J$13:$J16,$J16)=1),OFFSET(V16,-1,0)+1,OFFSET(V16,-1,0)) -> 1 | AC16: =IF(ACOMPANHAMENTO<>"PLE",0,SUMPRODUCT((OFFSET(CÁLCULO!$AX$15:$BH$15,$A16,0,$B16)<=(PLE.Medicao-1))*OFFSET(CÁLCULO!$AB$15:$AL$15,$A16,0,$B16)*OFFSET(ORÇAMENTO!$AA$15,$A16,0,$B16)/(OFFSET(ORÇAMENTO!$X$15,$A16,0,$B16)+10^-12))+IF(AUTOEVENTO="Manual",SUMPRODUCT((OFFSET(CÁLCULO!$M$15,$A16,0,$B16)=1)*OFFSET(ORÇAMENTO!$AA$15,$A16,0,$B16)*(PLE!$AE$9-PLE!$Y$9)),0)) ->  | AD16: =IF(ACOMPANHAMENTO<>"PLE",0,SUMPRODUCT((OFFSET(CÁLCULO!$AX$15:$BH$15,$A16,0,$B16)<=(PLE.Medicao-1))*OFFSET(CÁLCULO!$AB$15:$AL$15,$A16,0,$B16)*OFFSET(ORÇAMENTO!$AB$15,$A16,0,$B16)/(OFFSET(ORÇAMENTO!$X$15,$A16,0,$B16)+10^-12))+IF(AUTOEVENTO="Manual",SUMPRODUCT((OFFSET(CÁLCULO!$M$15,$A16,0,$B16)=1)*OFFSET(ORÇAMENTO!$AB$15,$A16,0,$B16)*(PLE!$AE$9-PLE!$Y$9)),0)) ->  | AE16: =ROUND(IF(ACOMPANHAMENTO<>"PLE",0,SUMIF(OFFSET(CÁLCULO!$AX$15:$BH$15,$A16,0,$B16),"<="&(PLE.Medicao-1),OFFSET(CÁLCULO!$AB$15:$AL$15,$A16,0,$B16))+IF(AUTOEVENTO="Manual",SUMIF(OFFSET(CÁLCULO!$M$15,$A16,0,$B16),1,OFFSET(ORÇAMENTO!$X$15,$A16,0,$B16))*(PLE!$AE$9-PLE!$Y$9),0)),2) ->  | AF16: =IF(ACOMPANHAMENTO<>"PLE",0,SUMPRODUCT((OFFSET(CÁLCULO!$AX$15:$BH$15,$A16,0,$B16)<=PLE.Medicao)*OFFSET(CÁLCULO!$AB$15:$AL$15,$A16,0,$B16)*OFFSET(ORÇAMENTO!$AA$15,$A16,0,$B16)/(OFFSET(ORÇAMENTO!$X$15,$A16,0,$B16)+10^-12))+IF(AUTOEVENTO="Manual",SUMPRODUCT((OFFSET(CÁLCULO!$M$15,$A16,0,$B16)=1)*OFFSET(ORÇAMENTO!$AA$15,$A16,0,$B16)*PLE!$AE$9),0)) ->  | AG16: =IF(ACOMPANHAMENTO<>"PLE",0,SUMPRODUCT((OFFSET(CÁLCULO!$AX$15:$BH$15,$A16,0,$B16)<=PLE.Medicao)*OFFSET(CÁLCULO!$AB$15:$AL$15,$A16,0,$B16)*OFFSET(ORÇAMENTO!$AB$15,$A16,0,$B16)/(OFFSET(ORÇAMENTO!$X$15,$A16,0,$B16)+10^-12))+IF(AUTOEVENTO="Manual",SUMPRODUCT((OFFSET(CÁLCULO!$M$15,$A16,0,$B16)=1)*OFFSET(ORÇAMENTO!$AB$15,$A16,0,$B16)*PLE!$AE$9),0)) ->  | AH16: =ROUND(IF(ACOMPANHAMENTO<>"PLE",0,SUMIF(OFFSET(CÁLCULO!$AX$15:$BH$15,$A16,0,$B16),"<="&PLE.Medicao,OFFSET(CÁLCULO!$AB$15:$AL$15,$A16,0,$B16))+IF(AUTOEVENTO="Manual",SUMIF(OFFSET(CÁLCULO!$M$15,$A16,0,$B16),1,OFFSET(ORÇAMENTO!$X$15,$A16,0,$B16))*PLE!$AE$9,0)),2) ->  | AJ16: =IF(ACOMPANHAMENTO<>"BM",0,SUMPRODUCT(OFFSET(BM!$M$15,$A16,0,$B16)*(OFFSET(BM!$A$15,$A16,0,$B16)="S")*OFFSET(ORÇAMENTO!AA$15,$A16,0,$B16)/(OFFSET(ORÇAMENTO!$X$15,$A16,0,$B16)+10^-12))) -> 0 | AK16: =IF(ACOMPANHAMENTO<>"BM",0,SUMPRODUCT(OFFSET(BM!$M$15,$A16,0,$B16)*(OFFSET(BM!$A$15,$A16,0,$B16)="S")*OFFSET(ORÇAMENTO!AB$15,$A16,0,$B16)/(OFFSET(ORÇAMENTO!$X$15,$A16,0,$B16)+10^-12))) -> 0 | AL16: =IF(ACOMPANHAMENTO<>"BM",0,OFFSET(BM!$M$15,$A16,0)) -> 0 | AM16: =IF(ACOMPANHAMENTO<>"BM",0,SUMPRODUCT(OFFSET(BM!$O$15,$A16,0,$B16)*(OFFSET(BM!$A$15,$A16,0,$B16)="S")*OFFSET(ORÇAMENTO!AA$15,$A16,0,$B16)/(OFFSET(ORÇAMENTO!$X$15,$A16,0,$B16)+10^-12))) -> 0 | AN16: =IF(ACOMPANHAMENTO<>"BM",0,SUMPRODUCT(OFFSET(BM!$O$15,$A16,0,$B16)*(OFFSET(BM!$A$15,$A16,0,$B16)="S")*OFFSET(ORÇAMENTO!AB$15,$A16,0,$B16)/(OFFSET(ORÇAMENTO!$X$15,$A16,0,$B16)+10^-12))) -> 0 | AO16: =IF(ACOMPANHAMENTO<>"BM",0,OFFSET(BM!$O$15,$A16,0)) -> 0
A17: =MATCH(E17,ORÇAMENTO!$E$15:$E$25,0)-1 ->  | B17: =IF(ISERROR($A17),NA(),OFFSET(ORÇAMENTO!$D$15,$A17,0)) ->  | C17: =QCI!B17 -> Branco | E17: =QCI!D17 -> 4 | F17: =QCI!G17 ->  | G17: =QCI!H17 -> 0 | H17: =QCI!I17 -> 0 | I17: =QCI!J17 ->  | J17: =QCI!K17 ->  | L17: =QCI!$O17 -> 0 | M17: 0 | N17: 0 | O17: 0 | P17: 0 | R17: =ROUND(IF($C17="Automático",AC17+AJ17,$Y17*IF(ISERROR(QCI!$AA17/QCI!$O17),0,QCI!$AA17/QCI!$O17)),2) -> 0 | S17: =ROUND(IF($C17="Automático",AD17+AK17,$Y17*IF(ISERROR(QCI!$AB17/QCI!$O17),0,QCI!$AB17/QCI!$O17)),2) -> 0 | T17: =ROUND(IF($C17="Automático",AF17+AM17,$Z17*IF(ISERROR(QCI!$AA17/QCI!$O17),0,QCI!$AA17/QCI!$O17)),2) -> 0 | U17: =ROUND(IF($C17="Automático",AG17+AN17,$Z17*IF(ISERROR(QCI!$AB17/QCI!$O17),0,QCI!$AB17/QCI!$O17)),2) -> 0 | V17: =IF(AND($L17>0,$J17<>0,$J17<>"",COUNTIF($J$13:$J17,$J17)=1),OFFSET(V17,-1,0)+1,OFFSET(V17,-1,0)) -> 1 | AC17: =IF(ACOMPANHAMENTO<>"PLE",0,SUMPRODUCT((OFFSET(CÁLCULO!$AX$15:$BH$15,$A17,0,$B17)<=(PLE.Medicao-1))*OFFSET(CÁLCULO!$AB$15:$AL$15,$A17,0,$B17)*OFFSET(ORÇAMENTO!$AA$15,$A17,0,$B17)/(OFFSET(ORÇAMENTO!$X$15,$A17,0,$B17)+10^-12))+IF(AUTOEVENTO="Manual",SUMPRODUCT((OFFSET(CÁLCULO!$M$15,$A17,0,$B17)=1)*OFFSET(ORÇAMENTO!$AA$15,$A17,0,$B17)*(PLE!$AE$9-PLE!$Y$9)),0)) ->  | AD17: =IF(ACOMPANHAMENTO<>"PLE",0,SUMPRODUCT((OFFSET(CÁLCULO!$AX$15:$BH$15,$A17,0,$B17)<=(PLE.Medicao-1))*OFFSET(CÁLCULO!$AB$15:$AL$15,$A17,0,$B17)*OFFSET(ORÇAMENTO!$AB$15,$A17,0,$B17)/(OFFSET(ORÇAMENTO!$X$15,$A17,0,$B17)+10^-12))+IF(AUTOEVENTO="Manual",SUMPRODUCT((OFFSET(CÁLCULO!$M$15,$A17,0,$B17)=1)*OFFSET(ORÇAMENTO!$AB$15,$A17,0,$B17)*(PLE!$AE$9-PLE!$Y$9)),0)) ->  | AE17: =ROUND(IF(ACOMPANHAMENTO<>"PLE",0,SUMIF(OFFSET(CÁLCULO!$AX$15:$BH$15,$A17,0,$B17),"<="&(PLE.Medicao-1),OFFSET(CÁLCULO!$AB$15:$AL$15,$A17,0,$B17))+IF(AUTOEVENTO="Manual",SUMIF(OFFSET(CÁLCULO!$M$15,$A17,0,$B17),1,OFFSET(ORÇAMENTO!$X$15,$A17,0,$B17))*(PLE!$AE$9-PLE!$Y$9),0)),2) ->  | AF17: =IF(ACOMPANHAMENTO<>"PLE",0,SUMPRODUCT((OFFSET(CÁLCULO!$AX$15:$BH$15,$A17,0,$B17)<=PLE.Medicao)*OFFSET(CÁLCULO!$AB$15:$AL$15,$A17,0,$B17)*OFFSET(ORÇAMENTO!$AA$15,$A17,0,$B17)/(OFFSET(ORÇAMENTO!$X$15,$A17,0,$B17)+10^-12))+IF(AUTOEVENTO="Manual",SUMPRODUCT((OFFSET(CÁLCULO!$M$15,$A17,0,$B17)=1)*OFFSET(ORÇAMENTO!$AA$15,$A17,0,$B17)*PLE!$AE$9),0)) ->  | AG17: =IF(ACOMPANHAMENTO<>"PLE",0,SUMPRODUCT((OFFSET(CÁLCULO!$AX$15:$BH$15,$A17,0,$B17)<=PLE.Medicao)*OFFSET(CÁLCULO!$AB$15:$AL$15,$A17,0,$B17)*OFFSET(ORÇAMENTO!$AB$15,$A17,0,$B17)/(OFFSET(ORÇAMENTO!$X$15,$A17,0,$B17)+10^-12))+IF(AUTOEVENTO="Manual",SUMPRODUCT((OFFSET(CÁLCULO!$M$15,$A17,0,$B17)=1)*OFFSET(ORÇAMENTO!$AB$15,$A17,0,$B17)*PLE!$AE$9),0)) ->  | AH17: =ROUND(IF(ACOMPANHAMENTO<>"PLE",0,SUMIF(OFFSET(CÁLCULO!$AX$15:$BH$15,$A17,0,$B17),"<="&PLE.Medicao,OFFSET(CÁLCULO!$AB$15:$AL$15,$A17,0,$B17))+IF(AUTOEVENTO="Manual",SUMIF(OFFSET(CÁLCULO!$M$15,$A17,0,$B17),1,OFFSET(ORÇAMENTO!$X$15,$A17,0,$B17))*PLE!$AE$9,0)),2) ->  | AJ17: =IF(ACOMPANHAMENTO<>"BM",0,SUMPRODUCT(OFFSET(BM!$M$15,$A17,0,$B17)*(OFFSET(BM!$A$15,$A17,0,$B17)="S")*OFFSET(ORÇAMENTO!AA$15,$A17,0,$B17)/(OFFSET(ORÇAMENTO!$X$15,$A17,0,$B17)+10^-12))) -> 0 | AK17: =IF(ACOMPANHAMENTO<>"BM",0,SUMPRODUCT(OFFSET(BM!$M$15,$A17,0,$B17)*(OFFSET(BM!$A$15,$A17,0,$B17)="S")*OFFSET(ORÇAMENTO!AB$15,$A17,0,$B17)/(OFFSET(ORÇAMENTO!$X$15,$A17,0,$B17)+10^-12))) -> 0 | AL17: =IF(ACOMPANHAMENTO<>"BM",0,OFFSET(BM!$M$15,$A17,0)) -> 0 | AM17: =IF(ACOMPANHAMENTO<>"BM",0,SUMPRODUCT(OFFSET(BM!$O$15,$A17,0,$B17)*(OFFSET(BM!$A$15,$A17,0,$B17)="S")*OFFSET(ORÇAMENTO!AA$15,$A17,0,$B17)/(OFFSET(ORÇAMENTO!$X$15,$A17,0,$B17)+10^-12))) -> 0 | AN17: =IF(ACOMPANHAMENTO<>"BM",0,SUMPRODUCT(OFFSET(BM!$O$15,$A17,0,$B17)*(OFFSET(BM!$A$15,$A17,0,$B17)="S")*OFFSET(ORÇAMENTO!AB$15,$A17,0,$B17)/(OFFSET(ORÇAMENTO!$X$15,$A17,0,$B17)+10^-12))) -> 0 | AO17: =IF(ACOMPANHAMENTO<>"BM",0,OFFSET(BM!$O$15,$A17,0)) -> 0
A18: =MATCH(E18,ORÇAMENTO!$E$15:$E$25,0)-1 ->  | B18: =IF(ISERROR($A18),NA(),OFFSET(ORÇAMENTO!$D$15,$A18,0)) ->  | C18: =QCI!B18 -> Branco | E18: =QCI!D18 -> 5 | F18: =QCI!G18 ->  | G18: =QCI!H18 -> 0 | H18: =QCI!I18 -> 0 | I18: =QCI!J18 ->  | J18: =QCI!K18 ->  | L18: =QCI!$O18 -> 0 | M18: 0 | N18: 0 | O18: 0 | P18: 0 | R18: =ROUND(IF($C18="Automático",AC18+AJ18,$Y18*IF(ISERROR(QCI!$AA18/QCI!$O18),0,QCI!$AA18/QCI!$O18)),2) -> 0 | S18: =ROUND(IF($C18="Automático",AD18+AK18,$Y18*IF(ISERROR(QCI!$AB18/QCI!$O18),0,QCI!$AB18/QCI!$O18)),2) -> 0 | T18: =ROUND(IF($C18="Automático",AF18+AM18,$Z18*IF(ISERROR(QCI!$AA18/QCI!$O18),0,QCI!$AA18/QCI!$O18)),2) -> 0 | U18: =ROUND(IF($C18="Automático",AG18+AN18,$Z18*IF(ISERROR(QCI!$AB18/QCI!$O18),0,QCI!$AB18/QCI!$O18)),2) -> 0 | V18: =IF(AND($L18>0,$J18<>0,$J18<>"",COUNTIF($J$13:$J18,$J18)=1),OFFSET(V18,-1,0)+1,OFFSET(V18,-1,0)) -> 1 | AC18: =IF(ACOMPANHAMENTO<>"PLE",0,SUMPRODUCT((OFFSET(CÁLCULO!$AX$15:$BH$15,$A18,0,$B18)<=(PLE.Medicao-1))*OFFSET(CÁLCULO!$AB$15:$AL$15,$A18,0,$B18)*OFFSET(ORÇAMENTO!$AA$15,$A18,0,$B18)/(OFFSET(ORÇAMENTO!$X$15,$A18,0,$B18)+10^-12))+IF(AUTOEVENTO="Manual",SUMPRODUCT((OFFSET(CÁLCULO!$M$15,$A18,0,$B18)=1)*OFFSET(ORÇAMENTO!$AA$15,$A18,0,$B18)*(PLE!$AE$9-PLE!$Y$9)),0)) ->  | AD18: =IF(ACOMPANHAMENTO<>"PLE",0,SUMPRODUCT((OFFSET(CÁLCULO!$AX$15:$BH$15,$A18,0,$B18)<=(PLE.Medicao-1))*OFFSET(CÁLCULO!$AB$15:$AL$15,$A18,0,$B18)*OFFSET(ORÇAMENTO!$AB$15,$A18,0,$B18)/(OFFSET(ORÇAMENTO!$X$15,$A18,0,$B18)+10^-12))+IF(AUTOEVENTO="Manual",SUMPRODUCT((OFFSET(CÁLCULO!$M$15,$A18,0,$B18)=1)*OFFSET(ORÇAMENTO!$AB$15,$A18,0,$B18)*(PLE!$AE$9-PLE!$Y$9)),0)) ->  | AE18: =ROUND(IF(ACOMPANHAMENTO<>"PLE",0,SUMIF(OFFSET(CÁLCULO!$AX$15:$BH$15,$A18,0,$B18),"<="&(PLE.Medicao-1),OFFSET(CÁLCULO!$AB$15:$AL$15,$A18,0,$B18))+IF(AUTOEVENTO="Manual",SUMIF(OFFSET(CÁLCULO!$M$15,$A18,0,$B18),1,OFFSET(ORÇAMENTO!$X$15,$A18,0,$B18))*(PLE!$AE$9-PLE!$Y$9),0)),2) ->  | AF18: =IF(ACOMPANHAMENTO<>"PLE",0,SUMPRODUCT((OFFSET(CÁLCULO!$AX$15:$BH$15,$A18,0,$B18)<=PLE.Medicao)*OFFSET(CÁLCULO!$AB$15:$AL$15,$A18,0,$B18)*OFFSET(ORÇAMENTO!$AA$15,$A18,0,$B18)/(OFFSET(ORÇAMENTO!$X$15,$A18,0,$B18)+10^-12))+IF(AUTOEVENTO="Manual",SUMPRODUCT((OFFSET(CÁLCULO!$M$15,$A18,0,$B18)=1)*OFFSET(ORÇAMENTO!$AA$15,$A18,0,$B18)*PLE!$AE$9),0)) ->  | AG18: =IF(ACOMPANHAMENTO<>"PLE",0,SUMPRODUCT((OFFSET(CÁLCULO!$AX$15:$BH$15,$A18,0,$B18)<=PLE.Medicao)*OFFSET(CÁLCULO!$AB$15:$AL$15,$A18,0,$B18)*OFFSET(ORÇAMENTO!$AB$15,$A18,0,$B18)/(OFFSET(ORÇAMENTO!$X$15,$A18,0,$B18)+10^-12))+IF(AUTOEVENTO="Manual",SUMPRODUCT((OFFSET(CÁLCULO!$M$15,$A18,0,$B18)=1)*OFFSET(ORÇAMENTO!$AB$15,$A18,0,$B18)*PLE!$AE$9),0)) ->  | AH18: =ROUND(IF(ACOMPANHAMENTO<>"PLE",0,SUMIF(OFFSET(CÁLCULO!$AX$15:$BH$15,$A18,0,$B18),"<="&PLE.Medicao,OFFSET(CÁLCULO!$AB$15:$AL$15,$A18,0,$B18))+IF(AUTOEVENTO="Manual",SUMIF(OFFSET(CÁLCULO!$M$15,$A18,0,$B18),1,OFFSET(ORÇAMENTO!$X$15,$A18,0,$B18))*PLE!$AE$9,0)),2) ->  | AJ18: =IF(ACOMPANHAMENTO<>"BM",0,SUMPRODUCT(OFFSET(BM!$M$15,$A18,0,$B18)*(OFFSET(BM!$A$15,$A18,0,$B18)="S")*OFFSET(ORÇAMENTO!AA$15,$A18,0,$B18)/(OFFSET(ORÇAMENTO!$X$15,$A18,0,$B18)+10^-12))) -> 0 | AK18: =IF(ACOMPANHAMENTO<>"BM",0,SUMPRODUCT(OFFSET(BM!$M$15,$A18,0,$B18)*(OFFSET(BM!$A$15,$A18,0,$B18)="S")*OFFSET(ORÇAMENTO!AB$15,$A18,0,$B18)/(OFFSET(ORÇAMENTO!$X$15,$A18,0,$B18)+10^-12))) -> 0 | AL18: =IF(ACOMPANHAMENTO<>"BM",0,OFFSET(BM!$M$15,$A18,0)) -> 0 | AM18: =IF(ACOMPANHAMENTO<>"BM",0,SUMPRODUCT(OFFSET(BM!$O$15,$A18,0,$B18)*(OFFSET(BM!$A$15,$A18,0,$B18)="S")*OFFSET(ORÇAMENTO!AA$15,$A18,0,$B18)/(OFFSET(ORÇAMENTO!$X$15,$A18,0,$B18)+10^-12))) -> 0 | AN18: =IF(ACOMPANHAMENTO<>"BM",0,SUMPRODUCT(OFFSET(BM!$O$15,$A18,0,$B18)*(OFFSET(BM!$A$15,$A18,0,$B18)="S")*OFFSET(ORÇAMENTO!AB$15,$A18,0,$B18)/(OFFSET(ORÇAMENTO!$X$15,$A18,0,$B18)+10^-12))) -> 0 | AO18: =IF(ACOMPANHAMENTO<>"BM",0,OFFSET(BM!$O$15,$A18,0)) -> 0
A19: =MATCH(E19,ORÇAMENTO!$E$15:$E$25,0)-1 ->  | B19: =IF(ISERROR($A19),NA(),OFFSET(ORÇAMENTO!$D$15,$A19,0)) ->  | C19: =QCI!B19 -> Branco | E19: =QCI!D19 -> 6 | F19: =QCI!G19 ->  | G19: =QCI!H19 -> 0 | H19: =QCI!I19 -> 0 | I19: =QCI!J19 ->  | J19: =QCI!K19 ->  | L19: =QCI!$O19 -> 0 | M19: 0 | N19: 0 | O19: 0 | P19: 0 | R19: =ROUND(IF($C19="Automático",AC19+AJ19,$Y19*IF(ISERROR(QCI!$AA19/QCI!$O19),0,QCI!$AA19/QCI!$O19)),2) -> 0 | S19: =ROUND(IF($C19="Automático",AD19+AK19,$Y19*IF(ISERROR(QCI!$AB19/QCI!$O19),0,QCI!$AB19/QCI!$O19)),2) -> 0 | T19: =ROUND(IF($C19="Automático",AF19+AM19,$Z19*IF(ISERROR(QCI!$AA19/QCI!$O19),0,QCI!$AA19/QCI!$O19)),2) -> 0 | U19: =ROUND(IF($C19="Automático",AG19+AN19,$Z19*IF(ISERROR(QCI!$AB19/QCI!$O19),0,QCI!$AB19/QCI!$O19)),2) -> 0 | V19: =IF(AND($L19>0,$J19<>0,$J19<>"",COUNTIF($J$13:$J19,$J19)=1),OFFSET(V19,-1,0)+1,OFFSET(V19,-1,0)) -> 1 | AC19: =IF(ACOMPANHAMENTO<>"PLE",0,SUMPRODUCT((OFFSET(CÁLCULO!$AX$15:$BH$15,$A19,0,$B19)<=(PLE.Medicao-1))*OFFSET(CÁLCULO!$AB$15:$AL$15,$A19,0,$B19)*OFFSET(ORÇAMENTO!$AA$15,$A19,0,$B19)/(OFFSET(ORÇAMENTO!$X$15,$A19,0,$B19)+10^-12))+IF(AUTOEVENTO="Manual",SUMPRODUCT((OFFSET(CÁLCULO!$M$15,$A19,0,$B19)=1)*OFFSET(ORÇAMENTO!$AA$15,$A19,0,$B19)*(PLE!$AE$9-PLE!$Y$9)),0)) ->  | AD19: =IF(ACOMPANHAMENTO<>"PLE",0,SUMPRODUCT((OFFSET(CÁLCULO!$AX$15:$BH$15,$A19,0,$B19)<=(PLE.Medicao-1))*OFFSET(CÁLCULO!$AB$15:$AL$15,$A19,0,$B19)*OFFSET(ORÇAMENTO!$AB$15,$A19,0,$B19)/(OFFSET(ORÇAMENTO!$X$15,$A19,0,$B19)+10^-12))+IF(AUTOEVENTO="Manual",SUMPRODUCT((OFFSET(CÁLCULO!$M$15,$A19,0,$B19)=1)*OFFSET(ORÇAMENTO!$AB$15,$A19,0,$B19)*(PLE!$AE$9-PLE!$Y$9)),0)) ->  | AE19: =ROUND(IF(ACOMPANHAMENTO<>"PLE",0,SUMIF(OFFSET(CÁLCULO!$AX$15:$BH$15,$A19,0,$B19),"<="&(PLE.Medicao-1),OFFSET(CÁLCULO!$AB$15:$AL$15,$A19,0,$B19))+IF(AUTOEVENTO="Manual",SUMIF(OFFSET(CÁLCULO!$M$15,$A19,0,$B19),1,OFFSET(ORÇAMENTO!$X$15,$A19,0,$B19))*(PLE!$AE$9-PLE!$Y$9),0)),2) ->  | AF19: =IF(ACOMPANHAMENTO<>"PLE",0,SUMPRODUCT((OFFSET(CÁLCULO!$AX$15:$BH$15,$A19,0,$B19)<=PLE.Medicao)*OFFSET(CÁLCULO!$AB$15:$AL$15,$A19,0,$B19)*OFFSET(ORÇAMENTO!$AA$15,$A19,0,$B19)/(OFFSET(ORÇAMENTO!$X$15,$A19,0,$B19)+10^-12))+IF(AUTOEVENTO="Manual",SUMPRODUCT((OFFSET(CÁLCULO!$M$15,$A19,0,$B19)=1)*OFFSET(ORÇAMENTO!$AA$15,$A19,0,$B19)*PLE!$AE$9),0)) ->  | AG19: =IF(ACOMPANHAMENTO<>"PLE",0,SUMPRODUCT((OFFSET(CÁLCULO!$AX$15:$BH$15,$A19,0,$B19)<=PLE.Medicao)*OFFSET(CÁLCULO!$AB$15:$AL$15,$A19,0,$B19)*OFFSET(ORÇAMENTO!$AB$15,$A19,0,$B19)/(OFFSET(ORÇAMENTO!$X$15,$A19,0,$B19)+10^-12))+IF(AUTOEVENTO="Manual",SUMPRODUCT((OFFSET(CÁLCULO!$M$15,$A19,0,$B19)=1)*OFFSET(ORÇAMENTO!$AB$15,$A19,0,$B19)*PLE!$AE$9),0)) ->  | AH19: =ROUND(IF(ACOMPANHAMENTO<>"PLE",0,SUMIF(OFFSET(CÁLCULO!$AX$15:$BH$15,$A19,0,$B19),"<="&PLE.Medicao,OFFSET(CÁLCULO!$AB$15:$AL$15,$A19,0,$B19))+IF(AUTOEVENTO="Manual",SUMIF(OFFSET(CÁLCULO!$M$15,$A19,0,$B19),1,OFFSET(ORÇAMENTO!$X$15,$A19,0,$B19))*PLE!$AE$9,0)),2) ->  | AJ19: =IF(ACOMPANHAMENTO<>"BM",0,SUMPRODUCT(OFFSET(BM!$M$15,$A19,0,$B19)*(OFFSET(BM!$A$15,$A19,0,$B19)="S")*OFFSET(ORÇAMENTO!AA$15,$A19,0,$B19)/(OFFSET(ORÇAMENTO!$X$15,$A19,0,$B19)+10^-12))) -> 0 | AK19: =IF(ACOMPANHAMENTO<>"BM",0,SUMPRODUCT(OFFSET(BM!$M$15,$A19,0,$B19)*(OFFSET(BM!$A$15,$A19,0,$B19)="S")*OFFSET(ORÇAMENTO!AB$15,$A19,0,$B19)/(OFFSET(ORÇAMENTO!$X$15,$A19,0,$B19)+10^-12))) -> 0 | AL19: =IF(ACOMPANHAMENTO<>"BM",0,OFFSET(BM!$M$15,$A19,0)) -> 0 | AM19: =IF(ACOMPANHAMENTO<>"BM",0,SUMPRODUCT(OFFSET(BM!$O$15,$A19,0,$B19)*(OFFSET(BM!$A$15,$A19,0,$B19)="S")*OFFSET(ORÇAMENTO!AA$15,$A19,0,$B19)/(OFFSET(ORÇAMENTO!$X$15,$A19,0,$B19)+10^-12))) -> 0 | AN19: =IF(ACOMPANHAMENTO<>"BM",0,SUMPRODUCT(OFFSET(BM!$O$15,$A19,0,$B19)*(OFFSET(BM!$A$15,$A19,0,$B19)="S")*OFFSET(ORÇAMENTO!AB$15,$A19,0,$B19)/(OFFSET(ORÇAMENTO!$X$15,$A19,0,$B19)+10^-12))) -> 0 | AO19: =IF(ACOMPANHAMENTO<>"BM",0,OFFSET(BM!$O$15,$A19,0)) -> 0
A20: =MATCH(E20,ORÇAMENTO!$E$15:$E$25,0)-1 ->  | B20: =IF(ISERROR($A20),NA(),OFFSET(ORÇAMENTO!$D$15,$A20,0)) ->  | C20: =QCI!B20 -> Branco | E20: =QCI!D20 -> 7 | F20: =QCI!G20 ->  | G20: =QCI!H20 -> 0 | H20: =QCI!I20 -> 0 | I20: =QCI!J20 ->  | J20: =QCI!K20 ->  | L20: =QCI!$O20 -> 0 | M20: 0 | N20: 0 | O20: 0 | P20: 0 | R20: =ROUND(IF($C20="Automático",AC20+AJ20,$Y20*IF(ISERROR(QCI!$AA20/QCI!$O20),0,QCI!$AA20/QCI!$O20)),2) -> 0 | S20: =ROUND(IF($C20="Automático",AD20+AK20,$Y20*IF(ISERROR(QCI!$AB20/QCI!$O20),0,QCI!$AB20/QCI!$O20)),2) -> 0 | T20: =ROUND(IF($C20="Automático",AF20+AM20,$Z20*IF(ISERROR(QCI!$AA20/QCI!$O20),0,QCI!$AA20/QCI!$O20)),2) -> 0 | U20: =ROUND(IF($C20="Automático",AG20+AN20,$Z20*IF(ISERROR(QCI!$AB20/QCI!$O20),0,QCI!$AB20/QCI!$O20)),2) -> 0 | V20: =IF(AND($L20>0,$J20<>0,$J20<>"",COUNTIF($J$13:$J20,$J20)=1),OFFSET(V20,-1,0)+1,OFFSET(V20,-1,0)) -> 1 | AC20: =IF(ACOMPANHAMENTO<>"PLE",0,SUMPRODUCT((OFFSET(CÁLCULO!$AX$15:$BH$15,$A20,0,$B20)<=(PLE.Medicao-1))*OFFSET(CÁLCULO!$AB$15:$AL$15,$A20,0,$B20)*OFFSET(ORÇAMENTO!$AA$15,$A20,0,$B20)/(OFFSET(ORÇAMENTO!$X$15,$A20,0,$B20)+10^-12))+IF(AUTOEVENTO="Manual",SUMPRODUCT((OFFSET(CÁLCULO!$M$15,$A20,0,$B20)=1)*OFFSET(ORÇAMENTO!$AA$15,$A20,0,$B20)*(PLE!$AE$9-PLE!$Y$9)),0)) ->  | AD20: =IF(ACOMPANHAMENTO<>"PLE",0,SUMPRODUCT((OFFSET(CÁLCULO!$AX$15:$BH$15,$A20,0,$B20)<=(PLE.Medicao-1))*OFFSET(CÁLCULO!$AB$15:$AL$15,$A20,0,$B20)*OFFSET(ORÇAMENTO!$AB$15,$A20,0,$B20)/(OFFSET(ORÇAMENTO!$X$15,$A20,0,$B20)+10^-12))+IF(AUTOEVENTO="Manual",SUMPRODUCT((OFFSET(CÁLCULO!$M$15,$A20,0,$B20)=1)*OFFSET(ORÇAMENTO!$AB$15,$A20,0,$B20)*(PLE!$AE$9-PLE!$Y$9)),0)) ->  | AE20: =ROUND(IF(ACOMPANHAMENTO<>"PLE",0,SUMIF(OFFSET(CÁLCULO!$AX$15:$BH$15,$A20,0,$B20),"<="&(PLE.Medicao-1),OFFSET(CÁLCULO!$AB$15:$AL$15,$A20,0,$B20))+IF(AUTOEVENTO="Manual",SUMIF(OFFSET(CÁLCULO!$M$15,$A20,0,$B20),1,OFFSET(ORÇAMENTO!$X$15,$A20,0,$B20))*(PLE!$AE$9-PLE!$Y$9),0)),2) ->  | AF20: =IF(ACOMPANHAMENTO<>"PLE",0,SUMPRODUCT((OFFSET(CÁLCULO!$AX$15:$BH$15,$A20,0,$B20)<=PLE.Medicao)*OFFSET(CÁLCULO!$AB$15:$AL$15,$A20,0,$B20)*OFFSET(ORÇAMENTO!$AA$15,$A20,0,$B20)/(OFFSET(ORÇAMENTO!$X$15,$A20,0,$B20)+10^-12))+IF(AUTOEVENTO="Manual",SUMPRODUCT((OFFSET(CÁLCULO!$M$15,$A20,0,$B20)=1)*OFFSET(ORÇAMENTO!$AA$15,$A20,0,$B20)*PLE!$AE$9),0)) ->  | AG20: =IF(ACOMPANHAMENTO<>"PLE",0,SUMPRODUCT((OFFSET(CÁLCULO!$AX$15:$BH$15,$A20,0,$B20)<=PLE.Medicao)*OFFSET(CÁLCULO!$AB$15:$AL$15,$A20,0,$B20)*OFFSET(ORÇAMENTO!$AB$15,$A20,0,$B20)/(OFFSET(ORÇAMENTO!$X$15,$A20,0,$B20)+10^-12))+IF(AUTOEVENTO="Manual",SUMPRODUCT((OFFSET(CÁLCULO!$M$15,$A20,0,$B20)=1)*OFFSET(ORÇAMENTO!$AB$15,$A20,0,$B20)*PLE!$AE$9),0)) ->  | AH20: =ROUND(IF(ACOMPANHAMENTO<>"PLE",0,SUMIF(OFFSET(CÁLCULO!$AX$15:$BH$15,$A20,0,$B20),"<="&PLE.Medicao,OFFSET(CÁLCULO!$AB$15:$AL$15,$A20,0,$B20))+IF(AUTOEVENTO="Manual",SUMIF(OFFSET(CÁLCULO!$M$15,$A20,0,$B20),1,OFFSET(ORÇAMENTO!$X$15,$A20,0,$B20))*PLE!$AE$9,0)),2) ->  | AJ20: =IF(ACOMPANHAMENTO<>"BM",0,SUMPRODUCT(OFFSET(BM!$M$15,$A20,0,$B20)*(OFFSET(BM!$A$15,$A20,0,$B20)="S")*OFFSET(ORÇAMENTO!AA$15,$A20,0,$B20)/(OFFSET(ORÇAMENTO!$X$15,$A20,0,$B20)+10^-12))) -> 0 | AK20: =IF(ACOMPANHAMENTO<>"BM",0,SUMPRODUCT(OFFSET(BM!$M$15,$A20,0,$B20)*(OFFSET(BM!$A$15,$A20,0,$B20)="S")*OFFSET(ORÇAMENTO!AB$15,$A20,0,$B20)/(OFFSET(ORÇAMENTO!$X$15,$A20,0,$B20)+10^-12))) -> 0 | AL20: =IF(ACOMPANHAMENTO<>"BM",0,OFFSET(BM!$M$15,$A20,0)) -> 0 | AM20: =IF(ACOMPANHAMENTO<>"BM",0,SUMPRODUCT(OFFSET(BM!$O$15,$A20,0,$B20)*(OFFSET(BM!$A$15,$A20,0,$B20)="S")*OFFSET(ORÇAMENTO!AA$15,$A20,0,$B20)/(OFFSET(ORÇAMENTO!$X$15,$A20,0,$B20)+10^-12))) -> 0 | AN20: =IF(ACOMPANHAMENTO<>"BM",0,SUMPRODUCT(OFFSET(BM!$O$15,$A20,0,$B20)*(OFFSET(BM!$A$15,$A20,0,$B20)="S")*OFFSET(ORÇAMENTO!AB$15,$A20,0,$B20)/(OFFSET(ORÇAMENTO!$X$15,$A20,0,$B20)+10^-12))) -> 0 | AO20: =IF(ACOMPANHAMENTO<>"BM",0,OFFSET(BM!$O$15,$A20,0)) -> 0
A21: =MATCH(E21,ORÇAMENTO!$E$15:$E$25,0)-1 ->  | B21: =IF(ISERROR($A21),NA(),OFFSET(ORÇAMENTO!$D$15,$A21,0)) ->  | C21: =QCI!B21 -> Branco | E21: =QCI!D21 -> 8 | F21: =QCI!G21 ->  | G21: =QCI!H21 -> 0 | H21: =QCI!I21 -> 0 | I21: =QCI!J21 ->  | J21: =QCI!K21 ->  | L21: =QCI!$O21 -> 0 | M21: 0 | N21: 0 | O21: 0 | P21: 0 | R21: =ROUND(IF($C21="Automático",AC21+AJ21,$Y21*IF(ISERROR(QCI!$AA21/QCI!$O21),0,QCI!$AA21/QCI!$O21)),2) -> 0 | S21: =ROUND(IF($C21="Automático",AD21+AK21,$Y21*IF(ISERROR(QCI!$AB21/QCI!$O21),0,QCI!$AB21/QCI!$O21)),2) -> 0 | T21: =ROUND(IF($C21="Automático",AF21+AM21,$Z21*IF(ISERROR(QCI!$AA21/QCI!$O21),0,QCI!$AA21/QCI!$O21)),2) -> 0 | U21: =ROUND(IF($C21="Automático",AG21+AN21,$Z21*IF(ISERROR(QCI!$AB21/QCI!$O21),0,QCI!$AB21/QCI!$O21)),2) -> 0 | V21: =IF(AND($L21>0,$J21<>0,$J21<>"",COUNTIF($J$13:$J21,$J21)=1),OFFSET(V21,-1,0)+1,OFFSET(V21,-1,0)) -> 1 | AC21: =IF(ACOMPANHAMENTO<>"PLE",0,SUMPRODUCT((OFFSET(CÁLCULO!$AX$15:$BH$15,$A21,0,$B21)<=(PLE.Medicao-1))*OFFSET(CÁLCULO!$AB$15:$AL$15,$A21,0,$B21)*OFFSET(ORÇAMENTO!$AA$15,$A21,0,$B21)/(OFFSET(ORÇAMENTO!$X$15,$A21,0,$B21)+10^-12))+IF(AUTOEVENTO="Manual",SUMPRODUCT((OFFSET(CÁLCULO!$M$15,$A21,0,$B21)=1)*OFFSET(ORÇAMENTO!$AA$15,$A21,0,$B21)*(PLE!$AE$9-PLE!$Y$9)),0)) ->  | AD21: =IF(ACOMPANHAMENTO<>"PLE",0,SUMPRODUCT((OFFSET(CÁLCULO!$AX$15:$BH$15,$A21,0,$B21)<=(PLE.Medicao-1))*OFFSET(CÁLCULO!$AB$15:$AL$15,$A21,0,$B21)*OFFSET(ORÇAMENTO!$AB$15,$A21,0,$B21)/(OFFSET(ORÇAMENTO!$X$15,$A21,0,$B21)+10^-12))+IF(AUTOEVENTO="Manual",SUMPRODUCT((OFFSET(CÁLCULO!$M$15,$A21,0,$B21)=1)*OFFSET(ORÇAMENTO!$AB$15,$A21,0,$B21)*(PLE!$AE$9-PLE!$Y$9)),0)) ->  | AE21: =ROUND(IF(ACOMPANHAMENTO<>"PLE",0,SUMIF(OFFSET(CÁLCULO!$AX$15:$BH$15,$A21,0,$B21),"<="&(PLE.Medicao-1),OFFSET(CÁLCULO!$AB$15:$AL$15,$A21,0,$B21))+IF(AUTOEVENTO="Manual",SUMIF(OFFSET(CÁLCULO!$M$15,$A21,0,$B21),1,OFFSET(ORÇAMENTO!$X$15,$A21,0,$B21))*(PLE!$AE$9-PLE!$Y$9),0)),2) ->  | AF21: =IF(ACOMPANHAMENTO<>"PLE",0,SUMPRODUCT((OFFSET(CÁLCULO!$AX$15:$BH$15,$A21,0,$B21)<=PLE.Medicao)*OFFSET(CÁLCULO!$AB$15:$AL$15,$A21,0,$B21)*OFFSET(ORÇAMENTO!$AA$15,$A21,0,$B21)/(OFFSET(ORÇAMENTO!$X$15,$A21,0,$B21)+10^-12))+IF(AUTOEVENTO="Manual",SUMPRODUCT((OFFSET(CÁLCULO!$M$15,$A21,0,$B21)=1)*OFFSET(ORÇAMENTO!$AA$15,$A21,0,$B21)*PLE!$AE$9),0)) ->  | AG21: =IF(ACOMPANHAMENTO<>"PLE",0,SUMPRODUCT((OFFSET(CÁLCULO!$AX$15:$BH$15,$A21,0,$B21)<=PLE.Medicao)*OFFSET(CÁLCULO!$AB$15:$AL$15,$A21,0,$B21)*OFFSET(ORÇAMENTO!$AB$15,$A21,0,$B21)/(OFFSET(ORÇAMENTO!$X$15,$A21,0,$B21)+10^-12))+IF(AUTOEVENTO="Manual",SUMPRODUCT((OFFSET(CÁLCULO!$M$15,$A21,0,$B21)=1)*OFFSET(ORÇAMENTO!$AB$15,$A21,0,$B21)*PLE!$AE$9),0)) ->  | AH21: =ROUND(IF(ACOMPANHAMENTO<>"PLE",0,SUMIF(OFFSET(CÁLCULO!$AX$15:$BH$15,$A21,0,$B21),"<="&PLE.Medicao,OFFSET(CÁLCULO!$AB$15:$AL$15,$A21,0,$B21))+IF(AUTOEVENTO="Manual",SUMIF(OFFSET(CÁLCULO!$M$15,$A21,0,$B21),1,OFFSET(ORÇAMENTO!$X$15,$A21,0,$B21))*PLE!$AE$9,0)),2) ->  | AJ21: =IF(ACOMPANHAMENTO<>"BM",0,SUMPRODUCT(OFFSET(BM!$M$15,$A21,0,$B21)*(OFFSET(BM!$A$15,$A21,0,$B21)="S")*OFFSET(ORÇAMENTO!AA$15,$A21,0,$B21)/(OFFSET(ORÇAMENTO!$X$15,$A21,0,$B21)+10^-12))) -> 0 | AK21: =IF(ACOMPANHAMENTO<>"BM",0,SUMPRODUCT(OFFSET(BM!$M$15,$A21,0,$B21)*(OFFSET(BM!$A$15,$A21,0,$B21)="S")*OFFSET(ORÇAMENTO!AB$15,$A21,0,$B21)/(OFFSET(ORÇAMENTO!$X$15,$A21,0,$B21)+10^-12))) -> 0 | AL21: =IF(ACOMPANHAMENTO<>"BM",0,OFFSET(BM!$M$15,$A21,0)) -> 0 | AM21: =IF(ACOMPANHAMENTO<>"BM",0,SUMPRODUCT(OFFSET(BM!$O$15,$A21,0,$B21)*(OFFSET(BM!$A$15,$A21,0,$B21)="S")*OFFSET(ORÇAMENTO!AA$15,$A21,0,$B21)/(OFFSET(ORÇAMENTO!$X$15,$A21,0,$B21)+10^-12))) -> 0 | AN21: =IF(ACOMPANHAMENTO<>"BM",0,SUMPRODUCT(OFFSET(BM!$O$15,$A21,0,$B21)*(OFFSET(BM!$A$15,$A21,0,$B21)="S")*OFFSET(ORÇAMENTO!AB$15,$A21,0,$B21)/(OFFSET(ORÇAMENTO!$X$15,$A21,0,$B21)+10^-12))) -> 0 | AO21: =IF(ACOMPANHAMENTO<>"BM",0,OFFSET(BM!$O$15,$A21,0)) -> 0
A22: =MATCH(E22,ORÇAMENTO!$E$15:$E$25,0)-1 ->  | B22: =IF(ISERROR($A22),NA(),OFFSET(ORÇAMENTO!$D$15,$A22,0)) ->  | C22: =QCI!B22 -> Branco | E22: =QCI!D22 -> 9 | F22: =QCI!G22 ->  | G22: =QCI!H22 -> 0 | H22: =QCI!I22 -> 0 | I22: =QCI!J22 ->  | J22: =QCI!K22 ->  | L22: =QCI!$O22 -> 0 | M22: 0 | N22: 0 | O22: 0 | P22: 0 | R22: =ROUND(IF($C22="Automático",AC22+AJ22,$Y22*IF(ISERROR(QCI!$AA22/QCI!$O22),0,QCI!$AA22/QCI!$O22)),2) -> 0 | S22: =ROUND(IF($C22="Automático",AD22+AK22,$Y22*IF(ISERROR(QCI!$AB22/QCI!$O22),0,QCI!$AB22/QCI!$O22)),2) -> 0 | T22: =ROUND(IF($C22="Automático",AF22+AM22,$Z22*IF(ISERROR(QCI!$AA22/QCI!$O22),0,QCI!$AA22/QCI!$O22)),2) -> 0 | U22: =ROUND(IF($C22="Automático",AG22+AN22,$Z22*IF(ISERROR(QCI!$AB22/QCI!$O22),0,QCI!$AB22/QCI!$O22)),2) -> 0 | V22: =IF(AND($L22>0,$J22<>0,$J22<>"",COUNTIF($J$13:$J22,$J22)=1),OFFSET(V22,-1,0)+1,OFFSET(V22,-1,0)) -> 1 | AC22: =IF(ACOMPANHAMENTO<>"PLE",0,SUMPRODUCT((OFFSET(CÁLCULO!$AX$15:$BH$15,$A22,0,$B22)<=(PLE.Medicao-1))*OFFSET(CÁLCULO!$AB$15:$AL$15,$A22,0,$B22)*OFFSET(ORÇAMENTO!$AA$15,$A22,0,$B22)/(OFFSET(ORÇAMENTO!$X$15,$A22,0,$B22)+10^-12))+IF(AUTOEVENTO="Manual",SUMPRODUCT((OFFSET(CÁLCULO!$M$15,$A22,0,$B22)=1)*OFFSET(ORÇAMENTO!$AA$15,$A22,0,$B22)*(PLE!$AE$9-PLE!$Y$9)),0)) ->  | AD22: =IF(ACOMPANHAMENTO<>"PLE",0,SUMPRODUCT((OFFSET(CÁLCULO!$AX$15:$BH$15,$A22,0,$B22)<=(PLE.Medicao-1))*OFFSET(CÁLCULO!$AB$15:$AL$15,$A22,0,$B22)*OFFSET(ORÇAMENTO!$AB$15,$A22,0,$B22)/(OFFSET(ORÇAMENTO!$X$15,$A22,0,$B22)+10^-12))+IF(AUTOEVENTO="Manual",SUMPRODUCT((OFFSET(CÁLCULO!$M$15,$A22,0,$B22)=1)*OFFSET(ORÇAMENTO!$AB$15,$A22,0,$B22)*(PLE!$AE$9-PLE!$Y$9)),0)) ->  | AE22: =ROUND(IF(ACOMPANHAMENTO<>"PLE",0,SUMIF(OFFSET(CÁLCULO!$AX$15:$BH$15,$A22,0,$B22),"<="&(PLE.Medicao-1),OFFSET(CÁLCULO!$AB$15:$AL$15,$A22,0,$B22))+IF(AUTOEVENTO="Manual",SUMIF(OFFSET(CÁLCULO!$M$15,$A22,0,$B22),1,OFFSET(ORÇAMENTO!$X$15,$A22,0,$B22))*(PLE!$AE$9-PLE!$Y$9),0)),2) ->  | AF22: =IF(ACOMPANHAMENTO<>"PLE",0,SUMPRODUCT((OFFSET(CÁLCULO!$AX$15:$BH$15,$A22,0,$B22)<=PLE.Medicao)*OFFSET(CÁLCULO!$AB$15:$AL$15,$A22,0,$B22)*OFFSET(ORÇAMENTO!$AA$15,$A22,0,$B22)/(OFFSET(ORÇAMENTO!$X$15,$A22,0,$B22)+10^-12))+IF(AUTOEVENTO="Manual",SUMPRODUCT((OFFSET(CÁLCULO!$M$15,$A22,0,$B22)=1)*OFFSET(ORÇAMENTO!$AA$15,$A22,0,$B22)*PLE!$AE$9),0)) ->  | AG22: =IF(ACOMPANHAMENTO<>"PLE",0,SUMPRODUCT((OFFSET(CÁLCULO!$AX$15:$BH$15,$A22,0,$B22)<=PLE.Medicao)*OFFSET(CÁLCULO!$AB$15:$AL$15,$A22,0,$B22)*OFFSET(ORÇAMENTO!$AB$15,$A22,0,$B22)/(OFFSET(ORÇAMENTO!$X$15,$A22,0,$B22)+10^-12))+IF(AUTOEVENTO="Manual",SUMPRODUCT((OFFSET(CÁLCULO!$M$15,$A22,0,$B22)=1)*OFFSET(ORÇAMENTO!$AB$15,$A22,0,$B22)*PLE!$AE$9),0)) ->  | AH22: =ROUND(IF(ACOMPANHAMENTO<>"PLE",0,SUMIF(OFFSET(CÁLCULO!$AX$15:$BH$15,$A22,0,$B22),"<="&PLE.Medicao,OFFSET(CÁLCULO!$AB$15:$AL$15,$A22,0,$B22))+IF(AUTOEVENTO="Manual",SUMIF(OFFSET(CÁLCULO!$M$15,$A22,0,$B22),1,OFFSET(ORÇAMENTO!$X$15,$A22,0,$B22))*PLE!$AE$9,0)),2) ->  | AJ22: =IF(ACOMPANHAMENTO<>"BM",0,SUMPRODUCT(OFFSET(BM!$M$15,$A22,0,$B22)*(OFFSET(BM!$A$15,$A22,0,$B22)="S")*OFFSET(ORÇAMENTO!AA$15,$A22,0,$B22)/(OFFSET(ORÇAMENTO!$X$15,$A22,0,$B22)+10^-12))) -> 0 | AK22: =IF(ACOMPANHAMENTO<>"BM",0,SUMPRODUCT(OFFSET(BM!$M$15,$A22,0,$B22)*(OFFSET(BM!$A$15,$A22,0,$B22)="S")*OFFSET(ORÇAMENTO!AB$15,$A22,0,$B22)/(OFFSET(ORÇAMENTO!$X$15,$A22,0,$B22)+10^-12))) -> 0 | AL22: =IF(ACOMPANHAMENTO<>"BM",0,OFFSET(BM!$M$15,$A22,0)) -> 0 | AM22: =IF(ACOMPANHAMENTO<>"BM",0,SUMPRODUCT(OFFSET(BM!$O$15,$A22,0,$B22)*(OFFSET(BM!$A$15,$A22,0,$B22)="S")*OFFSET(ORÇAMENTO!AA$15,$A22,0,$B22)/(OFFSET(ORÇAMENTO!$X$15,$A22,0,$B22)+10^-12))) -> 0 | AN22: =IF(ACOMPANHAMENTO<>"BM",0,SUMPRODUCT(OFFSET(BM!$O$15,$A22,0,$B22)*(OFFSET(BM!$A$15,$A22,0,$B22)="S")*OFFSET(ORÇAMENTO!AB$15,$A22,0,$B22)/(OFFSET(ORÇAMENTO!$X$15,$A22,0,$B22)+10^-12))) -> 0 | AO22: =IF(ACOMPANHAMENTO<>"BM",0,OFFSET(BM!$O$15,$A22,0)) -> 0
A23: =MATCH(E23,ORÇAMENTO!$E$15:$E$25,0)-1 ->  | B23: =IF(ISERROR($A23),NA(),OFFSET(ORÇAMENTO!$D$15,$A23,0)) ->  | C23: =QCI!B23 -> Branco | D23: =IF(L23>0,"F","") ->  | E23: =QCI!D23 -> 10 | F23: =QCI!G23 ->  | G23: =QCI!H23 -> 0 | H23: =QCI!I23 -> 0 | I23: =QCI!J23 ->  | J23: =QCI!K23 ->  | L23: =QCI!$O23 -> 0 | M23: =ROUND(IF(C23="Automático",AE23+AL23,Y23),2) -> 0 | N23: =O23-M23 -> 0 | O23: =ROUND(IF(C23="Automático",AH23+AO23,Z23),2) -> 0 | P23: =O23/(L23+10^-12) -> 0 | R23: =ROUND(IF($C23="Automático",AC23+AJ23,$Y23*IF(ISERROR(QCI!$AA23/QCI!$O23),0,QCI!$AA23/QCI!$O23)),2) -> 0 | S23: =ROUND(IF($C23="Automático",AD23+AK23,$Y23*IF(ISERROR(QCI!$AB23/QCI!$O23),0,QCI!$AB23/QCI!$O23)),2) -> 0 | T23: =ROUND(IF($C23="Automático",AF23+AM23,$Z23*IF(ISERROR(QCI!$AA23/QCI!$O23),0,QCI!$AA23/QCI!$O23)),2) -> 0 | U23: =ROUND(IF($C23="Automático",AG23+AN23,$Z23*IF(ISERROR(QCI!$AB23/QCI!$O23),0,QCI!$AB23/QCI!$O23)),2) -> 0 | V23: =IF(AND($L23>0,$J23<>0,$J23<>"",COUNTIF($J$13:$J23,$J23)=1),OFFSET(V23,-1,0)+1,OFFSET(V23,-1,0)) -> 1 | AC23: =IF(ACOMPANHAMENTO<>"PLE",0,SUMPRODUCT((OFFSET(CÁLCULO!$AX$15:$BH$15,$A23,0,$B23)<=(PLE.Medicao-1))*OFFSET(CÁLCULO!$AB$15:$AL$15,$A23,0,$B23)*OFFSET(ORÇAMENTO!$AA$15,$A23,0,$B23)/(OFFSET(ORÇAMENTO!$X$15,$A23,0,$B23)+10^-12))+IF(AUTOEVENTO="Manual",SUMPRODUCT((OFFSET(CÁLCULO!$M$15,$A23,0,$B23)=1)*OFFSET(ORÇAMENTO!$AA$15,$A23,0,$B23)*(PLE!$AE$9-PLE!$Y$9)),0)) ->  | AD23: =IF(ACOMPANHAMENTO<>"PLE",0,SUMPRODUCT((OFFSET(CÁLCULO!$AX$15:$BH$15,$A23,0,$B23)<=(PLE.Medicao-1))*OFFSET(CÁLCULO!$AB$15:$AL$15,$A23,0,$B23)*OFFSET(ORÇAMENTO!$AB$15,$A23,0,$B23)/(OFFSET(ORÇAMENTO!$X$15,$A23,0,$B23)+10^-12))+IF(AUTOEVENTO="Manual",SUMPRODUCT((OFFSET(CÁLCULO!$M$15,$A23,0,$B23)=1)*OFFSET(ORÇAMENTO!$AB$15,$A23,0,$B23)*(PLE!$AE$9-PLE!$Y$9)),0)) ->  | AE23: =ROUND(IF(ACOMPANHAMENTO<>"PLE",0,SUMIF(OFFSET(CÁLCULO!$AX$15:$BH$15,$A23,0,$B23),"<="&(PLE.Medicao-1),OFFSET(CÁLCULO!$AB$15:$AL$15,$A23,0,$B23))+IF(AUTOEVENTO="Manual",SUMIF(OFFSET(CÁLCULO!$M$15,$A23,0,$B23),1,OFFSET(ORÇAMENTO!$X$15,$A23,0,$B23))*(PLE!$AE$9-PLE!$Y$9),0)),2) ->  | AF23: =IF(ACOMPANHAMENTO<>"PLE",0,SUMPRODUCT((OFFSET(CÁLCULO!$AX$15:$BH$15,$A23,0,$B23)<=PLE.Medicao)*OFFSET(CÁLCULO!$AB$15:$AL$15,$A23,0,$B23)*OFFSET(ORÇAMENTO!$AA$15,$A23,0,$B23)/(OFFSET(ORÇAMENTO!$X$15,$A23,0,$B23)+10^-12))+IF(AUTOEVENTO="Manual",SUMPRODUCT((OFFSET(CÁLCULO!$M$15,$A23,0,$B23)=1)*OFFSET(ORÇAMENTO!$AA$15,$A23,0,$B23)*PLE!$AE$9),0)) ->  | AG23: =IF(ACOMPANHAMENTO<>"PLE",0,SUMPRODUCT((OFFSET(CÁLCULO!$AX$15:$BH$15,$A23,0,$B23)<=PLE.Medicao)*OFFSET(CÁLCULO!$AB$15:$AL$15,$A23,0,$B23)*OFFSET(ORÇAMENTO!$AB$15,$A23,0,$B23)/(OFFSET(ORÇAMENTO!$X$15,$A23,0,$B23)+10^-12))+IF(AUTOEVENTO="Manual",SUMPRODUCT((OFFSET(CÁLCULO!$M$15,$A23,0,$B23)=1)*OFFSET(ORÇAMENTO!$AB$15,$A23,0,$B23)*PLE!$AE$9),0)) ->  | AH23: =ROUND(IF(ACOMPANHAMENTO<>"PLE",0,SUMIF(OFFSET(CÁLCULO!$AX$15:$BH$15,$A23,0,$B23),"<="&PLE.Medicao,OFFSET(CÁLCULO!$AB$15:$AL$15,$A23,0,$B23))+IF(AUTOEVENTO="Manual",SUMIF(OFFSET(CÁLCULO!$M$15,$A23,0,$B23),1,OFFSET(ORÇAMENTO!$X$15,$A23,0,$B23))*PLE!$AE$9,0)),2) ->  | AJ23: =IF(ACOMPANHAMENTO<>"BM",0,SUMPRODUCT(OFFSET(BM!$M$15,$A23,0,$B23)*(OFFSET(BM!$A$15,$A23,0,$B23)="S")*OFFSET(ORÇAMENTO!AA$15,$A23,0,$B23)/(OFFSET(ORÇAMENTO!$X$15,$A23,0,$B23)+10^-12))) -> 0 | AK23: =IF(ACOMPANHAMENTO<>"BM",0,SUMPRODUCT(OFFSET(BM!$M$15,$A23,0,$B23)*(OFFSET(BM!$A$15,$A23,0,$B23)="S")*OFFSET(ORÇAMENTO!AB$15,$A23,0,$B23)/(OFFSET(ORÇAMENTO!$X$15,$A23,0,$B23)+10^-12))) -> 0 | AL23: =IF(ACOMPANHAMENTO<>"BM",0,OFFSET(BM!$M$15,$A23,0)) -> 0 | AM23: =IF(ACOMPANHAMENTO<>"BM",0,SUMPRODUCT(OFFSET(BM!$O$15,$A23,0,$B23)*(OFFSET(BM!$A$15,$A23,0,$B23)="S")*OFFSET(ORÇAMENTO!AA$15,$A23,0,$B23)/(OFFSET(ORÇAMENTO!$X$15,$A23,0,$B23)+10^-12))) -> 0 | AN23: =IF(ACOMPANHAMENTO<>"BM",0,SUMPRODUCT(OFFSET(BM!$O$15,$A23,0,$B23)*(OFFSET(BM!$A$15,$A23,0,$B23)="S")*OFFSET(ORÇAMENTO!AB$15,$A23,0,$B23)/(OFFSET(ORÇAMENTO!$X$15,$A23,0,$B23)+10^-12))) -> 0 | AO23: =IF(ACOMPANHAMENTO<>"BM",0,OFFSET(BM!$O$15,$A23,0)) -> 0
D24: F | J24: (%) | L24: =IF(ISERROR(L28/$L28),0,ROUND(L28/$L28,4)) -> 1 | M24: =IF(ISERROR(M28/$L28),0,ROUND(M28/$L28,4)) -> 0 | N24: =IF(ISERROR(N28/$L28),0,ROUND(N28/$L28,4)) -> 0 | O24: =IF(ISERROR(O28/$L28),0,ROUND(O28/$L28,4)) -> 0 | P24: =O28/(L28+10^-12) -> 0
D25: F | J25: =IF(import.recurso="FGTS","Financiamento","Repasse") -> Repasse | L25: =QCI!L24 ->  | M25: =M28-M27-M26 ->  | N25: =O25-M25 ->  | O25: =O28-O27-O26 ->  | Y25: Anterior (R$) | Z25: Acumulado (R$) | AC25: Max CP/OU Ant. | AD25: Max CP/OU Acum.
D26: F | J26: Contrapartida | L26: =QCI!M24 ->  | M26: =ROUND(IF(OFFSET($X$26,0,1)<>"",OFFSET($X$26,0,1),SUM(R13:OFFSET(R24,-1,0))),2) ->  | N26: =O26-M26 ->  | O26: =IF(OFFSET($X$26,0,2)<>"",OFFSET($X$26,0,2),$AE$3) ->  | X26: CP | AC26: =MIN($L26,$O$28-OFFSET($X$27,0,1)) ->  | AD26: =MIN($L26,$O$28-OFFSET($X$27,0,2)) -> 
D27: F | J27: Outros | L27: =QCI!N24 -> 0 | M27: =ROUND(IF(OFFSET($X$27,0,1)<>"",OFFSET($X$27,0,1),SUM(S13:OFFSET(S24,-1,0))),2) -> 0 | N27: =O27-M27 -> 0 | O27: =IF(OFFSET($X$27,0,2)<>"",OFFSET($X$27,0,2),$AE$4) -> 0 | X27: OU | AC27: =MIN($L27,$O$28-OFFSET($X$26,0,1)) -> 0 | AD27: =MIN($L27,$O$28-OFFSET($X$26,0,2)) -> 0
D28: F | J28: Investimento | L28: =SUM(L13:OFFSET(L24,-1,0)) -> 175683.83 | M28: =ROUND(SUM(M13:OFFSET(M24,-1,0)),2) -> 0 | N28: =O28-M28 -> 0 | O28: =SUM(O13:OFFSET(O24,-1,0)) -> 0
O29: ="Acumulado Anterior: "&TEXT($M$28/($L$28+10^-12),"0,00%") -> Acumulado Anterior: 0,00%
E30: Observações:
E35: =Import.Município -> Lacerdópolis/SC | L35: =DADOS!$F$18 -> 2019-02-27
E36: Local | L36: Data
E39: =IF(CAIXA.Modo,"Responsável Gerencial CAIXA","Representante Tomador") -> Representante Tomador | L39: =IF(CAIXA.Modo,"Responsável Técnico CAIXA","Responsável Técnico pela Fiscalização") -> Responsável Técnico pela Fiscalização
E40: Nome: | F40: =IF(CAIXA.Modo,DADOS!F52,DADOS!F21) -> Sergio Callegari | L40: Nome: | M40: =IF(CAIXA.Modo,BM!X37,DADOS!F43) -> 0
E41: =IF(CAIXA.Modo,"Função:","Cargo:") -> Cargo: | F41: =IF(CAIXA.Modo,DADOS!F53,DADOS!F22) -> Prefeito Municipal | L41: =IF(CAIXA.Modo,"Matrícula:","Profissão:") -> Profissão: | M41: =IF(CAIXA.Modo,BM!X38,DADOS!F44) -> 0
L42: CREA/CAU: | M42: =IF(CAIXA.Modo,BM!X39,DADOS!F45) -> 0
L43: =IF(CAIXA.Modo,"","ART/RRT:") -> ART/RRT: | M43: =IF(CAIXA.Modo,"",DADOS!F46) -> 0
E46: =IF(CAIXA.Modo,"Responsável Social CAIXA","Responsável Social") -> Responsável Social | L46: =IF(CAIXA.Modo,"Responsável Operacional CAIXA","Responsável Financeiro") -> Responsável Financeiro
E47: Nome: | L47: Nome:
E48: =IF(CAIXA.Modo,"Função:","Cargo:") -> Cargo: | L48: =IF(CAIXA.Modo,"Função:","Cargo:") -> Cargo:
E49: =IF(CAIXA.Modo,"Matr:","") ->  | L49: =IF(CAIXA.Modo,"Matrícula:","") -> 

Sheet OFÍCIO (hidden)
G1: Grau de Sigilo
G2: # PÚBLICO
I3: Resumo de Valores por CTEF:
I4: CTEF: | J4: Valor Vigente (R$) | K4: Valor desta Medição (R$) | L4: Valor Acumulado (R$)
B6: Ofício n°: | I6: =IF(ROW(I6)-ROW(L$5)>MAX(RRE!$V$13:$V$24),"",INDEX(RRE!$J$13:$J$24,MATCH(ROW(I6)-ROW(I$5),RRE!$V$13:$V$24,0))) -> LOTE 1 | J6: =IF(I6="","",SUMIF(RRE!$J$13:$J$24,OFÍCIO!$I6,RRE!$L$13:$L$24)) -> 175683.83 | K6: =IF(J6="","",SUMIF(RRE!$J$13:$J$24,OFÍCIO!$I6,RRE!$N$13:$N$24)) -> 0 | L6: =IF(K6="","",SUMIF(RRE!$J$13:$J$24,OFÍCIO!$I6,RRE!$O$13:$O$24)) -> 0
I7: =IF(ROW(I7)-ROW(L$5)>MAX(RRE!$V$13:$V$24),"",INDEX(RRE!$J$13:$J$24,MATCH(ROW(I7)-ROW(I$5),RRE!$V$13:$V$24,0))) ->  | J7: =IF(I7="","",SUMIF(RRE!$J$13:$J$24,OFÍCIO!$I7,RRE!$L$13:$L$24)) ->  | K7: =IF(J7="","",SUMIF(RRE!$J$13:$J$24,OFÍCIO!$I7,RRE!$N$13:$N$24)) ->  | L7: =IF(K7="","",SUMIF(RRE!$J$13:$J$24,OFÍCIO!$I7,RRE!$O$13:$O$24)) -> 
B8: =CONCATENATE(RRE!$E$35,", ",TEXT(RRE!$L$35,"dd"" de ""mmmm"" de ""aaaa")) -> Lacerdópolis/SC, 27 de fevereiro de 2019 | I8: =IF(ROW(I8)-ROW(L$5)>MAX(RRE!$V$13:$V$24),"",INDEX(RRE!$J$13:$J$24,MATCH(ROW(I8)-ROW(I$5),RRE!$V$13:$V$24,0))) ->  | J8: =IF(I8="","",SUMIF(RRE!$J$13:$J$24,OFÍCIO!$I8,RRE!$L$13:$L$24)) ->  | K8: =IF(J8="","",SUMIF(RRE!$J$13:$J$24,OFÍCIO!$I8,RRE!$N$13:$N$24)) ->  | L8: =IF(K8="","",SUMIF(RRE!$J$13:$J$24,OFÍCIO!$I8,RRE!$O$13:$O$24)) -> 
B9: À | I9: =IF(ROW(I9)-ROW(L$5)>MAX(RRE!$V$13:$V$24),"",INDEX(RRE!$J$13:$J$24,MATCH(ROW(I9)-ROW(I$5),RRE!$V$13:$V$24,0))) ->  | J9: =IF(I9="","",SUMIF(RRE!$J$13:$J$24,OFÍCIO!$I9,RRE!$L$13:$L$24)) ->  | K9: =IF(J9="","",SUMIF(RRE!$J$13:$J$24,OFÍCIO!$I9,RRE!$N$13:$N$24)) ->  | L9: =IF(K9="","",SUMIF(RRE!$J$13:$J$24,OFÍCIO!$I9,RRE!$O$13:$O$24)) -> 
B10: CAIXA ECONÔMICA FEDERAL | I10: =IF(ROW(I10)-ROW(L$5)>MAX(RRE!$V$13:$V$24),"",INDEX(RRE!$J$13:$J$24,MATCH(ROW(I10)-ROW(I$5),RRE!$V$13:$V$24,0))) ->  | J10: =IF(I10="","",SUMIF(RRE!$J$13:$J$24,OFÍCIO!$I10,RRE!$L$13:$L$24)) ->  | K10: =IF(J10="","",SUMIF(RRE!$J$13:$J$24,OFÍCIO!$I10,RRE!$N$13:$N$24)) ->  | L10: =IF(K10="","",SUMIF(RRE!$J$13:$J$24,OFÍCIO!$I10,RRE!$O$13:$O$24)) -> 
B11: GIGOV | I11: =IF(ROW(I11)-ROW(L$5)>MAX(RRE!$V$13:$V$24),"",INDEX(RRE!$J$13:$J$24,MATCH(ROW(I11)-ROW(I$5),RRE!$V$13:$V$24,0))) ->  | J11: =IF(I11="","",SUMIF(RRE!$J$13:$J$24,OFÍCIO!$I11,RRE!$L$13:$L$24)) ->  | K11: =IF(J11="","",SUMIF(RRE!$J$13:$J$24,OFÍCIO!$I11,RRE!$N$13:$N$24)) ->  | L11: =IF(K11="","",SUMIF(RRE!$J$13:$J$24,OFÍCIO!$I11,RRE!$O$13:$O$24)) -> 
I12: =IF(ROW(I12)-ROW(L$5)>MAX(RRE!$V$13:$V$24),"",INDEX(RRE!$J$13:$J$24,MATCH(ROW(I12)-ROW(I$5),RRE!$V$13:$V$24,0))) ->  | J12: =IF(I12="","",SUMIF(RRE!$J$13:$J$24,OFÍCIO!$I12,RRE!$L$13:$L$24)) ->  | K12: =IF(J12="","",SUMIF(RRE!$J$13:$J$24,OFÍCIO!$I12,RRE!$N$13:$N$24)) ->  | L12: =IF(K12="","",SUMIF(RRE!$J$13:$J$24,OFÍCIO!$I12,RRE!$O$13:$O$24)) -> 
I13: =IF(ROW(I13)-ROW(L$5)>MAX(RRE!$V$13:$V$24),"",INDEX(RRE!$J$13:$J$24,MATCH(ROW(I13)-ROW(I$5),RRE!$V$13:$V$24,0))) ->  | J13: =IF(I13="","",SUMIF(RRE!$J$13:$J$24,OFÍCIO!$I13,RRE!$L$13:$L$24)) ->  | K13: =IF(J13="","",SUMIF(RRE!$J$13:$J$24,OFÍCIO!$I13,RRE!$N$13:$N$24)) ->  | L13: =IF(K13="","",SUMIF(RRE!$J$13:$J$24,OFÍCIO!$I13,RRE!$O$13:$O$24)) -> 
B14: Assunto: | C14: =CONCATENATE(RRE.Numero,"ª"," Solicitação de ",IF(import.recurso="OGU","Desbloqueio","Desembolso")," de Recursos.") -> 1ª Solicitação de Desembolso de Recursos. | I14: =IF(ROW(I14)-ROW(L$5)>MAX(RRE!$V$13:$V$24),"",INDEX(RRE!$J$13:$J$24,MATCH(ROW(I14)-ROW(I$5),RRE!$V$13:$V$24,0))) ->  | J14: =IF(I14="","",SUMIF(RRE!$J$13:$J$24,OFÍCIO!$I14,RRE!$L$13:$L$24)) ->  | K14: =IF(J14="","",SUMIF(RRE!$J$13:$J$24,OFÍCIO!$I14,RRE!$N$13:$N$24)) ->  | L14: =IF(K14="","",SUMIF(RRE!$J$13:$J$24,OFÍCIO!$I14,RRE!$O$13:$O$24)) -> 
B15: REF: | C15: =CONCATENATE("Contrato de ",IF(import.recurso="OGU","Repasse","Financiamento")," - Operação nº ",Import.CR,IF(Import.SICONV="","",CONCATENATE(" - SICONV nº ",Import.SICONV))) ->  | I15: =IF(ROW(I15)-ROW(L$5)>MAX(RRE!$V$13:$V$24),"",INDEX(RRE!$J$13:$J$24,MATCH(ROW(I15)-ROW(I$5),RRE!$V$13:$V$24,0))) ->  | J15: =IF(I15="","",SUMIF(RRE!$J$13:$J$24,OFÍCIO!$I15,RRE!$L$13:$L$24)) ->  | K15: =IF(J15="","",SUMIF(RRE!$J$13:$J$24,OFÍCIO!$I15,RRE!$N$13:$N$24)) ->  | L15: =IF(K15="","",SUMIF(RRE!$J$13:$J$24,OFÍCIO!$I15,RRE!$O$13:$O$24)) -> 
I16: =IF(ROW(I16)-ROW(L$5)>MAX(RRE!$V$13:$V$24),"",INDEX(RRE!$J$13:$J$24,MATCH(ROW(I16)-ROW(I$5),RRE!$V$13:$V$24,0))) ->  | J16: =IF(I16="","",SUMIF(RRE!$J$13:$J$24,OFÍCIO!$I16,RRE!$L$13:$L$24)) ->  | K16: =IF(J16="","",SUMIF(RRE!$J$13:$J$24,OFÍCIO!$I16,RRE!$N$13:$N$24)) ->  | L16: =IF(K16="","",SUMIF(RRE!$J$13:$J$24,OFÍCIO!$I16,RRE!$O$13:$O$24)) -> 
I17: =IF(ROW(I17)-ROW(L$5)>MAX(RRE!$V$13:$V$24),"",INDEX(RRE!$J$13:$J$24,MATCH(ROW(I17)-ROW(I$5),RRE!$V$13:$V$24,0))) ->  | J17: =IF(I17="","",SUMIF(RRE!$J$13:$J$24,OFÍCIO!$I17,RRE!$L$13:$L$24)) ->  | K17: =IF(J17="","",SUMIF(RRE!$J$13:$J$24,OFÍCIO!$I17,RRE!$N$13:$N$24)) ->  | L17: =IF(K17="","",SUMIF(RRE!$J$13:$J$24,OFÍCIO!$I17,RRE!$O$13:$O$24)) -> 
B18: Objeto: | C18: =Import.DescLote -> Associação dos Municípios do Meio Oeste Catarinense | I18: =IF(ROW(I18)-ROW(L$5)>MAX(RRE!$V$13:$V$24),"",INDEX(RRE!$J$13:$J$24,MATCH(ROW(I18)-ROW(I$5),RRE!$V$13:$V$24,0))) ->  | J18: =IF(I18="","",SUMIF(RRE!$J$13:$J$24,OFÍCIO!$I18,RRE!$L$13:$L$24)) ->  | K18: =IF(J18="","",SUMIF(RRE!$J$13:$J$24,OFÍCIO!$I18,RRE!$N$13:$N$24)) ->  | L18: =IF(K18="","",SUMIF(RRE!$J$13:$J$24,OFÍCIO!$I18,RRE!$O$13:$O$24)) -> 
B19: Proponente / Tomador: | C19: =Import.Proponente -> PREFEITURA MUNICIPAL DE LACERDÓPOLIS | I19: =IF(ROW(I19)-ROW(L$5)>MAX(RRE!$V$13:$V$24),"",INDEX(RRE!$J$13:$J$24,MATCH(ROW(I19)-ROW(I$5),RRE!$V$13:$V$24,0))) ->  | J19: =IF(I19="","",SUMIF(RRE!$J$13:$J$24,OFÍCIO!$I19,RRE!$L$13:$L$24)) ->  | K19: =IF(J19="","",SUMIF(RRE!$J$13:$J$24,OFÍCIO!$I19,RRE!$N$13:$N$24)) ->  | L19: =IF(K19="","",SUMIF(RRE!$J$13:$J$24,OFÍCIO!$I19,RRE!$O$13:$O$24)) -> 
I20: =IF(ROW(I20)-ROW(L$5)>MAX(RRE!$V$13:$V$24),"",INDEX(RRE!$J$13:$J$24,MATCH(ROW(I20)-ROW(I$5),RRE!$V$13:$V$24,0))) ->  | J20: =IF(I20="","",SUMIF(RRE!$J$13:$J$24,OFÍCIO!$I20,RRE!$L$13:$L$24)) ->  | K20: =IF(J20="","",SUMIF(RRE!$J$13:$J$24,OFÍCIO!$I20,RRE!$N$13:$N$24)) ->  | L20: =IF(K20="","",SUMIF(RRE!$J$13:$J$24,OFÍCIO!$I20,RRE!$O$13:$O$24)) -> 
I21: =IF(ROW(I21)-ROW(L$5)>MAX(RRE!$V$13:$V$24),"",INDEX(RRE!$J$13:$J$24,MATCH(ROW(I21)-ROW(I$5),RRE!$V$13:$V$24,0))) ->  | J21: =IF(I21="","",SUMIF(RRE!$J$13:$J$24,OFÍCIO!$I21,RRE!$L$13:$L$24)) ->  | K21: =IF(J21="","",SUMIF(RRE!$J$13:$J$24,OFÍCIO!$I21,RRE!$N$13:$N$24)) ->  | L21: =IF(K21="","",SUMIF(RRE!$J$13:$J$24,OFÍCIO!$I21,RRE!$O$13:$O$24)) -> 
B22: =IF(B11="GIGOV","Senhor Gerente","Senhor Superintendente") -> Senhor Gerente | I22: =IF(ROW(I22)-ROW(L$5)>MAX(RRE!$V$13:$V$24),"",INDEX(RRE!$J$13:$J$24,MATCH(ROW(I22)-ROW(I$5),RRE!$V$13:$V$24,0))) ->  | J22: =IF(I22="","",SUMIF(RRE!$J$13:$J$24,OFÍCIO!$I22,RRE!$L$13:$L$24)) ->  | K22: =IF(J22="","",SUMIF(RRE!$J$13:$J$24,OFÍCIO!$I22,RRE!$N$13:$N$24)) ->  | L22: =IF(K22="","",SUMIF(RRE!$J$13:$J$24,OFÍCIO!$I22,RRE!$O$13:$O$24)) -> 
I23: =IF(ROW(I23)-ROW(L$5)>MAX(RRE!$V$13:$V$24),"",INDEX(RRE!$J$13:$J$24,MATCH(ROW(I23)-ROW(I$5),RRE!$V$13:$V$24,0))) ->  | J23: =IF(I23="","",SUMIF(RRE!$J$13:$J$24,OFÍCIO!$I23,RRE!$L$13:$L$24)) ->  | K23: =IF(J23="","",SUMIF(RRE!$J$13:$J$24,OFÍCIO!$I23,RRE!$N$13:$N$24)) ->  | L23: =IF(K23="","",SUMIF(RRE!$J$13:$J$24,OFÍCIO!$I23,RRE!$O$13:$O$24)) -> 
B24: =CONCATENATE("1. Vimos pelo presente, solicitar à Caixa Econômica Federal autorização para ",IF(import.recurso="OGU","desbloqueio","desembolso")," da parcela de recursos relativa ao Contrato de ",IF(import.recurso="OGU","Repasse","Financiamento")," em referência, conforme valores abaixo discriminados e, para tanto, anexamos a documentação necessária ao pleito.") -> 1. Vimos pelo presente, solicitar à Caixa Econômica Federal autorização para desembolso da parcela de recursos relativa ao Contrato de Financiamento em referência, conforme valores abaixo discriminados e, para tanto, anexamos a documentação necessária ao pleito. | I24: =IF(ROW(I24)-ROW(L$5)>MAX(RRE!$V$13:$V$24),"",INDEX(RRE!$J$13:$J$24,MATCH(ROW(I24)-ROW(I$5),RRE!$V$13:$V$24,0))) ->  | J24: =IF(I24="","",SUMIF(RRE!$J$13:$J$24,OFÍCIO!$I24,RRE!$L$13:$L$24)) ->  | K24: =IF(J24="","",SUMIF(RRE!$J$13:$J$24,OFÍCIO!$I24,RRE!$N$13:$N$24)) ->  | L24: =IF(K24="","",SUMIF(RRE!$J$13:$J$24,OFÍCIO!$I24,RRE!$O$13:$O$24)) -> 
I25: =IF(ROW(I25)-ROW(L$5)>MAX(RRE!$V$13:$V$24),"",INDEX(RRE!$J$13:$J$24,MATCH(ROW(I25)-ROW(I$5),RRE!$V$13:$V$24,0))) ->  | J25: =IF(I25="","",SUMIF(RRE!$J$13:$J$24,OFÍCIO!$I25,RRE!$L$13:$L$24)) ->  | K25: =IF(J25="","",SUMIF(RRE!$J$13:$J$24,OFÍCIO!$I25,RRE!$N$13:$N$24)) ->  | L25: =IF(K25="","",SUMIF(RRE!$J$13:$J$24,OFÍCIO!$I25,RRE!$O$13:$O$24)) -> 
I26: =IF(ROW(I26)-ROW(L$5)>MAX(RRE!$V$13:$V$24),"",INDEX(RRE!$J$13:$J$24,MATCH(ROW(I26)-ROW(I$5),RRE!$V$13:$V$24,0))) ->  | J26: =IF(I26="","",SUMIF(RRE!$J$13:$J$24,OFÍCIO!$I26,RRE!$L$13:$L$24)) ->  | K26: =IF(J26="","",SUMIF(RRE!$J$13:$J$24,OFÍCIO!$I26,RRE!$N$13:$N$24)) ->  | L26: =IF(K26="","",SUMIF(RRE!$J$13:$J$24,OFÍCIO!$I26,RRE!$O$13:$O$24)) -> 
I27: =IF(ROW(I27)-ROW(L$5)>MAX(RRE!$V$13:$V$24),"",INDEX(RRE!$J$13:$J$24,MATCH(ROW(I27)-ROW(I$5),RRE!$V$13:$V$24,0))) ->  | J27: =IF(I27="","",SUMIF(RRE!$J$13:$J$24,OFÍCIO!$I27,RRE!$L$13:$L$24)) ->  | K27: =IF(J27="","",SUMIF(RRE!$J$13:$J$24,OFÍCIO!$I27,RRE!$N$13:$N$24)) ->  | L27: =IF(K27="","",SUMIF(RRE!$J$13:$J$24,OFÍCIO!$I27,RRE!$O$13:$O$24)) -> 
D28: Valores Vigentes do TC/CR | E28: ="Evolução da "&RRE.Numero&"ª Medição" -> Evolução da 1ª Medição | F28: Valores Medidos Acumulados | I28: =IF(ROW(I28)-ROW(L$5)>MAX(RRE!$V$13:$V$24),"",INDEX(RRE!$J$13:$J$24,MATCH(ROW(I28)-ROW(I$5),RRE!$V$13:$V$24,0))) ->  | J28: =IF(I28="","",SUMIF(RRE!$J$13:$J$24,OFÍCIO!$I28,RRE!$L$13:$L$24)) ->  | K28: =IF(J28="","",SUMIF(RRE!$J$13:$J$24,OFÍCIO!$I28,RRE!$N$13:$N$24)) ->  | L28: =IF(K28="","",SUMIF(RRE!$J$13:$J$24,OFÍCIO!$I28,RRE!$O$13:$O$24)) -> 
I29: =IF(ROW(I29)-ROW(L$5)>MAX(RRE!$V$13:$V$24),"",INDEX(RRE!$J$13:$J$24,MATCH(ROW(I29)-ROW(I$5),RRE!$V$13:$V$24,0))) ->  | J29: =IF(I29="","",SUMIF(RRE!$J$13:$J$24,OFÍCIO!$I29,RRE!$L$13:$L$24)) ->  | K29: =IF(J29="","",SUMIF(RRE!$J$13:$J$24,OFÍCIO!$I29,RRE!$N$13:$N$24)) ->  | L29: =IF(K29="","",SUMIF(RRE!$J$13:$J$24,OFÍCIO!$I29,RRE!$O$13:$O$24)) -> 
B30: =IF(import.recurso="FGTS","Financiamento:","Repasse:") -> Repasse: | D30: =RRE!L25 ->  | E30: =RRE!N25 ->  | F30: =RRE!O25 ->  | I30: =IF(ROW(I30)-ROW(L$5)>MAX(RRE!$V$13:$V$24),"",INDEX(RRE!$J$13:$J$24,MATCH(ROW(I30)-ROW(I$5),RRE!$V$13:$V$24,0))) ->  | J30: =IF(I30="","",SUMIF(RRE!$J$13:$J$24,OFÍCIO!$I30,RRE!$L$13:$L$24)) ->  | K30: =IF(J30="","",SUMIF(RRE!$J$13:$J$24,OFÍCIO!$I30,RRE!$N$13:$N$24)) ->  | L30: =IF(K30="","",SUMIF(RRE!$J$13:$J$24,OFÍCIO!$I30,RRE!$O$13:$O$24)) -> 
B31: Contrapartida Financeira: | D31: =RRE!L26 ->  | E31: =RRE!N26 ->  | F31: =RRE!O26 ->  | I31: =IF(ROW(I31)-ROW(L$5)>MAX(RRE!$V$13:$V$24),"",INDEX(RRE!$J$13:$J$24,MATCH(ROW(I31)-ROW(I$5),RRE!$V$13:$V$24,0))) ->  | J31: =IF(I31="","",SUMIF(RRE!$J$13:$J$24,OFÍCIO!$I31,RRE!$L$13:$L$24)) ->  | K31: =IF(J31="","",SUMIF(RRE!$J$13:$J$24,OFÍCIO!$I31,RRE!$N$13:$N$24)) ->  | L31: =IF(K31="","",SUMIF(RRE!$J$13:$J$24,OFÍCIO!$I31,RRE!$O$13:$O$24)) -> 
B32: Outros: | D32: =RRE!L27 -> 0 | E32: =RRE!N27 -> 0 | F32: =RRE!O27 -> 0 | I32: =IF(ROW(I32)-ROW(L$5)>MAX(RRE!$V$13:$V$24),"",INDEX(RRE!$J$13:$J$24,MATCH(ROW(I32)-ROW(I$5),RRE!$V$13:$V$24,0))) ->  | J32: =IF(I32="","",SUMIF(RRE!$J$13:$J$24,OFÍCIO!$I32,RRE!$L$13:$L$24)) ->  | K32: =IF(J32="","",SUMIF(RRE!$J$13:$J$24,OFÍCIO!$I32,RRE!$N$13:$N$24)) ->  | L32: =IF(K32="","",SUMIF(RRE!$J$13:$J$24,OFÍCIO!$I32,RRE!$O$13:$O$24)) -> 
B33: Investimento: | D33: =RRE!L28 -> 175683.83 | E33: =RRE!N28 -> 0 | F33: =RRE!O28 -> 0 | I33: =IF(ROW(I33)-ROW(L$5)>MAX(RRE!$V$13:$V$24),"",INDEX(RRE!$J$13:$J$24,MATCH(ROW(I33)-ROW(I$5),RRE!$V$13:$V$24,0))) ->  | J33: =IF(I33="","",SUMIF(RRE!$J$13:$J$24,OFÍCIO!$I33,RRE!$L$13:$L$24)) ->  | K33: =IF(J33="","",SUMIF(RRE!$J$13:$J$24,OFÍCIO!$I33,RRE!$N$13:$N$24)) ->  | L33: =IF(K33="","",SUMIF(RRE!$J$13:$J$24,OFÍCIO!$I33,RRE!$O$13:$O$24)) -> 
B34: Execução Física: | D34: - | E34: =RRE!$N$28/(RRE!$L$28+10^-12) -> 0 | F34: =RRE!P24 -> 0 | I34: =IF(ROW(I34)-ROW(L$5)>MAX(RRE!$V$13:$V$24),"",INDEX(RRE!$J$13:$J$24,MATCH(ROW(I34)-ROW(I$5),RRE!$V$13:$V$24,0))) ->  | J34: =IF(I34="","",SUMIF(RRE!$J$13:$J$24,OFÍCIO!$I34,RRE!$L$13:$L$24)) ->  | K34: =IF(J34="","",SUMIF(RRE!$J$13:$J$24,OFÍCIO!$I34,RRE!$N$13:$N$24)) ->  | L34: =IF(K34="","",SUMIF(RRE!$J$13:$J$24,OFÍCIO!$I34,RRE!$O$13:$O$24)) -> 
I35: =IF(ROW(I35)-ROW(L$5)>MAX(RRE!$V$13:$V$24),"",INDEX(RRE!$J$13:$J$24,MATCH(ROW(I35)-ROW(I$5),RRE!$V$13:$V$24,0))) ->  | J35: =IF(I35="","",SUMIF(RRE!$J$13:$J$24,OFÍCIO!$I35,RRE!$L$13:$L$24)) ->  | K35: =IF(J35="","",SUMIF(RRE!$J$13:$J$24,OFÍCIO!$I35,RRE!$N$13:$N$24)) ->  | L35: =IF(K35="","",SUMIF(RRE!$J$13:$J$24,OFÍCIO!$I35,RRE!$O$13:$O$24)) -> 
I36: =IF(ROW(I36)-ROW(L$5)>MAX(RRE!$V$13:$V$24),"",INDEX(RRE!$J$13:$J$24,MATCH(ROW(I36)-ROW(I$5),RRE!$V$13:$V$24,0))) ->  | J36: =IF(I36="","",SUMIF(RRE!$J$13:$J$24,OFÍCIO!$I36,RRE!$L$13:$L$24)) ->  | K36: =IF(J36="","",SUMIF(RRE!$J$13:$J$24,OFÍCIO!$I36,RRE!$N$13:$N$24)) ->  | L36: =IF(K36="","",SUMIF(RRE!$J$13:$J$24,OFÍCIO!$I36,RRE!$O$13:$O$24)) -> 
B37: =IF(RRE.Numero>1,"2. Encaminhamos ainda a documentação relativa à prestação de contas da etapa físico-financeira anterior.","") ->  | I37: =IF(ROW(I37)-ROW(L$5)>MAX(RRE!$V$13:$V$24),"",INDEX(RRE!$J$13:$J$24,MATCH(ROW(I37)-ROW(I$5),RRE!$V$13:$V$24,0))) ->  | J37: =IF(I37="","",SUMIF(RRE!$J$13:$J$24,OFÍCIO!$I37,RRE!$L$13:$L$24)) ->  | K37: =IF(J37="","",SUMIF(RRE!$J$13:$J$24,OFÍCIO!$I37,RRE!$N$13:$N$24)) ->  | L37: =IF(K37="","",SUMIF(RRE!$J$13:$J$24,OFÍCIO!$I37,RRE!$O$13:$O$24)) -> 
I38: =IF(ROW(I38)-ROW(L$5)>MAX(RRE!$V$13:$V$24),"",INDEX(RRE!$J$13:$J$24,MATCH(ROW(I38)-ROW(I$5),RRE!$V$13:$V$24,0))) ->  | J38: =IF(I38="","",SUMIF(RRE!$J$13:$J$24,OFÍCIO!$I38,RRE!$L$13:$L$24)) ->  | K38: =IF(J38="","",SUMIF(RRE!$J$13:$J$24,OFÍCIO!$I38,RRE!$N$13:$N$24)) ->  | L38: =IF(K38="","",SUMIF(RRE!$J$13:$J$24,OFÍCIO!$I38,RRE!$O$13:$O$24)) -> 
B39: =IF(AND(RRE.Numero>1,NOT(ISBLANK(Import.SICONV))),"3. Na oportunidade, informamos que a execução financeira da parcela anterior está devidamente comprovada no SICONV.","") ->  | I39: =IF(ROW(I39)-ROW(L$5)>MAX(RRE!$V$13:$V$24),"",INDEX(RRE!$J$13:$J$24,MATCH(ROW(I39)-ROW(I$5),RRE!$V$13:$V$24,0))) ->  | J39: =IF(I39="","",SUMIF(RRE!$J$13:$J$24,OFÍCIO!$I39,RRE!$L$13:$L$24)) ->  | K39: =IF(J39="","",SUMIF(RRE!$J$13:$J$24,OFÍCIO!$I39,RRE!$N$13:$N$24)) ->  | L39: =IF(K39="","",SUMIF(RRE!$J$13:$J$24,OFÍCIO!$I39,RRE!$O$13:$O$24)) -> 
I40: =IF(ROW(I40)-ROW(L$5)>MAX(RRE!$V$13:$V$24),"",INDEX(RRE!$J$13:$J$24,MATCH(ROW(I40)-ROW(I$5),RRE!$V$13:$V$24,0))) ->  | J40: =IF(I40="","",SUMIF(RRE!$J$13:$J$24,OFÍCIO!$I40,RRE!$L$13:$L$24)) ->  | K40: =IF(J40="","",SUMIF(RRE!$J$13:$J$24,OFÍCIO!$I40,RRE!$N$13:$N$24)) ->  | L40: =IF(K40="","",SUMIF(RRE!$J$13:$J$24,OFÍCIO!$I40,RRE!$O$13:$O$24)) -> 
I41: =IF(ROW(I41)-ROW(L$5)>MAX(RRE!$V$13:$V$24),"",INDEX(RRE!$J$13:$J$24,MATCH(ROW(I41)-ROW(I$5),RRE!$V$13:$V$24,0))) ->  | J41: =IF(I41="","",SUMIF(RRE!$J$13:$J$24,OFÍCIO!$I41,RRE!$L$13:$L$24)) ->  | K41: =IF(J41="","",SUMIF(RRE!$J$13:$J$24,OFÍCIO!$I41,RRE!$N$13:$N$24)) ->  | L41: =IF(K41="","",SUMIF(RRE!$J$13:$J$24,OFÍCIO!$I41,RRE!$O$13:$O$24)) -> 
B42: =IF($B$37="",0,1)+IF($B$39="",0,1)+2&". Informamos também a manutenção da Placa de Obra em local visível e de acordo com padrão estabelecido pela Presidência da República, constante do Manual Visual de Placas e Adesivos de Obra." -> 2. Informamos também a manutenção da Placa de Obra em local visível e de acordo com padrão estabelecido pela Presidência da República, constante do Manual Visual de Placas e Adesivos de Obra. | I42: =IF(ROW(I42)-ROW(L$5)>MAX(RRE!$V$13:$V$24),"",INDEX(RRE!$J$13:$J$24,MATCH(ROW(I42)-ROW(I$5),RRE!$V$13:$V$24,0))) ->  | J42: =IF(I42="","",SUMIF(RRE!$J$13:$J$24,OFÍCIO!$I42,RRE!$L$13:$L$24)) ->  | K42: =IF(J42="","",SUMIF(RRE!$J$13:$J$24,OFÍCIO!$I42,RRE!$N$13:$N$24)) ->  | L42: =IF(K42="","",SUMIF(RRE!$J$13:$J$24,OFÍCIO!$I42,RRE!$O$13:$O$24)) -> 
I43: =IF(ROW(I43)-ROW(L$5)>MAX(RRE!$V$13:$V$24),"",INDEX(RRE!$J$13:$J$24,MATCH(ROW(I43)-ROW(I$5),RRE!$V$13:$V$24,0))) ->  | J43: =IF(I43="","",SUMIF(RRE!$J$13:$J$24,OFÍCIO!$I43,RRE!$L$13:$L$24)) ->  | K43: =IF(J43="","",SUMIF(RRE!$J$13:$J$24,OFÍCIO!$I43,RRE!$N$13:$N$24)) ->  | L43: =IF(K43="","",SUMIF(RRE!$J$13:$J$24,OFÍCIO!$I43,RRE!$O$13:$O$24)) -> 
I44: =IF(ROW(I44)-ROW(L$5)>MAX(RRE!$V$13:$V$24),"",INDEX(RRE!$J$13:$J$24,MATCH(ROW(I44)-ROW(I$5),RRE!$V$13:$V$24,0))) ->  | J44: =IF(I44="","",SUMIF(RRE!$J$13:$J$24,OFÍCIO!$I44,RRE!$L$13:$L$24)) ->  | K44: =IF(J44="","",SUMIF(RRE!$J$13:$J$24,OFÍCIO!$I44,RRE!$N$13:$N$24)) ->  | L44: =IF(K44="","",SUMIF(RRE!$J$13:$J$24,OFÍCIO!$I44,RRE!$O$13:$O$24)) -> 
I45: =IF(ROW(I45)-ROW(L$5)>MAX(RRE!$V$13:$V$24),"",INDEX(RRE!$J$13:$J$24,MATCH(ROW(I45)-ROW(I$5),RRE!$V$13:$V$24,0))) ->  | J45: =IF(I45="","",SUMIF(RRE!$J$13:$J$24,OFÍCIO!$I45,RRE!$L$13:$L$24)) ->  | K45: =IF(J45="","",SUMIF(RRE!$J$13:$J$24,OFÍCIO!$I45,RRE!$N$13:$N$24)) ->  | L45: =IF(K45="","",SUMIF(RRE!$J$13:$J$24,OFÍCIO!$I45,RRE!$O$13:$O$24)) -> 
I46: =IF(ROW(I46)-ROW(L$5)>MAX(RRE!$V$13:$V$24),"",INDEX(RRE!$J$13:$J$24,MATCH(ROW(I46)-ROW(I$5),RRE!$V$13:$V$24,0))) ->  | J46: =IF(I46="","",SUMIF(RRE!$J$13:$J$24,OFÍCIO!$I46,RRE!$L$13:$L$24)) ->  | K46: =IF(J46="","",SUMIF(RRE!$J$13:$J$24,OFÍCIO!$I46,RRE!$N$13:$N$24)) ->  | L46: =IF(K46="","",SUMIF(RRE!$J$13:$J$24,OFÍCIO!$I46,RRE!$O$13:$O$24)) -> 
B49: Atenciosamente,
B54: =DADOS!$F$21 -> Sergio Callegari
B55: =DADOS!$F$22 -> Prefeito Municipal
